Workbook

Sheet Dev Flag (hidden)
A1: Developer Flag
A2: FALSE

Sheet Parameters (hidden)
A1: Filename | B1: File Type | C1: Sheet Name | D1: VIN Column | E1: Rep Year Column | F1: VMT Column | G1: Use Default VMT | H1: Use Default YOU | I1: Default VMT | J1: Default YOU | K1: State | L1: Incentive Selection | M1: Use Default Location | N1: Location Column | O1: Sample Fleet | Q1: Title | R1: Law ID | S1: Description | T1: Link | U1: State Abbreviation
E2: Year of Use | F2: VMT | G2: Yes | H2: Yes | K2: DC | M2: Yes | N2: Location | O2: TRUE

Sheet Fleet Vehicles (hidden)
A1: VIN | B1: Base_V1_Years_Usage | C1: Base_V1_VMT | D1: Vehicle Location | E1: Vehicle ID | F1: VIN Key
A2: 15GGD3013C1181123 | D2: Location 1 | E2: 1 | F2: 15GGD301*C
A3: 15GGD3015C1181155 | D3: Location 1 | E3: 2 | F3: 15GGD301*C
A4: 5YFEPRAE2LP021100 | D4: Location 1 | E4: 3 | F4: 5YFEPRAE*L
A5: 5YFEPRAE2LP023101 | D5: Location 1 | E5: 4 | F5: 5YFEPRAE*L
A6: 5YFEPRAE2LP025102 | D6: Location 1 | E6: 5 | F6: 5YFEPRAE*L
A7: 5YFEPRAE4LP022103 | D7: Location 1 | E7: 6 | F7: 5YFEPRAE*L
A8: 5YFEPRAE6LP021104 | D8: Location 1 | E8: 7 | F8: 5YFEPRAE*L
A9: 1FTYR14V43TA39100 | D9: Location 1 | E9: 8 | F9: 1FTYR14V*3
A10: 1GCCS145728164101 | D10: Location 1 | E10: 9 | F10: 1GCCS145*2
A11: 1GCGTBEN1L1185102 | D11: Location 1 | E11: 10 | F11: 1GCGTBEN*L
A12: 1FTYR10V5XTA93103 | D12: Location 1 | E12: 11 | F12: 1FTYR10V*X
A13: 1FDNF6AY5HDB03100 | D13: Location 1 | E13: 12 | F13: 1FDNF6AY*H
A14: 1FDXE4FS0DDA07101 | D14: Location 1 | E14: 13 | F14: 1FDXE4FS*D
A15: 1FDXE4FS2DDA07102 | D15: Location 1 | E15: 14 | F15: 1FDXE4FS*D
A16: 1FAFP53U05A267100 | D16: Location 1 | E16: 15 | F16: 1FAFP53U*5
A17: 1FAFP53U05A267101 | D17: Location 1 | E17: 16 | F17: 1FAFP53U*5
A18: 1FAFP53U05A267102 | D18: Location 1 | E18: 17 | F18: 1FAFP53U*5
A19: 1FAFP53U05A267103 | D19: Location 1 | E19: 18 | F19: 1FAFP53U*5
A20: 1FAFP53U05A267104 | D20: Location 1 | E20: 19 | F20: 1FAFP53U*5
A21: 1FAFP53U05A267105 | D21: Location 1 | E21: 20 | F21: 1FAFP53U*5
A22: 1FAFP53U05A267106 | D22: Location 2 | E22: 21 | F22: 1FAFP53U*5
A23: 1FAFP53U05A267107 | D23: Location 2 | E23: 22 | F23: 1FAFP53U*5
A24: 1FAFP53U05A267108 | D24: Location 2 | E24: 23 | F24: 1FAFP53U*5
A25: 1FAFP53U05A267109 | D25: Location 2 | E25: 24 | F25: 1FAFP53U*5
A26: 1FAFP53U05A267110 | D26: Location 2 | E26: 25 | F26: 1FAFP53U*5
A27: 1GCNKNEHXHZ250100 | D27: Location 2 | E27: 26 | F27: 1GCNKNEH*H
A28: 1GCNKNEHXHZ250101 | D28: Location 2 | E28: 27 | F28: 1GCNKNEH*H
A29: 1GCNKNEHXHZ250102 | D29: Location 2 | E29: 28 | F29: 1GCNKNEH*H
A30: 1GCNKNEHXHZ250103 | D30: Location 2 | E30: 29 | F30: 1GCNKNEH*H
A31: 1GCNKNEHXHZ250104 | D31: Location 2 | E31: 30 | F31: 1GCNKNEH*H
A32: 1GCNKNEHXHZ250105 | D32: Location 2 | E32: 31 | F32: 1GCNKNEH*H
A33: 1GCNKNEHXHZ250106 | D33: Location 2 | E33: 32 | F33: 1GCNKNEH*H
A34: 1GCNKNEHXHZ250107 | D34: Location 2 | E34: 33 | F34: 1GCNKNEH*H
A35: 1GCNKNEHXHZ250108 | D35: Location 2 | E35: 34 | F35: 1GCNKNEH*H
A36: 1GCNKNEHXHZ250109 | D36: Location 2 | E36: 35 | F36: 1GCNKNEH*H
A37: 1GCNKNEHXHZ250110 | D37: Location 2 | E37: 36 | F37: 1GCNKNEH*H
A38: 1GCNKNEHXHZ250111 | D38: Location 2 | E38: 37 | F38: 1GCNKNEH*H
A39: 1GCNKNEHXHZ250112 | D39: Location 2 | E39: 38 | F39: 1GCNKNEH*H
A40: 1GCNKNEHXHZ250113 | D40: Location 2 | E40: 39 | F40: 1GCNKNEH*H
A41: 1GCNKNEHXHZ250114 | D41: Location 3 | E41: 40 | F41: 1GCNKNEH*H
A42: 1FM5K8FW5LGB60000 | D42: Location 3 | E42: 41 | F42: 1FM5K8FW*L
A43: 1FM5K8FW5LGB60001 | D43: Location 3 | E43: 42 | F43: 1FM5K8FW*L
A44: 1FM5K8FW5LGB60002 | D44: Location 3 | E44: 43 | F44: 1FM5K8FW*L
A45: 1FM5K8FW5LGB60003 | D45: Location 3 | E45: 44 | F45: 1FM5K8FW*L
A46: 1FM5K8FW5LGB60004 | D46: Location 3 | E46: 45 | F46: 1FM5K8FW*L
A47: 1FM5K8FW5LGB60005 | D47: Location 3 | E47: 46 | F47: 1FM5K8FW*L
A48: 1FM5K8FW5LGB60006 | D48: Location 3 | E48: 47 | F48: 1FM5K8FW*L
A49: 1FM5K8FW5LGB60007 | D49: Location 3 | E49: 48 | F49: 1FM5K8FW*L
A50: 1FM5K8FW5LGB60008 | D50: Location 3 | E50: 49 | F50: 1FM5K8FW*L
A51: 1FM5K8FW5LGB60009 | D51: Location 3 | E51: 50 | F51: 1FM5K8FW*L
A52: 1FM5K8FW5LGB60010 | D52: Location 3 | E52: 51 | F52: 1FM5K8FW*L
A53: 1FM5K8FW5LGB60011 | D53: Location 3 | E53: 52 | F53: 1FM5K8FW*L
A54: 1FM5K8FW5LGB60012 | D54: Location 3 | E54: 53 | F54: 1FM5K8FW*L
A55: 1FM5K8FW5LGB60013 | D55: Location 3 | E55: 54 | F55: 1FM5K8FW*L
A56: 1FM5K8FW5LGB60014 | D56: Location 3 | E56: 55 | F56: 1FM5K8FW*L
A57: 1FM5K8FW5LGB60015 | D57: Location 3 | E57: 56 | F57: 1FM5K8FW*L
A58: 1FM5K8FW5LGB60016 | D58: Location 3 | E58: 57 | F58: 1FM5K8FW*L
A59: 1FM5K8FW5LGB60017 | D59: Location 3 | E59: 58 | F59: 1FM5K8FW*L
A60: 1FM5K8FW5LGB60018 | D60: Location 3 | E60: 59 | F60: 1FM5K8FW*L
A61: 1FM5K8FW5LGB60019 | D61: Location 3 | E61: 60 | F61: 1FM5K8FW*L
A62: 1FM5K8FW5LGB60020 | D62: Location 3 | E62: 61 | F62: 1FM5K8FW*L
A63: 1HTSCAAM9WH538100 | D63: Location 3 | E63: 62 | F63: 1HTSCAAM*W
A64: 1HTSCAAM9WH538101 | D64: Location 3 | E64: 63 | F64: 1HTSCAAM*W
A65: 1HTSCAAM9WH538102 | D65: Location 3 | E65: 64 | F65: 1HTSCAAM*W
A66: 1HTSCAAM9WH538103 | D66: Location 3 | E66: 65 | F66: 1HTSCAAM*W
A67: 1HTSCAAM9WH538104 | D67: Location 3 | E67: 66 | F67: 1HTSCAAM*W
A68: 1HTSCAAM9WH538105 | D68: Location 3 | E68: 67 | F68: 1HTSCAAM*W
A69: 1HTSCAAM9WH538106 | D69: Location 3 | E69: 68 | F69: 1HTSCAAM*W
A70: 1HTSCAAM9WH538107 | D70: Location 3 | E70: 69 | F70: 1HTSCAAM*W
A71: 1HTSCAAM9WH538108 | D71: Location 3 | E71: 70 | F71: 1HTSCAAM*W
A72: 1HTSCAAM9WH538109 | D72: Location 3 | E72: 71 | F72: 1HTSCAAM*W
A73: 1FTNX21L94EC69100 | D73: Location 3 | E73: 72 | F73: 1FTNX21L*4
A74: 1FTNX21L94EC69101 | D74: Location 3 | E74: 73 | F74: 1FTNX21L*4
A75: 1FTNX21L94EC69102 | D75: Location 3 | E75: 74 | F75: 1FTNX21L*4
A76: 1FTNX21L94EC69103 | D76: Location 3 | E76: 75 | F76: 1FTNX21L*4
A77: 1FTNX21L94EC69104 | D77: Location 3 | E77: 76 | F77: 1FTNX21L*4
A78: 1FTNX21L94EC69105 | D78: Location 3 | E78: 77 | F78: 1FTNX21L*4
A79: 1FTNX21L94EC69106 | D79: Location 3 | E79: 78 | F79: 1FTNX21L*4
A80: 1FTNX21L94EC69107 | D80: Location 3 | E80: 79 | F80: 1FTNX21L*4
A81: 1FTNX21L94EC69108 | D81: Location 3 | E81: 80 | F81: 1FTNX21L*4
A82: 1FTNX21L94EC69109 | D82: Location 3 | E82: 81 | F82: 1FTNX21L*4
A83: 1FTNX21L94EC69110 | D83: Location 3 | E83: 82 | F83: 1FTNX21L*4
A84: 1FTNX21L94EC69111 | D84: Location 3 | E84: 83 | F84: 1FTNX21L*4
A85: 1FTNX21L94EC69112 | D85: Location 3 | E85: 84 | F85: 1FTNX21L*4
A86: 1FTNX21L94EC69113 | D86: Location 3 | E86: 85 | F86: 1FTNX21L*4
A87: 1FTNX21L94EC69114 | D87: Location 3 | E87: 86 | F87: 1FTNX21L*4
A88: 1FTNX21L94EC69115 | D88: Location 3 | E88: 87 | F88: 1FTNX21L*4
A89: 2C4RDGBG9KR701000 | D89: Location 3 | E89: 88 | F89: 2C4RDGBG*K
A90: 2C4RDGBG9KR701001 | D90: Location 4 | E90: 89 | F90: 2C4RDGBG*K
A91: 2C4RDGBG9KR701002 | D91: Location 4 | E91: 90 | F91: 2C4RDGBG*K
A92: 2C4RDGBG9KR701003 | D92: Location 4 | E92: 91 | F92: 2C4RDGBG*K
A93: 2C4RDGBG9KR701004 | D93: Location 4 | E93: 92 | F93: 2C4RDGBG*K
A94: 2C4RDGBG9KR701005 | D94: Location 4 | E94: 93 | F94: 2C4RDGBG*K
A95: 2C4RDGBG9KR701006 | D95: Location 4 | E95: 94 | F95: 2C4RDGBG*K
A96: 2C4RDGBG9KR701007 | D96: Location 4 | E96: 95 | F96: 2C4RDGBG*K
A97: 2C4RDGBG9KR701008 | D97: Location 4 | E97: 96 | F97: 2C4RDGBG*K
A98: 2C4RDGBG9KR701009 | D98: Location 4 | E98: 97 | F98: 2C4RDGBG*K
A99: 2C4RDGBG9KR701010 | D99: Location 4 | E99: 98 | F99: 2C4RDGBG*K
A100: 2C4RDGBG9KR701011 | D100: Location 4 | E100: 99 | F100: 2C4RDGBG*K
A101: 2C4RDGBG9KR701012 | D101: Location 4 | E101: 100 | F101: 2C4RDGBG*K
A102: 1G1YK2D45S5502023 | D102: Location 1 | E102: 101 | F102: 1G1YK2D4*S
A103: 1G1YL3D49R5200148 | D103: Location 1 | E103: 102 | F103: 1G1YL3D4*R
A104: 1G1YM2D49R5500201 | D104: Location 1 | E104: 103 | F104: 1G1YM2D4*R
A105: 1G1YM2D41S5501106 | D105: Location 1 | E105: 104 | F105: 1G1YM2D4*S
A106: 1G1YK3D42S5502373 | D106: Location 1 | E106: 105 | F106: 1G1YK3D4*S
A107: 2GCFK135X91109312 | D107: Location 4 | E107: 106 | F107: 2GCFK135*9
A108: 3GCUKUEJ2DG142999 | D108: Location 4 | E108: 107 | F108: 3GCUKUEJ*D
A109: 3GCUCRER0JG307556 | D109: Location 4 | E109: 108 | F109: 3GCUCRER*J
A110: 1GC10UED5RU204192 | D110: Location 4 | E110: 109 | F110: 1GC10UED*R
A111: 1GC10UED8RU203067 | D111: Location 4 | E111: 110 | F111: 1GC10UED*R
A112: 7SVAAAAA0PX001428 | D112: Location 3 | E112: 111 | F112: 7SVAAAAA*P
A113: 7SVAAABA8PX004138 | D113: Location 3 | E113: 112 | F113: 7SVAAABA*P
A114: 7SVAAABAXPX004965 | D114: Location 3 | E114: 113 | F114: 7SVAAABA*P
A115: 7SVAAABA4PX004654 | D115: Location 3 | E115: 114 | F115: 7SVAAABA*P
A116: 7SVAAABA5PX019101 | D116: Location 3 | E116: 115 | F116: 7SVAAABA*P

Sheet Vin Strings (hidden)
A1: vin
A2: 15GGD301*C
A3: 5YFEPRAE*L
A4: 1FTYR14V*3
A5: 1GCCS145*2
A6: 1GCGTBEN*L
A7: 1FTYR10V*X
A8: 1FDNF6AY*H
A9: 1FDXE4FS*D
A10: 1FAFP53U*5
A11: 1GCNKNEH*H
A12: 1FM5K8FW*L
A13: 1HTSCAAM*W
A14: 1FTNX21L*4
A15: 2C4RDGBG*K
A16: 1G1YK2D4*S
A17: 1G1YL3D4*R
A18: 1G1YM2D4*R
A19: 1G1YM2D4*S
A20: 1G1YK3D4*S
A21: 2GCFK135*9
A22: 3GCUKUEJ*D
A23: 3GCUCRER*J
A24: 1GC10UED*R
A25: 7SVAAAAA*P
A26: 7SVAAABA*P

Sheet Decoded Vins (hidden)
A1: Full Vehicle Name | B1: vin | C1: Vehicle ID | D1: Use Case
A2: GILLIG LOW FLOOR BUS | B2: 15GGD3013C1181123 | C2: 1 | D2: Transit Bus
A3: GILLIG LOW FLOOR BUS | B3: 15GGD3015C1181155 | C3: 2 | D3: Transit Bus
A4: TOYOTA COROLLA | B4: 5YFEPRAE2LP021100 | C4: 3 | D4: Car
A5: TOYOTA COROLLA | B5: 5YFEPRAE2LP023101 | C5: 4 | D5: Car
A6: TOYOTA COROLLA | B6: 5YFEPRAE2LP025102 | C6: 5 | D6: Car
A7: TOYOTA COROLLA | B7: 5YFEPRAE4LP022103 | C7: 6 | D7: Car
A8: TOYOTA COROLLA | B8: 5YFEPRAE6LP021104 | C8: 7 | D8: Car
A9: FORD TAURUS | B9: 1FAFP53U05A267100 | C9: 15 | D9: Car
A10: FORD TAURUS | B10: 1FAFP53U05A267101 | C10: 16 | D10: Car
A11: FORD TAURUS | B11: 1FAFP53U05A267102 | C11: 17 | D11: Car
A12: FORD TAURUS | B12: 1FAFP53U05A267103 | C12: 18 | D12: Car
A13: FORD TAURUS | B13: 1FAFP53U05A267104 | C13: 19 | D13: Car
A14: FORD TAURUS | B14: 1FAFP53U05A267105 | C14: 20 | D14: Car
A15: FORD TAURUS | B15: 1FAFP53U05A267106 | C15: 21 | D15: Car
A16: FORD TAURUS | B16: 1FAFP53U05A267107 | C16: 22 | D16: Car
A17: FORD TAURUS | B17: 1FAFP53U05A267108 | C17: 23 | D17: Car
A18: FORD TAURUS | B18: 1FAFP53U05A267109 | C18: 24 | D18: Car
A19: FORD TAURUS | B19: 1FAFP53U05A267110 | C19: 25 | D19: Car
A20: FORD RANGER | B20: 1FTYR14V43TA39100 | C20: 8 | D20: Light Pickup
A21: CHEVROLET S-10 PICKUP | B21: 1GCCS145728164101 | C21: 9 | D21: Light Pickup
A22: CHEVROLET COLORADO | B22: 1GCGTBEN1L1185102 | C22: 10 | D22: Light Pickup
A23: FORD RANGER | B23: 1FTYR10V5XTA93103 | C23: 11 | D23: Light Pickup
A24: CHEVROLET SILVERADO | B24: 1GCNKNEHXHZ250100 | C24: 26 | D24: Light Pickup
A25: CHEVROLET SILVERADO | B25: 1GCNKNEHXHZ250101 | C25: 27 | D25: Light Pickup
A26: CHEVROLET SILVERADO | B26: 1GCNKNEHXHZ250102 | C26: 28 | D26: Light Pickup
A27: CHEVROLET SILVERADO | B27: 1GCNKNEHXHZ250103 | C27: 29 | D27: Light Pickup
A28: CHEVROLET SILVERADO | B28: 1GCNKNEHXHZ250104 | C28: 30 | D28: Light Pickup
A29: CHEVROLET SILVERADO | B29: 1GCNKNEHXHZ250105 | C29: 31 | D29: Light Pickup
A30: CHEVROLET SILVERADO | B30: 1GCNKNEHXHZ250106 | C30: 32 | D30: Light Pickup
A31: CHEVROLET SILVERADO | B31: 1GCNKNEHXHZ250107 | C31: 33 | D31: Light Pickup
A32: CHEVROLET SILVERADO | B32: 1GCNKNEHXHZ250108 | C32: 34 | D32: Light Pickup
A33: CHEVROLET SILVERADO | B33: 1GCNKNEHXHZ250109 | C33: 35 | D33: Light Pickup
A34: CHEVROLET SILVERADO | B34: 1GCNKNEHXHZ250110 | C34: 36 | D34: Light Pickup
A35: CHEVROLET SILVERADO | B35: 1GCNKNEHXHZ250111 | C35: 37 | D35: Light Pickup
A36: CHEVROLET SILVERADO | B36: 1GCNKNEHXHZ250112 | C36: 38 | D36: Light Pickup
A37: CHEVROLET SILVERADO | B37: 1GCNKNEHXHZ250113 | C37: 39 | D37: Light Pickup
A38: CHEVROLET SILVERADO | B38: 1GCNKNEHXHZ250114 | C38: 40 | D38: Light Pickup
A39: FORD F-250 | B39: 1FTNX21L94EC69100 | C39: 72 | D39: Medium-Duty Pickup
A40: FORD F-250 | B40: 1FTNX21L94EC69101 | C40: 73 | D40: Medium-Duty Pickup
A41: FORD F-650 | B41: 1FDNF6AY5HDB03100 | C41: 12 | D41: Medium-Duty Straight Truck
A42: INTERNATIONAL 4700 | B42: 1HTSCAAM9WH538100 | C42: 62 | D42: Medium-Duty Straight Truck
A43: INTERNATIONAL 4700 | B43: 1HTSCAAM9WH538101 | C43: 63 | D43: Medium-Duty Straight Truck
A44: INTERNATIONAL 4700 | B44: 1HTSCAAM9WH538102 | C44: 64 | D44: Medium-Duty Straight Truck
A45: INTERNATIONAL 4700 | B45: 1HTSCAAM9WH538103 | C45: 65 | D45: Medium-Duty Straight Truck
A46: INTERNATIONAL 4700 | B46: 1HTSCAAM9WH538104 | C46: 66 | D46: Medium-Duty Straight Truck
A47: INTERNATIONAL 4700 | B47: 1HTSCAAM9WH538105 | C47: 67 | D47: Medium-Duty Straight Truck
A48: INTERNATIONAL 4700 | B48: 1HTSCAAM9WH538106 | C48: 68 | D48: Medium-Duty Straight Truck
A49: INTERNATIONAL 4700 | B49: 1HTSCAAM9WH538107 | C49: 69 | D49: Medium-Duty Straight Truck
A50: INTERNATIONAL 4700 | B50: 1HTSCAAM9WH538108 | C50: 70 | D50: Medium-Duty Straight Truck
A51: INTERNATIONAL 4700 | B51: 1HTSCAAM9WH538109 | C51: 71 | D51: Medium-Duty Straight Truck
A52: FORD E-450 | B52: 1FDXE4FS0DDA07101 | C52: 13 | D52: Medium-Duty Straight Truck
A53: FORD E-450 | B53: 1FDXE4FS2DDA07102 | C53: 14 | D53: Medium-Duty Straight Truck
A54: FORD EXPLORER | B54: 1FM5K8FW5LGB60000 | C54: 41 | D54: SUV/MPV
A55: FORD EXPLORER | B55: 1FM5K8FW5LGB60001 | C55: 42 | D55: SUV/MPV
A56: FORD EXPLORER | B56: 1FM5K8FW5LGB60002 | C56: 43 | D56: SUV/MPV
A57: FORD EXPLORER | B57: 1FM5K8FW5LGB60003 | C57: 44 | D57: SUV/MPV
A58: FORD EXPLORER | B58: 1FM5K8FW5LGB60004 | C58: 45 | D58: SUV/MPV
A59: FORD EXPLORER | B59: 1FM5K8FW5LGB60005 | C59: 46 | D59: SUV/MPV
A60: FORD EXPLORER | B60: 1FM5K8FW5LGB60006 | C60: 47 | D60: SUV/MPV
A61: FORD EXPLORER | B61: 1FM5K8FW5LGB60007 | C61: 48 | D61: SUV/MPV
A62: FORD EXPLORER | B62: 1FM5K8FW5LGB60008 | C62: 49 | D62: SUV/MPV
A63: FORD EXPLORER | B63: 1FM5K8FW5LGB60009 | C63: 50 | D63: SUV/MPV
A64: FORD EXPLORER | B64: 1FM5K8FW5LGB60010 | C64: 51 | D64: SUV/MPV
A65: FORD EXPLORER | B65: 1FM5K8FW5LGB60011 | C65: 52 | D65: SUV/MPV
A66: FORD EXPLORER | B66: 1FM5K8FW5LGB60012 | C66: 53 | D66: SUV/MPV
A67: FORD EXPLORER | B67: 1FM5K8FW5LGB60013 | C67: 54 | D67: SUV/MPV
A68: FORD EXPLORER | B68: 1FM5K8FW5LGB60014 | C68: 55 | D68: SUV/MPV
A69: FORD EXPLORER | B69: 1FM5K8FW5LGB60015 | C69: 56 | D69: SUV/MPV
A70: FORD EXPLORER | B70: 1FM5K8FW5LGB60016 | C70: 57 | D70: SUV/MPV
A71: FORD EXPLORER | B71: 1FM5K8FW5LGB60017 | C71: 58 | D71: SUV/MPV
A72: FORD EXPLORER | B72: 1FM5K8FW5LGB60018 | C72: 59 | D72: SUV/MPV
A73: FORD EXPLORER | B73: 1FM5K8FW5LGB60019 | C73: 60 | D73: SUV/MPV
A74: FORD EXPLORER | B74: 1FM5K8FW5LGB60020 | C74: 61 | D74: SUV/MPV
A75: FORD F-250 | B75: 1FTNX21L94EC69102 | C75: 74 | D75: Medium-Duty Pickup
A76: FORD F-250 | B76: 1FTNX21L94EC69103 | C76: 75 | D76: Medium-Duty Pickup
A77: FORD F-250 | B77: 1FTNX21L94EC69104 | C77: 76 | D77: Medium-Duty Pickup
A78: FORD F-250 | B78: 1FTNX21L94EC69105 | C78: 77 | D78: Medium-Duty Pickup
A79: FORD F-250 | B79: 1FTNX21L94EC69106 | C79: 78 | D79: Medium-Duty Pickup
A80: FORD F-250 | B80: 1FTNX21L94EC69107 | C80: 79 | D80: Medium-Duty Pickup
A81: FORD F-250 | B81: 1FTNX21L94EC69108 | C81: 80 | D81: Medium-Duty Pickup
A82: FORD F-250 | B82: 1FTNX21L94EC69109 | C82: 81 | D82: Medium-Duty Pickup
A83: FORD F-250 | B83: 1FTNX21L94EC69110 | C83: 82 | D83: Medium-Duty Pickup
A84: FORD F-250 | B84: 1FTNX21L94EC69111 | C84: 83 | D84: Medium-Duty Pickup
A85: FORD F-250 | B85: 1FTNX21L94EC69112 | C85: 84 | D85: Medium-Duty Pickup
A86: FORD F-250 | B86: 1FTNX21L94EC69113 | C86: 85 | D86: Medium-Duty Pickup
A87: FORD F-250 | B87: 1FTNX21L94EC69114 | C87: 86 | D87: Medium-Duty Pickup
A88: FORD F-250 | B88: 1FTNX21L94EC69115 | C88: 87 | D88: Medium-Duty Pickup
A89: DODGE GRAND CARAVAN | B89: 2C4RDGBG9KR701000 | C89: 88 | D89: Minivan
A90: DODGE GRAND CARAVAN | B90: 2C4RDGBG9KR701001 | C90: 89 | D90: Minivan
A91: DODGE GRAND CARAVAN | B91: 2C4RDGBG9KR701002 | C91: 90 | D91: Minivan
A92: DODGE GRAND CARAVAN | B92: 2C4RDGBG9KR701003 | C92: 91 | D92: Minivan
A93: DODGE GRAND CARAVAN | B93: 2C4RDGBG9KR701004 | C93: 92 | D93: Minivan
A94: DODGE GRAND CARAVAN | B94: 2C4RDGBG9KR701005 | C94: 93 | D94: Minivan
A95: DODGE GRAND CARAVAN | B95: 2C4RDGBG9KR701006 | C95: 94 | D95: Minivan
A96: DODGE GRAND CARAVAN | B96: 2C4RDGBG9KR701007 | C96: 95 | D96: Minivan
A97: DODGE GRAND CARAVAN | B97: 2C4RDGBG9KR701008 | C97: 96 | D97: Minivan
A98: DODGE GRAND CARAVAN | B98: 2C4RDGBG9KR701009 | C98: 97 | D98: Minivan
A99: DODGE GRAND CARAVAN | B99: 2C4RDGBG9KR701010 | C99: 98 | D99: Minivan
A100: DODGE GRAND CARAVAN | B100: 2C4RDGBG9KR701011 | C100: 99 | D100: Minivan
A101: DODGE GRAND CARAVAN | B101: 2C4RDGBG9KR701012 | C101: 100 | D101: Minivan
A102: CHEVROLET CORVETTE | B102: 1G1YK2D45S5502023 | C102: 101 | D102: Car
A103: CHEVROLET CORVETTE | B103: 1G1YL3D49R5200148 | C103: 102 | D103: Car
A104: CHEVROLET CORVETTE | B104: 1G1YM2D49R5500201 | C104: 103 | D104: Car
A105: CHEVROLET CORVETTE | B105: 1G1YM2D41S5501106 | C105: 104 | D105: Car
A106: CHEVROLET CORVETTE | B106: 1G1YK3D42S5502373 | C106: 105 | D106: Car
A107: CHEVROLET SILVERADO | B107: 2GCFK135X91109312 | C107: 106 | D107: Light Pickup
A108: CHEVROLET SILVERADO | B108: 3GCUKUEJ2DG142999 | C108: 107 | D108: Light Pickup
A109: CHEVROLET SILVERADO | B109: 3GCUCRER0JG307556 | C109: 108 | D109: Light Pickup
A110: CHEVROLET SILVERADO | B110: 1GC10UED5RU204192 | C110: 109 | D110: Medium-Duty Pickup
A111: CHEVROLET SILVERADO | B111: 1GC10UED8RU203067 | C111: 110 | D111: Medium-Duty Pickup
A112: TOYOTA SEQUOIA | B112: 7SVAAAAA0PX001428 | C112: 111 | D112: SUV/MPV
A113: TOYOTA SEQUOIA | B113: 7SVAAABA8PX004138 | C113: 112 | D113: SUV/MPV
A114: TOYOTA SEQUOIA | B114: 7SVAAABAXPX004965 | C114: 113 | D114: SUV/MPV
A115: TOYOTA SEQUOIA | B115: 7SVAAABA4PX004654 | C115: 114 | D115: SUV/MPV
A116: TOYOTA SEQUOIA | B116: 7SVAAABA5PX019101 | C116: 115 | D116: SUV/MPV

Sheet Decode Contents (hidden)
A1: DecodeContents
A2: makeid,modelid,manufacturerid,vin,batteryinfo,batterytype,bedtype,bodycabtype,bodyclass,enginecylinders,destinationmarket,displacementcc,displacementci,displacementl,doors,drivetype,driverassist,enginecycles,enginemodel,enginekw,entertainmentsystem,fueltypeprimary,gvwr,make,manufacturer,model,modelyear,plantcity,seats,series,steeringlocation,transmissionstyle,trim,vehicletype,windows,axles,brakesystemtype,batterycells,bedlengthin,brakesystemdesc,curbweightlb,airbagloccurtain,airbaglocseatcushion,batterya,batteryv,batterykwh,wheelbasetype,seatrows,valvetraindesign,transmissionspeeds,engineconfiguration,airbaglocfront,fueltypesecondary,fuelinjectiontype,airbaglocknee,enginehp,evdriveunit,plantcountry,plantcompanyname,plantstate,pretensioner,seatbeltsall,adaptivecruisecontrol,adaptiveheadlights,abs,cib,blindspotmon,ncsabodytype,ncsamake,ncsamodel,esc,tractioncontrol,forwardcollisionwarning,lanedeparturewarning,lanekeepsystem,rearvisibilitysystem,parkassist,airbaglocside,trim2,series2,wheelbaseshort,wheelbaselong,note,wheels,trailertype,trailerbodytype,trailerlength,wheelsizefront,wheelsizerear,otherrestraintsysteminfo,coolingtype,enginehp_to,electrificationlevel,chargerlevel,chargerpowerkw,otherengineinfo,batterya_to,batteryv_to,batterykwh_to,turbo,baseprice,batterymodules,batterypacks,topspeedmph,suggestedvin,errorcode,possiblevalues,axleconfiguration,enginemanufacturer,buslength,busfloorconfigtype,bustype,otherbusinfo,custommotorcycletype,motorcyclesuspensiontype,motorcyclechassistype,othermotorcycleinfo,othertrailerinfo,additionalerrortext,cashforclunkers,trackwidth,tpms,activesafetysysnote,dynamicbrakesupport,pedestrianautomaticemergencybraking,autoreversesystem,automaticpedestrianalertingsound,can_aacn,edr,keylessignition,daytimerunninglight,lowerbeamheadlamplightsource,semiautomaticheadlampbeamswitching,adaptivedrivingbeam,saeautomationlevel,saeautomationlevel_to,rearcrosstrafficalert,gcwr,gcwr_to,ncsanote,ncsamappingexception,ncsamapexcapprovedon,ncsamapexcapprovedby,gvwr_to,errortext,rearautomaticemergencybraking,blindspotintervention,lanecenteringassistance,nonlanduse,vehicledescriptor,fueltanktype,fueltankmaterial,combinedbrakingsystem,wheeliemitigation 554,2867,1118,15GGD301*C,,,Not Applicable,Not Applicable,Bus,,,6700.0,409,6.7,,,,,Diesel ISB,,,Diesel,"Class 7: 26,001 - 33,000 lb (11,794 - 14,969 kg)",GILLIG,GILLIG LLC,Low Floor Bus,2012,,,,,,,BUS,,,Air,,,,,,,,,,,,,,,,Electric,,,,,,,,,,,,,,,Transit Bus (City Bus),Gillig,Other (bus),,,,,,,,,,,,,"GVWR: 26,000 lb and above",,Not Applicable,Not Applicable,,,,,,,Strong HEV (Hybrid Electric Vehicle),,,,,,,,,,,,,6,,,Cummins,40,,,,Not Applicable,Not Applicable,Not Applicable,,,"The Model Year decoded for this VIN may be incorrect. If you know the Model year, please enter it and decode again to get more accurate information.",,,,,,,,,,,,,,,,,,,,,,,,,"Class 8: 33,001 lb and above (14,969 kg and above)",6 - Incomplete VIN,,,,,15GGD301*C*,,,,
A3: makeid,modelid,manufacturerid,vin,batteryinfo,batterytype,bedtype,bodycabtype,bodyclass,enginecylinders,destinationmarket,displacementcc,displacementci,displacementl,doors,drivetype,driverassist,enginecycles,enginemodel,enginekw,entertainmentsystem,fueltypeprimary,gvwr,make,manufacturer,model,modelyear,plantcity,seats,series,steeringlocation,transmissionstyle,trim,vehicletype,windows,axles,brakesystemtype,batterycells,bedlengthin,brakesystemdesc,curbweightlb,airbagloccurtain,airbaglocseatcushion,batterya,batteryv,batterykwh,wheelbasetype,seatrows,valvetraindesign,transmissionspeeds,engineconfiguration,airbaglocfront,fueltypesecondary,fuelinjectiontype,airbaglocknee,enginehp,evdriveunit,plantcountry,plantcompanyname,plantstate,pretensioner,seatbeltsall,adaptivecruisecontrol,adaptiveheadlights,abs,cib,blindspotmon,ncsabodytype,ncsamake,ncsamodel,esc,tractioncontrol,forwardcollisionwarning,lanedeparturewarning,lanekeepsystem,rearvisibilitysystem,parkassist,airbaglocside,trim2,series2,wheelbaseshort,wheelbaselong,note,wheels,trailertype,trailerbodytype,trailerlength,wheelsizefront,wheelsizerear,otherrestraintsysteminfo,coolingtype,enginehp_to,electrificationlevel,chargerlevel,chargerpowerkw,otherengineinfo,batterya_to,batteryv_to,batterykwh_to,turbo,baseprice,batterymodules,batterypacks,topspeedmph,suggestedvin,errorcode,possiblevalues,axleconfiguration,enginemanufacturer,buslength,busfloorconfigtype,bustype,otherbusinfo,custommotorcycletype,motorcyclesuspensiontype,motorcyclechassistype,othermotorcycleinfo,othertrailerinfo,additionalerrortext,cashforclunkers,trackwidth,tpms,activesafetysysnote,dynamicbrakesupport,pedestrianautomaticemergencybraking,autoreversesystem,automaticpedestrianalertingsound,can_aacn,edr,keylessignition,daytimerunninglight,lowerbeamheadlamplightsource,semiautomaticheadlampbeamswitching,adaptivedrivingbeam,saeautomationlevel,saeautomationlevel_to,rearcrosstrafficalert,gcwr,gcwr_to,ncsanote,ncsamappingexception,ncsamapexcapprovedon,ncsamapexcapprovedby,gvwr_to,errortext,rearautomaticemergencybraking,blindspotintervention,lanecenteringassistance,nonlanduse,vehicledescriptor,fueltanktype,fueltankmaterial,combinedbrakingsystem,wheeliemitigation 448,2208,1145,5YFEPRAE*L,,,Not Applicable,Not Applicable,Sedan/Saloon,4,,1798,109.84273937051,1.8,4,4x2,,4,2ZR-FAE,,,Gasoline,"Class 1: 6,000 lb or less (2,722 kg or less)",TOYOTA,"TOYOTA MOTOR MANUFACTURING, MISSISSIPPI, INC.",Corolla,2020,,5,ZRE212L-DEXLPA,Left-Hand Drive (LHD),,LE,PASSENGER CAR,,2,,,,,,All Rows,Passenger Seat Only,,,,,2,Dual Overhead Cam (DOHC),,In-Line,1st Row (Driver and Passenger),,Sequential Fuel Injection (SFI),Driver Seat Only,139,,,,,,Manual,Standard,,Standard,Standard,,"4-door sedan, hardtop",Toyota,Corolla,Standard,Standard,Standard,Standard,Standard,Standard,,1st Row (Driver and Passenger),,,,,,4,Not Applicable,Not Applicable,,,,,,148,,,,PORT,,,,,,,,,,6,,,Toyota,,Not Applicable,Not Applicable,,Not Applicable,Not Applicable,Not Applicable,,,,,,Direct,,Standard,Standard,Standard,,,,,Standard,,Standard,Standard,,,,,,,,,,"Class 1: 6,000 lb or less (2,722 kg or less)",6 - Incomplete VIN,,,,,5YFEPRAE*L*,,,,
A4: makeid,modelid,manufacturerid,vin,batteryinfo,batterytype,bedtype,bodycabtype,bodyclass,enginecylinders,destinationmarket,displacementcc,displacementci,displacementl,doors,drivetype,driverassist,enginecycles,enginemodel,enginekw,entertainmentsystem,fueltypeprimary,gvwr,make,manufacturer,model,modelyear,plantcity,seats,series,steeringlocation,transmissionstyle,trim,vehicletype,windows,axles,brakesystemtype,batterycells,bedlengthin,brakesystemdesc,curbweightlb,airbagloccurtain,airbaglocseatcushion,batterya,batteryv,batterykwh,wheelbasetype,seatrows,valvetraindesign,transmissionspeeds,engineconfiguration,airbaglocfront,fueltypesecondary,fuelinjectiontype,airbaglocknee,enginehp,evdriveunit,plantcountry,plantcompanyname,plantstate,pretensioner,seatbeltsall,adaptivecruisecontrol,adaptiveheadlights,abs,cib,blindspotmon,ncsabodytype,ncsamake,ncsamodel,esc,tractioncontrol,forwardcollisionwarning,lanedeparturewarning,lanekeepsystem,rearvisibilitysystem,parkassist,airbaglocside,trim2,series2,wheelbaseshort,wheelbaselong,note,wheels,trailertype,trailerbodytype,trailerlength,wheelsizefront,wheelsizerear,otherrestraintsysteminfo,coolingtype,enginehp_to,electrificationlevel,chargerlevel,chargerpowerkw,otherengineinfo,batterya_to,batteryv_to,batterykwh_to,turbo,baseprice,batterymodules,batterypacks,topspeedmph,suggestedvin,errorcode,possiblevalues,axleconfiguration,enginemanufacturer,buslength,busfloorconfigtype,bustype,otherbusinfo,custommotorcycletype,motorcyclesuspensiontype,motorcyclechassistype,othermotorcycleinfo,othertrailerinfo,additionalerrortext,cashforclunkers,trackwidth,tpms,activesafetysysnote,dynamicbrakesupport,pedestrianautomaticemergencybraking,autoreversesystem,automaticpedestrianalertingsound,can_aacn,edr,keylessignition,daytimerunninglight,lowerbeamheadlamplightsource,semiautomaticheadlampbeamswitching,adaptivedrivingbeam,saeautomationlevel,saeautomationlevel_to,rearcrosstrafficalert,gcwr,gcwr_to,ncsanote,ncsamappingexception,ncsamapexcapprovedon,ncsamapexcapprovedby,gvwr_to,errortext,rearautomaticemergencybraking,blindspotintervention,lanecenteringassistance,nonlanduse,vehicledescriptor,fueltanktype,fueltankmaterial,combinedbrakingsystem,wheeliemitigation 460,1803,976,1FTYR14V*3,,,,Extra/Super/Quad/Double/King/Extended,Pickup,6,,3000.0,183.07123228419,3.0,2,4x2,,,,,,Gasoline,"Class 1C: 4,001 - 5,000 lb (1,814 - 2,268 kg)",FORD,FORD MOTOR COMPANY,Ranger,2003,,,,,,,TRUCK,,,Hydraulic,,,,,,,,,,,,,,V-Shaped,1st Row (Driver and Passenger),Ethanol (E85),,,154,,,,,,Manual,,,,,,Light Pickup,Ford,Ranger,,,,,,,,,,,,,,,Not Applicable,Not Applicable,,,,,,,,,,EFI-FFV,,,,,,,,,,6,,,Ford,,Not Applicable,Not Applicable,,Not Applicable,Not Applicable,Not Applicable,,,,,,,,,,,,,,,,,,,,,,,,,,,,,6 - Incomplete VIN,,,,,1FTYR14V*3*,,,,
A5: makeid,modelid,manufacturerid,vin,batteryinfo,batterytype,bedtype,bodycabtype,bodyclass,enginecylinders,destinationmarket,displacementcc,displacementci,displacementl,doors,drivetype,driverassist,enginecycles,enginemodel,enginekw,entertainmentsystem,fueltypeprimary,gvwr,make,manufacturer,model,modelyear,plantcity,seats,series,steeringlocation,transmissionstyle,trim,vehicletype,windows,axles,brakesystemtype,batterycells,bedlengthin,brakesystemdesc,curbweightlb,airbagloccurtain,airbaglocseatcushion,batterya,batteryv,batterykwh,wheelbasetype,seatrows,valvetraindesign,transmissionspeeds,engineconfiguration,airbaglocfront,fueltypesecondary,fuelinjectiontype,airbaglocknee,enginehp,evdriveunit,plantcountry,plantcompanyname,plantstate,pretensioner,seatbeltsall,adaptivecruisecontrol,adaptiveheadlights,abs,cib,blindspotmon,ncsabodytype,ncsamake,ncsamodel,esc,tractioncontrol,forwardcollisionwarning,lanedeparturewarning,lanekeepsystem,rearvisibilitysystem,parkassist,airbaglocside,trim2,series2,wheelbaseshort,wheelbaselong,note,wheels,trailertype,trailerbodytype,trailerlength,wheelsizefront,wheelsizerear,otherrestraintsysteminfo,coolingtype,enginehp_to,electrificationlevel,chargerlevel,chargerpowerkw,otherengineinfo,batterya_to,batteryv_to,batterykwh_to,turbo,baseprice,batterymodules,batterypacks,topspeedmph,suggestedvin,errorcode,possiblevalues,axleconfiguration,enginemanufacturer,buslength,busfloorconfigtype,bustype,otherbusinfo,custommotorcycletype,motorcyclesuspensiontype,motorcyclechassistype,othermotorcycleinfo,othertrailerinfo,additionalerrortext,cashforclunkers,trackwidth,tpms,activesafetysysnote,dynamicbrakesupport,pedestrianautomaticemergencybraking,autoreversesystem,automaticpedestrianalertingsound,can_aacn,edr,keylessignition,daytimerunninglight,lowerbeamheadlamplightsource,semiautomaticheadlampbeamswitching,adaptivedrivingbeam,saeautomationlevel,saeautomationlevel_to,rearcrosstrafficalert,gcwr,gcwr_to,ncsanote,ncsamappingexception,ncsamapexcapprovedon,ncsamapexcapprovedby,gvwr_to,errortext,rearautomaticemergencybraking,blindspotintervention,lanecenteringassistance,nonlanduse,vehicledescriptor,fueltanktype,fueltankmaterial,combinedbrakingsystem,wheeliemitigation 467,11483,984,1GCCS145*2,,,,,Pickup,,,2200.0,134.25223700841,2.2,2,4x2,,,L43,,,Ethanol (E85),"Class 1C: 4,001 - 5,000 lb (1,814 - 2,268 kg)",CHEVROLET,GENERAL MOTORS LLC,S-10 Pickup,2002,,,1/2 Ton,,,XL,TRUCK,,,Hydraulic,,,,,,,,,,,,,,,,Flexible Fuel Vehicle (FFV),,,,,,,,,,,,,,,Light Pickup,Chevrolet,S-10/T-10 Pickup,,,,,,,,,,,,,,,Not Applicable,Not Applicable,,,,,,,,,,,,,,,,,,,,6,,,,,Not Applicable,Not Applicable,,Not Applicable,Not Applicable,Not Applicable,,,,,,,,,,,,,,,,,,,,,,,,,,,,,6 - Incomplete VIN,,,,,1GCCS145*2*,,,,
A6: makeid,modelid,manufacturerid,vin,batteryinfo,batterytype,bedtype,bodycabtype,bodyclass,enginecylinders,destinationmarket,displacementcc,displacementci,displacementl,doors,drivetype,driverassist,enginecycles,enginemodel,enginekw,entertainmentsystem,fueltypeprimary,gvwr,make,manufacturer,model,modelyear,plantcity,seats,series,steeringlocation,transmissionstyle,trim,vehicletype,windows,axles,brakesystemtype,batterycells,bedlengthin,brakesystemdesc,curbweightlb,airbagloccurtain,airbaglocseatcushion,batterya,batteryv,batterykwh,wheelbasetype,seatrows,valvetraindesign,transmissionspeeds,engineconfiguration,airbaglocfront,fueltypesecondary,fuelinjectiontype,airbaglocknee,enginehp,evdriveunit,plantcountry,plantcompanyname,plantstate,pretensioner,seatbeltsall,adaptivecruisecontrol,adaptiveheadlights,abs,cib,blindspotmon,ncsabodytype,ncsamake,ncsamodel,esc,tractioncontrol,forwardcollisionwarning,lanedeparturewarning,lanekeepsystem,rearvisibilitysystem,parkassist,airbaglocside,trim2,series2,wheelbaseshort,wheelbaselong,note,wheels,trailertype,trailerbodytype,trailerlength,wheelsizefront,wheelsizerear,otherrestraintsysteminfo,coolingtype,enginehp_to,electrificationlevel,chargerlevel,chargerpowerkw,otherengineinfo,batterya_to,batteryv_to,batterykwh_to,turbo,baseprice,batterymodules,batterypacks,topspeedmph,suggestedvin,errorcode,possiblevalues,axleconfiguration,enginemanufacturer,buslength,busfloorconfigtype,bustype,otherbusinfo,custommotorcycletype,motorcyclesuspensiontype,motorcyclechassistype,othermotorcycleinfo,othertrailerinfo,additionalerrortext,cashforclunkers,trackwidth,tpms,activesafetysysnote,dynamicbrakesupport,pedestrianautomaticemergencybraking,autoreversesystem,automaticpedestrianalertingsound,can_aacn,edr,keylessignition,daytimerunninglight,lowerbeamheadlamplightsource,semiautomaticheadlampbeamswitching,adaptivedrivingbeam,saeautomationlevel,saeautomationlevel_to,rearcrosstrafficalert,gcwr,gcwr_to,ncsanote,ncsamappingexception,ncsamapexcapprovedon,ncsamapexcapprovedby,gvwr_to,errortext,rearautomaticemergencybraking,blindspotintervention,lanecenteringassistance,nonlanduse,vehicledescriptor,fueltanktype,fueltankmaterial,combinedbrakingsystem,wheeliemitigation 467,4086,984,1GCGTBEN*L,,,,Crew/Super Crew/Crew Max,Pickup,6,,3600.0,219.68547874103,3.6,4,4WD/4-Wheel Drive/4x4,,,"LG2 - DI: Direct Injection, VVT: Variable Valve Timing, ALUM, VAR2, GEN2",,,Gasoline,"Class 1D: 5,001 - 6,000 lb (2,268 - 2,722 kg)",CHEVROLET,GENERAL MOTORS LLC,Colorado,2020,,2,,Left-Hand Drive (LHD),Automatic,Work Truck,TRUCK,,2,,,,,,All Rows,,,,,,1,Dual Overhead Cam (DOHC),,V-Shaped,1st Row (Driver and Passenger),,,,,,,,,,Manual,,,Standard,,,Light Pickup,Chevrolet,Colorado,Standard,Standard,,,,Standard,,1st Row (Driver and Passenger),,,,,,4,Not Applicable,Not Applicable,,16,16,,,,,,,,,,,,,,,,,6,,,,,Not Applicable,Not Applicable,,Not Applicable,Not Applicable,Not Applicable,,,"The Model Year decoded for this VIN may be incorrect. If you know the Model year, please enter it and decode again to get more accurate information.",,,Direct,,Standard,,Standard,,,,,Standard,Halogen,Standard,,,,,,,,,,,,6 - Incomplete VIN,,,,,1GCGTBEN*L*,,,,
A7: makeid,modelid,manufacturerid,vin,batteryinfo,batterytype,bedtype,bodycabtype,bodyclass,enginecylinders,destinationmarket,displacementcc,displacementci,displacementl,doors,drivetype,driverassist,enginecycles,enginemodel,enginekw,entertainmentsystem,fueltypeprimary,gvwr,make,manufacturer,model,modelyear,plantcity,seats,series,steeringlocation,transmissionstyle,trim,vehicletype,windows,axles,brakesystemtype,batterycells,bedlengthin,brakesystemdesc,curbweightlb,airbagloccurtain,airbaglocseatcushion,batterya,batteryv,batterykwh,wheelbasetype,seatrows,valvetraindesign,transmissionspeeds,engineconfiguration,airbaglocfront,fueltypesecondary,fuelinjectiontype,airbaglocknee,enginehp,evdriveunit,plantcountry,plantcompanyname,plantstate,pretensioner,seatbeltsall,adaptivecruisecontrol,adaptiveheadlights,abs,cib,blindspotmon,ncsabodytype,ncsamake,ncsamodel,esc,tractioncontrol,forwardcollisionwarning,lanedeparturewarning,lanekeepsystem,rearvisibilitysystem,parkassist,airbaglocside,trim2,series2,wheelbaseshort,wheelbaselong,note,wheels,trailertype,trailerbodytype,trailerlength,wheelsizefront,wheelsizerear,otherrestraintsysteminfo,coolingtype,enginehp_to,electrificationlevel,chargerlevel,chargerpowerkw,otherengineinfo,batterya_to,batteryv_to,batterykwh_to,turbo,baseprice,batterymodules,batterypacks,topspeedmph,suggestedvin,errorcode,possiblevalues,axleconfiguration,enginemanufacturer,buslength,busfloorconfigtype,bustype,otherbusinfo,custommotorcycletype,motorcyclesuspensiontype,motorcyclechassistype,othermotorcycleinfo,othertrailerinfo,additionalerrortext,cashforclunkers,trackwidth,tpms,activesafetysysnote,dynamicbrakesupport,pedestrianautomaticemergencybraking,autoreversesystem,automaticpedestrianalertingsound,can_aacn,edr,keylessignition,daytimerunninglight,lowerbeamheadlamplightsource,semiautomaticheadlampbeamswitching,adaptivedrivingbeam,saeautomationlevel,saeautomationlevel_to,rearcrosstrafficalert,gcwr,gcwr_to,ncsanote,ncsamappingexception,ncsamapexcapprovedon,ncsamapexcapprovedby,gvwr_to,errortext,rearautomaticemergencybraking,blindspotintervention,lanecenteringassistance,nonlanduse,vehicledescriptor,fueltanktype,fueltankmaterial,combinedbrakingsystem,wheeliemitigation 460,1803,976,1FTYR10V*X,,,,Regular,Pickup,6,,3000.0,183.07123228419,3.0,,4x2,,,,,,Gasoline,"Class 1C: 4,001 - 5,000 lb (1,814 - 2,268 kg)",FORD,FORD MOTOR COMPANY,Ranger,1999,,,,,,,TRUCK,,,Hydraulic,,,,,,,,,,,,,,V-Shaped,1st Row (Driver and Passenger),Ethanol (E85),Sequential Fuel Injection (SFI),,152,,,,,,Manual,,,,,,Light Pickup,Ford,Ranger,,,,,,,,,,,,,,,Not Applicable,Not Applicable,,,,2nd gen front airbag,,,,,,SEFI: Sequential Electronic Fuel Injection - FFV: Flexible Fuel Vehicle,,,,,,,,,,6,,,Ford,,Not Applicable,Not Applicable,,Not Applicable,Not Applicable,Not Applicable,,,,,,,,,,,,,,,,,,,,,,,,,,,,,6 - Incomplete VIN,,,,,1FTYR10V*X*,,,,
A8: makeid,modelid,manufacturerid,vin,batteryinfo,batterytype,bedtype,bodycabtype,bodyclass,enginecylinders,destinationmarket,displacementcc,displacementci,displacementl,doors,drivetype,driverassist,enginecycles,enginemodel,enginekw,entertainmentsystem,fueltypeprimary,gvwr,make,manufacturer,model,modelyear,plantcity,seats,series,steeringlocation,transmissionstyle,trim,vehicletype,windows,axles,brakesystemtype,batterycells,bedlengthin,brakesystemdesc,curbweightlb,airbagloccurtain,airbaglocseatcushion,batterya,batteryv,batterykwh,wheelbasetype,seatrows,valvetraindesign,transmissionspeeds,engineconfiguration,airbaglocfront,fueltypesecondary,fuelinjectiontype,airbaglocknee,enginehp,evdriveunit,plantcountry,plantcompanyname,plantstate,pretensioner,seatbeltsall,adaptivecruisecontrol,adaptiveheadlights,abs,cib,blindspotmon,ncsabodytype,ncsamake,ncsamodel,esc,tractioncontrol,forwardcollisionwarning,lanedeparturewarning,lanekeepsystem,rearvisibilitysystem,parkassist,airbaglocside,trim2,series2,wheelbaseshort,wheelbaselong,note,wheels,trailertype,trailerbodytype,trailerlength,wheelsizefront,wheelsizerear,otherrestraintsysteminfo,coolingtype,enginehp_to,electrificationlevel,chargerlevel,chargerpowerkw,otherengineinfo,batterya_to,batteryv_to,batterykwh_to,turbo,baseprice,batterymodules,batterypacks,topspeedmph,suggestedvin,errorcode,possiblevalues,axleconfiguration,enginemanufacturer,buslength,busfloorconfigtype,bustype,otherbusinfo,custommotorcycletype,motorcyclesuspensiontype,motorcyclechassistype,othermotorcycleinfo,othertrailerinfo,additionalerrortext,cashforclunkers,trackwidth,tpms,activesafetysysnote,dynamicbrakesupport,pedestrianautomaticemergencybraking,autoreversesystem,automaticpedestrianalertingsound,can_aacn,edr,keylessignition,daytimerunninglight,lowerbeamheadlamplightsource,semiautomaticheadlampbeamswitching,adaptivedrivingbeam,saeautomationlevel,saeautomationlevel_to,rearcrosstrafficalert,gcwr,gcwr_to,ncsanote,ncsamappingexception,ncsamapexcapprovedon,ncsamapexcapprovedby,gvwr_to,errortext,rearautomaticemergencybraking,blindspotintervention,lanecenteringassistance,nonlanduse,vehicledescriptor,fueltanktype,fueltankmaterial,combinedbrakingsystem,wheeliemitigation 460,1809,976,1FDNF6AY*H,,,,Regular,Truck,10,,6800.0,414.96145984417,6.8,,4x2,,,,,,Gasoline,"Class 6: 19,501 - 26,000 lb (8,845 - 11,794 kg)",FORD,FORD MOTOR COMPANY,F-650,2017,,,Super Duty - Dual Rear Wheel,,,Gas,INCOMPLETE VEHICLE,,,Hydraulic,,,,,,,,,,,,,,V-Shaped,,,,,330,,,,,,Manual,,,,,,"Single-unit straight truck or Cab-Chassis (GVWR range 19,501 to 26,000 lbs.)",Ford,Medium/Heavy - CBE,,,,,,,,,,,,,Body Type: Straight Frame,,Not Applicable,Not Applicable,,,,,,,,,,Fuel: Gas/ Gaseous Prep. Torque: 440,,,,,,,,,,6,,,Ford,,,,,Not Applicable,Not Applicable,Not Applicable,,,"Incomplete Vehicle Warning - Please be advised that the vehicle may have been altered and may not be an accurate representation of the vehicle in its current condition. The Model Year decoded for this VIN may be incorrect. If you know the Model year, please enter it and decode again to get more accurate information.",,,,,,,,,,,,,,,,,,,,,,,,,,6 - Incomplete VIN,,,,,1FDNF6AY*H*,,,,
A9: makeid,modelid,manufacturerid,vin,batteryinfo,batterytype,bedtype,bodycabtype,bodyclass,enginecylinders,destinationmarket,displacementcc,displacementci,displacementl,doors,drivetype,driverassist,enginecycles,enginemodel,enginekw,entertainmentsystem,fueltypeprimary,gvwr,make,manufacturer,model,modelyear,plantcity,seats,series,steeringlocation,transmissionstyle,trim,vehicletype,windows,axles,brakesystemtype,batterycells,bedlengthin,brakesystemdesc,curbweightlb,airbagloccurtain,airbaglocseatcushion,batterya,batteryv,batterykwh,wheelbasetype,seatrows,valvetraindesign,transmissionspeeds,engineconfiguration,airbaglocfront,fueltypesecondary,fuelinjectiontype,airbaglocknee,enginehp,evdriveunit,plantcountry,plantcompanyname,plantstate,pretensioner,seatbeltsall,adaptivecruisecontrol,adaptiveheadlights,abs,cib,blindspotmon,ncsabodytype,ncsamake,ncsamodel,esc,tractioncontrol,forwardcollisionwarning,lanedeparturewarning,lanekeepsystem,rearvisibilitysystem,parkassist,airbaglocside,trim2,series2,wheelbaseshort,wheelbaselong,note,wheels,trailertype,trailerbodytype,trailerlength,wheelsizefront,wheelsizerear,otherrestraintsysteminfo,coolingtype,enginehp_to,electrificationlevel,chargerlevel,chargerpowerkw,otherengineinfo,batterya_to,batteryv_to,batterykwh_to,turbo,baseprice,batterymodules,batterypacks,topspeedmph,suggestedvin,errorcode,possiblevalues,axleconfiguration,enginemanufacturer,buslength,busfloorconfigtype,bustype,otherbusinfo,custommotorcycletype,motorcyclesuspensiontype,motorcyclechassistype,othermotorcycleinfo,othertrailerinfo,additionalerrortext,cashforclunkers,trackwidth,tpms,activesafetysysnote,dynamicbrakesupport,pedestrianautomaticemergencybraking,autoreversesystem,automaticpedestrianalertingsound,can_aacn,edr,keylessignition,daytimerunninglight,lowerbeamheadlamplightsource,semiautomaticheadlampbeamswitching,adaptivedrivingbeam,saeautomationlevel,saeautomationlevel_to,rearcrosstrafficalert,gcwr,gcwr_to,ncsanote,ncsamappingexception,ncsamapexcapprovedon,ncsamapexcapprovedby,gvwr_to,errortext,rearautomaticemergencybraking,blindspotintervention,lanecenteringassistance,nonlanduse,vehicledescriptor,fueltanktype,fueltankmaterial,combinedbrakingsystem,wheeliemitigation 460,1819,976,1FDXE4FS*D,,,,,Incomplete - Cutaway,10,,6800.0,414.96145984417,6.8,,RWD/Rear-Wheel Drive,,,Ford,,,Gasoline,"Class 4: 14,001 - 16,000 lb (6,350 - 7,258 kg)",FORD,FORD MOTOR COMPANY,E-450,2013,,,Econoline,,,,INCOMPLETE VEHICLE,,,Hydraulic,,,,,,,,,,,,,,V-Shaped,1st Row (Driver and Passenger),,,,305,,,,,,Manual,,,,,,"Single-unit straight truck or Cab-Chassis (GVWR range 10,001 to 19,500 lbs.)",Ford,Medium/Heavy Van-Based Vehicle,,,,,,,,,,,,,Single Rear Wheel/Dual Rear Wheel,,Not Applicable,Not Applicable,,,,,,,,,,Displacement is 6.8L 2V,,,,,,,,,,6,,,,,,,,Not Applicable,Not Applicable,Not Applicable,,,"Incomplete Vehicle Warning - Please be advised that the vehicle may have been altered and may not be an accurate representation of the vehicle in its current condition. The Model Year decoded for this VIN may be incorrect. If you know the Model year, please enter it and decode again to get more accurate information.",,,,,,,,,,,,,,,,,,,,,,,,,,6 - Incomplete VIN,,,,,1FDXE4FS*D*,,,,
A10: makeid,modelid,manufacturerid,vin,batteryinfo,batterytype,bedtype,bodycabtype,bodyclass,enginecylinders,destinationmarket,displacementcc,displacementci,displacementl,doors,drivetype,driverassist,enginecycles,enginemodel,enginekw,entertainmentsystem,fueltypeprimary,gvwr,make,manufacturer,model,modelyear,plantcity,seats,series,steeringlocation,transmissionstyle,trim,vehicletype,windows,axles,brakesystemtype,batterycells,bedlengthin,brakesystemdesc,curbweightlb,airbagloccurtain,airbaglocseatcushion,batterya,batteryv,batterykwh,wheelbasetype,seatrows,valvetraindesign,transmissionspeeds,engineconfiguration,airbaglocfront,fueltypesecondary,fuelinjectiontype,airbaglocknee,enginehp,evdriveunit,plantcountry,plantcompanyname,plantstate,pretensioner,seatbeltsall,adaptivecruisecontrol,adaptiveheadlights,abs,cib,blindspotmon,ncsabodytype,ncsamake,ncsamodel,esc,tractioncontrol,forwardcollisionwarning,lanedeparturewarning,lanekeepsystem,rearvisibilitysystem,parkassist,airbaglocside,trim2,series2,wheelbaseshort,wheelbaselong,note,wheels,trailertype,trailerbodytype,trailerlength,wheelsizefront,wheelsizerear,otherrestraintsysteminfo,coolingtype,enginehp_to,electrificationlevel,chargerlevel,chargerpowerkw,otherengineinfo,batterya_to,batteryv_to,batterykwh_to,turbo,baseprice,batterymodules,batterypacks,topspeedmph,suggestedvin,errorcode,possiblevalues,axleconfiguration,enginemanufacturer,buslength,busfloorconfigtype,bustype,otherbusinfo,custommotorcycletype,motorcyclesuspensiontype,motorcyclechassistype,othermotorcycleinfo,othertrailerinfo,additionalerrortext,cashforclunkers,trackwidth,tpms,activesafetysysnote,dynamicbrakesupport,pedestrianautomaticemergencybraking,autoreversesystem,automaticpedestrianalertingsound,can_aacn,edr,keylessignition,daytimerunninglight,lowerbeamheadlamplightsource,semiautomaticheadlampbeamswitching,adaptivedrivingbeam,saeautomationlevel,saeautomationlevel_to,rearcrosstrafficalert,gcwr,gcwr_to,ncsanote,ncsamappingexception,ncsamapexcapprovedon,ncsamapexcapprovedby,gvwr_to,errortext,rearautomaticemergencybraking,blindspotintervention,lanecenteringassistance,nonlanduse,vehicledescriptor,fueltanktype,fueltankmaterial,combinedbrakingsystem,wheeliemitigation 460,1782,976,1FAFP53U*5,,,Not Applicable,Not Applicable,Sedan/Saloon,6,,3000.0,183.07123228419,3.0,4,,,,,,,,"Class 1: 6,000 lb or less (2,722 kg or less)",FORD,FORD MOTOR COMPANY,Taurus,2005,,,,,,SE,PASSENGER CAR,,,,,,,,,,,,,,,,,V-Shaped,1st Row (Driver and Passenger),,,,155,,,,,,Manual,,,,,,"4-door sedan, hardtop",Ford,Taurus/Taurus X,,,,,,,,,,,,,,,Not Applicable,Not Applicable,,,,,,,,,,ELECTRONIC FUEL INJECTION,,,,,,,,,,6,,,,,Not Applicable,Not Applicable,,Not Applicable,Not Applicable,Not Applicable,,,,,,,,,,,,,,,,,,,,,,,,,,,,"Class 1: 6,000 lb or less (2,722 kg or less)",6 - Incomplete VIN,,,,,1FAFP53U*5*,,,,
A11: makeid,modelid,manufacturerid,vin,batteryinfo,batterytype,bedtype,bodycabtype,bodyclass,enginecylinders,destinationmarket,displacementcc,displacementci,displacementl,doors,drivetype,driverassist,enginecycles,enginemodel,enginekw,entertainmentsystem,fueltypeprimary,gvwr,make,manufacturer,model,modelyear,plantcity,seats,series,steeringlocation,transmissionstyle,trim,vehicletype,windows,axles,brakesystemtype,batterycells,bedlengthin,brakesystemdesc,curbweightlb,airbagloccurtain,airbaglocseatcushion,batterya,batteryv,batterykwh,wheelbasetype,seatrows,valvetraindesign,transmissionspeeds,engineconfiguration,airbaglocfront,fueltypesecondary,fuelinjectiontype,airbaglocknee,enginehp,evdriveunit,plantcountry,plantcompanyname,plantstate,pretensioner,seatbeltsall,adaptivecruisecontrol,adaptiveheadlights,abs,cib,blindspotmon,ncsabodytype,ncsamake,ncsamodel,esc,tractioncontrol,forwardcollisionwarning,lanedeparturewarning,lanekeepsystem,rearvisibilitysystem,parkassist,airbaglocside,trim2,series2,wheelbaseshort,wheelbaselong,note,wheels,trailertype,trailerbodytype,trailerlength,wheelsizefront,wheelsizerear,otherrestraintsysteminfo,coolingtype,enginehp_to,electrificationlevel,chargerlevel,chargerpowerkw,otherengineinfo,batterya_to,batteryv_to,batterykwh_to,turbo,baseprice,batterymodules,batterypacks,topspeedmph,suggestedvin,errorcode,possiblevalues,axleconfiguration,enginemanufacturer,buslength,busfloorconfigtype,bustype,otherbusinfo,custommotorcycletype,motorcyclesuspensiontype,motorcyclechassistype,othermotorcycleinfo,othertrailerinfo,additionalerrortext,cashforclunkers,trackwidth,tpms,activesafetysysnote,dynamicbrakesupport,pedestrianautomaticemergencybraking,autoreversesystem,automaticpedestrianalertingsound,can_aacn,edr,keylessignition,daytimerunninglight,lowerbeamheadlamplightsource,semiautomaticheadlampbeamswitching,adaptivedrivingbeam,saeautomationlevel,saeautomationlevel_to,rearcrosstrafficalert,gcwr,gcwr_to,ncsanote,ncsamappingexception,ncsamapexcapprovedon,ncsamapexcapprovedby,gvwr_to,errortext,rearautomaticemergencybraking,blindspotintervention,lanecenteringassistance,nonlanduse,vehicledescriptor,fueltanktype,fueltankmaterial,combinedbrakingsystem,wheeliemitigation 467,1850,984,1GCNKNEH*H,,,,Regular,Pickup,6,,4300.0,262.40209960734,4.3,2,4WD/4-Wheel Drive/4x4,,,"LV3 - GEN 5, SIDI, VVT: Variable Valve Timing, E85 MAX, ALUM",,,Gasoline,"Class 2E: 6,001 - 7,000 lb (2,722 - 3,175 kg)",CHEVROLET,GENERAL MOTORS LLC,Silverado,2017,,3,1500,Left-Hand Drive (LHD),,Work Truck/LS/Fleet/Base,TRUCK,,2,Hydraulic,,,,,All Rows,,,,,,1,Overhead Valve (OHV),,V-Shaped,1st Row (Driver and Passenger),Ethanol (E85),,,,,,,,,Manual,,,Standard,,,Light Pickup,Chevrolet,"C, K, R, V-series pickup/Silverado",Standard,Standard,,,,Optional,,1st Row (Driver and Passenger),,,119.00,,,4,Not Applicable,Not Applicable,,17,17,,,,,,,,,,,,27785.00,,,99,,6,,,,,Not Applicable,Not Applicable,,Not Applicable,Not Applicable,Not Applicable,,,"The Model Year decoded for this VIN may be incorrect. If you know the Model year, please enter it and decode again to get more accurate information.",,,Direct,"Automatic Crash Notification: Optional for Work Truck, Standard for LS",Standard,,Standard,,,,,Standard,,Standard,,,,,,,,,,,,6 - Incomplete VIN,,,,,1GCNKNEH*H*,,,,
A12: makeid,modelid,manufacturerid,vin,batteryinfo,batterytype,bedtype,bodycabtype,bodyclass,enginecylinders,destinationmarket,displacementcc,displacementci,displacementl,doors,drivetype,driverassist,enginecycles,enginemodel,enginekw,entertainmentsystem,fueltypeprimary,gvwr,make,manufacturer,model,modelyear,plantcity,seats,series,steeringlocation,transmissionstyle,trim,vehicletype,windows,axles,brakesystemtype,batterycells,bedlengthin,brakesystemdesc,curbweightlb,airbagloccurtain,airbaglocseatcushion,batterya,batteryv,batterykwh,wheelbasetype,seatrows,valvetraindesign,transmissionspeeds,engineconfiguration,airbaglocfront,fueltypesecondary,fuelinjectiontype,airbaglocknee,enginehp,evdriveunit,plantcountry,plantcompanyname,plantstate,pretensioner,seatbeltsall,adaptivecruisecontrol,adaptiveheadlights,abs,cib,blindspotmon,ncsabodytype,ncsamake,ncsamodel,esc,tractioncontrol,forwardcollisionwarning,lanedeparturewarning,lanekeepsystem,rearvisibilitysystem,parkassist,airbaglocside,trim2,series2,wheelbaseshort,wheelbaselong,note,wheels,trailertype,trailerbodytype,trailerlength,wheelsizefront,wheelsizerear,otherrestraintsysteminfo,coolingtype,enginehp_to,electrificationlevel,chargerlevel,chargerpowerkw,otherengineinfo,batterya_to,batteryv_to,batterykwh_to,turbo,baseprice,batterymodules,batterypacks,topspeedmph,suggestedvin,errorcode,possiblevalues,axleconfiguration,enginemanufacturer,buslength,busfloorconfigtype,bustype,otherbusinfo,custommotorcycletype,motorcyclesuspensiontype,motorcyclechassistype,othermotorcycleinfo,othertrailerinfo,additionalerrortext,cashforclunkers,trackwidth,tpms,activesafetysysnote,dynamicbrakesupport,pedestrianautomaticemergencybraking,autoreversesystem,automaticpedestrianalertingsound,can_aacn,edr,keylessignition,daytimerunninglight,lowerbeamheadlamplightsource,semiautomaticheadlampbeamswitching,adaptivedrivingbeam,saeautomationlevel,saeautomationlevel_to,rearcrosstrafficalert,gcwr,gcwr_to,ncsanote,ncsamappingexception,ncsamapexcapprovedon,ncsamapexcapprovedby,gvwr_to,errortext,rearautomaticemergencybraking,blindspotintervention,lanecenteringassistance,nonlanduse,vehicledescriptor,fueltanktype,fueltankmaterial,combinedbrakingsystem,wheeliemitigation 460,1800,976,1FM5K8FW*L,,,,,Sport Utility Vehicle (SUV)/Multi-Purpose Vehicle (MPV),6,,3300.0,201.37835551261,3.3,4,4WD/4-Wheel Drive/4x4,,,3.3L Ti-VCT,,,Gasoline,"Class 2E: 6,001 - 7,000 lb (2,722 - 3,175 kg)",FORD,FORD MOTOR COMPANY,Explorer,2020,,7,,Left-Hand Drive (LHD),Automatic,Limited,MULTIPURPOSE PASSENGER VEHICLE (MPV),,2,Hydraulic,,,,,,,,,,,3,,10,V-Shaped,1st Row (Driver and Passenger),Electric,,1st Row (Driver and Passenger),,,,,,,Manual,Standard,,Standard,Standard,Standard,"Large utility (ANSI D16.1 Utility Vehicle Categories and ""Full Size"" and ""Large"")",Ford,Explorer (For 2019 on. For model years 1990-2018 see 12-401.),Standard,Standard,Standard,Standard,Standard,Standard,,1st and 2nd and 3rd Rows,,,119.10,,,4,Not Applicable,Not Applicable,,20,20,,,,HEV (Hybrid Electric Vehicle) - Level Unknown,,,,,,,,,,,,,6,,,Ford,,Not Applicable,Not Applicable,,Not Applicable,Not Applicable,Not Applicable,,,,,,Direct,,Standard,Standard,Standard,,Standard,,Standard,Standard,LED,Standard,,,,Standard,,,,,,,,6 - Incomplete VIN,,,,,1FM5K8FW*L*,,,,
A13: makeid,modelid,manufacturerid,vin,batteryinfo,batterytype,bedtype,bodycabtype,bodyclass,enginecylinders,destinationmarket,displacementcc,displacementci,displacementl,doors,drivetype,driverassist,enginecycles,enginemodel,enginekw,entertainmentsystem,fueltypeprimary,gvwr,make,manufacturer,model,modelyear,plantcity,seats,series,steeringlocation,transmissionstyle,trim,vehicletype,windows,axles,brakesystemtype,batterycells,bedlengthin,brakesystemdesc,curbweightlb,airbagloccurtain,airbaglocseatcushion,batterya,batteryv,batterykwh,wheelbasetype,seatrows,valvetraindesign,transmissionspeeds,engineconfiguration,airbaglocfront,fueltypesecondary,fuelinjectiontype,airbaglocknee,enginehp,evdriveunit,plantcountry,plantcompanyname,plantstate,pretensioner,seatbeltsall,adaptivecruisecontrol,adaptiveheadlights,abs,cib,blindspotmon,ncsabodytype,ncsamake,ncsamodel,esc,tractioncontrol,forwardcollisionwarning,lanedeparturewarning,lanekeepsystem,rearvisibilitysystem,parkassist,airbaglocside,trim2,series2,wheelbaseshort,wheelbaselong,note,wheels,trailertype,trailerbodytype,trailerlength,wheelsizefront,wheelsizerear,otherrestraintsysteminfo,coolingtype,enginehp_to,electrificationlevel,chargerlevel,chargerpowerkw,otherengineinfo,batterya_to,batteryv_to,batterykwh_to,turbo,baseprice,batterymodules,batterypacks,topspeedmph,suggestedvin,errorcode,possiblevalues,axleconfiguration,enginemanufacturer,buslength,busfloorconfigtype,bustype,otherbusinfo,custommotorcycletype,motorcyclesuspensiontype,motorcyclechassistype,othermotorcycleinfo,othertrailerinfo,additionalerrortext,cashforclunkers,trackwidth,tpms,activesafetysysnote,dynamicbrakesupport,pedestrianautomaticemergencybraking,autoreversesystem,automaticpedestrianalertingsound,can_aacn,edr,keylessignition,daytimerunninglight,lowerbeamheadlamplightsource,semiautomaticheadlampbeamswitching,adaptivedrivingbeam,saeautomationlevel,saeautomationlevel_to,rearcrosstrafficalert,gcwr,gcwr_to,ncsanote,ncsamappingexception,ncsamapexcapprovedon,ncsamapexcapprovedby,gvwr_to,errortext,rearautomaticemergencybraking,blindspotintervention,lanecenteringassistance,nonlanduse,vehicledescriptor,fueltanktype,fueltankmaterial,combinedbrakingsystem,wheeliemitigation 526,9526,1028,1HTSCAAM*W,,,,,Truck,6,,7636.371824,466,7.636371824,,4x2,,,International DT466 / Maxxforce DT,,,Diesel,"Class 6: 19,501 - 26,000 lb (8,845 - 11,794 kg)",INTERNATIONAL,"INTERNATIONAL MOTORS, LLC",4700,1998,,,,,,,INCOMPLETE VEHICLE,,,Hydraulic,,,,,,,,,,,,,,,,,,,,,,,,,,,,,,,"Single-unit straight truck or Cab-Chassis (GVWR range 19,501 to 26,000 lbs.)",International Harvester/Navistar,Medium/Heavy - CBE,,,,,,,,,,,,,Chassis: 80 Inch Wide Steel Cab 68 ABC,,Not Applicable,Not Applicable,,,,,,,,,,,,,,,,,,,,6,,,International,,,,,Not Applicable,Not Applicable,Not Applicable,,,"Incomplete Vehicle Warning - Please be advised that the vehicle may have been altered and may not be an accurate representation of the vehicle in its current condition. The Model Year decoded for this VIN may be incorrect. If you know the Model year, please enter it and decode again to get more accurate information.",,,,,,,,,,,,,,,,,,,,,,,,,,6 - Incomplete VIN,,,,,1HTSCAAM*W*,,,,
A14: makeid,modelid,manufacturerid,vin,batteryinfo,batterytype,bedtype,bodycabtype,bodyclass,enginecylinders,destinationmarket,displacementcc,displacementci,displacementl,doors,drivetype,driverassist,enginecycles,enginemodel,enginekw,entertainmentsystem,fueltypeprimary,gvwr,make,manufacturer,model,modelyear,plantcity,seats,series,steeringlocation,transmissionstyle,trim,vehicletype,windows,axles,brakesystemtype,batterycells,bedlengthin,brakesystemdesc,curbweightlb,airbagloccurtain,airbaglocseatcushion,batterya,batteryv,batterykwh,wheelbasetype,seatrows,valvetraindesign,transmissionspeeds,engineconfiguration,airbaglocfront,fueltypesecondary,fuelinjectiontype,airbaglocknee,enginehp,evdriveunit,plantcountry,plantcompanyname,plantstate,pretensioner,seatbeltsall,adaptivecruisecontrol,adaptiveheadlights,abs,cib,blindspotmon,ncsabodytype,ncsamake,ncsamodel,esc,tractioncontrol,forwardcollisionwarning,lanedeparturewarning,lanekeepsystem,rearvisibilitysystem,parkassist,airbaglocside,trim2,series2,wheelbaseshort,wheelbaselong,note,wheels,trailertype,trailerbodytype,trailerlength,wheelsizefront,wheelsizerear,otherrestraintsysteminfo,coolingtype,enginehp_to,electrificationlevel,chargerlevel,chargerpowerkw,otherengineinfo,batterya_to,batteryv_to,batterykwh_to,turbo,baseprice,batterymodules,batterypacks,topspeedmph,suggestedvin,errorcode,possiblevalues,axleconfiguration,enginemanufacturer,buslength,busfloorconfigtype,bustype,otherbusinfo,custommotorcycletype,motorcyclesuspensiontype,motorcyclechassistype,othermotorcycleinfo,othertrailerinfo,additionalerrortext,cashforclunkers,trackwidth,tpms,activesafetysysnote,dynamicbrakesupport,pedestrianautomaticemergencybraking,autoreversesystem,automaticpedestrianalertingsound,can_aacn,edr,keylessignition,daytimerunninglight,lowerbeamheadlamplightsource,semiautomaticheadlampbeamswitching,adaptivedrivingbeam,saeautomationlevel,saeautomationlevel_to,rearcrosstrafficalert,gcwr,gcwr_to,ncsanote,ncsamappingexception,ncsamapexcapprovedon,ncsamapexcapprovedby,gvwr_to,errortext,rearautomaticemergencybraking,blindspotintervention,lanecenteringassistance,nonlanduse,vehicledescriptor,fueltanktype,fueltankmaterial,combinedbrakingsystem,wheeliemitigation 460,1805,976,1FTNX21L*4,,,,Extra/Super/Quad/Double/King/Extended,Pickup,8,,5400.0,329.52821811155,5.4,,4WD/4-Wheel Drive/4x4,,,,,,Gasoline,"Class 2G: 8,001 - 9,000 lb (3,629 - 4,082 kg)",FORD,FORD MOTOR COMPANY,F-250,2004,,,,,,F-Series,TRUCK,,,Hydraulic,,,,,,,,,,,,,,V-Shaped,1st Row (Driver and Passenger),,,,250,,,,,,Manual,,,,,,Light Pickup,Ford,F-Series pickup,,,,,,,,,,,,,Single Rear Wheel,,Not Applicable,Not Applicable,,,,,,,,,,EFI,,,,,,,,,,6,,,Ford,,Not Applicable,Not Applicable,,Not Applicable,Not Applicable,Not Applicable,,,,,,,,,,,,,,,,,,,,,,,,,,,,,6 - Incomplete VIN,,,,,1FTNX21L*4*,,,,
A15: makeid,modelid,manufacturerid,vin,batteryinfo,batterytype,bedtype,bodycabtype,bodyclass,enginecylinders,destinationmarket,displacementcc,displacementci,displacementl,doors,drivetype,driverassist,enginecycles,enginemodel,enginekw,entertainmentsystem,fueltypeprimary,gvwr,make,manufacturer,model,modelyear,plantcity,seats,series,steeringlocation,transmissionstyle,trim,vehicletype,windows,axles,brakesystemtype,batterycells,bedlengthin,brakesystemdesc,curbweightlb,airbagloccurtain,airbaglocseatcushion,batterya,batteryv,batterykwh,wheelbasetype,seatrows,valvetraindesign,transmissionspeeds,engineconfiguration,airbaglocfront,fueltypesecondary,fuelinjectiontype,airbaglocknee,enginehp,evdriveunit,plantcountry,plantcompanyname,plantstate,pretensioner,seatbeltsall,adaptivecruisecontrol,adaptiveheadlights,abs,cib,blindspotmon,ncsabodytype,ncsamake,ncsamodel,esc,tractioncontrol,forwardcollisionwarning,lanedeparturewarning,lanekeepsystem,rearvisibilitysystem,parkassist,airbaglocside,trim2,series2,wheelbaseshort,wheelbaselong,note,wheels,trailertype,trailerbodytype,trailerlength,wheelsizefront,wheelsizerear,otherrestraintsysteminfo,coolingtype,enginehp_to,electrificationlevel,chargerlevel,chargerpowerkw,otherengineinfo,batterya_to,batteryv_to,batterykwh_to,turbo,baseprice,batterymodules,batterypacks,topspeedmph,suggestedvin,errorcode,possiblevalues,axleconfiguration,enginemanufacturer,buslength,busfloorconfigtype,bustype,otherbusinfo,custommotorcycletype,motorcyclesuspensiontype,motorcyclechassistype,othermotorcycleinfo,othertrailerinfo,additionalerrortext,cashforclunkers,trackwidth,tpms,activesafetysysnote,dynamicbrakesupport,pedestrianautomaticemergencybraking,autoreversesystem,automaticpedestrianalertingsound,can_aacn,edr,keylessignition,daytimerunninglight,lowerbeamheadlamplightsource,semiautomaticheadlampbeamswitching,adaptivedrivingbeam,saeautomationlevel,saeautomationlevel_to,rearcrosstrafficalert,gcwr,gcwr_to,ncsanote,ncsamappingexception,ncsamapexcapprovedon,ncsamapexcapprovedby,gvwr_to,errortext,rearautomaticemergencybraking,blindspotintervention,lanecenteringassistance,nonlanduse,vehicledescriptor,fueltanktype,fueltankmaterial,combinedbrakingsystem,wheeliemitigation 476,14832,995,2C4RDGBG*K,,,,,Minivan,6,,3600.0,219.68547874103,3.6,4,FWD/Front-Wheel Drive,,,,,,Gasoline,"Class 2E: 6,001 - 7,000 lb (2,722 - 3,175 kg)",DODGE,FCA CANADA INC.,Grand Caravan,2019,,,,Left-Hand Drive (LHD),,SE,MULTIPURPOSE PASSENGER VEHICLE (MPV),,,Hydraulic,,,,,,,,,,,,,,V-Shaped,1st Row (Driver and Passenger),,,,283,,,,,,Manual,,,,,,"Minivan (Chrysler Town and Country, Caravan, Grand Caravan, Voyager, Voyager, Honda-Odyssey, ...)",Dodge,Caravan/Grand Caravan,,,,,,,,All Rows,,,,,,,Not Applicable,Not Applicable,,,,,,,,,,,,,,,,,,,,6,,,FCA,,Not Applicable,Not Applicable,,Not Applicable,Not Applicable,Not Applicable,,,,,,,,,,,,,,,,,,,,,,,,,,,,,6 - Incomplete VIN,,,,,2C4RDGBG*K*,,,,
A16: makeid,modelid,manufacturerid,vin,batteryinfo,batterytype,bedtype,bodycabtype,bodyclass,enginecylinders,destinationmarket,displacementcc,displacementci,displacementl,doors,drivetype,driverassist,enginecycles,enginemodel,enginekw,entertainmentsystem,fueltypeprimary,gvwr,make,manufacturer,model,modelyear,plantcity,seats,series,steeringlocation,transmissionstyle,trim,vehicletype,windows,axles,brakesystemtype,batterycells,bedlengthin,brakesystemdesc,curbweightlb,airbagloccurtain,airbaglocseatcushion,batterya,batteryv,batterykwh,wheelbasetype,seatrows,valvetraindesign,transmissionspeeds,engineconfiguration,airbaglocfront,fueltypesecondary,fuelinjectiontype,airbaglocknee,enginehp,evdriveunit,plantcountry,plantcompanyname,plantstate,pretensioner,seatbeltsall,adaptivecruisecontrol,adaptiveheadlights,abs,cib,blindspotmon,ncsabodytype,ncsamake,ncsamodel,esc,tractioncontrol,forwardcollisionwarning,lanedeparturewarning,lanekeepsystem,rearvisibilitysystem,parkassist,airbaglocside,trim2,series2,wheelbaseshort,wheelbaselong,note,wheels,trailertype,trailerbodytype,trailerlength,wheelsizefront,wheelsizerear,otherrestraintsysteminfo,coolingtype,enginehp_to,electrificationlevel,chargerlevel,chargerpowerkw,otherengineinfo,batterya_to,batteryv_to,batterykwh_to,turbo,baseprice,batterymodules,batterypacks,topspeedmph,suggestedvin,errorcode,possiblevalues,axleconfiguration,enginemanufacturer,buslength,busfloorconfigtype,bustype,otherbusinfo,custommotorcycletype,motorcyclesuspensiontype,motorcyclechassistype,othermotorcycleinfo,othertrailerinfo,additionalerrortext,cashforclunkers,trackwidth,tpms,activesafetysysnote,dynamicbrakesupport,pedestrianautomaticemergencybraking,autoreversesystem,automaticpedestrianalertingsound,can_aacn,edr,keylessignition,daytimerunninglight,lowerbeamheadlamplightsource,semiautomaticheadlampbeamswitching,adaptivedrivingbeam,saeautomationlevel,saeautomationlevel_to,rearcrosstrafficalert,gcwr,gcwr_to,ncsanote,ncsamappingexception,ncsamapexcapprovedon,ncsamapexcapprovedby,gvwr_to,errortext,rearautomaticemergencybraking,blindspotintervention,lanecenteringassistance,nonlanduse,vehicledescriptor,fueltanktype,fueltankmaterial,combinedbrakingsystem,wheeliemitigation 467,1831,984,1G1YK2D4*S,,,Not Applicable,Not Applicable,Coupe,8,,6200.0,378.34721338734,6.2,2,,,,LT2,,,Gasoline,"Class 1: 6,000 lb or less (2,722 kg or less)",CHEVROLET,GENERAL MOTORS LLC,Corvette,2025,,,,,,E-Ray Standard 1LZ,PASSENGER CAR,,,,,,,,,,,,,,,,,,1st Row (Driver and Passenger),,,,,,,,,,Manual,,,Standard,Standard,Optional,3-door/2-door hatchback,Chevrolet,Corvette,Standard,Standard,Standard,Standard,Standard,Standard,Standard,1st Row (Driver and Passenger),,Plain Back,,,,,Not Applicable,Not Applicable,,,,AJ7 - Active Manual Belts,,,,,,"DI, AFM, VVT, HO, ALUM, GEN 5",,,,,,,,,,6,,,,,Not Applicable,Not Applicable,,Not Applicable,Not Applicable,Not Applicable,,,,,,Direct,,Standard,Standard,Standard,,,,Standard,Standard,LED,Standard,,,,,,,,,,,"Class 1: 6,000 lb or less (2,722 kg or less)",6 - Incomplete VIN,Standard,Standard,,,1G1YK2D4*S*,,,,
A17: makeid,modelid,manufacturerid,vin,batteryinfo,batterytype,bedtype,bodycabtype,bodyclass,enginecylinders,destinationmarket,displacementcc,displacementci,displacementl,doors,drivetype,driverassist,enginecycles,enginemodel,enginekw,entertainmentsystem,fueltypeprimary,gvwr,make,manufacturer,model,modelyear,plantcity,seats,series,steeringlocation,transmissionstyle,trim,vehicletype,windows,axles,brakesystemtype,batterycells,bedlengthin,brakesystemdesc,curbweightlb,airbagloccurtain,airbaglocseatcushion,batterya,batteryv,batterykwh,wheelbasetype,seatrows,valvetraindesign,transmissionspeeds,engineconfiguration,airbaglocfront,fueltypesecondary,fuelinjectiontype,airbaglocknee,enginehp,evdriveunit,plantcountry,plantcompanyname,plantstate,pretensioner,seatbeltsall,adaptivecruisecontrol,adaptiveheadlights,abs,cib,blindspotmon,ncsabodytype,ncsamake,ncsamodel,esc,tractioncontrol,forwardcollisionwarning,lanedeparturewarning,lanekeepsystem,rearvisibilitysystem,parkassist,airbaglocside,trim2,series2,wheelbaseshort,wheelbaselong,note,wheels,trailertype,trailerbodytype,trailerlength,wheelsizefront,wheelsizerear,otherrestraintsysteminfo,coolingtype,enginehp_to,electrificationlevel,chargerlevel,chargerpowerkw,otherengineinfo,batterya_to,batteryv_to,batterykwh_to,turbo,baseprice,batterymodules,batterypacks,topspeedmph,suggestedvin,errorcode,possiblevalues,axleconfiguration,enginemanufacturer,buslength,busfloorconfigtype,bustype,otherbusinfo,custommotorcycletype,motorcyclesuspensiontype,motorcyclechassistype,othermotorcycleinfo,othertrailerinfo,additionalerrortext,cashforclunkers,trackwidth,tpms,activesafetysysnote,dynamicbrakesupport,pedestrianautomaticemergencybraking,autoreversesystem,automaticpedestrianalertingsound,can_aacn,edr,keylessignition,daytimerunninglight,lowerbeamheadlamplightsource,semiautomaticheadlampbeamswitching,adaptivedrivingbeam,saeautomationlevel,saeautomationlevel_to,rearcrosstrafficalert,gcwr,gcwr_to,ncsanote,ncsamappingexception,ncsamapexcapprovedon,ncsamapexcapprovedby,gvwr_to,errortext,rearautomaticemergencybraking,blindspotintervention,lanecenteringassistance,nonlanduse,vehicledescriptor,fueltanktype,fueltankmaterial,combinedbrakingsystem,wheeliemitigation 467,1831,984,1G1YL3D4*R,,,Not Applicable,Not Applicable,Convertible/Cabriolet,8,,6200.0,378.34721338734,6.2,2,,,,LT2,,,Gasoline,"Class 1: 6,000 lb or less (2,722 kg or less)",CHEVROLET,GENERAL MOTORS LLC,Corvette,2024,,,,,,E-Ray Preferred 2LZ,PASSENGER CAR,,,,,,,,,,,,,,,,,,1st Row (Driver and Passenger),,,,,,,,,,Manual,,,Standard,Standard,Optional,"Convertible(excludes sun-roof,t-bar)",Chevrolet,Corvette,Standard,Standard,Standard,Standard,Standard,Standard,Standard,1st Row (Driver and Passenger),,,,,,,Not Applicable,Not Applicable,,,,AJ7 - Active Manual Belts,,,,,,"DI, AFM, VVT, HO, ALUM, GEN 5",,,,,,,,,,6,,,,,Not Applicable,Not Applicable,,Not Applicable,Not Applicable,Not Applicable,,,,,,Direct,,Standard,Standard,Standard,,,,Standard,Standard,LED,Standard,,,,,,,,,,,"Class 1: 6,000 lb or less (2,722 kg or less)",6 - Incomplete VIN,Standard,,,,1G1YL3D4*R*,,,,
A18: makeid,modelid,manufacturerid,vin,batteryinfo,batterytype,bedtype,bodycabtype,bodyclass,enginecylinders,destinationmarket,displacementcc,displacementci,displacementl,doors,drivetype,driverassist,enginecycles,enginemodel,enginekw,entertainmentsystem,fueltypeprimary,gvwr,make,manufacturer,model,modelyear,plantcity,seats,series,steeringlocation,transmissionstyle,trim,vehicletype,windows,axles,brakesystemtype,batterycells,bedlengthin,brakesystemdesc,curbweightlb,airbagloccurtain,airbaglocseatcushion,batterya,batteryv,batterykwh,wheelbasetype,seatrows,valvetraindesign,transmissionspeeds,engineconfiguration,airbaglocfront,fueltypesecondary,fuelinjectiontype,airbaglocknee,enginehp,evdriveunit,plantcountry,plantcompanyname,plantstate,pretensioner,seatbeltsall,adaptivecruisecontrol,adaptiveheadlights,abs,cib,blindspotmon,ncsabodytype,ncsamake,ncsamodel,esc,tractioncontrol,forwardcollisionwarning,lanedeparturewarning,lanekeepsystem,rearvisibilitysystem,parkassist,airbaglocside,trim2,series2,wheelbaseshort,wheelbaselong,note,wheels,trailertype,trailerbodytype,trailerlength,wheelsizefront,wheelsizerear,otherrestraintsysteminfo,coolingtype,enginehp_to,electrificationlevel,chargerlevel,chargerpowerkw,otherengineinfo,batterya_to,batteryv_to,batterykwh_to,turbo,baseprice,batterymodules,batterypacks,topspeedmph,suggestedvin,errorcode,possiblevalues,axleconfiguration,enginemanufacturer,buslength,busfloorconfigtype,bustype,otherbusinfo,custommotorcycletype,motorcyclesuspensiontype,motorcyclechassistype,othermotorcycleinfo,othertrailerinfo,additionalerrortext,cashforclunkers,trackwidth,tpms,activesafetysysnote,dynamicbrakesupport,pedestrianautomaticemergencybraking,autoreversesystem,automaticpedestrianalertingsound,can_aacn,edr,keylessignition,daytimerunninglight,lowerbeamheadlamplightsource,semiautomaticheadlampbeamswitching,adaptivedrivingbeam,saeautomationlevel,saeautomationlevel_to,rearcrosstrafficalert,gcwr,gcwr_to,ncsanote,ncsamappingexception,ncsamapexcapprovedon,ncsamapexcapprovedby,gvwr_to,errortext,rearautomaticemergencybraking,blindspotintervention,lanecenteringassistance,nonlanduse,vehicledescriptor,fueltanktype,fueltankmaterial,combinedbrakingsystem,wheeliemitigation 467,1831,984,1G1YM2D4*R,,,Not Applicable,Not Applicable,Coupe,8,,6200.0,378.34721338734,6.2,2,,,,LT2,,,Gasoline,"Class 1: 6,000 lb or less (2,722 kg or less)",CHEVROLET,GENERAL MOTORS LLC,Corvette,2024,,,,,,E-Ray Premium 3LZ,PASSENGER CAR,,,,,,,,,,,,,,,,,,1st Row (Driver and Passenger),,,,,,,,,,Manual,,,Standard,Standard,Optional,3-door/2-door hatchback,Chevrolet,Corvette,Standard,Standard,Standard,Standard,Standard,Standard,Standard,1st Row (Driver and Passenger),,,,,Body Style: Plain Back,,Not Applicable,Not Applicable,,,,AJ7 - Active Manual Belts,,,,,,"DI, AFM, VVT, HO, ALUM, GEN 5",,,,,,,,,,6,,,,,Not Applicable,Not Applicable,,Not Applicable,Not Applicable,Not Applicable,,,,,,Direct,,Standard,Standard,Standard,,,,Standard,Standard,LED,Standard,,,,,,,,,,,"Class 1: 6,000 lb or less (2,722 kg or less)",6 - Incomplete VIN,Standard,Standard,,,1G1YM2D4*R*,,,,
A19: makeid,modelid,manufacturerid,vin,batteryinfo,batterytype,bedtype,bodycabtype,bodyclass,enginecylinders,destinationmarket,displacementcc,displacementci,displacementl,doors,drivetype,driverassist,enginecycles,enginemodel,enginekw,entertainmentsystem,fueltypeprimary,gvwr,make,manufacturer,model,modelyear,plantcity,seats,series,steeringlocation,transmissionstyle,trim,vehicletype,windows,axles,brakesystemtype,batterycells,bedlengthin,brakesystemdesc,curbweightlb,airbagloccurtain,airbaglocseatcushion,batterya,batteryv,batterykwh,wheelbasetype,seatrows,valvetraindesign,transmissionspeeds,engineconfiguration,airbaglocfront,fueltypesecondary,fuelinjectiontype,airbaglocknee,enginehp,evdriveunit,plantcountry,plantcompanyname,plantstate,pretensioner,seatbeltsall,adaptivecruisecontrol,adaptiveheadlights,abs,cib,blindspotmon,ncsabodytype,ncsamake,ncsamodel,esc,tractioncontrol,forwardcollisionwarning,lanedeparturewarning,lanekeepsystem,rearvisibilitysystem,parkassist,airbaglocside,trim2,series2,wheelbaseshort,wheelbaselong,note,wheels,trailertype,trailerbodytype,trailerlength,wheelsizefront,wheelsizerear,otherrestraintsysteminfo,coolingtype,enginehp_to,electrificationlevel,chargerlevel,chargerpowerkw,otherengineinfo,batterya_to,batteryv_to,batterykwh_to,turbo,baseprice,batterymodules,batterypacks,topspeedmph,suggestedvin,errorcode,possiblevalues,axleconfiguration,enginemanufacturer,buslength,busfloorconfigtype,bustype,otherbusinfo,custommotorcycletype,motorcyclesuspensiontype,motorcyclechassistype,othermotorcycleinfo,othertrailerinfo,additionalerrortext,cashforclunkers,trackwidth,tpms,activesafetysysnote,dynamicbrakesupport,pedestrianautomaticemergencybraking,autoreversesystem,automaticpedestrianalertingsound,can_aacn,edr,keylessignition,daytimerunninglight,lowerbeamheadlamplightsource,semiautomaticheadlampbeamswitching,adaptivedrivingbeam,saeautomationlevel,saeautomationlevel_to,rearcrosstrafficalert,gcwr,gcwr_to,ncsanote,ncsamappingexception,ncsamapexcapprovedon,ncsamapexcapprovedby,gvwr_to,errortext,rearautomaticemergencybraking,blindspotintervention,lanecenteringassistance,nonlanduse,vehicledescriptor,fueltanktype,fueltankmaterial,combinedbrakingsystem,wheeliemitigation 467,1831,984,1G1YM2D4*S,,,Not Applicable,Not Applicable,Coupe,8,,6200.0,378.34721338734,6.2,2,,,,LT2,,,Gasoline,"Class 1: 6,000 lb or less (2,722 kg or less)",CHEVROLET,GENERAL MOTORS LLC,Corvette,2025,,,,,,E-Ray Premium 3LZ,PASSENGER CAR,,,,,,,,,,,,,,,,,,1st Row (Driver and Passenger),,,,,,,,,,Manual,,,Standard,Standard,Optional,3-door/2-door hatchback,Chevrolet,Corvette,Standard,Standard,Standard,Standard,Standard,Standard,Standard,1st Row (Driver and Passenger),,Plain Back,,,,,Not Applicable,Not Applicable,,,,AJ7 - Active Manual Belts,,,,,,"DI, AFM, VVT, HO, ALUM, GEN 5",,,,,,,,,,6,,,,,Not Applicable,Not Applicable,,Not Applicable,Not Applicable,Not Applicable,,,,,,Direct,,Standard,Standard,Standard,,,,Standard,Standard,LED,Standard,,,,,,,,,,,"Class 1: 6,000 lb or less (2,722 kg or less)",6 - Incomplete VIN,Standard,Standard,,,1G1YM2D4*S*,,,,
A20: makeid,modelid,manufacturerid,vin,batteryinfo,batterytype,bedtype,bodycabtype,bodyclass,enginecylinders,destinationmarket,displacementcc,displacementci,displacementl,doors,drivetype,driverassist,enginecycles,enginemodel,enginekw,entertainmentsystem,fueltypeprimary,gvwr,make,manufacturer,model,modelyear,plantcity,seats,series,steeringlocation,transmissionstyle,trim,vehicletype,windows,axles,brakesystemtype,batterycells,bedlengthin,brakesystemdesc,curbweightlb,airbagloccurtain,airbaglocseatcushion,batterya,batteryv,batterykwh,wheelbasetype,seatrows,valvetraindesign,transmissionspeeds,engineconfiguration,airbaglocfront,fueltypesecondary,fuelinjectiontype,airbaglocknee,enginehp,evdriveunit,plantcountry,plantcompanyname,plantstate,pretensioner,seatbeltsall,adaptivecruisecontrol,adaptiveheadlights,abs,cib,blindspotmon,ncsabodytype,ncsamake,ncsamodel,esc,tractioncontrol,forwardcollisionwarning,lanedeparturewarning,lanekeepsystem,rearvisibilitysystem,parkassist,airbaglocside,trim2,series2,wheelbaseshort,wheelbaselong,note,wheels,trailertype,trailerbodytype,trailerlength,wheelsizefront,wheelsizerear,otherrestraintsysteminfo,coolingtype,enginehp_to,electrificationlevel,chargerlevel,chargerpowerkw,otherengineinfo,batterya_to,batteryv_to,batterykwh_to,turbo,baseprice,batterymodules,batterypacks,topspeedmph,suggestedvin,errorcode,possiblevalues,axleconfiguration,enginemanufacturer,buslength,busfloorconfigtype,bustype,otherbusinfo,custommotorcycletype,motorcyclesuspensiontype,motorcyclechassistype,othermotorcycleinfo,othertrailerinfo,additionalerrortext,cashforclunkers,trackwidth,tpms,activesafetysysnote,dynamicbrakesupport,pedestrianautomaticemergencybraking,autoreversesystem,automaticpedestrianalertingsound,can_aacn,edr,keylessignition,daytimerunninglight,lowerbeamheadlamplightsource,semiautomaticheadlampbeamswitching,adaptivedrivingbeam,saeautomationlevel,saeautomationlevel_to,rearcrosstrafficalert,gcwr,gcwr_to,ncsanote,ncsamappingexception,ncsamapexcapprovedon,ncsamapexcapprovedby,gvwr_to,errortext,rearautomaticemergencybraking,blindspotintervention,lanecenteringassistance,nonlanduse,vehicledescriptor,fueltanktype,fueltankmaterial,combinedbrakingsystem,wheeliemitigation 467,1831,984,1G1YK3D4*S,,,Not Applicable,Not Applicable,Convertible/Cabriolet,8,,6200.0,378.34721338734,6.2,2,,,,LT2,,,Gasoline,"Class 1: 6,000 lb or less (2,722 kg or less)",CHEVROLET,GENERAL MOTORS LLC,Corvette,2025,,,,,,E-Ray Standard 1LZ,PASSENGER CAR,,,,,,,,,,,,,,,,,,1st Row (Driver and Passenger),,,,,,,,,,Manual,,,Standard,Standard,Optional,"Convertible(excludes sun-roof,t-bar)",Chevrolet,Corvette,Standard,Standard,Standard,Standard,Standard,Standard,Standard,1st Row (Driver and Passenger),,,,,,,Not Applicable,Not Applicable,,,,AJ7 - Active Manual Belts,,,,,,"DI, AFM, VVT, HO, ALUM, GEN 5",,,,,,,,,,6,,,,,Not Applicable,Not Applicable,,Not Applicable,Not Applicable,Not Applicable,,,,,,Direct,,Standard,Standard,Standard,,,,Standard,Standard,LED,Standard,,,,,,,,,,,"Class 1: 6,000 lb or less (2,722 kg or less)",6 - Incomplete VIN,Standard,,,,1G1YK3D4*S*,,,,
A21: makeid,modelid,manufacturerid,vin,batteryinfo,batterytype,bedtype,bodycabtype,bodyclass,enginecylinders,destinationmarket,displacementcc,displacementci,displacementl,doors,drivetype,driverassist,enginecycles,enginemodel,enginekw,entertainmentsystem,fueltypeprimary,gvwr,make,manufacturer,model,modelyear,plantcity,seats,series,steeringlocation,transmissionstyle,trim,vehicletype,windows,axles,brakesystemtype,batterycells,bedlengthin,brakesystemdesc,curbweightlb,airbagloccurtain,airbaglocseatcushion,batterya,batteryv,batterykwh,wheelbasetype,seatrows,valvetraindesign,transmissionspeeds,engineconfiguration,airbaglocfront,fueltypesecondary,fuelinjectiontype,airbaglocknee,enginehp,evdriveunit,plantcountry,plantcompanyname,plantstate,pretensioner,seatbeltsall,adaptivecruisecontrol,adaptiveheadlights,abs,cib,blindspotmon,ncsabodytype,ncsamake,ncsamodel,esc,tractioncontrol,forwardcollisionwarning,lanedeparturewarning,lanekeepsystem,rearvisibilitysystem,parkassist,airbaglocside,trim2,series2,wheelbaseshort,wheelbaselong,note,wheels,trailertype,trailerbodytype,trailerlength,wheelsizefront,wheelsizerear,otherrestraintsysteminfo,coolingtype,enginehp_to,electrificationlevel,chargerlevel,chargerpowerkw,otherengineinfo,batterya_to,batteryv_to,batterykwh_to,turbo,baseprice,batterymodules,batterypacks,topspeedmph,suggestedvin,errorcode,possiblevalues,axleconfiguration,enginemanufacturer,buslength,busfloorconfigtype,bustype,otherbusinfo,custommotorcycletype,motorcyclesuspensiontype,motorcyclechassistype,othermotorcycleinfo,othertrailerinfo,additionalerrortext,cashforclunkers,trackwidth,tpms,activesafetysysnote,dynamicbrakesupport,pedestrianautomaticemergencybraking,autoreversesystem,automaticpedestrianalertingsound,can_aacn,edr,keylessignition,daytimerunninglight,lowerbeamheadlamplightsource,semiautomaticheadlampbeamswitching,adaptivedrivingbeam,saeautomationlevel,saeautomationlevel_to,rearcrosstrafficalert,gcwr,gcwr_to,ncsanote,ncsamappingexception,ncsamapexcapprovedon,ncsamapexcapprovedby,gvwr_to,errortext,rearautomaticemergencybraking,blindspotintervention,lanecenteringassistance,nonlanduse,vehicledescriptor,fueltanktype,fueltankmaterial,combinedbrakingsystem,wheeliemitigation 467,1850,984,2GCFK135*9,,,,,Pickup,8,,6000.0,366.14246456839,6.0,4,4WD/4-Wheel Drive/4x4,,,LFA,,,Gasoline,"Class 2F: 7,001 - 8,000 lb (3,175 - 3,629 kg)",CHEVROLET,GENERAL MOTORS LLC,Silverado,2009,,,1/2 Ton,,,LS,TRUCK,,,Hydraulic,,,,,,,,,,,,,,V-Shaped,,Electric,Sequential Fuel Injection (SFI),,,,,,,,,,,,,,Light Pickup,Chevrolet,"C, K, R, V-series pickup/Silverado",,,,,,,,,,,,,,,Not Applicable,Not Applicable,,,,,,,HEV (Hybrid Electric Vehicle) - Level Unknown,,,,,,,,,,,,,6,,,,,Not Applicable,Not Applicable,,Not Applicable,Not Applicable,Not Applicable,,,,,,Direct,,,,,,,,,,,,,,,,,,,,,,,6 - Incomplete VIN,,,,,2GCFK135*9*,,,,
A22: makeid,modelid,manufacturerid,vin,batteryinfo,batterytype,bedtype,bodycabtype,bodyclass,enginecylinders,destinationmarket,displacementcc,displacementci,displacementl,doors,drivetype,driverassist,enginecycles,enginemodel,enginekw,entertainmentsystem,fueltypeprimary,gvwr,make,manufacturer,model,modelyear,plantcity,seats,series,steeringlocation,transmissionstyle,trim,vehicletype,windows,axles,brakesystemtype,batterycells,bedlengthin,brakesystemdesc,curbweightlb,airbagloccurtain,airbaglocseatcushion,batterya,batteryv,batterykwh,wheelbasetype,seatrows,valvetraindesign,transmissionspeeds,engineconfiguration,airbaglocfront,fueltypesecondary,fuelinjectiontype,airbaglocknee,enginehp,evdriveunit,plantcountry,plantcompanyname,plantstate,pretensioner,seatbeltsall,adaptivecruisecontrol,adaptiveheadlights,abs,cib,blindspotmon,ncsabodytype,ncsamake,ncsamodel,esc,tractioncontrol,forwardcollisionwarning,lanedeparturewarning,lanekeepsystem,rearvisibilitysystem,parkassist,airbaglocside,trim2,series2,wheelbaseshort,wheelbaselong,note,wheels,trailertype,trailerbodytype,trailerlength,wheelsizefront,wheelsizerear,otherrestraintsysteminfo,coolingtype,enginehp_to,electrificationlevel,chargerlevel,chargerpowerkw,otherengineinfo,batterya_to,batteryv_to,batterykwh_to,turbo,baseprice,batterymodules,batterypacks,topspeedmph,suggestedvin,errorcode,possiblevalues,axleconfiguration,enginemanufacturer,buslength,busfloorconfigtype,bustype,otherbusinfo,custommotorcycletype,motorcyclesuspensiontype,motorcyclechassistype,othermotorcycleinfo,othertrailerinfo,additionalerrortext,cashforclunkers,trackwidth,tpms,activesafetysysnote,dynamicbrakesupport,pedestrianautomaticemergencybraking,autoreversesystem,automaticpedestrianalertingsound,can_aacn,edr,keylessignition,daytimerunninglight,lowerbeamheadlamplightsource,semiautomaticheadlampbeamswitching,adaptivedrivingbeam,saeautomationlevel,saeautomationlevel_to,rearcrosstrafficalert,gcwr,gcwr_to,ncsanote,ncsamappingexception,ncsamapexcapprovedon,ncsamapexcapprovedby,gvwr_to,errortext,rearautomaticemergencybraking,blindspotintervention,lanecenteringassistance,nonlanduse,vehicledescriptor,fueltanktype,fueltankmaterial,combinedbrakingsystem,wheeliemitigation 467,1850,984,3GCUKUEJ*D,,,,Crew/Super Crew/Crew Max,Pickup,8,,6000,366.1424645683,6,4,4WD/4-Wheel Drive/4x4,,,"LZ1 - Flex Fuel(Gas/Ethanol), LIVC, DOD, ALUM",,,Flexible Fuel Vehicle (FFV),"Class 2F: 7,001 - 8,000 lb (3,175 - 3,629 kg)",CHEVROLET,GENERAL MOTORS LLC,Silverado,2013,,,1500,,,Hybrid,TRUCK,,,Hydraulic,,,,,All Rows,,,,,,,,,,1st Row (Driver and Passenger),Ethanol (E85),Sequential Fuel Injection (SFI),,,,,,,,Manual,,,,,,Light Pickup,Chevrolet,"C, K, R, V-series pickup/Silverado",,,,,,,,1st Row (Driver and Passenger),,,,,,,Not Applicable,Not Applicable,,,,,,,Strong HEV (Hybrid Electric Vehicle),,,,,,,,,,,,,6,,,,,Not Applicable,Not Applicable,,Not Applicable,Not Applicable,Not Applicable,,,"The Model Year decoded for this VIN may be incorrect. If you know the Model year, please enter it and decode again to get more accurate information.",,,Direct,,,,,,,,,,,,,,,,,,,,,,,6 - Incomplete VIN,,,,,3GCUKUEJ*D*,,,,
A23: makeid,modelid,manufacturerid,vin,batteryinfo,batterytype,bedtype,bodycabtype,bodyclass,enginecylinders,destinationmarket,displacementcc,displacementci,displacementl,doors,drivetype,driverassist,enginecycles,enginemodel,enginekw,entertainmentsystem,fueltypeprimary,gvwr,make,manufacturer,model,modelyear,plantcity,seats,series,steeringlocation,transmissionstyle,trim,vehicletype,windows,axles,brakesystemtype,batterycells,bedlengthin,brakesystemdesc,curbweightlb,airbagloccurtain,airbaglocseatcushion,batterya,batteryv,batterykwh,wheelbasetype,seatrows,valvetraindesign,transmissionspeeds,engineconfiguration,airbaglocfront,fueltypesecondary,fuelinjectiontype,airbaglocknee,enginehp,evdriveunit,plantcountry,plantcompanyname,plantstate,pretensioner,seatbeltsall,adaptivecruisecontrol,adaptiveheadlights,abs,cib,blindspotmon,ncsabodytype,ncsamake,ncsamodel,esc,tractioncontrol,forwardcollisionwarning,lanedeparturewarning,lanekeepsystem,rearvisibilitysystem,parkassist,airbaglocside,trim2,series2,wheelbaseshort,wheelbaselong,note,wheels,trailertype,trailerbodytype,trailerlength,wheelsizefront,wheelsizerear,otherrestraintsysteminfo,coolingtype,enginehp_to,electrificationlevel,chargerlevel,chargerpowerkw,otherengineinfo,batterya_to,batteryv_to,batterykwh_to,turbo,baseprice,batterymodules,batterypacks,topspeedmph,suggestedvin,errorcode,possiblevalues,axleconfiguration,enginemanufacturer,buslength,busfloorconfigtype,bustype,otherbusinfo,custommotorcycletype,motorcyclesuspensiontype,motorcyclechassistype,othermotorcycleinfo,othertrailerinfo,additionalerrortext,cashforclunkers,trackwidth,tpms,activesafetysysnote,dynamicbrakesupport,pedestrianautomaticemergencybraking,autoreversesystem,automaticpedestrianalertingsound,can_aacn,edr,keylessignition,daytimerunninglight,lowerbeamheadlamplightsource,semiautomaticheadlampbeamswitching,adaptivedrivingbeam,saeautomationlevel,saeautomationlevel_to,rearcrosstrafficalert,gcwr,gcwr_to,ncsanote,ncsamappingexception,ncsamapexcapprovedon,ncsamapexcapprovedby,gvwr_to,errortext,rearautomaticemergencybraking,blindspotintervention,lanecenteringassistance,nonlanduse,vehicledescriptor,fueltanktype,fueltankmaterial,combinedbrakingsystem,wheeliemitigation 467,1850,984,3GCUCRER*J,,,,Crew/Super Crew/Crew Max,Pickup,8,,5300.0,323.42584370208,5.3,4,4x2,,,"L8B - BAS 3, ALUM, GEN 5",,,Gasoline,"Class 2F: 7,001 - 8,000 lb (3,175 - 3,629 kg)",CHEVROLET,GENERAL MOTORS LLC,Silverado,2018,,,1500,,,LT,TRUCK,,,Hydraulic,,,,,All Rows,,,,,,,,,V-Shaped,1st Row (Driver and Passenger),,,,,,,,,,Manual,,,,,,Light Pickup,Chevrolet,"C, K, R, V-series pickup/Silverado",,,,,,,,1st Row (Driver and Passenger),,,,,,,Not Applicable,Not Applicable,,,,,,,,,,,,,,,,,,,,6,,,,,Not Applicable,Not Applicable,,Not Applicable,Not Applicable,Not Applicable,,,"The Model Year decoded for this VIN may be incorrect. If you know the Model year, please enter it and decode again to get more accurate information.",,,Direct,,,,,,,,,,,,,,,,,,,,,,,6 - Incomplete VIN,,,,,3GCUCRER*J*,,,,
A24: makeid,modelid,manufacturerid,vin,batteryinfo,batterytype,bedtype,bodycabtype,bodyclass,enginecylinders,destinationmarket,displacementcc,displacementci,displacementl,doors,drivetype,driverassist,enginecycles,enginemodel,enginekw,entertainmentsystem,fueltypeprimary,gvwr,make,manufacturer,model,modelyear,plantcity,seats,series,steeringlocation,transmissionstyle,trim,vehicletype,windows,axles,brakesystemtype,batterycells,bedlengthin,brakesystemdesc,curbweightlb,airbagloccurtain,airbaglocseatcushion,batterya,batteryv,batterykwh,wheelbasetype,seatrows,valvetraindesign,transmissionspeeds,engineconfiguration,airbaglocfront,fueltypesecondary,fuelinjectiontype,airbaglocknee,enginehp,evdriveunit,plantcountry,plantcompanyname,plantstate,pretensioner,seatbeltsall,adaptivecruisecontrol,adaptiveheadlights,abs,cib,blindspotmon,ncsabodytype,ncsamake,ncsamodel,esc,tractioncontrol,forwardcollisionwarning,lanedeparturewarning,lanekeepsystem,rearvisibilitysystem,parkassist,airbaglocside,trim2,series2,wheelbaseshort,wheelbaselong,note,wheels,trailertype,trailerbodytype,trailerlength,wheelsizefront,wheelsizerear,otherrestraintsysteminfo,coolingtype,enginehp_to,electrificationlevel,chargerlevel,chargerpowerkw,otherengineinfo,batterya_to,batteryv_to,batterykwh_to,turbo,baseprice,batterymodules,batterypacks,topspeedmph,suggestedvin,errorcode,possiblevalues,axleconfiguration,enginemanufacturer,buslength,busfloorconfigtype,bustype,otherbusinfo,custommotorcycletype,motorcyclesuspensiontype,motorcyclechassistype,othermotorcycleinfo,othertrailerinfo,additionalerrortext,cashforclunkers,trackwidth,tpms,activesafetysysnote,dynamicbrakesupport,pedestrianautomaticemergencybraking,autoreversesystem,automaticpedestrianalertingsound,can_aacn,edr,keylessignition,daytimerunninglight,lowerbeamheadlamplightsource,semiautomaticheadlampbeamswitching,adaptivedrivingbeam,saeautomationlevel,saeautomationlevel_to,rearcrosstrafficalert,gcwr,gcwr_to,ncsanote,ncsamappingexception,ncsamapexcapprovedon,ncsamapexcapprovedby,gvwr_to,errortext,rearautomaticemergencybraking,blindspotintervention,lanecenteringassistance,nonlanduse,vehicledescriptor,fueltanktype,fueltankmaterial,combinedbrakingsystem,wheeliemitigation 467,1850,984,1GC10UED*R,,,,,Pickup,,,,,,,AWD/All-Wheel Drive,,,XRJ + ETI,,,Electric,"Class 2H: 9,001 - 10,000 lb (4,082 - 4,536 kg)",CHEVROLET,GENERAL MOTORS LLC,Silverado,2024,,,,,,Work Truck (3WT),TRUCK,,,Hydraulic,,,,,All Rows,,,,,,,,,,1st Row (Driver and Passenger),,,,,Dual Motor,,,,,Manual,,,Standard,Standard,Optional,Light Pickup,Chevrolet,"C, K, R, V-series pickup/Silverado",Standard,Standard,Standard,Standard,Standard,,,1st Row (Driver and Passenger),,,,,,,Not Applicable,Not Applicable,,,,AYH - Active Manual Belts,,,BEV (Battery Electric Vehicle),,,"EAWD, 2-MOTOR SYSTEM 20-MOD",,,,,,,,,,6,,,,,Not Applicable,Not Applicable,,Not Applicable,Not Applicable,Not Applicable,,,"The Model Year decoded for this VIN may be incorrect. If you know the Model year, please enter it and decode again to get more accurate information.",,,Direct,,Standard,Standard,Standard,,,,,Standard,,Standard,,,,,,,,,,,,6 - Incomplete VIN,,,,,1GC10UED*R*,,,,
A25: makeid,modelid,manufacturerid,vin,batteryinfo,batterytype,bedtype,bodycabtype,bodyclass,enginecylinders,destinationmarket,displacementcc,displacementci,displacementl,doors,drivetype,driverassist,enginecycles,enginemodel,enginekw,entertainmentsystem,fueltypeprimary,gvwr,make,manufacturer,model,modelyear,plantcity,seats,series,steeringlocation,transmissionstyle,trim,vehicletype,windows,axles,brakesystemtype,batterycells,bedlengthin,brakesystemdesc,curbweightlb,airbagloccurtain,airbaglocseatcushion,batterya,batteryv,batterykwh,wheelbasetype,seatrows,valvetraindesign,transmissionspeeds,engineconfiguration,airbaglocfront,fueltypesecondary,fuelinjectiontype,airbaglocknee,enginehp,evdriveunit,plantcountry,plantcompanyname,plantstate,pretensioner,seatbeltsall,adaptivecruisecontrol,adaptiveheadlights,abs,cib,blindspotmon,ncsabodytype,ncsamake,ncsamodel,esc,tractioncontrol,forwardcollisionwarning,lanedeparturewarning,lanekeepsystem,rearvisibilitysystem,parkassist,airbaglocside,trim2,series2,wheelbaseshort,wheelbaselong,note,wheels,trailertype,trailerbodytype,trailerlength,wheelsizefront,wheelsizerear,otherrestraintsysteminfo,coolingtype,enginehp_to,electrificationlevel,chargerlevel,chargerpowerkw,otherengineinfo,batterya_to,batteryv_to,batterykwh_to,turbo,baseprice,batterymodules,batterypacks,topspeedmph,suggestedvin,errorcode,possiblevalues,axleconfiguration,enginemanufacturer,buslength,busfloorconfigtype,bustype,otherbusinfo,custommotorcycletype,motorcyclesuspensiontype,motorcyclechassistype,othermotorcycleinfo,othertrailerinfo,additionalerrortext,cashforclunkers,trackwidth,tpms,activesafetysysnote,dynamicbrakesupport,pedestrianautomaticemergencybraking,autoreversesystem,automaticpedestrianalertingsound,can_aacn,edr,keylessignition,daytimerunninglight,lowerbeamheadlamplightsource,semiautomaticheadlampbeamswitching,adaptivedrivingbeam,saeautomationlevel,saeautomationlevel_to,rearcrosstrafficalert,gcwr,gcwr_to,ncsanote,ncsamappingexception,ncsamapexcapprovedon,ncsamapexcapprovedby,gvwr_to,errortext,rearautomaticemergencybraking,blindspotintervention,lanecenteringassistance,nonlanduse,vehicledescriptor,fueltanktype,fueltankmaterial,combinedbrakingsystem,wheeliemitigation 448,2827,1090,7SVAAAAA*P,,Nickel-Metal-Hydride/NiMH,,,Sport Utility Vehicle (SUV)/Multi-Purpose Vehicle (MPV),6,,3400.0,207.48072992208,3.4,5,4x2,,,"V35A-FTS, 1TM",,,Gasoline,"Class 2F: 7,001 - 8,000 lb (3,175 - 3,629 kg)",TOYOTA,"TOYOTA MOTOR MANUFACTURING, TEXAS, INC.",Sequoia,2023,,,80 Series,,Automatic,,MULTIPURPOSE PASSENGER VEHICLE (MPV),,,,,,,,All Rows,,,,1.87,,3,,10,V-Shaped,1st Row (Driver and Passenger),Electric,,1st Row (Driver and Passenger),389,,,,,,Manual,Standard,,Standard,Standard,Standard,"Large utility (ANSI D16.1 Utility Vehicle Categories and ""Full Size"" and ""Large"")",Toyota,Sequoia,Standard,Standard,Standard,Standard,Standard,Standard,Standard,1st Row (Driver and Passenger),Standard Roof,,,,"Trim Level: All, Number of Seats: 7/8",,Not Applicable,Not Applicable,,,,Seat Belt: All seats,,,HEV (Hybrid Electric Vehicle) - Level Unknown,,,PORT+DIRECT,,,,,,,,,,6,,,,,Not Applicable,Not Applicable,,Not Applicable,Not Applicable,Not Applicable,,,,,,Direct,,Standard,Standard,Standard,,,Standard,Standard,Standard,LED,Standard,Standard,,,Standard,,,,,,,,6 - Incomplete VIN,Standard,,,,7SVAAAAA*P*,,,,
A26: makeid,modelid,manufacturerid,vin,batteryinfo,batterytype,bedtype,bodycabtype,bodyclass,enginecylinders,destinationmarket,displacementcc,displacementci,displacementl,doors,drivetype,driverassist,enginecycles,enginemodel,enginekw,entertainmentsystem,fueltypeprimary,gvwr,make,manufacturer,model,modelyear,plantcity,seats,series,steeringlocation,transmissionstyle,trim,vehicletype,windows,axles,brakesystemtype,batterycells,bedlengthin,brakesystemdesc,curbweightlb,airbagloccurtain,airbaglocseatcushion,batterya,batteryv,batterykwh,wheelbasetype,seatrows,valvetraindesign,transmissionspeeds,engineconfiguration,airbaglocfront,fueltypesecondary,fuelinjectiontype,airbaglocknee,enginehp,evdriveunit,plantcountry,plantcompanyname,plantstate,pretensioner,seatbeltsall,adaptivecruisecontrol,adaptiveheadlights,abs,cib,blindspotmon,ncsabodytype,ncsamake,ncsamodel,esc,tractioncontrol,forwardcollisionwarning,lanedeparturewarning,lanekeepsystem,rearvisibilitysystem,parkassist,airbaglocside,trim2,series2,wheelbaseshort,wheelbaselong,note,wheels,trailertype,trailerbodytype,trailerlength,wheelsizefront,wheelsizerear,otherrestraintsysteminfo,coolingtype,enginehp_to,electrificationlevel,chargerlevel,chargerpowerkw,otherengineinfo,batterya_to,batteryv_to,batterykwh_to,turbo,baseprice,batterymodules,batterypacks,topspeedmph,suggestedvin,errorcode,possiblevalues,axleconfiguration,enginemanufacturer,buslength,busfloorconfigtype,bustype,otherbusinfo,custommotorcycletype,motorcyclesuspensiontype,motorcyclechassistype,othermotorcycleinfo,othertrailerinfo,additionalerrortext,cashforclunkers,trackwidth,tpms,activesafetysysnote,dynamicbrakesupport,pedestrianautomaticemergencybraking,autoreversesystem,automaticpedestrianalertingsound,can_aacn,edr,keylessignition,daytimerunninglight,lowerbeamheadlamplightsource,semiautomaticheadlampbeamswitching,adaptivedrivingbeam,saeautomationlevel,saeautomationlevel_to,rearcrosstrafficalert,gcwr,gcwr_to,ncsanote,ncsamappingexception,ncsamapexcapprovedon,ncsamapexcapprovedby,gvwr_to,errortext,rearautomaticemergencybraking,blindspotintervention,lanecenteringassistance,nonlanduse,vehicledescriptor,fueltanktype,fueltankmaterial,combinedbrakingsystem,wheeliemitigation 448,2827,1090,7SVAAABA*P,,Nickel-Metal-Hydride/NiMH,,,Sport Utility Vehicle (SUV)/Multi-Purpose Vehicle (MPV),6,,3400.0,207.48072992208,3.4,5,4WD/4-Wheel Drive/4x4,,,"V35A-FTS, 1TM",,,Gasoline,"Class 2F: 7,001 - 8,000 lb (3,175 - 3,629 kg)",TOYOTA,"TOYOTA MOTOR MANUFACTURING, TEXAS, INC.",Sequoia,2023,,,85 Series,,Automatic,,MULTIPURPOSE PASSENGER VEHICLE (MPV),,,,,,,,All Rows,,,,1.87,,3,,10,V-Shaped,1st Row (Driver and Passenger),Electric,,1st Row (Driver and Passenger),389,,,,,,Manual,Standard,,Standard,Standard,Standard,"Large utility (ANSI D16.1 Utility Vehicle Categories and ""Full Size"" and ""Large"")",Toyota,Sequoia,Standard,Standard,Standard,Standard,Standard,Standard,Standard,1st Row (Driver and Passenger),Standard Roof,,,,"Trim Level: All, Number of Seats: 7/8",,Not Applicable,Not Applicable,,,,Seat Belt: All seats,,,HEV (Hybrid Electric Vehicle) - Level Unknown,,,PORT+DIRECT,,,,,,,,,,6,,,,,Not Applicable,Not Applicable,,Not Applicable,Not Applicable,Not Applicable,,,,,,Direct,,Standard,Standard,Standard,,,Standard,Standard,Standard,LED,Standard,Standard,,,Standard,,,,,,,,6 - Incomplete VIN,Standard,,,,7SVAAABA*P*,,,,

Sheet Test Map (hidden)
A1: Full Vehicle Name | B1: Index | C1: Vehicle Scenario | D1: Use Case | E1: FPAT Vehicle Name | F1: Technology | G1: Vehicle GVWR Category | H1: Model Year | I1: Make | J1: Model | K1: Fuel Economy Electric City (MPGe) | L1: Fuel Economy Electric Hwy (MPGe) | M1: Fuel Economy Gas/Diesel City (MPG) | N1: Fuel Economy Gas/Diesel Hwy (MPG) | O1: Estimated Price | P1: Electric Range | Q1: Count | R1: Image | S1: Base_V1_Maint_Repair_Cost_Year_1 | T1: Base_V1_Maint_Repair_Cost_Year_5
A2: TOYOTA COROLLA | B2: 1 | C2: Conventional | D2: Car | E2: 2024 TOYOTA COROLLA GAS | F2: ICE | G2: Passenger Vehicles (Light-Duty) | H2: 2024 | I2: TOYOTA | J2: COROLLA | M2: 32 | N2: 41 | O2: 21900 | P2: 0 | Q2: 5 | R2: https://fueleconomy.gov/feg/photos/2023_Toyota_Corolla.jpg | S2: 0.08 | T2: 0.104
A3: TOYOTA COROLLA | B3: 1 | C3: EV Alternative | D3: Car | E3: 2023 TESLA MODEL 3 RWD BEV | F3: BEV | G3: Passenger Vehicles (Light-Duty) | H3: 2023 | I3: TESLA | J3: MODEL 3 RWD | K3: 138 | L3: 126 | O3: 42990 | P3: 272 | Q3: 5 | R3: https://fueleconomy.gov/feg/photos/2023_Tesla_Model_3.jpg | S3: 0.04 | T3: 0.052
A4: FORD TAURUS | B4: 2 | C4: Conventional | D4: Car | E4: 2024 TOYOTA CAMRY LE/SE GAS | F4: ICE | G4: Passenger Vehicles (Light-Duty) | H4: 2024 | I4: TOYOTA | J4: CAMRY LE/SE | M4: 28 | N4: 39 | O4: 26420 | P4: 0 | Q4: 11 | R4: https://fueleconomy.gov/feg/photos/2023_Toyota_Camry.jpg | S4: 0.08 | T4: 0.104
A5: FORD TAURUS | B5: 2 | C5: EV Alternative | D5: Car | E5: 2023 TESLA MODEL 3 RWD BEV | F5: BEV | G5: Passenger Vehicles (Light-Duty) | H5: 2023 | I5: TESLA | J5: MODEL 3 RWD | K5: 138 | L5: 126 | O5: 42990 | P5: 272 | Q5: 11 | R5: https://fueleconomy.gov/feg/photos/2023_Tesla_Model_3.jpg | S5: 0.04 | T5: 0.052
A6: GILLIG LOW FLOOR BUS | B6: 3 | C6: Conventional | D6: Transit Bus | E6: 2025 FREIGHTLINER B2 BUS CHASSIS DIESEL | F6: ICE | G6: Heavy-Duty Vehicles (Class 7-8) | H6: 2025 | I6: FREIGHTLINER | J6: B2 BUS CHASSIS | M6: 5.21 | N6: 5.21 | O6: 132000 | Q6: 2 | R6: https://thomasbuiltbuses.com/content/uploads/2017/02/C2_Frontish_RGB.jpg | S6: 0.199 | T6: 0.2587
A7: GILLIG LOW FLOOR BUS | B7: 3 | C7: EV Alternative | D7: Transit Bus | E7: 2024 FREIGHTLINER EB2 CHASSIS BEV | F7: BEV | G7: Heavy-Duty Vehicles (Class 7-8) | H7: 2024 | I7: FREIGHTLINER | J7: EB2 CHASSIS | K7: 20.72 | L7: 20.72 | O7: 415000 | P7: 150 | Q7: 2 | R7: https://thomasbuiltbuses.com/content/uploads/2023/11/TBB-JouleyBus-BlueBumper-2X_ret_NoLights_1000x1000.png | S7: 0.168 | T7: 0.2184
A8: FORD EXPLORER | B8: 4 | C8: Conventional | D8: SUV/MPV | E8: 2024 CHEVROLET EQUINOX FWD GAS | F8: ICE | G8: Passenger Vehicles (Light-Duty) | H8: 2024 | I8: CHEVROLET | J8: EQUINOX FWD | M8: 26 | N8: 31 | O8: 26600 | P8: 0 | Q8: 21 | R8: https://fueleconomy.gov/feg/photos/2023_Chevy_Equinox.jpg | S8: 0.08 | T8: 0.104
A9: FORD EXPLORER | B9: 4 | C9: EV Alternative | D9: SUV/MPV | E9: 2023 TESLA MODEL Y AWD BEV | F9: BEV | G9: Passenger Vehicles (Light-Duty) | H9: 2023 | I9: TESLA | J9: MODEL Y AWD | K9: 129 | L9: 116 | O9: 49990 | P9: 279 | Q9: 21 | R9: https://fueleconomy.gov/feg/photos/2023_Tesla_Model_Y.jpg | S9: 0.04 | T9: 0.052
A10: FORD RANGER | B10: 5 | C10: Conventional | D10: Light Pickup | E10: 2023 FORD F150 PICKUP 2WD GAS | F10: ICE | G10: Passenger Vehicles (Light-Duty) | H10: 2023 | I10: FORD | J10: F150 PICKUP 2WD | M10: 18 | N10: 25 | O10: 34585 | P10: 0 | Q10: 2 | R10: https://fueleconomy.gov/feg/photos/2023_Ford_F150_2WD.jpg | S10: 0.08 | T10: 0.104
A11: FORD RANGER | B11: 5 | C11: EV Alternative | D11: Light Pickup | E11: 2023 FORD F-150 LIGHTNING PLATINUM 4WD BEV | F11: BEV | G11: Passenger Vehicles (Light-Duty) | H11: 2023 | I11: FORD | J11: F-150 LIGHTNING PLATINUM 4WD | K11: 73 | L11: 60 | O11: 96874 | P11: 300 | Q11: 2 | R11: https://fueleconomy.gov/feg/photos/2022_Ford_F150_Lightning.jpg | S11: 0.04 | T11: 0.052
A12: CHEVROLET S-10 PICKUP | B12: 6 | C12: Conventional | D12: Light Pickup | E12: 2023 FORD F150 PICKUP 2WD GAS | F12: ICE | G12: Passenger Vehicles (Light-Duty) | H12: 2023 | I12: FORD | J12: F150 PICKUP 2WD | M12: 18 | N12: 25 | O12: 34585 | P12: 0 | Q12: 1 | R12: https://fueleconomy.gov/feg/photos/2023_Ford_F150_2WD.jpg | S12: 0.08 | T12: 0.104
A13: CHEVROLET S-10 PICKUP | B13: 6 | C13: EV Alternative | D13: Light Pickup | E13: 2023 FORD F-150 LIGHTNING PLATINUM 4WD BEV | F13: BEV | G13: Passenger Vehicles (Light-Duty) | H13: 2023 | I13: FORD | J13: F-150 LIGHTNING PLATINUM 4WD | K13: 73 | L13: 60 | O13: 96874 | P13: 300 | Q13: 1 | R13: https://fueleconomy.gov/feg/photos/2022_Ford_F150_Lightning.jpg | S13: 0.04 | T13: 0.052
A14: CHEVROLET COLORADO | B14: 7 | C14: Conventional | D14: Light Pickup | E14: 2023 FORD F150 PICKUP 2WD GAS | F14: ICE | G14: Passenger Vehicles (Light-Duty) | H14: 2023 | I14: FORD | J14: F150 PICKUP 2WD | M14: 18 | N14: 25 | O14: 34585 | P14: 0 | Q14: 1 | R14: https://fueleconomy.gov/feg/photos/2023_Ford_F150_2WD.jpg | S14: 0.08 | T14: 0.104
A15: CHEVROLET COLORADO | B15: 7 | C15: EV Alternative | D15: Light Pickup | E15: 2023 FORD F-150 LIGHTNING PLATINUM 4WD BEV | F15: BEV | G15: Passenger Vehicles (Light-Duty) | H15: 2023 | I15: FORD | J15: F-150 LIGHTNING PLATINUM 4WD | K15: 73 | L15: 60 | O15: 96874 | P15: 300 | Q15: 1 | R15: https://fueleconomy.gov/feg/photos/2022_Ford_F150_Lightning.jpg | S15: 0.04 | T15: 0.052
A16: CHEVROLET SILVERADO | B16: 8 | C16: Conventional | D16: Light Pickup | E16: 2023 FORD F150 PICKUP 2WD GAS | F16: ICE | G16: Passenger Vehicles (Light-Duty) | H16: 2023 | I16: FORD | J16: F150 PICKUP 2WD | M16: 18 | N16: 25 | O16: 34585 | P16: 0 | Q16: 15 | R16: https://fueleconomy.gov/feg/photos/2023_Ford_F150_2WD.jpg | S16: 0.08 | T16: 0.104
A17: CHEVROLET SILVERADO | B17: 8 | C17: EV Alternative | D17: Light Pickup | E17: 2023 FORD F-150 LIGHTNING PLATINUM 4WD BEV | F17: BEV | G17: Passenger Vehicles (Light-Duty) | H17: 2023 | I17: FORD | J17: F-150 LIGHTNING PLATINUM 4WD | K17: 73 | L17: 60 | O17: 96874 | P17: 300 | Q17: 15 | R17: https://fueleconomy.gov/feg/photos/2022_Ford_F150_Lightning.jpg | S17: 0.04 | T17: 0.052
A18: DODGE GRAND CARAVAN | B18: 9 | C18: Conventional | D18: Minivan | E18: 2024 CHRYSLER PACIFICA GAS | F18: ICE | G18: Passenger Vehicles (Light-Duty) | H18: 2024 | I18: CHRYSLER | J18: PACIFICA | M18: 19 | N18: 28 | O18: 38425 | P18: 0 | Q18: 13 | R18: https://fueleconomy.gov/feg/photos/2023_Chrysler_Pacifica.jpg | S18: 0.08 | T18: 0.104
A19: DODGE GRAND CARAVAN | B19: 9 | C19: EV Alternative | D19: Minivan | E19: 2024 CHRYSLER PACIFICA HYBRID PHEV | F19: PHEV | G19: Passenger Vehicles (Light-Duty) | H19: 2024 | I19: CHRYSLER | J19: PACIFICA HYBRID | K19: 87 | L19: 77 | M19: 29 | N19: 30 | O19: 52495 | P19: 32 | Q19: 13 | R19: https://fueleconomy.gov/feg/photos/2023_Chrysler_Pacifica_Hybrid.jpg | S19: 0.07 | T19: 0.091
A20: FORD F-250 | B20: 10 | C20: Conventional | D20: Medium-Duty Pickup | E20: 2024 FORD F250 XL DIESEL | F20: ICE | G20: Medium-Duty Vehicles (Class 3-6) | H20: 2024 | I20: FORD | J20: F250 | M20: 13.51 | N20: 13.51 | O20: 55000 | Q20: 16 | R20: https://build.ford.com/dig/Ford/SuperDuty/2024/HD-TILE%5BEXTBCK1%5D/Image%5B%7CFord%7CSuperDuty%7C2024%7C1%7C1.%7C..142.PUM..88A.89S.XLL.166.REC.SRW.64A.4X2.99A.585.250.%5D/EXT/4/vehicle.png
A21: FORD F-250 | B21: 10 | C21: EV Alternative | D21: Medium-Duty Pickup | E21: 2023 FORD F-150 LIGHTNING PLATINUM 4WD BEV | F21: BEV | G21: Passenger Vehicles (Light-Duty) | H21: 2023 | I21: FORD | J21: F-150 LIGHTNING PLATINUM 4WD | K21: 73 | L21: 60 | O21: 96874 | P21: 300 | Q21: 16 | R21: https://fueleconomy.gov/feg/photos/2022_Ford_F150_Lightning.jpg | S21: 0.04 | T21: 0.052
A22: FORD F-650 | B22: 11 | C22: Conventional | D22: Medium-Duty Straight Truck | E22: 2024 FORD F550 DIESEL | F22: ICE | G22: Medium-Duty Vehicles (Class 3-6) | H22: 2024 | I22: FORD | J22: F550 | M22: 4.31 | N22: 4.31 | O22: 62000 | Q22: 1 | R22: https://vpic.nhtsa.dot.gov/decoder/Images/5/11.png
A23: FORD F-650 | B23: 11 | C23: EV Alternative | D23: Medium-Duty Straight Truck | E23: 2024 PETERBILT 220 209 KWH BEV | F23: BEV | G23: Heavy-Duty Vehicles (Class 7-8) | H23: 2024 | I23: PETERBILT | J23: 220 | K23: 24.19 | L23: 24.19 | O23: 387000 | P23: 150 | Q23: 1 | R23: https://vpic.nhtsa.dot.gov/decoder/Images/5/11.png | S23: 0.168 | T23: 0.2184
A24: INTERNATIONAL 4700 | B24: 12 | C24: Conventional | D24: Medium-Duty Straight Truck | E24: 2024 FORD F550 DIESEL | F24: ICE | G24: Medium-Duty Vehicles (Class 3-6) | H24: 2024 | I24: FORD | J24: F550 | M24: 4.31 | N24: 4.31 | O24: 62000 | Q24: 10 | R24: https://vpic.nhtsa.dot.gov/decoder/Images/5/11.png
A25: INTERNATIONAL 4700 | B25: 12 | C25: EV Alternative | D25: Medium-Duty Straight Truck | E25: 2024 PETERBILT 220 209 KWH BEV | F25: BEV | G25: Heavy-Duty Vehicles (Class 7-8) | H25: 2024 | I25: PETERBILT | J25: 220 | K25: 24.19 | L25: 24.19 | O25: 387000 | P25: 150 | Q25: 10 | R25: https://vpic.nhtsa.dot.gov/decoder/Images/5/11.png | S25: 0.168 | T25: 0.2184
A26: FORD E-450 | B26: 13 | C26: Conventional | D26: Medium-Duty Straight Truck | E26: 2024 FORD F550 DIESEL | F26: ICE | G26: Medium-Duty Vehicles (Class 3-6) | H26: 2024 | I26: FORD | J26: F550 | M26: 4.31 | N26: 4.31 | O26: 62000 | Q26: 2 | R26: https://vpic.nhtsa.dot.gov/decoder/Images/5/11.png
A27: FORD E-450 | B27: 13 | C27: EV Alternative | D27: Medium-Duty Straight Truck | E27: 2024 PETERBILT 220 209 KWH BEV | F27: BEV | G27: Heavy-Duty Vehicles (Class 7-8) | H27: 2024 | I27: PETERBILT | J27: 220 | K27: 24.19 | L27: 24.19 | O27: 387000 | P27: 150 | Q27: 2 | R27: https://vpic.nhtsa.dot.gov/decoder/Images/5/11.png | S27: 0.168 | T27: 0.2184

Sheet Initial Mapping Table (hidden)
A1: Full Vehicle Name | B1: Index | C1: Vehicle Scenario | D1: Use Case | E1: FPAT Vehicle Name | F1: Technology | G1: Vehicle GVWR Category | H1: Model Year | I1: Make | J1: Model | K1: Fuel Economy Electric City (MPGe) | L1: Fuel Economy Electric Hwy (MPGe) | M1: Fuel Economy Gas/Diesel City (MPG) | N1: Fuel Economy Gas/Diesel Hwy (MPG) | O1: Estimated Price | P1: Electric Range | Q1: Base_V1_Maint_Repair_Cost_Year_1 | R1: Base_V1_Maint_Repair_Cost_Year_5 | S1: Base_V1_Insurance_Cost | T1: Max 45W Credit Value | U1: Base_V1_State_Tax_Incentives | V1: Count | W1: Fuel Type
A2: CHEVROLET COLORADO | B2: 1 | C2: Conventional | D2: Light Pickup | E2: 2025 CHEVROLET COLORADO 2WD ICE GAS | F2: ICE | G2: Passenger Vehicles (Light-Duty) | H2: 2025 | I2: CHEVROLET | J2: COLORADO 2WD | M2: 19 | N2: 23 | O2: 31900 | Q2: 0.101 | R2: 0.1313 | S2: 600 | T2: 0 | U2: 0 | V2: 1 | W2: GAS
A3: CHEVROLET COLORADO | B3: 1 | C3: EV Alternative | D3: Light Pickup | E3: 2024 CHEVROLET SILVERADO EV BEV ELECTRIC | F3: BEV | G3: Passenger Vehicles (Light-Duty) | H3: 2024 | I3: CHEVROLET | J3: SILVERADO EV | K3: 67 | L3: 59 | O3: 55395 | P3: 450 | Q3: 0.061 | R3: 0.0793 | S3: 600 | T3: 0 | U3: 0 | V3: 1 | W3: ELECTRIC
A4: CHEVROLET S-10 PICKUP | B4: 2 | C4: Conventional | D4: Light Pickup | E4: 2025 CHEVROLET COLORADO 4WD ICE GAS | F4: ICE | G4: Passenger Vehicles (Light-Duty) | H4: 2025 | I4: CHEVROLET | J4: COLORADO 4WD | M4: 17 | N4: 21 | O4: 35200 | Q4: 0.101 | R4: 0.1313 | S4: 600 | T4: 0 | U4: 0 | V4: 1 | W4: GAS
A5: CHEVROLET S-10 PICKUP | B5: 2 | C5: EV Alternative | D5: Light Pickup | E5: 2024 CHEVROLET SILVERADO EV BEV ELECTRIC | F5: BEV | G5: Passenger Vehicles (Light-Duty) | H5: 2024 | I5: CHEVROLET | J5: SILVERADO EV | K5: 67 | L5: 59 | O5: 55395 | P5: 450 | Q5: 0.061 | R5: 0.0793 | S5: 600 | T5: 0 | U5: 0 | V5: 1 | W5: ELECTRIC
A6: CHEVROLET SILVERADO | B6: 3 | C6: Conventional | D6: Light Pickup | E6: 2025 CHEVROLET COLORADO 4WD ICE GAS | F6: ICE | G6: Passenger Vehicles (Light-Duty) | H6: 2025 | I6: CHEVROLET | J6: COLORADO 4WD | M6: 17 | N6: 21 | O6: 35200 | Q6: 0.101 | R6: 0.1313 | S6: 600 | T6: 0 | U6: 0 | V6: 18 | W6: GAS
A7: CHEVROLET SILVERADO | B7: 3 | C7: EV Alternative | D7: Light Pickup | E7: 2024 CHEVROLET SILVERADO EV BEV ELECTRIC | F7: BEV | G7: Passenger Vehicles (Light-Duty) | H7: 2024 | I7: CHEVROLET | J7: SILVERADO EV | K7: 67 | L7: 59 | O7: 55395 | P7: 450 | Q7: 0.061 | R7: 0.0793 | S7: 600 | T7: 0 | U7: 0 | V7: 18 | W7: ELECTRIC
A8: FORD RANGER | B8: 4 | C8: Conventional | D8: Light Pickup | E8: 2025 FORD RANGER 2WD ICE GAS | F8: ICE | G8: Passenger Vehicles (Light-Duty) | H8: 2025 | I8: FORD | J8: RANGER 2WD | M8: 21 | N8: 26 | O8: 33330 | Q8: 0.101 | R8: 0.1313 | S8: 600 | T8: 0 | U8: 0 | V8: 2 | W8: GAS
A9: FORD RANGER | B9: 4 | C9: EV Alternative | D9: Light Pickup | E9: 2024 CHEVROLET SILVERADO EV BEV ELECTRIC | F9: BEV | G9: Passenger Vehicles (Light-Duty) | H9: 2024 | I9: CHEVROLET | J9: SILVERADO EV | K9: 67 | L9: 59 | O9: 55395 | P9: 450 | Q9: 0.061 | R9: 0.0793 | S9: 600 | T9: 0 | U9: 0 | V9: 2 | W9: ELECTRIC
A10: CHEVROLET CORVETTE | B10: 5 | C10: Conventional | D10: Car | E10: 2025 CHEVROLET CORVETTE ICE GAS | F10: ICE | G10: Passenger Vehicles (Light-Duty) | H10: 2025 | I10: CHEVROLET | J10: CORVETTE | M10: 16 | N10: 25 | O10: 68300 | Q10: 0.101 | R10: 0.1313 | S10: 600 | T10: 0 | U10: 0 | V10: 5 | W10: GAS
A11: CHEVROLET CORVETTE | B11: 5 | C11: EV Alternative | D11: Car | E11: 2023 FORD MUSTANG MACH-E RWD BEV ELECTRIC | F11: BEV | G11: Passenger Vehicles (Light-Duty) | H11: 2023 | I11: FORD | J11: MUSTANG MACH-E RWD | K11: 110 | L11: 96 | O11: 42995 | P11: 247 | Q11: 0.061 | R11: 0.0793 | S11: 600 | T11: 0 | U11: 0 | V11: 5 | W11: ELECTRIC
A12: FORD TAURUS | B12: 6 | C12: Conventional | D12: Car | E12: 2025 CHEVROLET MALIBU ICE GAS | F12: ICE | G12: Passenger Vehicles (Light-Duty) | H12: 2025 | I12: CHEVROLET | J12: MALIBU | M12: 28 | N12: 36 | O12: 25800 | Q12: 0.101 | R12: 0.1313 | S12: 600 | T12: 0 | U12: 0 | V12: 11 | W12: GAS
A13: FORD TAURUS | B13: 6 | C13: EV Alternative | D13: Car | E13: 2025 HYUNDAI IONIQ 6 STANDARD RANGE BEV ELECTRIC | F13: BEV | G13: Passenger Vehicles (Light-Duty) | H13: 2025 | I13: HYUNDAI | J13: IONIQ 6 STANDARD RANGE | K13: 151 | L13: 120 | O13: 37850 | P13: 240 | Q13: 0.061 | R13: 0.0793 | S13: 600 | T13: 0 | U13: 0 | V13: 11 | W13: ELECTRIC
A14: TOYOTA COROLLA | B14: 7 | C14: Conventional | D14: Car | E14: 2025 TOYOTA COROLLA ICE GAS | F14: ICE | G14: Passenger Vehicles (Light-Duty) | H14: 2025 | I14: TOYOTA | J14: COROLLA | M14: 31 | N14: 38 | O14: 22325 | Q14: 0.101 | R14: 0.1313 | S14: 600 | T14: 0 | U14: 0 | V14: 5 | W14: GAS
A15: TOYOTA COROLLA | B15: 7 | C15: EV Alternative | D15: Car | E15: 2025 NISSAN LEAF BEV ELECTRIC | F15: BEV | G15: Passenger Vehicles (Light-Duty) | H15: 2025 | I15: NISSAN | J15: LEAF | K15: 123 | L15: 99 | O15: 28140 | P15: 149 | Q15: 0.061 | R15: 0.0793 | S15: 600 | T15: 0 | U15: 0 | V15: 5 | W15: ELECTRIC
A16: FORD EXPLORER | B16: 8 | C16: Conventional | D16: SUV/MPV | E16: 2025 FORD EXPEDITION 2WD ICE GAS | F16: ICE | G16: Passenger Vehicles (Light-Duty) | H16: 2025 | I16: FORD | J16: EXPEDITION 2WD | M16: 16 | N16: 24 | O16: 62320 | Q16: 0.101 | R16: 0.1313 | S16: 600 | T16: 0 | U16: 0 | V16: 21 | W16: GAS
A17: FORD EXPLORER | B17: 8 | C17: EV Alternative | D17: SUV/MPV | E17: 2025 KIA EV9 LONG RANGE RWD BEV ELECTRIC | F17: BEV | G17: Passenger Vehicles (Light-Duty) | H17: 2025 | I17: KIA | J17: EV9 LONG RANGE RWD | K17: 100 | L17: 78 | O17: 59900 | P17: 304 | Q17: 0.061 | R17: 0.0793 | S17: 600 | T17: 0 | U17: 0 | V17: 21 | W17: ELECTRIC
A18: TOYOTA SEQUOIA | B18: 9 | C18: Conventional | D18: SUV/MPV | E18: 2025 TOYOTA SEQUOIA 2WD ICE GAS | F18: ICE | G18: Passenger Vehicles (Light-Duty) | H18: 2025 | I18: TOYOTA | J18: SEQUOIA 2WD | M18: 21 | N18: 24 | O18: 62425 | Q18: 0.101 | R18: 0.1313 | S18: 600 | T18: 0 | U18: 0 | V18: 5 | W18: GAS
A19: TOYOTA SEQUOIA | B19: 9 | C19: EV Alternative | D19: SUV/MPV | E19: 2025 CHEVROLET EQUINOX EV FWD BEV ELECTRIC | F19: BEV | G19: Passenger Vehicles (Light-Duty) | H19: 2025 | I19: CHEVROLET | J19: EQUINOX EV FWD | K19: 117 | L19: 100 | O19: 33600 | P19: 319 | Q19: 0.061 | R19: 0.0793 | S19: 600 | T19: 0 | U19: 0 | V19: 5 | W19: ELECTRIC
A20: DODGE GRAND CARAVAN | B20: 10 | C20: Conventional | D20: Minivan | E20: 2025 CHRYSLER PACIFICA ICE GAS | F20: ICE | G20: Passenger Vehicles (Light-Duty) | H20: 2025 | I20: CHRYSLER | J20: PACIFICA | M20: 19 | N20: 28 | O20: 42450 | Q20: 0.101 | R20: 0.1313 | S20: 600 | T20: 0 | U20: 0 | V20: 13 | W20: GAS
A21: DODGE GRAND CARAVAN | B21: 10 | C21: EV Alternative | D21: Minivan | E21: 2025 CHRYSLER PACIFICA HYBRID PHEV PLUG-IN HYBRID | F21: PHEV | G21: Passenger Vehicles (Light-Duty) | H21: 2025 | I21: CHRYSLER | J21: PACIFICA HYBRID | K21: 87 | L21: 77 | M21: 29 | N21: 30 | O21: 51055 | P21: 32 | Q21: 0.09 | R21: 0.117 | S21: 600 | T21: 0 | U21: 0 | V21: 13 | W21: PLUG-IN HYBRID
A22: CHEVROLET SILVERADO | B22: 11 | C22: Conventional | D22: Medium-Duty Pickup | E22: 2025 CHEVROLET COLORADO 4WD ICE GAS | F22: ICE | G22: Passenger Vehicles (Light-Duty) | H22: 2025 | I22: CHEVROLET | J22: COLORADO 4WD | M22: 17 | N22: 21 | O22: 35200 | Q22: 0.101 | R22: 0.1313 | S22: 600 | T22: 0 | U22: 0 | V22: 2 | W22: GAS
A23: CHEVROLET SILVERADO | B23: 11 | C23: EV Alternative | D23: Medium-Duty Pickup | E23: 2024 CHEVROLET SILVERADO EV BEV ELECTRIC | F23: BEV | G23: Passenger Vehicles (Light-Duty) | H23: 2024 | I23: CHEVROLET | J23: SILVERADO EV | K23: 67 | L23: 59 | O23: 55395 | P23: 450 | Q23: 0.061 | R23: 0.0793 | S23: 600 | T23: 0 | U23: 0 | V23: 2 | W23: ELECTRIC
A24: FORD F-250 | B24: 12 | C24: Conventional | D24: Medium-Duty Pickup | E24: 2024 FORD F250 XL ICE GAS | F24: ICE | G24: Medium Duty Vehicles (Class 3-6) | H24: 2024 | I24: FORD | J24: F250 XL | M24: 13 | N24: 13 | O24: 45000 | Q24: 0.11 | R24: 0.24 | S24: 4000 | T24: 0 | U24: 0 | V24: 16 | W24: GAS
A25: FORD F-250 | B25: 12 | C25: EV Alternative | D25: Medium-Duty Pickup | E25: 2025 ISUZU NQR~NRR BEV ELECTRIC | F25: BEV | G25: Medium Duty Vehicles (Class 3-6) | H25: 2025 | I25: ISUZU | J25: NQR~NRR | K25: 132.01 | L25: 132.01 | O25: 84000 | P25: 235 | Q25: 0.066 | R25: 0.144 | S25: 4000 | T25: 0 | U25: 0 | V25: 16 | W25: ELECTRIC
A26: FORD E-450 | B26: 13 | C26: Conventional | D26: Medium-Duty Straight Truck | E26: 2025 FORD E450 ICE GAS | F26: ICE | G26: Medium Duty Vehicles (Class 3-6) | H26: 2025 | I26: FORD | J26: E450 | M26: 4.14 | N26: 4.14 | O26: 40000 | Q26: 0.11 | R26: 0.24 | S26: 4000 | T26: 0 | U26: 0 | V26: 2 | W26: GAS
A27: FORD E-450 | B27: 13 | C27: EV Alternative | D27: Medium-Duty Straight Truck | E27: 2025 ISUZU NQR~NRR BEV ELECTRIC | F27: BEV | G27: Medium Duty Vehicles (Class 3-6) | H27: 2025 | I27: ISUZU | J27: NQR~NRR | K27: 132.01 | L27: 132.01 | O27: 84000 | P27: 235 | Q27: 0.066 | R27: 0.144 | S27: 4000 | T27: 0 | U27: 0 | V27: 2 | W27: ELECTRIC
A28: FORD F-650 | B28: 14 | C28: Conventional | D28: Medium-Duty Straight Truck | E28: 2025 FORD F650 ICE DIESEL | F28: ICE | G28: Medium Duty Vehicles (Class 3-6) | H28: 2025 | I28: FORD | J28: F650 | M28: 4.31 | N28: 4.31 | O28: 79000 | Q28: 0.11 | R28: 0.24 | S28: 4000 | T28: 0 | U28: 0 | V28: 1 | W28: DIESEL
A29: FORD F-650 | B29: 14 | C29: EV Alternative | D29: Medium-Duty Straight Truck | E29: 2023 ROUSH FORD F-650 BEV ELECTRIC | F29: BEV | G29: Medium Duty Vehicles (Class 3-6) | H29: 2023 | I29: ROUSH | J29: FORD F-650 | K29: 24.42 | L29: 24.42 | O29: 266000 | P29: 100 | Q29: 0.066 | R29: 0.144 | S29: 4000 | T29: 0 | U29: 0 | V29: 1 | W29: ELECTRIC
A30: GILLIG LOW FLOOR BUS | B30: 15 | C30: Conventional | D30: Transit Bus | E30: 2024 NEW FLYER XCELSIOR 40' ICE DIESEL | F30: ICE | G30: Heavy-Duty Vehicles (Class 7-8) | H30: 2024 | I30: NEW FLYER | J30: XCELSIOR 40' | M30: 3.3 | N30: 3.3 | O30: 507000 | Q30: 0.425 | R30: 0.8 | S30: 6000 | T30: 0 | U30: 0 | V30: 2 | W30: DIESEL
A31: GILLIG LOW FLOOR BUS | B31: 15 | C31: EV Alternative | D31: Transit Bus | E31: 2025 NEW FLYER XCELSIOR BEV ELECTRIC | F31: BEV | G31: Heavy-Duty Vehicles (Class 7-8) | H31: 2025 | I31: NEW FLYER | J31: XCELSIOR | K31: 17.19 | L31: 17.19 | O31: 928000 | P31: 176 | Q31: 0.255 | R31: 0.48 | S31: 6000 | T31: 0 | U31: 0 | V31: 2 | W31: ELECTRIC
A32: INTERNATIONAL 4700 | B32: 16 | C32: Conventional | D32: Medium-Duty Straight Truck | E32: 2025 FORD E450 ICE GAS | F32: ICE | G32: Medium Duty Vehicles (Class 3-6) | H32: 2025 | I32: FORD | J32: E450 | M32: 4.14 | N32: 4.14 | O32: 40000 | Q32: 0.11 | R32: 0.24 | S32: 4000 | T32: 0 | U32: 0 | V32: 10 | W32: GAS
A33: INTERNATIONAL 4700 | B33: 16 | C33: EV Alternative | D33: Medium-Duty Straight Truck | E33: 2025 FREIGHTLINER EM2 106 BEV ELECTRIC | F33: BEV | G33: Heavy-Duty Vehicles (Class 7-8) | H33: 2025 | I33: FREIGHTLINER | J33: EM2 106 | K33: 31.27 | L33: 31.27 | O33: 290000 | P33: 180 | Q33: 0.255 | R33: 0.48 | S33: 6000 | T33: 0 | U33: 0 | V33: 10 | W33: ELECTRIC

Sheet Version
A1: Version History - DRVE
B2: Developed By
B5: Version | C5: Date | D5: Author | E5: Organization | F5: Revisions
B6: 0.1 | C6: 44105 | D6: Josh Rosenberg | E6: Atlas Public Policy | F6: Initial Pre-Release of Tool
B7: 0.2 | C7: 44123 | D7: Josh Rosenberg | E7: Atlas Public Policy | F7: Minor bug fixes: Fixed bug where adding a first setting causes application to crash. Improvement: Allows users to cancel fleet processing and monitor progress.
B8: 0.3 | C8: 44131 | D8: Josh Rosenberg | E8: Atlas Public Policy | F8: Minor bug fixes: Fixed issue regarding VIN decoding timeout. Improvement: Added insurance and maintenece costs as custom fields. Allow users to select life cycle in years instead of retirement year. Added Dashboard.
B9: 0.4 | C9: 44138 | D9: Josh Rosenberg | E9: Atlas Public Policy | F9: Addressed cosmetic issues around procurement settings page.
B10: 0.5 | C10: 44138 | D10: Josh Rosenberg | E10: Atlas Public Policy | F10: Fixed refresh issue causing unexpected error when viewing results. Fixed memory allocation issue which caused program to run out of memory too early.
B11: 0.6 | C11: 44139 | D11: Josh Rosenberg | E11: Atlas Public Policy | F11: Fixed bug which didn't allow users to save the results from the dashboard.
B12: 0.7 | C12: 44166 | D12: Josh Rosenberg | E12: Atlas Public Policy | F12: Improved performance and memory usage. Added ability to set custom insurance, maintenece, and fed tax credit settings on mapping page. Added scaling feature to insurance and fed tax credit. Minor bug fixes.
B13: 1 | C13: 44237 | D13: Josh Rosenberg | E13: Atlas Public Policy | F13: Official Launch. Minor bug fixes: resolved fields that allowed for bad input. Added report feature which summarizes analysis and provides ability to export report as a PDF.
B14: 1.1 | C14: 44256 | D14: Josh Rosenberg | E14: Atlas Public Policy | F14: Bug fixes: Resolved issue causing users to be unable to import a fleet file. Added support for tranist, school, and coach buses. Next release will include optimization to VIN decoding process.
B15: 1.2 | C15: 44260 | D15: Josh Rosenberg | E15: Atlas Public Policy | F15: Bug fixes: Resolved other issue causing users to be unable to import a fleet file. Fixed bug causing application to crash upon invenotry sheet selection. Optimization to VIN decoding process where processing time will be a function of unique models. Added License
B16: 1.3 | C16: 44286 | D16: Josh Rosenberg | E16: Atlas Public Policy | F16: Increased error reporting when fleet has no valid VINs. Updated data on vehicle availability, fuel prices, energy inflation, emissions and insurance.
B17: 1.4 | C17: 44378 | D17: Josh Rosenberg | E17: Atlas Public Policy | F17: Bug fixes: Resolved issue causing buses to not be mapped. Feature updates: Added ability to set custom defaults for VMT and Years of Use. Added forecasting feature in the market settings. Added additional guidance on procurement settings. Added values for default charging procurements. Allowed users to start with all defaults pre-loaded into the tool.
B18: 1.5 | C18: 44476 | D18: Josh Rosenberg | E18: Atlas Public Policy | F18: Added functionality to overwrite dropped VINs. Added ability to add custom vehicles to use in analysis that are not present in default vehicles. Updated vehicles and incentives. Minor bug fixes and performance improvements.
B19: 1.6 | C19: 44505 | D19: Josh Rosenberg | E19: Atlas Public Policy | F19: Fixed bug which caused visuals on dashboard to not refresh. Updating Dashboard and Report page visuals. Included Sandbox page to allow users to create their own tables and visuals.
B20: 1.7 | C20: 44834 | D20: Spencer Burget, Josh Rosenberg | E20: Atlas Public Policy | F20: Updated fuel prices and available vehicles. Added ability to apply specific state incentives and rebates for a number of programs. Fixed minor bugs.
B21: 1.8 | C21: 44855 | D21: Spencer Burget | E21: Atlas Public Policy | F21: Updated available vehicles and default vehicle mappings. Fixed formula for loan calculation. Previous calculation was attempting to do monthly accrual of principal and interest payments. This was inaccurate since the model is annual. This change affected loan calculations for vehicles and infrastructure.
B22: 1.81 | C22: 44987 | D22: Spencer Burget | E22: Atlas Public Policy | F22: Fixed issue with tool dropping fixed invalid VINs. Invalid VINs now require user to input NHTSA bodyclass.
B23: 1.82 | C23: 45005 | D23: Spencer Burget | E23: Atlas Public Policy | F23: Fixed bug caused by VIN decoder returning vehicle bodyclass but no make and model.
B24: 1.83 | C24: 45100 | D24: Spencer Burget | E24: Atlas Public Policy | F24: Updated fuel prices with 2022 data. Added Kia EV9, Chevrolet Silverado EV, and multiple SEA Electric and Lightning eMotors work trucks. Updated default vehicle mappings to use these new vehicles.
B25: 2 | C25: 45406 | D25: Spencer Burget, Josh Rosenberg | E25: Atlas Public Policy | F25: DRVE 2.0 completely reworked the tool's user interface adding a modern look and feel designed to maximize an intuitive and transparent user experience. New substantive additions to DRVE 2.0 included the addition of a charging infrastructure planning model and a GHG and criteria air pollutant emissions model. Lastly, DRVE 2.0 included a comprehensive update to underlying data including vehicles, fuel prices, charging infrastructure costs, forecasted vehicle prices, and the EV depreciation model.
B26: 2.01 | C26: 45442 | D26: Spencer Burget | E26: Atlas Public Policy | F26: Updated data model to improve performance when opening the results.
B27: 2.02 | C27: 45643 | D27: Dan Wilkins | E27: Atlas Public Policy | F27: Fixed bug caused by Report tab not having enough rows to surface results by vehicle type. Added new 2024 - 2025 MY vehicles, removed EV models that are no longer in production and updated fuel economy standards for FY25 via fueleconomy.gov.
B28: 2.04 | C28: 45736 | D28: James Di Filippo, Dan Wilkins | E28: Atlas Public Policy | F28: Updated fuel prices for 2024 and vehicle availability through March 2025. Resolved bug with depreciation rate calculation that overestimated light duty BEV and PHEV residual values over longer (5+ year) ownership tenures.
B29: 2.05 | C29: 45930 | D29: Dan Wilkins, Serena Parve | E29: Atlas Public Policy | F29: Updated logos and imaging to match Climate Mayors program rebranding to Drive EV Fleets. Updated tool to remove federal tax credit 30D and 45W toggle. Provided survey link for users to submit standardized feedback.
B30: 2.06 | C30: 46048 | D30: Dan Wilkins, Serena Parve | E30: Atlas Public Policy | F30: Updated User Guide to include common troubleshooting fixes, updated fuel prices and vehicle availability through 2025. Resolved slight data discrepancy between Vehicle Summary tab Pivot Table and Report Pivot Chart (Figures 3, 5).
B31: 2.07 | C31: 46115 | D31: Serena Parve | E31: Atlas Public Policy | F31: Resolved bug that forced fleets to add dummy value for Location Column, making the Location column truly optional. Resolved bug that triggered errors when vehicle mappings were updated to vehicles with different fuel types than suggested vehicles.
B32: 2.08 | C32: 46150 | D32: Serena Parve | E32: Atlas Public Policy | F32: Updated Vehicle Mappings

Sheet License (hidden)
A1: Copyright (c) 2021 Atlas Public Policy L.L.C. Permission is hereby granted, free of charge, to any person obtaining a copy of this software and associated documentation files (the "Software"), to deal in the Software without restriction, including without limitation the rights to use, copy, modify, merge, publish, distribute, sublicense, and/or sell copies of the Software, and to permit persons to whom the Software is furnished to do so, subject to the following conditions: The above copyright notice and this permission notice shall be included in all copies or substantial portions of the Software. THE SOFTWARE IS PROVIDED "AS IS", WITHOUT WARRANTY OF ANY KIND, EXPRESS OR IMPLIED, INCLUDING BUT NOT LIMITED TO THE WARRANTIES OF MERCHANTABILITY, FITNESS FOR A PARTICULAR PURPOSE AND NONINFRINGEMENT. IN NO EVENT SHALL THE AUTHORS OR COPYRIGHT HOLDERS BE LIABLE FOR ANY CLAIM, DAMAGES OR OTHER LIABILITY, WHETHER IN AN ACTION OF CONTRACT, TORT OR OTHERWISE, ARISING FROM, OUT OF OR IN CONNECTION WITH THE SOFTWARE OR THE USE OR OTHER DEALINGS IN THE SOFTWARE.

Sheet Introduction
A1: DRVE (Dashboard for Rapid Vehicle Electrification)
A2: The tool will launch automatically. If the tool does not appear, please enable editing above, and launch the tool by clicking the button below.

Sheet Dashboard

Sheet Dashboard Pivots (hidden)
A1: Vehicles with EV Savings | B1: Vehicles with Cost Parity | C1: Vehicles with EV Costs | D1: Vehicles with Savings or Parity | E1: Percent of Vehicles with EV Savings or Cost Parity | F1: Total EV Savings
A2: 10 | B2: 0 | C2: 105 | D2: 10 | E2: 0.08695652174 | F2: 69851.472
A7: Savings by Class
A8: Row Labels | B8: Vehicles with EV Savings | C8: Vehicles with Cost Parity | D8: Vehicles with EV Costs | E8: Percent of Vehicles with EV Savings or Cost Parity | F8: Total Vehicles | H8: Vehicle Class Chart Values | I8: Vehicles with EV Savings | J8: Vehicles with Cost Parity | K8: Vehicles with EV Costs | L8: Percent of Vehicles with EV Savings or Cost Parity | M8: Total Vehicles
A9: Heavy-Duty Vehicles (Class 7-8) | B9: 0 | C9: 0 | D9: 2 | E9: 0 | F9: 2 | H9: Passenger Vehicles (Light-Duty) | I9: =IFERROR(GETPIVOTDATA("[Measures].[Vehicles with EV Savings]",$A$8,"[Original Fleet Vehicles].[Fleet Vehicle GVWR Category]","[Original Fleet Vehicles].[Fleet Vehicle GVWR Category].&[Passenger Vehicles (Light-Duty)]"),0) -> 10 | J9: =IFERROR(GETPIVOTDATA("[Measures].[Vehicles with Cost Parity]",$A$8,"[Original Fleet Vehicles].[Fleet Vehicle GVWR Category]","[Original Fleet Vehicles].[Fleet Vehicle GVWR Category].&[Passenger Vehicles (Light-Duty)]"),0) -> 0 | K9: =IFERROR(GETPIVOTDATA("[Measures].[Vehicles with EV Costs]",$A$8,"[Original Fleet Vehicles].[Fleet Vehicle GVWR Category]","[Original Fleet Vehicles].[Fleet Vehicle GVWR Category].&[Passenger Vehicles (Light-Duty)]"),0) -> 72 | L9: =IFERROR(GETPIVOTDATA("[Measures].[Percent of Vehicles with EV Savings or Cost Parity]",$A$8,"[Original Fleet Vehicles].[Fleet Vehicle GVWR Category]","[Original Fleet Vehicles].[Fleet Vehicle GVWR Category].&[Passenger Vehicles (Light-Duty)]"),0) -> 0.1219512195 | M9: =IFERROR(GETPIVOTDATA("[Measures].[Total Vehicles]",$A$8,"[Original Fleet Vehicles].[Fleet Vehicle GVWR Category]","[Original Fleet Vehicles].[Fleet Vehicle GVWR Category].&[Passenger Vehicles (Light-Duty)]"),0) -> 82
A10: Medium Duty Vehicles (Class 3-6) | B10: 0 | C10: 0 | D10: 31 | E10: 0 | F10: 31 | H10: Medium Duty Vehicles (Class 3-6) | I10: =IFERROR(GETPIVOTDATA("[Measures].[Vehicles with EV Savings]",$A$8,"[Original Fleet Vehicles].[Fleet Vehicle GVWR Category]","[Original Fleet Vehicles].[Fleet Vehicle GVWR Category].&[Medium Duty Vehicles (Class 3-6)]"),0) -> 0 | J10: =IFERROR(GETPIVOTDATA("[Measures].[Vehicles with Cost Parity]",$A$8,"[Original Fleet Vehicles].[Fleet Vehicle GVWR Category]","[Original Fleet Vehicles].[Fleet Vehicle GVWR Category].&[Medium Duty Vehicles (Class 3-6)]"),0) -> 0 | K10: =IFERROR(GETPIVOTDATA("[Measures].[Vehicles with EV Costs]",$A$8,"[Original Fleet Vehicles].[Fleet Vehicle GVWR Category]","[Original Fleet Vehicles].[Fleet Vehicle GVWR Category].&[Medium Duty Vehicles (Class 3-6)]"),0) -> 31 | L10: =IFERROR(GETPIVOTDATA("[Measures].[Percent of Vehicles with EV Savings or Cost Parity]",$A$8,"[Original Fleet Vehicles].[Fleet Vehicle GVWR Category]","[Original Fleet Vehicles].[Fleet Vehicle GVWR Category].&[Medium Duty Vehicles (Class 3-6)]"),0) -> 0 | M10: =IFERROR(GETPIVOTDATA("[Measures].[Total Vehicles]",$A$8,"[Original Fleet Vehicles].[Fleet Vehicle GVWR Category]","[Original Fleet Vehicles].[Fleet Vehicle GVWR Category].&[Medium Duty Vehicles (Class 3-6)]"),0) -> 31
A11: Passenger Vehicles (Light-Duty) | B11: 10 | C11: 0 | D11: 72 | E11: 0.1219512195 | F11: 82 | H11: Heavy-Duty Vehicles (Class 7-8) | I11: =IFERROR(GETPIVOTDATA("[Measures].[Vehicles with EV Savings]",$A$8,"[Original Fleet Vehicles].[Fleet Vehicle GVWR Category]","[Original Fleet Vehicles].[Fleet Vehicle GVWR Category].&[Heavy-Duty Vehicles (Class 7-8)]"),0) -> 0 | J11: =IFERROR(GETPIVOTDATA("[Measures].[Vehicles with Cost Parity]",$A$8,"[Original Fleet Vehicles].[Fleet Vehicle GVWR Category]","[Original Fleet Vehicles].[Fleet Vehicle GVWR Category].&[Heavy-Duty Vehicles (Class 7-8)]"),0) -> 0 | K11: =IFERROR(GETPIVOTDATA("[Measures].[Vehicles with EV Costs]",$A$8,"[Original Fleet Vehicles].[Fleet Vehicle GVWR Category]","[Original Fleet Vehicles].[Fleet Vehicle GVWR Category].&[Heavy-Duty Vehicles (Class 7-8)]"),0) -> 2 | L11: =IFERROR(GETPIVOTDATA("[Measures].[Percent of Vehicles with EV Savings or Cost Parity]",$A$8,"[Original Fleet Vehicles].[Fleet Vehicle GVWR Category]","[Original Fleet Vehicles].[Fleet Vehicle GVWR Category].&[Heavy-Duty Vehicles (Class 7-8)]"),0) -> 0 | M11: =IFERROR(GETPIVOTDATA("[Measures].[Total Vehicles]",$A$8,"[Original Fleet Vehicles].[Fleet Vehicle GVWR Category]","[Original Fleet Vehicles].[Fleet Vehicle GVWR Category].&[Heavy-Duty Vehicles (Class 7-8)]"),0) -> 2
A18: Top 5 Models
A19: Row Labels | B19: Electric Vehicle | C19: Vehicles with Savings or Parity | E19: Dashboard Model Chart Label Text
A20: TOYOTA SEQUOIA | B20: 2025 CHEVROLET EQUINOX EV FWD BEV ELECTRIC | C20: 5 | E20: =IF(C20>0,_xlfn.CONCAT(A20," to ",B20),"") -> TOYOTA SEQUOIA to 2025 CHEVROLET EQUINOX EV FWD BEV ELECTRIC
A21: CHEVROLET CORVETTE | B21: 2023 FORD MUSTANG MACH-E RWD BEV ELECTRIC | C21: 5 | E21: =IF(C21>0,_xlfn.CONCAT(A21," to ",B21),"") -> CHEVROLET CORVETTE to 2023 FORD MUSTANG MACH-E RWD BEV ELECTRIC
A22: CHEVROLET SILVERADO | B22: 2024 CHEVROLET SILVERADO EV BEV ELECTRIC | C22: 0
A23: CHEVROLET COLORADO | B23: 2024 CHEVROLET SILVERADO EV BEV ELECTRIC | C23: 0
A24: CHEVROLET S-10 PICKUP | B24: 2024 CHEVROLET SILVERADO EV BEV ELECTRIC | C24: 0
A30: Inputs
A31: Average of Gasoline Price ($/Gallon) | B31: Average of Diesel Price ($/Gallon) | C31: Average of Electricity Cost ($/kWh) | D31: Average of % Depot/Home Charging | E31: Average of En Route Charging Price ($/kWh) | F31: Average of % En Route Charging | G31: Average of Public Charging Price ($/kWh) | H31: Average of % Public Charging
A32: 3.253 | B32: 3.9016 | C32: 0.236 | D32: 1 | E32: 0.25 | F32: 0 | G32: 0.5 | H32: 0

Sheet Vehicle Summary
A6: Original Fleet Vehicle | B6: Conventional Replacement | C6: Electric Replacement | D6: Count | E6: Conventional Average NPV | F6: Electric Average NPV | G6: Average EV NPV Savings | H6: Average Percent Savings from EVs | I6: Conventional Average Cost per Mile | J6: Electric Average Cost per Mile | K6: Average EV Savings per Mile
A7: Heavy-Duty Vehicles (Class 7-8)
A8: Transit Bus
A9: GILLIG LOW FLOOR BUS
A10: 15GGD3013C1181123 | B10: 2024 NEW FLYER XCELSIOR 40' ICE DIESEL | C10: 2025 NEW FLYER XCELSIOR BEV ELECTRIC | D10: 1 | E10: 501954.1461 | F10: 860939.5285 | G10: -358985.3824 | H10: -0.7151756494 | I10: 13.3243 | J10: 22.8536 | K10: -9.5293
A11: 15GGD3015C1181155 | B11: 2024 NEW FLYER XCELSIOR 40' ICE DIESEL | C11: 2025 NEW FLYER XCELSIOR BEV ELECTRIC | D11: 1 | E11: 501954.1461 | F11: 860939.5285 | G11: -358985.3824 | H11: -0.7151756494 | I11: 13.3243 | J11: 22.8536 | K11: -9.5293
A12: Medium Duty Vehicles (Class 3-6)
A13: Medium-Duty Pickup
A14: CHEVROLET SILVERADO | B14: 2025 CHEVROLET COLORADO 4WD ICE GAS | C14: 2024 CHEVROLET SILVERADO EV BEV ELECTRIC | D14: 2 | E14: 34048.8958 | F14: 51787.7617 | G14: -17738.8659 | H14: -0.5209821195 | I14: 0.9038 | J14: 1.3747 | K14: -0.4709
A15: FORD F-250
A16: 1FTNX21L94EC69100 | B16: 2024 FORD F250 XL ICE GAS | C16: 2025 ISUZU NQR~NRR BEV ELECTRIC | D16: 1 | E16: 76647.0114 | F16: 108007.9278 | G16: -31360.9164 | H16: -0.409160329 | I16: 2.0346 | J16: 2.8671 | K16: -0.8325
A17: 1FTNX21L94EC69101 | B17: 2024 FORD F250 XL ICE GAS | C17: 2025 ISUZU NQR~NRR BEV ELECTRIC | D17: 1 | E17: 76647.0114 | F17: 108007.9278 | G17: -31360.9164 | H17: -0.409160329 | I17: 2.0346 | J17: 2.8671 | K17: -0.8325
A18: 1FTNX21L94EC69102 | B18: 2024 FORD F250 XL ICE GAS | C18: 2025 ISUZU NQR~NRR BEV ELECTRIC | D18: 1 | E18: 76647.0114 | F18: 108007.9278 | G18: -31360.9164 | H18: -0.409160329 | I18: 2.0346 | J18: 2.8671 | K18: -0.8325
A19: 1FTNX21L94EC69103 | B19: 2024 FORD F250 XL ICE GAS | C19: 2025 ISUZU NQR~NRR BEV ELECTRIC | D19: 1 | E19: 76647.0114 | F19: 108007.9278 | G19: -31360.9164 | H19: -0.409160329 | I19: 2.0346 | J19: 2.8671 | K19: -0.8325
A20: 1FTNX21L94EC69104 | B20: 2024 FORD F250 XL ICE GAS | C20: 2025 ISUZU NQR~NRR BEV ELECTRIC | D20: 1 | E20: 76647.0114 | F20: 108007.9278 | G20: -31360.9164 | H20: -0.409160329 | I20: 2.0346 | J20: 2.8671 | K20: -0.8325
A21: 1FTNX21L94EC69105 | B21: 2024 FORD F250 XL ICE GAS | C21: 2025 ISUZU NQR~NRR BEV ELECTRIC | D21: 1 | E21: 76647.0114 | F21: 108007.9278 | G21: -31360.9164 | H21: -0.409160329 | I21: 2.0346 | J21: 2.8671 | K21: -0.8325
A22: 1FTNX21L94EC69106 | B22: 2024 FORD F250 XL ICE GAS | C22: 2025 ISUZU NQR~NRR BEV ELECTRIC | D22: 1 | E22: 76647.0114 | F22: 108007.9278 | G22: -31360.9164 | H22: -0.409160329 | I22: 2.0346 | J22: 2.8671 | K22: -0.8325
A23: 1FTNX21L94EC69107 | B23: 2024 FORD F250 XL ICE GAS | C23: 2025 ISUZU NQR~NRR BEV ELECTRIC | D23: 1 | E23: 76647.0114 | F23: 108007.9278 | G23: -31360.9164 | H23: -0.409160329 | I23: 2.0346 | J23: 2.8671 | K23: -0.8325
A24: 1FTNX21L94EC69108 | B24: 2024 FORD F250 XL ICE GAS | C24: 2025 ISUZU NQR~NRR BEV ELECTRIC | D24: 1 | E24: 76647.0114 | F24: 108007.9278 | G24: -31360.9164 | H24: -0.409160329 | I24: 2.0346 | J24: 2.8671 | K24: -0.8325
A25: 1FTNX21L94EC69109 | B25: 2024 FORD F250 XL ICE GAS | C25: 2025 ISUZU NQR~NRR BEV ELECTRIC | D25: 1 | E25: 76647.0114 | F25: 108007.9278 | G25: -31360.9164 | H25: -0.409160329 | I25: 2.0346 | J25: 2.8671 | K25: -0.8325
A26: 1FTNX21L94EC69110 | B26: 2024 FORD F250 XL ICE GAS | C26: 2025 ISUZU NQR~NRR BEV ELECTRIC | D26: 1 | E26: 76647.0114 | F26: 108007.9278 | G26: -31360.9164 | H26: -0.409160329 | I26: 2.0346 | J26: 2.8671 | K26: -0.8325
A27: 1FTNX21L94EC69111 | B27: 2024 FORD F250 XL ICE GAS | C27: 2025 ISUZU NQR~NRR BEV ELECTRIC | D27: 1 | E27: 76647.0114 | F27: 108007.9278 | G27: -31360.9164 | H27: -0.409160329 | I27: 2.0346 | J27: 2.8671 | K27: -0.8325
A28: 1FTNX21L94EC69112 | B28: 2024 FORD F250 XL ICE GAS | C28: 2025 ISUZU NQR~NRR BEV ELECTRIC | D28: 1 | E28: 76647.0114 | F28: 108007.9278 | G28: -31360.9164 | H28: -0.409160329 | I28: 2.0346 | J28: 2.8671 | K28: -0.8325
A29: 1FTNX21L94EC69113 | B29: 2024 FORD F250 XL ICE GAS | C29: 2025 ISUZU NQR~NRR BEV ELECTRIC | D29: 1 | E29: 76647.0114 | F29: 108007.9278 | G29: -31360.9164 | H29: -0.409160329 | I29: 2.0346 | J29: 2.8671 | K29: -0.8325
A30: 1FTNX21L94EC69114 | B30: 2024 FORD F250 XL ICE GAS | C30: 2025 ISUZU NQR~NRR BEV ELECTRIC | D30: 1 | E30: 76647.0114 | F30: 108007.9278 | G30: -31360.9164 | H30: -0.409160329 | I30: 2.0346 | J30: 2.8671 | K30: -0.8325
A31: 1FTNX21L94EC69115 | B31: 2024 FORD F250 XL ICE GAS | C31: 2025 ISUZU NQR~NRR BEV ELECTRIC | D31: 1 | E31: 76647.0114 | F31: 108007.9278 | G31: -31360.9164 | H31: -0.409160329 | I31: 2.0346 | J31: 2.8671 | K31: -0.8325
A32: Medium-Duty Straight Truck
A33: FORD E-450
A34: 1FDXE4FS0DDA07101 | B34: 2025 FORD E450 ICE GAS | C34: 2025 ISUZU NQR~NRR BEV ELECTRIC | D34: 1 | E34: 72552.5078 | F34: 108007.9278 | G34: -35455.42 | H34: -0.488686347 | I34: 1.9259 | J34: 2.8671 | K34: -0.9412
A35: 1FDXE4FS2DDA07102 | B35: 2025 FORD E450 ICE GAS | C35: 2025 ISUZU NQR~NRR BEV ELECTRIC | D35: 1 | E35: 72552.5078 | F35: 108007.9278 | G35: -35455.42 | H35: -0.488686347 | I35: 1.9259 | J35: 2.8671 | K35: -0.9412
A36: FORD F-650
A37: 1FDNF6AY5HDB03100 | B37: 2025 FORD F650 ICE DIESEL | C37: 2023 ROUSH FORD F-650 BEV ELECTRIC | D37: 1 | E37: 104489.6358 | F37: 265403.4174 | G37: -160913.7816 | H37: -1.539997535 | I37: 2.7737 | J37: 7.0451 | K37: -4.2714
A38: INTERNATIONAL 4700
A39: 1HTSCAAM9WH538100 | B39: 2025 FORD E450 ICE GAS | C39: 2025 FREIGHTLINER EM2 106 BEV ELECTRIC | D39: 1 | E39: 72552.5078 | F39: 331489.3231 | G39: -258936.8153 | H39: -3.568957479 | I39: 1.9259 | J39: 8.7994 | K39: -6.8735
A40: 1HTSCAAM9WH538101 | B40: 2025 FORD E450 ICE GAS | C40: 2025 FREIGHTLINER EM2 106 BEV ELECTRIC | D40: 1 | E40: 72552.5078 | F40: 331489.3231 | G40: -258936.8153 | H40: -3.568957479 | I40: 1.9259 | J40: 8.7994 | K40: -6.8735
A41: 1HTSCAAM9WH538102 | B41: 2025 FORD E450 ICE GAS | C41: 2025 FREIGHTLINER EM2 106 BEV ELECTRIC | D41: 1 | E41: 72552.5078 | F41: 331489.3231 | G41: -258936.8153 | H41: -3.568957479 | I41: 1.9259 | J41: 8.7994 | K41: -6.8735
A42: 1HTSCAAM9WH538103 | B42: 2025 FORD E450 ICE GAS | C42: 2025 FREIGHTLINER EM2 106 BEV ELECTRIC | D42: 1 | E42: 72552.5078 | F42: 331489.3231 | G42: -258936.8153 | H42: -3.568957479 | I42: 1.9259 | J42: 8.7994 | K42: -6.8735
A43: 1HTSCAAM9WH538104 | B43: 2025 FORD E450 ICE GAS | C43: 2025 FREIGHTLINER EM2 106 BEV ELECTRIC | D43: 1 | E43: 72552.5078 | F43: 331489.3231 | G43: -258936.8153 | H43: -3.568957479 | I43: 1.9259 | J43: 8.7994 | K43: -6.8735
A44: 1HTSCAAM9WH538105 | B44: 2025 FORD E450 ICE GAS | C44: 2025 FREIGHTLINER EM2 106 BEV ELECTRIC | D44: 1 | E44: 72552.5078 | F44: 331489.3231 | G44: -258936.8153 | H44: -3.568957479 | I44: 1.9259 | J44: 8.7994 | K44: -6.8735
A45: 1HTSCAAM9WH538106 | B45: 2025 FORD E450 ICE GAS | C45: 2025 FREIGHTLINER EM2 106 BEV ELECTRIC | D45: 1 | E45: 72552.5078 | F45: 331489.3231 | G45: -258936.8153 | H45: -3.568957479 | I45: 1.9259 | J45: 8.7994 | K45: -6.8735
A46: 1HTSCAAM9WH538107 | B46: 2025 FORD E450 ICE GAS | C46: 2025 FREIGHTLINER EM2 106 BEV ELECTRIC | D46: 1 | E46: 72552.5078 | F46: 331489.3231 | G46: -258936.8153 | H46: -3.568957479 | I46: 1.9259 | J46: 8.7994 | K46: -6.8735
A47: 1HTSCAAM9WH538108 | B47: 2025 FORD E450 ICE GAS | C47: 2025 FREIGHTLINER EM2 106 BEV ELECTRIC | D47: 1 | E47: 72552.5078 | F47: 331489.3231 | G47: -258936.8153 | H47: -3.568957479 | I47: 1.9259 | J47: 8.7994 | K47: -6.8735
A48: 1HTSCAAM9WH538109 | B48: 2025 FORD E450 ICE GAS | C48: 2025 FREIGHTLINER EM2 106 BEV ELECTRIC | D48: 1 | E48: 72552.5078 | F48: 331489.3231 | G48: -258936.8153 | H48: -3.568957479 | I48: 1.9259 | J48: 8.7994 | K48: -6.8735
A49: Passenger Vehicles (Light-Duty)
A50: Car
A51: CHEVROLET CORVETTE
A52: 1G1YK2D45S5502023 | B52: 2025 CHEVROLET CORVETTE ICE GAS | C52: 2023 FORD MUSTANG MACH-E RWD BEV ELECTRIC | D52: 1 | E52: 48371.1575 | F52: 43709.6927 | G52: 4661.4648 | H52: 0.09636868417 | I52: 1.284 | J52: 1.1603 | K52: 0.1237
A53: 1G1YK3D42S5502373 | B53: 2025 CHEVROLET CORVETTE ICE GAS | C53: 2023 FORD MUSTANG MACH-E RWD BEV ELECTRIC | D53: 1 | E53: 48371.1575 | F53: 43709.6927 | G53: 4661.4648 | H53: 0.09636868417 | I53: 1.284 | J53: 1.1603 | K53: 0.1237
A54: 1G1YL3D49R5200148 | B54: 2025 CHEVROLET CORVETTE ICE GAS | C54: 2023 FORD MUSTANG MACH-E RWD BEV ELECTRIC | D54: 1 | E54: 48371.1575 | F54: 43709.6927 | G54: 4661.4648 | H54: 0.09636868417 | I54: 1.284 | J54: 1.1603 | K54: 0.1237
A55: 1G1YM2D41S5501106 | B55: 2025 CHEVROLET CORVETTE ICE GAS | C55: 2023 FORD MUSTANG MACH-E RWD BEV ELECTRIC | D55: 1 | E55: 48371.1575 | F55: 43709.6927 | G55: 4661.4648 | H55: 0.09636868417 | I55: 1.284 | J55: 1.1603 | K55: 0.1237
A56: 1G1YM2D49R5500201 | B56: 2025 CHEVROLET CORVETTE ICE GAS | C56: 2023 FORD MUSTANG MACH-E RWD BEV ELECTRIC | D56: 1 | E56: 48371.1575 | F56: 43709.6927 | G56: 4661.4648 | H56: 0.09636868417 | I56: 1.284 | J56: 1.1603 | K56: 0.1237
A57: FORD TAURUS
A58: 1FAFP53U05A267100 | B58: 2025 CHEVROLET MALIBU ICE GAS | C58: 2025 HYUNDAI IONIQ 6 STANDARD RANGE BEV ELECTRIC | D58: 1 | E58: 29981.5466 | F58: 39555.0296 | G58: -9573.483 | H58: -0.3193125134 | I58: 0.7959 | J58: 1.05 | K58: -0.2541
A59: 1FAFP53U05A267101 | B59: 2025 CHEVROLET MALIBU ICE GAS | C59: 2025 HYUNDAI IONIQ 6 STANDARD RANGE BEV ELECTRIC | D59: 1 | E59: 29981.5466 | F59: 39555.0296 | G59: -9573.483 | H59: -0.3193125134 | I59: 0.7959 | J59: 1.05 | K59: -0.2541
A60: 1FAFP53U05A267102 | B60: 2025 CHEVROLET MALIBU ICE GAS | C60: 2025 HYUNDAI IONIQ 6 STANDARD RANGE BEV ELECTRIC | D60: 1 | E60: 29981.5466 | F60: 39555.0296 | G60: -9573.483 | H60: -0.3193125134 | I60: 0.7959 | J60: 1.05 | K60: -0.2541
A61: 1FAFP53U05A267103 | B61: 2025 CHEVROLET MALIBU ICE GAS | C61: 2025 HYUNDAI IONIQ 6 STANDARD RANGE BEV ELECTRIC | D61: 1 | E61: 29981.5466 | F61: 39555.0296 | G61: -9573.483 | H61: -0.3193125134 | I61: 0.7959 | J61: 1.05 | K61: -0.2541
A62: 1FAFP53U05A267104 | B62: 2025 CHEVROLET MALIBU ICE GAS | C62: 2025 HYUNDAI IONIQ 6 STANDARD RANGE BEV ELECTRIC | D62: 1 | E62: 29981.5466 | F62: 39555.0296 | G62: -9573.483 | H62: -0.3193125134 | I62: 0.7959 | J62: 1.05 | K62: -0.2541
A63: 1FAFP53U05A267105 | B63: 2025 CHEVROLET MALIBU ICE GAS | C63: 2025 HYUNDAI IONIQ 6 STANDARD RANGE BEV ELECTRIC | D63: 1 | E63: 29981.5466 | F63: 39555.0296 | G63: -9573.483 | H63: -0.3193125134 | I63: 0.7959 | J63: 1.05 | K63: -0.2541
A64: 1FAFP53U05A267106 | B64: 2025 CHEVROLET MALIBU ICE GAS | C64: 2025 HYUNDAI IONIQ 6 STANDARD RANGE BEV ELECTRIC | D64: 1 | E64: 29981.5466 | F64: 39555.0296 | G64: -9573.483 | H64: -0.3193125134 | I64: 0.7959 | J64: 1.05 | K64: -0.2541
A65: 1FAFP53U05A267107 | B65: 2025 CHEVROLET MALIBU ICE GAS | C65: 2025 HYUNDAI IONIQ 6 STANDARD RANGE BEV ELECTRIC | D65: 1 | E65: 29981.5466 | F65: 39555.0296 | G65: -9573.483 | H65: -0.3193125134 | I65: 0.7959 | J65: 1.05 | K65: -0.2541
A66: 1FAFP53U05A267108 | B66: 2025 CHEVROLET MALIBU ICE GAS | C66: 2025 HYUNDAI IONIQ 6 STANDARD RANGE BEV ELECTRIC | D66: 1 | E66: 29981.5466 | F66: 39555.0296 | G66: -9573.483 | H66: -0.3193125134 | I66: 0.7959 | J66: 1.05 | K66: -0.2541
A67: 1FAFP53U05A267109 | B67: 2025 CHEVROLET MALIBU ICE GAS | C67: 2025 HYUNDAI IONIQ 6 STANDARD RANGE BEV ELECTRIC | D67: 1 | E67: 29981.5466 | F67: 39555.0296 | G67: -9573.483 | H67: -0.3193125134 | I67: 0.7959 | J67: 1.05 | K67: -0.2541
A68: 1FAFP53U05A267110 | B68: 2025 CHEVROLET MALIBU ICE GAS | C68: 2025 HYUNDAI IONIQ 6 STANDARD RANGE BEV ELECTRIC | D68: 1 | E68: 29981.5466 | F68: 39555.0296 | G68: -9573.483 | H68: -0.3193125134 | I68: 0.7959 | J68: 1.05 | K68: -0.2541
A69: TOYOTA COROLLA
A70: 5YFEPRAE2LP021100 | B70: 2025 TOYOTA COROLLA ICE GAS | C70: 2025 NISSAN LEAF BEV ELECTRIC | D70: 1 | E70: 28477.9255 | F70: 33669.3502 | G70: -5191.4247 | H70: -0.1822964492 | I70: 0.7559 | J70: 0.8938 | K70: -0.1379
A71: 5YFEPRAE2LP023101 | B71: 2025 TOYOTA COROLLA ICE GAS | C71: 2025 NISSAN LEAF BEV ELECTRIC | D71: 1 | E71: 28477.9255 | F71: 33669.3502 | G71: -5191.4247 | H71: -0.1822964492 | I71: 0.7559 | J71: 0.8938 | K71: -0.1379
A72: 5YFEPRAE2LP025102 | B72: 2025 TOYOTA COROLLA ICE GAS | C72: 2025 NISSAN LEAF BEV ELECTRIC | D72: 1 | E72: 28477.9255 | F72: 33669.3502 | G72: -5191.4247 | H72: -0.1822964492 | I72: 0.7559 | J72: 0.8938 | K72: -0.1379
A73: 5YFEPRAE4LP022103 | B73: 2025 TOYOTA COROLLA ICE GAS | C73: 2025 NISSAN LEAF BEV ELECTRIC | D73: 1 | E73: 28477.9255 | F73: 33669.3502 | G73: -5191.4247 | H73: -0.1822964492 | I73: 0.7559 | J73: 0.8938 | K73: -0.1379
A74: 5YFEPRAE6LP021104 | B74: 2025 TOYOTA COROLLA ICE GAS | C74: 2025 NISSAN LEAF BEV ELECTRIC | D74: 1 | E74: 28477.9255 | F74: 33669.3502 | G74: -5191.4247 | H74: -0.1822964492 | I74: 0.7559 | J74: 0.8938 | K74: -0.1379
A75: Light Pickup
A76: CHEVROLET COLORADO | B76: 2025 CHEVROLET COLORADO 2WD ICE GAS | C76: 2024 CHEVROLET SILVERADO EV BEV ELECTRIC | D76: 1 | E76: 32620.9966 | F76: 51787.7617 | G76: -19166.7651 | H76: -0.587559152 | I76: 0.8659 | J76: 1.3747 | K76: -0.5088
A77: CHEVROLET S-10 PICKUP
A78: 1GCCS145728164101 | B78: 2025 CHEVROLET COLORADO 4WD ICE GAS | C78: 2024 CHEVROLET SILVERADO EV BEV ELECTRIC | D78: 1 | E78: 34048.8958 | F78: 51787.7617 | G78: -17738.8659 | H78: -0.5209821195 | I78: 0.9038 | J78: 1.3747 | K78: -0.4709
A79: CHEVROLET SILVERADO | B79: 2025 CHEVROLET COLORADO 4WD ICE GAS | C79: 2024 CHEVROLET SILVERADO EV BEV ELECTRIC | D79: 18 | E79: 34048.8958 | F79: 51787.7617 | G79: -17738.8659 | H79: -0.5209821195 | I79: 0.9038 | J79: 1.3747 | K79: -0.4709
A80: FORD RANGER
A81: 1FTYR10V5XTA93103 | B81: 2025 FORD RANGER 2WD ICE GAS | C81: 2024 CHEVROLET SILVERADO EV BEV ELECTRIC | D81: 1 | E81: 33239.753 | F81: 51787.7617 | G81: -18548.0087 | H81: -0.5580068149 | I81: 0.8823 | J81: 1.3747 | K81: -0.4924
A82: 1FTYR14V43TA39100 | B82: 2025 FORD RANGER 2WD ICE GAS | C82: 2024 CHEVROLET SILVERADO EV BEV ELECTRIC | D82: 1 | E82: 33239.753 | F82: 51787.7617 | G82: -18548.0087 | H82: -0.5580068149 | I82: 0.8823 | J82: 1.3747 | K82: -0.4924
A83: Minivan
A84: DODGE GRAND CARAVAN
A85: 2C4RDGBG9KR701000 | B85: 2025 CHRYSLER PACIFICA ICE GAS | C85: 2025 CHRYSLER PACIFICA HYBRID PHEV PLUG-IN HYBRID | D85: 1 | E85: 37185.9471 | F85: 49620.5318 | G85: -12434.5847 | H85: -0.3343893505 | I85: 0.9871 | J85: 1.3172 | K85: -0.3301
A86: 2C4RDGBG9KR701001 | B86: 2025 CHRYSLER PACIFICA ICE GAS | C86: 2025 CHRYSLER PACIFICA HYBRID PHEV PLUG-IN HYBRID | D86: 1 | E86: 37185.9471 | F86: 49620.5318 | G86: -12434.5847 | H86: -0.3343893505 | I86: 0.9871 | J86: 1.3172 | K86: -0.3301
A87: 2C4RDGBG9KR701002 | B87: 2025 CHRYSLER PACIFICA ICE GAS | C87: 2025 CHRYSLER PACIFICA HYBRID PHEV PLUG-IN HYBRID | D87: 1 | E87: 37185.9471 | F87: 49620.5318 | G87: -12434.5847 | H87: -0.3343893505 | I87: 0.9871 | J87: 1.3172 | K87: -0.3301
A88: 2C4RDGBG9KR701003 | B88: 2025 CHRYSLER PACIFICA ICE GAS | C88: 2025 CHRYSLER PACIFICA HYBRID PHEV PLUG-IN HYBRID | D88: 1 | E88: 37185.9471 | F88: 49620.5318 | G88: -12434.5847 | H88: -0.3343893505 | I88: 0.9871 | J88: 1.3172 | K88: -0.3301
A89: 2C4RDGBG9KR701004 | B89: 2025 CHRYSLER PACIFICA ICE GAS | C89: 2025 CHRYSLER PACIFICA HYBRID PHEV PLUG-IN HYBRID | D89: 1 | E89: 37185.9471 | F89: 49620.5318 | G89: -12434.5847 | H89: -0.3343893505 | I89: 0.9871 | J89: 1.3172 | K89: -0.3301
A90: 2C4RDGBG9KR701005 | B90: 2025 CHRYSLER PACIFICA ICE GAS | C90: 2025 CHRYSLER PACIFICA HYBRID PHEV PLUG-IN HYBRID | D90: 1 | E90: 37185.9471 | F90: 49620.5318 | G90: -12434.5847 | H90: -0.3343893505 | I90: 0.9871 | J90: 1.3172 | K90: -0.3301
A91: 2C4RDGBG9KR701006 | B91: 2025 CHRYSLER PACIFICA ICE GAS | C91: 2025 CHRYSLER PACIFICA HYBRID PHEV PLUG-IN HYBRID | D91: 1 | E91: 37185.9471 | F91: 49620.5318 | G91: -12434.5847 | H91: -0.3343893505 | I91: 0.9871 | J91: 1.3172 | K91: -0.3301
A92: 2C4RDGBG9KR701007 | B92: 2025 CHRYSLER PACIFICA ICE GAS | C92: 2025 CHRYSLER PACIFICA HYBRID PHEV PLUG-IN HYBRID | D92: 1 | E92: 37185.9471 | F92: 49620.5318 | G92: -12434.5847 | H92: -0.3343893505 | I92: 0.9871 | J92: 1.3172 | K92: -0.3301
A93: 2C4RDGBG9KR701008 | B93: 2025 CHRYSLER PACIFICA ICE GAS | C93: 2025 CHRYSLER PACIFICA HYBRID PHEV PLUG-IN HYBRID | D93: 1 | E93: 37185.9471 | F93: 49620.5318 | G93: -12434.5847 | H93: -0.3343893505 | I93: 0.9871 | J93: 1.3172 | K93: -0.3301
A94: 2C4RDGBG9KR701009 | B94: 2025 CHRYSLER PACIFICA ICE GAS | C94: 2025 CHRYSLER PACIFICA HYBRID PHEV PLUG-IN HYBRID | D94: 1 | E94: 37185.9471 | F94: 49620.5318 | G94: -12434.5847 | H94: -0.3343893505 | I94: 0.9871 | J94: 1.3172 | K94: -0.3301
A95: 2C4RDGBG9KR701010 | B95: 2025 CHRYSLER PACIFICA ICE GAS | C95: 2025 CHRYSLER PACIFICA HYBRID PHEV PLUG-IN HYBRID | D95: 1 | E95: 37185.9471 | F95: 49620.5318 | G95: -12434.5847 | H95: -0.3343893505 | I95: 0.9871 | J95: 1.3172 | K95: -0.3301
A96: 2C4RDGBG9KR701011 | B96: 2025 CHRYSLER PACIFICA ICE GAS | C96: 2025 CHRYSLER PACIFICA HYBRID PHEV PLUG-IN HYBRID | D96: 1 | E96: 37185.9471 | F96: 49620.5318 | G96: -12434.5847 | H96: -0.3343893505 | I96: 0.9871 | J96: 1.3172 | K96: -0.3301
A97: 2C4RDGBG9KR701012 | B97: 2025 CHRYSLER PACIFICA ICE GAS | C97: 2025 CHRYSLER PACIFICA HYBRID PHEV PLUG-IN HYBRID | D97: 1 | E97: 37185.9471 | F97: 49620.5318 | G97: -12434.5847 | H97: -0.3343893505 | I97: 0.9871 | J97: 1.3172 | K97: -0.3301
A98: SUV/MPV
A99: FORD EXPLORER | B99: 2025 FORD EXPEDITION 2WD ICE GAS | C99: 2025 KIA EV9 LONG RANGE RWD BEV ELECTRIC | D99: 21 | E99: 45783.631 | F99: 55295.6565 | G99: -9512.0255 | H99: -0.2077604002 | I99: 1.2153 | J99: 1.4678 | K99: -0.2525
A100: TOYOTA SEQUOIA
A101: 7SVAAAAA0PX001428 | B101: 2025 TOYOTA SEQUOIA 2WD ICE GAS | C101: 2025 CHEVROLET EQUINOX EV FWD BEV ELECTRIC | D101: 1 | E101: 45829.0642 | F101: 36520.2346 | G101: 9308.8296 | H101: 0.2031206563 | I101: 1.2165 | J101: 0.9694 | K101: 0.2471
A102: 7SVAAABA4PX004654 | B102: 2025 TOYOTA SEQUOIA 2WD ICE GAS | C102: 2025 CHEVROLET EQUINOX EV FWD BEV ELECTRIC | D102: 1 | E102: 45829.0642 | F102: 36520.2346 | G102: 9308.8296 | H102: 0.2031206563 | I102: 1.2165 | J102: 0.9694 | K102: 0.2471
A103: 7SVAAABA5PX019101 | B103: 2025 TOYOTA SEQUOIA 2WD ICE GAS | C103: 2025 CHEVROLET EQUINOX EV FWD BEV ELECTRIC | D103: 1 | E103: 45829.0642 | F103: 36520.2346 | G103: 9308.8296 | H103: 0.2031206563 | I103: 1.2165 | J103: 0.9694 | K103: 0.2471
A104: 7SVAAABA8PX004138 | B104: 2025 TOYOTA SEQUOIA 2WD ICE GAS | C104: 2025 CHEVROLET EQUINOX EV FWD BEV ELECTRIC | D104: 1 | E104: 45829.0642 | F104: 36520.2346 | G104: 9308.8296 | H104: 0.2031206563 | I104: 1.2165 | J104: 0.9694 | K104: 0.2471
A105: 7SVAAABAXPX004965 | B105: 2025 TOYOTA SEQUOIA 2WD ICE GAS | C105: 2025 CHEVROLET EQUINOX EV FWD BEV ELECTRIC | D105: 1 | E105: 45829.0642 | F105: 36520.2346 | G105: 9308.8296 | H105: 0.2031206563 | I105: 1.2165 | J105: 0.9694 | K105: 0.2471

Sheet Cost Breakdown
A7: Original Fleet Vehicle | B7: Count | C7: Average Annual Vehicle Miles Traveled | D7: Average Expected Years of Use | E7: Replacement Vehicle | F7: Price/MSRP ($/Vehicle) | G7: Federal Tax Incentive | H7: State Incentive | I7: Depreciation Cost ($/Mile) | J7: Financing Cost ($/Mile) | K7: Fuel Cost ($/Mile) | L7: Maintenance Cost ($/Mile) | M7: Charging Infrastructure Cost ($/Mile) | N7: Taxes and Fees Cost ($/Mile) | O7: Carbon Cost ($/Mile) | P7: Total Cost ($/Mile)
A8: Heavy-Duty Vehicles (Class 7-8)
A9: Transit Bus
A10: GILLIG LOW FLOOR BUS
A11: Conventional | B11: 2 | E11: 2024 NEW FLYER XCELSIOR 40' ICE DIESEL | F11: 507000 | G11: 0 | H11: 0 | I11: 10.1362 | J11: 0 | K11: 0 | L11: 0.2435 | M11: 0 | N11: 0.3981 | P11: 13.0561
A12: EV Alternative | B12: 2 | E12: 2025 NEW FLYER XCELSIOR BEV ELECTRIC | F12: 928000 | G12: 0 | H12: 0 | I12: 18.553 | J12: 0 | K12: 0.4499 | L12: 0.2056 | M12: 0 | N12: 0.7287 | P12: 22.2155
A13: Medium Duty Vehicles (Class 3-6) | B13: 31 | E13: 2023 ROUSH FORD F-650 BEV ELECTRIC | F13: 99003.06452 | G13: 0 | H13: 0 | I13: 1.963019355 | J13: 0 | K13: 0.06452741935 | L13: 0.2061451613 | M13: 0 | N13: 0.07773709677 | P13: 3.402017742
A14: Passenger Vehicles (Light-Duty)
A15: Car
A16: CHEVROLET CORVETTE
A17: Conventional | B17: 5 | E17: 2025 CHEVROLET CORVETTE ICE GAS | F17: 68300 | G17: 0 | H17: 0 | I17: 0.7348 | J17: 0 | K17: 0 | L17: 0.0979 | M17: 0 | N17: 0.0536 | P17: 1.1584
A18: EV Alternative | B18: 5 | E18: 2023 FORD MUSTANG MACH-E RWD BEV ELECTRIC | F18: 42995 | G18: 0 | H18: 0 | I18: 0.7016 | J18: 0 | K18: 0.0736 | L18: 0.0489 | M18: 0 | N18: 0.0338 | P18: 1.1299
A19: FORD TAURUS
A20: Conventional | B20: 11 | E20: 2025 CHEVROLET MALIBU ICE GAS | F20: 25800 | G20: 0 | H20: 0 | I20: 0.3956 | J20: 0 | K20: 0 | L20: 0.0979 | M20: 0 | N20: 0.0203 | P20: 0.7858
A21: EV Alternative | B21: 11 | E21: 2025 HYUNDAI IONIQ 6 STANDARD RANGE BEV ELECTRIC | F21: 37850 | G21: 0 | H21: 0 | I21: 0.6193 | J21: 0 | K21: 0.0561 | L21: 0.0489 | M21: 0 | N21: 0.0297 | P21: 1.0261
A22: TOYOTA COROLLA
A23: Conventional | B23: 5 | E23: 2025 TOYOTA COROLLA ICE GAS | F23: 22325 | G23: 0 | H23: 0 | I23: 0.3679 | J23: 0 | K23: 0 | L23: 0.0979 | M23: 0 | N23: 0.0175 | P23: 0.7554
A24: EV Alternative | B24: 5 | E24: 2025 NISSAN LEAF BEV ELECTRIC | F24: 28140 | G24: 0 | H24: 0 | I24: 0.4761 | J24: 0 | K24: 0.0685 | L24: 0.0489 | M24: 0 | N24: 0.0221 | P24: 0.8877
A25: Light Pickup
A26: CHEVROLET COLORADO
A27: Conventional | B27: 1 | E27: 2025 CHEVROLET COLORADO 2WD ICE GAS | F27: 31900 | G27: 0 | H27: 0 | I27: 0.4443 | J27: 0 | K27: 0 | L27: 0.0979 | M27: 0 | N27: 0.025 | P27: 0.8393
A28: EV Alternative | B28: 1 | E28: 2024 CHEVROLET SILVERADO EV BEV ELECTRIC | F28: 55395 | G28: 0 | H28: 0 | I28: 0.8348 | J28: 0 | K28: 0.1203 | L28: 0.0489 | M28: 0 | N28: 0.0435 | P28: 1.3196
A29: CHEVROLET S-10 PICKUP
A30: Conventional | B30: 1 | E30: 2025 CHEVROLET COLORADO 4WD ICE GAS | F30: 35200 | G30: 0 | H30: 0 | I30: 0.4707 | J30: 0 | K30: 0 | L30: 0.0979 | M30: 0 | N30: 0.0276 | P30: 0.8682
A31: EV Alternative | B31: 1 | E31: 2024 CHEVROLET SILVERADO EV BEV ELECTRIC | F31: 55395 | G31: 0 | H31: 0 | I31: 0.8348 | J31: 0 | K31: 0.1203 | L31: 0.0489 | M31: 0 | N31: 0.0435 | P31: 1.3196
A32: CHEVROLET SILVERADO | B32: 18 | E32: 2024 CHEVROLET SILVERADO EV BEV ELECTRIC | F32: 45297.5 | G32: 0 | H32: 0 | I32: 0.65275 | J32: 0 | K32: 0.06015 | L32: 0.0734 | M32: 0 | N32: 0.03555 | P32: 1.0939
A33: FORD RANGER
A34: Conventional | B34: 2 | E34: 2025 FORD RANGER 2WD ICE GAS | F34: 33330 | G34: 0 | H34: 0 | I34: 0.4557 | J34: 0 | K34: 0 | L34: 0.0979 | M34: 0 | N34: 0.0262 | P34: 0.8518
A35: EV Alternative | B35: 2 | E35: 2024 CHEVROLET SILVERADO EV BEV ELECTRIC | F35: 55395 | G35: 0 | H35: 0 | I35: 0.8348 | J35: 0 | K35: 0.1203 | L35: 0.0489 | M35: 0 | N35: 0.0435 | P35: 1.3196
A36: Minivan
A37: DODGE GRAND CARAVAN
A38: Conventional | B38: 13 | E38: 2025 CHRYSLER PACIFICA ICE GAS | F38: 42450 | G38: 0 | H38: 0 | I38: 0.5285 | J38: 0 | K38: 0 | L38: 0.0979 | M38: 0 | N38: 0.0333 | P38: 0.9318
A39: EV Alternative | B39: 13 | E39: 2025 CHRYSLER PACIFICA HYBRID PHEV PLUG-IN HYBRID | F39: 51055 | G39: 0 | H39: 0 | I39: 0.771 | J39: 0 | K39: 0.1026 | L39: 0.0857 | M39: 0 | N39: 0.0401 | P39: 1.2714
A40: SUV/MPV | B40: 26 | E40: 2025 CHEVROLET EQUINOX EV FWD BEV ELECTRIC | F40: 58591.25 | G40: 0 | H40: 0 | I40: 0.7811942308 | J40: 0 | K40: 0.04129038462 | L40: 0.0734 | M40: 0 | N40: 0.04597884615 | P40: 1.213963462

Sheet Charging Needs
A33: Include Cost of Charging Infrastructure? | B33: Yes
A35: Location, Charging Level | B35: EV Savings | C35: Cost Parity | D35: EV Costs | E35: Total Ports | F35: Average of Charging Equipment Cost ($/Station) | G35: Total Upfront Infrastructure Costs | H35: Average of Maintenance Cost ($/Station/Year) | I35: Total Annual Operating Costs
A36: Location 1
A37: 50kW DCFC | D37: 2 | E37: 2 | F37: 69374 | G37: 138748 | H37: 2081 | I37: 4162
A38: 80A L2 | D38: 23 | E38: 23 | F38: 23769 | G38: 546687 | H38: 713 | I38: 16399
A39: Location 2
A40: 80A L2 | D40: 19 | E40: 19 | F40: 23769 | G40: 451611 | H40: 713 | I40: 13547
A41: Location 3
A42: 48A L2 | D42: 16 | E42: 16 | F42: 6107 | G42: 97712 | H42: 183 | I42: 2928
A43: 80A L2 | D43: 38 | E43: 38 | F43: 23769 | G43: 903222 | H43: 713 | I43: 27094
A44: Location 4
A45: 48A L2 | D45: 2 | E45: 2 | F45: 6107 | G45: 12214 | H45: 183 | I45: 366
A46: 80A L2 | D46: 15 | E46: 15 | F46: 23769 | G46: 356535 | H46: 713 | I46: 10695
A47: Grand Total | D47: 115 | E47: 115 | F47: 21797.64348 | G47: 2506729 | H47: 653.8347826 | I47: 75191

Sheet Emissions
A8: Vehicle GVWR and Use Case | B8: EV Average CO2 Emissions (Tons/Vehicle/Year) | C8: ICE Average CO2 Emissions (Tons/Vehicle/Year) | D8: EV Average CO2 Emissions Reductions (Tons/Vehicle/Year) | E8: EV Average NOX Emissions (Tons/Vehicle/Year) | F8: ICE Average NOX Emissions (Tons/Vehicle/Year) | G8: EV Average NOX Emissions Reductions (Tons/Vehicle/Year) | H8: EV Average PM2.5 Emissions (Tons/Vehicle/Year) | I8: ICE Average PM2.5 Emissions (Tons/Vehicle/Year) | J8: EV Average PM2.5 Emissions Reductions (Tons/Vehicle/Year)

Sheet Report
B2: Analysis Results
B5: Fleet Summary
B7: ='Report Parameters & Pivots'!C10 -> Overall, there are 82 light-duty vehicles in the fleet, making up 71.3 percent of the fleet. Medium-duty vehicles make up 26.96 percent of the fleet (31 vehicles). Heavy-duty vehicles make up 1.74 percent of the fleet (2 vehicles).
B29: Methodology
B31: This analysis was conducted using a total cost of ownership (TCO) approach to project the cost of all vehicles over their expected useful lives. TCO includes vehicle purchase price, fuel, maintenance cost over the life of the vehicle, as well as charging infrastructure cost, if it was included in the analysis. To project the value of each vehicle, the analysis uses the depreciated value of the vehicle at the end of its useful life. Annual depreciation is calculated using the purchase price, range, and annual mileage for each vehicle and relies on a formula developed using real world used vehicle sales data. More information and documentation can be found at https://atlaspolicy.com/dashboard-for-rapid-vehicle-electrification-drve/ or by contacting DRVE@atlaspolicy.com.
B33: Total Cost of Ownership
B35: The charts below show the average total cost of ownership on a cost-per-mile basis across each vehicles useful life. Note that these charts present average costs, and that the total cost of ownership for individual vehicles will vary significantly depending on the modeled replacement vehicles, annual vehicle miles traveled, and expected years of use. Figure 2 shows the average across each vehicle category, while figures 3 and 4 show the average across use cases for passenger vehicles and medium/heavy-duty vehicles.
B91: Figure 5 shows the comparative average total cost of ownership per mile for each use case.
B93: Figure 5: Average Cost-Per-Mile by Use Case
C94: Average Conventional Cost per Mile | D94: Electric Average Cost per Mile | E94: Average EV Savings per Mile
B95: Car | C95: 0.9025904762 | D95: 1.039071429 | E95: -0.1364809524
B96: Light Pickup | C96: 0.9001227273 | D96: 1.3747 | E96: -0.4745772727
B97: Medium-Duty Pickup | C97: 1.908955556 | D97: 2.701277778 | E97: -0.7923222222
B98: Medium-Duty Straight Truck | C98: 1.991115385 | D98: 7.751792308 | E98: -5.760676923
B99: Minivan | C99: 0.9871 | D99: 1.3172 | E99: -0.3301
B100: SUV/MPV | C100: 1.215530769 | D100: 1.371953846 | E100: -0.1564230769
B101: Transit Bus | C101: 13.3243 | D101: 22.8536 | E101: -9.5293
B102: Average | C102: 1.479021739 | D102: 2.608363478 | E102: -1.129341739
B111: Top 10 EV Models to Procure
B113: Figure 6 shows the top five most cost-effective light-duty EVs for the fleet to procure and Figure 7 shows the top five most cost-effective medium- and heavy-duty EVs.
B116: Fleet Vehicle GVWR Category | C116: Passenger Vehicles (Light-Duty)
B117: Figure 6: Top 5 Passenger Vehicles to Procure
B118: ICE Replacement | C118: Avg Percent Savings from EVs | D118: EV Alternative | E118: Vehicles
B119: TOYOTA SEQUOIA | C119: 0.2031206563 | D119: 2025 CHEVROLET EQUINOX EV FWD BEV ELECTRIC | E119: 5
B120: CHEVROLET CORVETTE | C120: 0.09636868417 | D120: 2023 FORD MUSTANG MACH-E RWD BEV ELECTRIC | E120: 5
B121: TOYOTA COROLLA | C121: -0.1822964492 | D121: 2025 NISSAN LEAF BEV ELECTRIC | E121: 5
B122: FORD EXPLORER | C122: -0.2077604002 | D122: 2025 KIA EV9 LONG RANGE RWD BEV ELECTRIC | E122: 21
B123: FORD TAURUS | C123: -0.3193125134 | D123: 2025 HYUNDAI IONIQ 6 STANDARD RANGE BEV ELECTRIC | E123: 11
B125: Fleet Vehicle GVWR Category | C125: All
B126: Figure 7: Top 5 Medium and Heavy-Duty Vehicles to Procure
B127: ICE Replacement | C127: Avg Percent Savings from EVs | D127: EV Alternative | E127: Vehicles
B128: TOYOTA SEQUOIA | C128: 0.2031206563 | D128: 2025 CHEVROLET EQUINOX EV FWD BEV ELECTRIC | E128: 5
B129: CHEVROLET CORVETTE | C129: 0.09636868417 | D129: 2023 FORD MUSTANG MACH-E RWD BEV ELECTRIC | E129: 5
B130: TOYOTA COROLLA | C130: -0.1822964492 | D130: 2025 NISSAN LEAF BEV ELECTRIC | E130: 5
B131: FORD EXPLORER | C131: -0.2077604002 | D131: 2025 KIA EV9 LONG RANGE RWD BEV ELECTRIC | E131: 21
B132: FORD TAURUS | C132: -0.3193125134 | D132: 2025 HYUNDAI IONIQ 6 STANDARD RANGE BEV ELECTRIC | E132: 11
B139: Top 100 Vehicles to Electrify
B141: Figure 8 shows the top 100 vehicles recommended for an EV replacement, based on the estimated percent savings for that vehicle compared to its conventional alternative. Please note that the DRVE tool does not take into account the required range, duty cycle, or other operational needs of individual vehicles. In addition to total cost of ownership, fleet managers should consider the vehicle's operational needs when selecting a replacement.
B143: Figure 8: Top 100 Fleet Vehicles to Electrify
B144: VIN | C144: EV Alternative | D144: Avg Percent Savings from EVs | E144: Rank
B145: 7SVAAAAA0PX001428 | C145: 2025 CHEVROLET EQUINOX EV FWD BEV ELECTRIC | D145: 0.2031206563 | E145: 1
B146: 7SVAAABAXPX004965 | C146: 2025 CHEVROLET EQUINOX EV FWD BEV ELECTRIC | D146: 0.2031206563 | E146: 2
B147: 7SVAAABA4PX004654 | C147: 2025 CHEVROLET EQUINOX EV FWD BEV ELECTRIC | D147: 0.2031206563 | E147: 3
B148: 7SVAAABA5PX019101 | C148: 2025 CHEVROLET EQUINOX EV FWD BEV ELECTRIC | D148: 0.2031206563 | E148: 4
B149: 7SVAAABA8PX004138 | C149: 2025 CHEVROLET EQUINOX EV FWD BEV ELECTRIC | D149: 0.2031206563 | E149: 5
B150: 1G1YM2D41S5501106 | C150: 2023 FORD MUSTANG MACH-E RWD BEV ELECTRIC | D150: 0.09636868417 | E150: 6
B151: 1G1YK3D42S5502373 | C151: 2023 FORD MUSTANG MACH-E RWD BEV ELECTRIC | D151: 0.09636868417 | E151: 7
B152: 1G1YM2D49R5500201 | C152: 2023 FORD MUSTANG MACH-E RWD BEV ELECTRIC | D152: 0.09636868417 | E152: 8
B153: 1G1YK2D45S5502023 | C153: 2023 FORD MUSTANG MACH-E RWD BEV ELECTRIC | D153: 0.09636868417 | E153: 9
B154: 1G1YL3D49R5200148 | C154: 2023 FORD MUSTANG MACH-E RWD BEV ELECTRIC | D154: 0.09636868417 | E154: 10
B155: 5YFEPRAE2LP023101 | C155: 2025 NISSAN LEAF BEV ELECTRIC | D155: -0.1822964492 | E155: 11
B156: 5YFEPRAE2LP021100 | C156: 2025 NISSAN LEAF BEV ELECTRIC | D156: -0.1822964492 | E156: 12
B157: 5YFEPRAE4LP022103 | C157: 2025 NISSAN LEAF BEV ELECTRIC | D157: -0.1822964492 | E157: 13
B158: 5YFEPRAE2LP025102 | C158: 2025 NISSAN LEAF BEV ELECTRIC | D158: -0.1822964492 | E158: 14
B159: 5YFEPRAE6LP021104 | C159: 2025 NISSAN LEAF BEV ELECTRIC | D159: -0.1822964492 | E159: 15
B160: 1FM5K8FW5LGB60005 | C160: 2025 KIA EV9 LONG RANGE RWD BEV ELECTRIC | D160: -0.2077604002 | E160: 16
B161: 1FM5K8FW5LGB60001 | C161: 2025 KIA EV9 LONG RANGE RWD BEV ELECTRIC | D161: -0.2077604002 | E161: 17
B162: 1FM5K8FW5LGB60009 | C162: 2025 KIA EV9 LONG RANGE RWD BEV ELECTRIC | D162: -0.2077604002 | E162: 18
B163: 1FM5K8FW5LGB60010 | C163: 2025 KIA EV9 LONG RANGE RWD BEV ELECTRIC | D163: -0.2077604002 | E163: 19
B164: 1FM5K8FW5LGB60003 | C164: 2025 KIA EV9 LONG RANGE RWD BEV ELECTRIC | D164: -0.2077604002 | E164: 20
B165: 1FM5K8FW5LGB60011 | C165: 2025 KIA EV9 LONG RANGE RWD BEV ELECTRIC | D165: -0.2077604002 | E165: 21
B166: 1FM5K8FW5LGB60007 | C166: 2025 KIA EV9 LONG RANGE RWD BEV ELECTRIC | D166: -0.2077604002 | E166: 22
B167: 1FM5K8FW5LGB60012 | C167: 2025 KIA EV9 LONG RANGE RWD BEV ELECTRIC | D167: -0.2077604002 | E167: 23
B168: 1FM5K8FW5LGB60020 | C168: 2025 KIA EV9 LONG RANGE RWD BEV ELECTRIC | D168: -0.2077604002 | E168: 24
B169: 1FM5K8FW5LGB60000 | C169: 2025 KIA EV9 LONG RANGE RWD BEV ELECTRIC | D169: -0.2077604002 | E169: 25
B170: 1FM5K8FW5LGB60002 | C170: 2025 KIA EV9 LONG RANGE RWD BEV ELECTRIC | D170: -0.2077604002 | E170: 26
B171: 1FM5K8FW5LGB60015 | C171: 2025 KIA EV9 LONG RANGE RWD BEV ELECTRIC | D171: -0.2077604002 | E171: 27
B172: 1FM5K8FW5LGB60004 | C172: 2025 KIA EV9 LONG RANGE RWD BEV ELECTRIC | D172: -0.2077604002 | E172: 28
B173: 1FM5K8FW5LGB60016 | C173: 2025 KIA EV9 LONG RANGE RWD BEV ELECTRIC | D173: -0.2077604002 | E173: 29
B174: 1FM5K8FW5LGB60006 | C174: 2025 KIA EV9 LONG RANGE RWD BEV ELECTRIC | D174: -0.2077604002 | E174: 30
B175: 1FM5K8FW5LGB60017 | C175: 2025 KIA EV9 LONG RANGE RWD BEV ELECTRIC | D175: -0.2077604002 | E175: 31
B176: 1FM5K8FW5LGB60008 | C176: 2025 KIA EV9 LONG RANGE RWD BEV ELECTRIC | D176: -0.2077604002 | E176: 32
B177: 1FM5K8FW5LGB60018 | C177: 2025 KIA EV9 LONG RANGE RWD BEV ELECTRIC | D177: -0.2077604002 | E177: 33
B178: 1FM5K8FW5LGB60019 | C178: 2025 KIA EV9 LONG RANGE RWD BEV ELECTRIC | D178: -0.2077604002 | E178: 34
B179: 1FM5K8FW5LGB60013 | C179: 2025 KIA EV9 LONG RANGE RWD BEV ELECTRIC | D179: -0.2077604002 | E179: 35
B180: 1FM5K8FW5LGB60014 | C180: 2025 KIA EV9 LONG RANGE RWD BEV ELECTRIC | D180: -0.2077604002 | E180: 36
B181: 1FAFP53U05A267102 | C181: 2025 HYUNDAI IONIQ 6 STANDARD RANGE BEV ELECTRIC | D181: -0.3193125134 | E181: 37
B182: 1FAFP53U05A267103 | C182: 2025 HYUNDAI IONIQ 6 STANDARD RANGE BEV ELECTRIC | D182: -0.3193125134 | E182: 38
B183: 1FAFP53U05A267100 | C183: 2025 HYUNDAI IONIQ 6 STANDARD RANGE BEV ELECTRIC | D183: -0.3193125134 | E183: 39
B184: 1FAFP53U05A267106 | C184: 2025 HYUNDAI IONIQ 6 STANDARD RANGE BEV ELECTRIC | D184: -0.3193125134 | E184: 40
B185: 1FAFP53U05A267101 | C185: 2025 HYUNDAI IONIQ 6 STANDARD RANGE BEV ELECTRIC | D185: -0.3193125134 | E185: 41
B186: 1FAFP53U05A267107 | C186: 2025 HYUNDAI IONIQ 6 STANDARD RANGE BEV ELECTRIC | D186: -0.3193125134 | E186: 42
B187: 1FAFP53U05A267104 | C187: 2025 HYUNDAI IONIQ 6 STANDARD RANGE BEV ELECTRIC | D187: -0.3193125134 | E187: 43
B188: 1FAFP53U05A267108 | C188: 2025 HYUNDAI IONIQ 6 STANDARD RANGE BEV ELECTRIC | D188: -0.3193125134 | E188: 44
B189: 1FAFP53U05A267110 | C189: 2025 HYUNDAI IONIQ 6 STANDARD RANGE BEV ELECTRIC | D189: -0.3193125134 | E189: 45
B190: 1FAFP53U05A267109 | C190: 2025 HYUNDAI IONIQ 6 STANDARD RANGE BEV ELECTRIC | D190: -0.3193125134 | E190: 46
B191: 1FAFP53U05A267105 | C191: 2025 HYUNDAI IONIQ 6 STANDARD RANGE BEV ELECTRIC | D191: -0.3193125134 | E191: 47
B192: 2C4RDGBG9KR701007 | C192: 2025 CHRYSLER PACIFICA HYBRID PHEV PLUG-IN HYBRID | D192: -0.3343893505 | E192: 48
B193: 2C4RDGBG9KR701011 | C193: 2025 CHRYSLER PACIFICA HYBRID PHEV PLUG-IN HYBRID | D193: -0.3343893505 | E193: 49
B194: 2C4RDGBG9KR701009 | C194: 2025 CHRYSLER PACIFICA HYBRID PHEV PLUG-IN HYBRID | D194: -0.3343893505 | E194: 50
B195: 2C4RDGBG9KR701000 | C195: 2025 CHRYSLER PACIFICA HYBRID PHEV PLUG-IN HYBRID | D195: -0.3343893505 | E195: 51
B196: 2C4RDGBG9KR701005 | C196: 2025 CHRYSLER PACIFICA HYBRID PHEV PLUG-IN HYBRID | D196: -0.3343893505 | E196: 52
B197: 2C4RDGBG9KR701001 | C197: 2025 CHRYSLER PACIFICA HYBRID PHEV PLUG-IN HYBRID | D197: -0.3343893505 | E197: 53
B198: 2C4RDGBG9KR701008 | C198: 2025 CHRYSLER PACIFICA HYBRID PHEV PLUG-IN HYBRID | D198: -0.3343893505 | E198: 54
B199: 2C4RDGBG9KR701002 | C199: 2025 CHRYSLER PACIFICA HYBRID PHEV PLUG-IN HYBRID | D199: -0.3343893505 | E199: 55
B200: 2C4RDGBG9KR701010 | C200: 2025 CHRYSLER PACIFICA HYBRID PHEV PLUG-IN HYBRID | D200: -0.3343893505 | E200: 56
B201: 2C4RDGBG9KR701003 | C201: 2025 CHRYSLER PACIFICA HYBRID PHEV PLUG-IN HYBRID | D201: -0.3343893505 | E201: 57
B202: 2C4RDGBG9KR701012 | C202: 2025 CHRYSLER PACIFICA HYBRID PHEV PLUG-IN HYBRID | D202: -0.3343893505 | E202: 58
B203: 2C4RDGBG9KR701004 | C203: 2025 CHRYSLER PACIFICA HYBRID PHEV PLUG-IN HYBRID | D203: -0.3343893505 | E203: 59
B204: 2C4RDGBG9KR701006 | C204: 2025 CHRYSLER PACIFICA HYBRID PHEV PLUG-IN HYBRID | D204: -0.3343893505 | E204: 60
B205: 1FTNX21L94EC69110 | C205: 2025 ISUZU NQR~NRR BEV ELECTRIC | D205: -0.409160329 | E205: 61
B206: 1FTNX21L94EC69114 | C206: 2025 ISUZU NQR~NRR BEV ELECTRIC | D206: -0.409160329 | E206: 62
B207: 1FTNX21L94EC69112 | C207: 2025 ISUZU NQR~NRR BEV ELECTRIC | D207: -0.409160329 | E207: 63
B208: 1FTNX21L94EC69102 | C208: 2025 ISUZU NQR~NRR BEV ELECTRIC | D208: -0.409160329 | E208: 64
B209: 1FTNX21L94EC69109 | C209: 2025 ISUZU NQR~NRR BEV ELECTRIC | D209: -0.409160329 | E209: 65
B210: 1FTNX21L94EC69107 | C210: 2025 ISUZU NQR~NRR BEV ELECTRIC | D210: -0.409160329 | E210: 66
B211: 1FTNX21L94EC69111 | C211: 2025 ISUZU NQR~NRR BEV ELECTRIC | D211: -0.409160329 | E211: 67
B212: 1FTNX21L94EC69108 | C212: 2025 ISUZU NQR~NRR BEV ELECTRIC | D212: -0.409160329 | E212: 68
B213: 1FTNX21L94EC69113 | C213: 2025 ISUZU NQR~NRR BEV ELECTRIC | D213: -0.409160329 | E213: 69
B214: 1FTNX21L94EC69100 | C214: 2025 ISUZU NQR~NRR BEV ELECTRIC | D214: -0.409160329 | E214: 70
B215: 1FTNX21L94EC69101 | C215: 2025 ISUZU NQR~NRR BEV ELECTRIC | D215: -0.409160329 | E215: 71
B216: 1FTNX21L94EC69103 | C216: 2025 ISUZU NQR~NRR BEV ELECTRIC | D216: -0.409160329 | E216: 72
B217: 1FTNX21L94EC69106 | C217: 2025 ISUZU NQR~NRR BEV ELECTRIC | D217: -0.409160329 | E217: 73
B218: 1FTNX21L94EC69104 | C218: 2025 ISUZU NQR~NRR BEV ELECTRIC | D218: -0.409160329 | E218: 74
B219: 1FTNX21L94EC69105 | C219: 2025 ISUZU NQR~NRR BEV ELECTRIC | D219: -0.409160329 | E219: 75
B220: 1FTNX21L94EC69115 | C220: 2025 ISUZU NQR~NRR BEV ELECTRIC | D220: -0.409160329 | E220: 76
B221: 1FDXE4FS0DDA07101 | C221: 2025 ISUZU NQR~NRR BEV ELECTRIC | D221: -0.488686347 | E221: 77
B222: 1FDXE4FS2DDA07102 | C222: 2025 ISUZU NQR~NRR BEV ELECTRIC | D222: -0.488686347 | E222: 78
B223: 1GCNKNEHXHZ250110 | C223: 2024 CHEVROLET SILVERADO EV BEV ELECTRIC | D223: -0.5209821195 | E223: 79
B224: 3GCUKUEJ2DG142999 | C224: 2024 CHEVROLET SILVERADO EV BEV ELECTRIC | D224: -0.5209821195 | E224: 80
B225: 1GC10UED8RU203067 | C225: 2024 CHEVROLET SILVERADO EV BEV ELECTRIC | D225: -0.5209821195 | E225: 81
B226: 1GCCS145728164101 | C226: 2024 CHEVROLET SILVERADO EV BEV ELECTRIC | D226: -0.5209821195 | E226: 82
B227: 1GCNKNEHXHZ250108 | C227: 2024 CHEVROLET SILVERADO EV BEV ELECTRIC | D227: -0.5209821195 | E227: 83
B228: 1GCNKNEHXHZ250100 | C228: 2024 CHEVROLET SILVERADO EV BEV ELECTRIC | D228: -0.5209821195 | E228: 84
B229: 1GCNKNEHXHZ250112 | C229: 2024 CHEVROLET SILVERADO EV BEV ELECTRIC | D229: -0.5209821195 | E229: 85
B230: 1GCNKNEHXHZ250101 | C230: 2024 CHEVROLET SILVERADO EV BEV ELECTRIC | D230: -0.5209821195 | E230: 86
B231: 3GCUCRER0JG307556 | C231: 2024 CHEVROLET SILVERADO EV BEV ELECTRIC | D231: -0.5209821195 | E231: 87
B232: 1GCNKNEHXHZ250102 | C232: 2024 CHEVROLET SILVERADO EV BEV ELECTRIC | D232: -0.5209821195 | E232: 88
B233: 1GCNKNEHXHZ250107 | C233: 2024 CHEVROLET SILVERADO EV BEV ELECTRIC | D233: -0.5209821195 | E233: 89
B234: 1GCNKNEHXHZ250103 | C234: 2024 CHEVROLET SILVERADO EV BEV ELECTRIC | D234: -0.5209821195 | E234: 90
B235: 1GCNKNEHXHZ250109 | C235: 2024 CHEVROLET SILVERADO EV BEV ELECTRIC | D235: -0.5209821195 | E235: 91
B236: 1GCNKNEHXHZ250104 | C236: 2024 CHEVROLET SILVERADO EV BEV ELECTRIC | D236: -0.5209821195 | E236: 92
B237: 1GCNKNEHXHZ250111 | C237: 2024 CHEVROLET SILVERADO EV BEV ELECTRIC | D237: -0.5209821195 | E237: 93
B238: 1GCNKNEHXHZ250105 | C238: 2024 CHEVROLET SILVERADO EV BEV ELECTRIC | D238: -0.5209821195 | E238: 94
B239: 1GCNKNEHXHZ250113 | C239: 2024 CHEVROLET SILVERADO EV BEV ELECTRIC | D239: -0.5209821195 | E239: 95
B240: 1GCNKNEHXHZ250114 | C240: 2024 CHEVROLET SILVERADO EV BEV ELECTRIC | D240: -0.5209821195 | E240: 96
B241: 1GC10UED5RU204192 | C241: 2024 CHEVROLET SILVERADO EV BEV ELECTRIC | D241: -0.5209821195 | E241: 97
B242: 1GCNKNEHXHZ250106 | C242: 2024 CHEVROLET SILVERADO EV BEV ELECTRIC | D242: -0.5209821195 | E242: 98
B243: 2GCFK135X91109312 | C243: 2024 CHEVROLET SILVERADO EV BEV ELECTRIC | D243: -0.5209821195 | E243: 99
B244: 1FTYR10V5XTA93103 | C244: 2024 CHEVROLET SILVERADO EV BEV ELECTRIC | D244: -0.5580068149 | E244: 100

Sheet Environmental Model (hidden)
A1: Environmental Models - Dashboard for Rapid Vehicle Electrification
C3: =Base_V1_Type_Ex&" (Baseline)" -> 2025 CHEVROLET EQUINOX EV FWD BEV ELECTRIC (Baseline)
B4: ="Annual V" & LEFT(Constant_Distance_Metric,1) & "T" -> Annual VMT | C4: =Base_V1_VMT_Modeled -> 4709
B5: =IF(_Market="U.S.", DB_Vehicles[[#Headers],[Fuel Economy Gas/Diesel City (MPG)]], REMOVE___DB_Vehicles__Canada[[#Headers],[Fuel Consumption Gas/Diesel City (L/100 km)]]) -> Fuel Economy Gas/Diesel City (MPG) | C5: =IF(_Base_V1_Vehicle_Drivetrain <>"BEV", Base_V1_Fuel_Economy_Gas_City_Modeled, 0) -> 0
B6: =IF(_Market="U.S.", DB_Vehicles[[#Headers],[Fuel Economy Gas/Diesel Hwy (MPG)]], REMOVE___DB_Vehicles__Canada[[#Headers],[Fuel Consumption Gas/Diesel Hwy (L/100 km)]]) -> Fuel Economy Gas/Diesel Hwy (MPG) | C6: =IF(_Base_V1_Vehicle_Drivetrain<>"BEV",Base_V1_Fuel_Economy_Gas_Hwy_Modeled,0) -> 0
B7: =IF(_Market="U.S.", DB_Vehicles[[#Headers],[Fuel Economy Electric City (MPGe)]], REMOVE___DB_Vehicles__Canada[[#Headers],[Fuel Consumption Electric City (Le/100 km)]]) -> Fuel Economy Electric City (MPGe) | C7: =IF(_Base_V1_Vehicle_Drivetrain <> "ICE", Base_V1_Fuel_Economy_Electric_City_Modeled, 0) -> 118.0647401
B8: =IF(_Market="U.S.", DB_Vehicles[[#Headers],[Fuel Economy Electric Hwy (MPGe)]], REMOVE___DB_Vehicles__Canada[[#Headers],[Fuel Consumption Electric Hwy (Le/100 km)]]) -> Fuel Economy Electric Hwy (MPGe) | C8: =IF(_Base_V1_Vehicle_Drivetrain<>"ICE",Base_V1_Fuel_Economy_Electric_Hwy_Modeled,0) -> 100.9100343
B9: ="% of Annual " & Constant_Distance_Metric & "s on Gasoline/Diesel*" -> % of Annual Miles on Gasoline/Diesel* | C9: =Base_V1_Miles_Gas -> 0
B10: ="% of Annual " & Constant_Distance_Metric & "s City Driving" -> % of Annual Miles City Driving | C10: =Base_V1_Miles_City_Modeled -> 0.55
B11: =Constant_Volume_Metric & "s of Gasoline/Diesel per Year" -> Gallons of Gasoline/Diesel per Year | C11: =IF(C5=0,0,(C4*C10*C9)/IF(_Market="U.S.", C5, 100/C5))+IF(C6=0,0,(C4*C9*(1-C10))/IF(_Market="U.S.", C6, 100/C6)) -> 0
B12: ="Well-to-Wheel Carbon Intensity of " & Constant_Volume_Metric & " of Gasoline/Diesel (" & Constant_Weight_Metric_Abbreviation & ")" -> Well-to-Wheel Carbon Intensity of Gallon of Gasoline/Diesel (lb) | C12: =(SUMIFS(DB_Gasoline_Diesel_Emissions[Emissions],DB_Gasoline_Diesel_Emissions[Key], "CO2 (g/MJ)"&_Market&"Well-to-Wheel"&_Base_V1_Vehicle_Vehicle_Class)*IF(Base_V1_Fuel_Type_Ex="Gasoline", Constant_Megajoule_Per_Gasoline_Volume, Constant_Megajoule_Per_Diesel_Volume))/Constant_Grams_Per_Weight -> 27.00820473
B13: kWh Electricity / Year | C13: =IF(C7=0,0,((C4*(1-C9)*C10)/IF(_Market="U.S.", C7, 100/C7)*Constant_kWh_Per_Gasoline_Volume))+IF(C8=0,0,((C4*(1-C9)*(1-C10))/IF(_Market="U.S.", C8, 100/C8)*Constant_kWh_Per_Gasoline_Volume)) -> 1446.946288
B14: =IF(_Market="U.S.", "eGrid Region", "Province") -> eGrid Region | C14: =IF(_Market="U.S.", eGrid_Region_Ex, Province_Ex) -> RFCE
B15: ="Well-to-Wheel Carbon Intensity of kWh (" & Constant_Weight_Metric_Abbreviation & ")**" -> Well-to-Wheel Carbon Intensity of kWh (lb)** | C15: =Constant_CO2_Intensity_Electricity -> 0.70933962
B16: =IF(_Market="U.S.", "Electrical Transmission Line Loss", "") -> Electrical Transmission Line Loss | C16: =IF(_Market="U.S.", VLOOKUP(eGrid_Region_Ex,DB_Electricity_Emissions[],COLUMN(DB_Electricity_Emissions[[#Headers],[Grid gross loss '[Estimated losses/(Total disposition - Direct use)']]])-COLUMN(DB_Electricity_Emissions[[#Headers],[eGRID subregion acronym]])+1,FALSE), "") -> 0.042
B17: ="Total Annual CO2 (" & Constant_Weight_Metric_Abbreviation & ")" -> Total Annual CO2 (lb) | C17: =(C11*C12)+(C13*(C15/(1-IF(_Market="U.S.", C16, 0)))) -> 1071.37404
B18: ="Well-to-Wheel CO2 (" & Constant_Weight_Metric_Abbreviation & "/" & Constant_Distance_Metric_Abbreviation & ")" -> Well-to-Wheel CO2 (lb/mi) | C18: =C17/C4 -> 0.2275162539
B19: Other Well-to-Wheel Emissions**
B20: ="NOx (mg/" & Constant_Distance_Metric_Abbreviation & ")" -> NOx (mg/mi) | C20: =((Constant_NOX_Intensity_Electricity*Base_V1_Electricity_Usage_Ex)+(SUMIFS(DB_Gasoline_Diesel_Emissions[Emissions],DB_Gasoline_Diesel_Emissions[Key],"NOx (mg/MJ)" &_Market&"Well-to-Wheel"&_Base_V1_Vehicle_Vehicle_Class)*Base_V1_Gas_Diesel_Usage_Ex*IF(Base_V1_Fuel_Type_Ex="Gasoline", Constant_Megajoule_Per_Gasoline_Volume, Constant_Megajoule_Per_Diesel_Volume)))/Base_V1_VMT_Modeled -> 28.15402392
B21: ="SOx (mg/" & Constant_Distance_Metric_Abbreviation & ")" -> SOx (mg/mi) | C21: =((Constant_SOX_Intensity_Electricity*Base_V1_Electricity_Usage_Ex)+(SUMIFS(DB_Gasoline_Diesel_Emissions[Emissions],DB_Gasoline_Diesel_Emissions[Key],"SOx (mg/MJ)"&_Market&"Well-to-Wheel"&_Base_V1_Vehicle_Vehicle_Class)*Base_V1_Gas_Diesel_Usage_Ex*IF(Base_V1_Fuel_Type_Ex="Gasoline", Constant_Megajoule_Per_Gasoline_Volume, Constant_Megajoule_Per_Diesel_Volume)))/Base_V1_VMT_Modeled -> 29.54778748
B22: ="VOC (mg/" & Constant_Distance_Metric_Abbreviation & ")" -> VOC (mg/mi) | C22: =IF(AND(Constant_VOC_Intensity_Electricity=0, Base_V1_Gas_Diesel_Usage_Ex=0),"Unknown",((Constant_VOC_Intensity_Electricity*Base_V1_Electricity_Usage_Ex)+(SUMIFS(DB_Gasoline_Diesel_Emissions[Emissions],DB_Gasoline_Diesel_Emissions[Key],"VOC (mg/MJ)"&_Market&"Well-to-Wheel"&_Base_V1_Vehicle_Vehicle_Class)*Base_V1_Gas_Diesel_Usage_Ex*IF(Base_V1_Fuel_Type_Ex="Gasoline", Constant_Megajoule_Per_Gasoline_Volume, Constant_Megajoule_Per_Diesel_Volume)))/Base_V1_VMT_Modeled) -> 2.153883771
B23: ="PM10 (mg/" & Constant_Distance_Metric_Abbreviation & ")" -> PM10 (mg/mi) | C23: =((Constant_PM10_Intensity_Electricity*Base_V1_Electricity_Usage_Ex)+(SUMIFS(DB_Gasoline_Diesel_Emissions[Emissions],DB_Gasoline_Diesel_Emissions[Key],"PM10 (mg/MJ)"&_Market&"Well-to-Wheel"&_Base_V1_Vehicle_Vehicle_Class)*Base_V1_Gas_Diesel_Usage_Ex*IF(Base_V1_Fuel_Type_Ex="Gasoline", Constant_Megajoule_Per_Gasoline_Volume, Constant_Megajoule_Per_Diesel_Volume)))/Base_V1_VMT_Modeled -> 9.126410592
B24: ="PM2.5 (mg/" & Constant_Distance_Metric_Abbreviation & ")" -> PM2.5 (mg/mi) | C24: =((Constant_PM25_Intensity_Electricity*Base_V1_Electricity_Usage_Ex)+(SUMIFS(DB_Gasoline_Diesel_Emissions[Emissions],DB_Gasoline_Diesel_Emissions[Key],"PM2.5 (mg/MJ)"&_Market&"Well-to-Wheel"&_Base_V1_Vehicle_Vehicle_Class)*Base_V1_Gas_Diesel_Usage_Ex*IF(Base_V1_Fuel_Type_Ex="Gasoline", Constant_Megajoule_Per_Gasoline_Volume, Constant_Megajoule_Per_Diesel_Volume)))/Base_V1_VMT_Modeled -> 7.890656324
B27: *For PHEV calculations, assumes an equal number of miles driven on a daily basis, 260 days per year. No charging during the day.
B28: ** Emissions are well-to-wheel from Argonne National Laboratory's GREET model and U.S. EPA's eGRID.

Sheet Report Parameters & Pivots (hidden)
A1: Pivots | D1: Total Count
A2: Row Labels | B2: Distinct Count of VIN | D2: =SUM(B3:B5) -> 115
A3: Heavy-Duty Vehicles (Class 7-8) | B3: 2
A4: Medium Duty Vehicles (Class 3-6) | B4: 31
A5: Passenger Vehicles (Light-Duty) | B5: 82
A9: Text
B10: Summary | C10: =_xlfn.CONCAT(IFERROR(_xlfn.CONCAT("Overall, there are ",GETPIVOTDATA("[Measures].[Distinct Count of VIN]",$A$2,"[Original Fleet Vehicles].[Fleet Vehicle GVWR Category]","[Original Fleet Vehicles].[Fleet Vehicle GVWR Category].&[Passenger Vehicles (Light-Duty)]")," light-duty vehicles in the fleet, making up ",ROUND(GETPIVOTDATA("[Measures].[Distinct Count of VIN]",$A$2,"[Original Fleet Vehicles].[Fleet Vehicle GVWR Category]","[Original Fleet Vehicles].[Fleet Vehicle GVWR Category].&[Passenger Vehicles (Light-Duty)]")/$D$2*100,2)," percent of the fleet. "),""),IFERROR(_xlfn.CONCAT("Medium-duty vehicles make up ",ROUND(GETPIVOTDATA("[Measures].[Distinct Count of VIN]",$A$2,"[Original Fleet Vehicles].[Fleet Vehicle GVWR Category]","[Original Fleet Vehicles].[Fleet Vehicle GVWR Category].&[Medium Duty Vehicles (Class 3-6)]")/$D$2*100,2)," percent of the fleet (",GETPIVOTDATA("[Measures].[Distinct Count of VIN]",$A$2,"[Original Fleet Vehicles].[Fleet Vehicle GVWR Category]","[Original Fleet Vehicles].[Fleet Vehicle GVWR Category].&[Medium Duty Vehicles (Class 3-6)]")," vehicles). "),""),IFERROR(_xlfn.CONCAT("Heavy-duty vehicles make up ",ROUND(GETPIVOTDATA("[Measures].[Distinct Count of VIN]",$A$2,"[Original Fleet Vehicles].[Fleet Vehicle GVWR Category]","[Original Fleet Vehicles].[Fleet Vehicle GVWR Category].&[Heavy-Duty Vehicles (Class 7-8)]")/$D$2*100,2)," percent of the fleet (",GETPIVOTDATA("[Measures].[Distinct Count of VIN]",$A$2,"[Original Fleet Vehicles].[Fleet Vehicle GVWR Category]","[Original Fleet Vehicles].[Fleet Vehicle GVWR Category].&[Heavy-Duty Vehicles (Class 7-8)]")," vehicles)."),"")) -> Overall, there are 82 light-duty vehicles in the fleet, making up 71.3 percent of the fleet. Medium-duty vehicles make up 26.96 percent of the fleet (31 vehicles). Heavy-duty vehicles make up 1.74 percent of the fleet (2 vehicles).

Sheet Inputs (hidden)
A1: Inputs - Dashboard for Rapid Vehicle Electrification | F1: *HIDDEN* | G1: *HIDDEN* | H1: *HIDDEN*
F2: Autofill Values | G2: Sensitivity Values (to model) | H2: Validation Calcs
B3: Market Inputs
B5: Market | C5: U.S. | E5: =IF(_Forecast_Start_Year<>"", SUMIFS(DB_Fuel_Prices_Future[Price],DB_Fuel_Prices_Future[Year],_Forecast_Start_Year,DB_Fuel_Prices_Future[Category],"Gasoline", DB_Fuel_Prices_Future[State],State_Ex)/SUMIFS(DB_Fuel_Prices_Future[Price],DB_Fuel_Prices_Future[Year],_Baseline_Year,DB_Fuel_Prices_Future[Category],"Gasoline", DB_Fuel_Prices_Future[State],State_Ex)-1, 0) -> -0.05838970994 | F5: =IF(_Market="U.S.",IF(_Forecast_Load_Year<>"", SUMIFS(DB_Fuel_Prices_Future[Price],DB_Fuel_Prices_Future[Year],_Forecast_Load_Year,DB_Fuel_Prices_Future[Category],"Gasoline", DB_Fuel_Prices_Future[State],State_Ex), VLOOKUP(State_Ex,DB_Fuel_Prices[],3,FALSE)),VLOOKUP(Province_Ex,REMOVE___DB_Fuel_Prices__Canada[],2,FALSE)) -> 3.4441 | G5: =IF(_Forecast_Start_Year<>"", _Forecast_Gasoline_Price_Change+1, 1) * Gasoline_Price -> 3.063058274 | J5: Gasoline Price ($/Gallon) | K5: 3.253
B6: ZIP Code | C6: 20001 | E6: =IF(_Forecast_Start_Year<>"", SUMIFS(DB_Fuel_Prices_Future[Price],DB_Fuel_Prices_Future[Year],_Forecast_Start_Year,DB_Fuel_Prices_Future[Category],"Diesel", DB_Fuel_Prices_Future[State],State_Ex)/SUMIFS(DB_Fuel_Prices_Future[Price],DB_Fuel_Prices_Future[Year],_Baseline_Year,DB_Fuel_Prices_Future[Category],"Diesel", DB_Fuel_Prices_Future[State],State_Ex)-1, 0) -> -0.06467334757 | F6: =IF(_Market="U.S.",IF(_Forecast_Load_Year<>"", SUMIFS(DB_Fuel_Prices_Future[Price],DB_Fuel_Prices_Future[Year], _Forecast_Load_Year, DB_Fuel_Prices_Future[Category],"Diesel", DB_Fuel_Prices_Future[State],State_Ex),VLOOKUP(State_Ex,DB_Fuel_Prices[],4,FALSE)),VLOOKUP(Province_Ex,REMOVE___DB_Fuel_Prices__Canada[],2,FALSE)) -> 3.6522 | G6: =IF(_Forecast_Start_Year<>"", _Forecast_Diesel_Price_Change+1, 1) * Diesel_Price -> 3.649270467 | J6: Diesel Price ($/Gallon) | K6: 3.9016
B7: U.S. State | C7: =VLOOKUP(_Zip_Code,ZipCodeLookup[],3,FALSE) -> DC | E7: =IF(_Forecast_Start_Year<>"", SUMIFS(DB_Fuel_Prices_Future[Price],DB_Fuel_Prices_Future[Year],_Forecast_Start_Year,DB_Fuel_Prices_Future[Category],"Electricity (Commercial)", DB_Fuel_Prices_Future[State],State_Ex)/SUMIFS(DB_Fuel_Prices_Future[Price],DB_Fuel_Prices_Future[Year],_Baseline_Year,DB_Fuel_Prices_Future[Category],"Electricity (Commercial)", DB_Fuel_Prices_Future[State],State_Ex)-1, 0) -> -0.0406504065 | F7: =IF(_Market="U.S.",IF(_Forecast_Load_Year<>"", SUMIFS(DB_Fuel_Prices_Future[Price],DB_Fuel_Prices_Future[Year],_Forecast_Load_Year,DB_Fuel_Prices_Future[Category],"Electricity (Commercial)", DB_Fuel_Prices_Future[State],State_Ex), VLOOKUP(State_Ex,DB_Fuel_Prices[],6,FALSE)),VLOOKUP(Province_Ex,DB_Electricity_Prices_Canada[],2,FALSE)) -> 0.1107 | G7: =IF(_Forecast_Start_Year<>"", _Forecast_Electricity_Cost_Change+1, 1) * Electricity_Price -> 0.2264065041 | J7: Electricity Cost ($/kWh) | K7: 0.236
B8: PADD Region | C8: =VLOOKUP(_Zip_Code,ZipCodeLookup[],5,FALSE) -> 1b | F8: =IF(_Market="U.S.",FV(Inflation_Rate_General, IF(_Forecast_Load_Year="", 0, _Forecast_Load_Year-_Baseline_Year), 0,-0.5), 0.5) -> 0.5 | G8: =FV(Inflation_Rate_General, IF(_Forecast_Start_Year="", 0, _Forecast_Start_Year-_Baseline_Year), 0,-Public_Charging_Price) -> 0.51 | J8: Public Charging Price ($/kWh) | K8: 0.5
B9: eGRID Region | C9: =VLOOKUP(_Zip_Code,ZipCodeLookup[],6,FALSE) -> RFCE | E9: =IF(_Forecast_Start_Year<>"", SUMIFS(DB_Fuel_Prices_Future[Price],DB_Fuel_Prices_Future[Year],_Forecast_Start_Year,DB_Fuel_Prices_Future[Category],"Electricity (Commercial)", DB_Fuel_Prices_Future[State],State_Ex)/SUMIFS(DB_Fuel_Prices_Future[Price],DB_Fuel_Prices_Future[Year],_Baseline_Year,DB_Fuel_Prices_Future[Category],"Electricity (Commercial)", DB_Fuel_Prices_Future[State],State_Ex)-1, 0) -> -0.0406504065 | F9: =IF(_Market="U.S.",IF(_Forecast_Load_Year<>"", SUMIFS(DB_Fuel_Prices_Future[Price],DB_Fuel_Prices_Future[Year],_Forecast_Load_Year,DB_Fuel_Prices_Future[Category],"Electricity (Commercial)", DB_Fuel_Prices_Future[State],State_Ex), VLOOKUP(State_Ex,DB_Fuel_Prices[],6,FALSE)),VLOOKUP(Province_Ex,DB_Electricity_Prices_Canada[],2,FALSE)) -> 0.1107 | G9: =IF(_Forecast_Start_Year<>"", _Forecast_En_Route_Charging_Price_Change+1, 1) * En_Route_Charging_Price -> 0.2398373984 | J9: En Route Charging Price ($/kWh) | K9: 0.25
B10: Canadian Province | C10: British Columbia | F10: =IF(_Market="U.S.", DB_General_Inflation[Inflation (U.S.)], DB_General_Inflation[Inflation (Canada)]) -> 0.02 | G10: =Inflation_Rate_General -> 0.02 | J10: Inflation Rate (Excluding Fuel) (%/Year) | K10: 0.02
B11: Forecast Start Year | C11: 2025 | F11: =IF(_Market="U.S.",FV(Inflation_Rate_General, IF(_Forecast_Load_Year="", 0, _Forecast_Load_Year-_Baseline_Year), 0,-35), 35) -> 35 | G11: =FV(Inflation_Rate_General, IF(_Forecast_Start_Year="", 0, _Forecast_Start_Year-_Baseline_Year), 0,-Cost_of_Downtime_from_Charging) -> 43.86 | J11: Cost of Downtime from Public Charging ($/Hour) | K11: 43
B12: Baseline Year | C12: 2024
B13: Forecast Load Year | C13: 2024 | J13: Include Cost of Carbon? | K13: Yes
B14: Forecast Scenario | C14: Low Technology Progress | F14: =IF(_Market="U.S.", FV(Inflation_Rate_General, IF(_Forecast_Load_Year="", 0, _Forecast_Load_Year-_Baseline_Year), 0,-DB_Carbon_Price_US), DB_Carbon_Price_Canada) -> 51 | G14: =FV(Inflation_Rate_General, IF(_Forecast_Start_Year="", 0, _Forecast_Start_Year-_Baseline_Year), 0,-Carbon_Price) -> 0 | J14: Cost of Carbon ($/Ton) | K14: 0
B17: Vehicle Inputs
B19: Vehicle Drivetrain Type | E19: BEV | G19: Vehicle Fuel Type | H19: ELECTRIC
B20: Vehicle Class | E20: Passenger Vehicles (Light-Duty)
B21: Vehicle Year | E21: 2025
B22: Vehicle Make | E22: CHEVROLET
B23: Vehicle Model | E23: EQUINOX EV FWD | H23: =_Base_V1_Vehicle_Year&" "&_Base_V1_Vehicle_Make&" "&_Base_V1_Vehicle_Model&" "&_Base_V1_Vehicle_Drivetrain&" "&Base_V1_Fuel_Type -> 2025 CHEVROLET EQUINOX EV FWD BEV ELECTRIC
B24: Fuel Economy Gasoline/Diesel City (MPG) | E24: 21 | F24: =IF(_Market="U.S.", VLOOKUP(Base_V1_Type_Ex,DB_Vehicles[], COLUMN(DB_Vehicles[[#Headers],[Fuel Economy Gas/Diesel City (MPG)]]),FALSE)*(1+_Forecast_Load_Vehicle_Fuel_Economy_Change), VLOOKUP(Base_V1_Type_Ex,REMOVE___DB_Vehicles__Canada[],COLUMN(REMOVE___DB_Vehicles__Canada[[#Headers],[Fuel Consumption Gas/Diesel City (L/100 km)]])-COLUMN(REMOVE___DB_Vehicles__Canada[[#Headers],[Selection Name]])+1,FALSE)) -> 0 | G24: =Base_V1_Fuel_Economy_Gas_City*(_Forecast_Vehicle_Fuel_Economy_Change+1) -> 21.1911072 | H24: =IF(_Forecast_Load_Year<>"", SUMIFS(DB_Vehicle_Fuel_Economy_Future[Fuel Economy (mpg)],DB_Vehicle_Fuel_Economy_Future[Drivetrain Type], _Base_V1_Vehicle_Drivetrain,DB_Vehicle_Fuel_Economy_Future[Vehicle Class], _Base_V1_Vehicle_Vehicle_Class, DB_Vehicle_Fuel_Economy_Future[Year], _Forecast_Load_Year)/SUMIFS(DB_Vehicle_Fuel_Economy_Future[Fuel Economy (mpg)],DB_Vehicle_Fuel_Economy_Future[Drivetrain Type], _Base_V1_Vehicle_Drivetrain,DB_Vehicle_Fuel_Economy_Future[Vehicle Class], _Base_V1_Vehicle_Vehicle_Class, DB_Vehicle_Fuel_Economy_Future[Year], _Baseline_Year)-1, 0) -> 0
B25: Fuel Economy Gasoline/Diesel Highway (MPG) | E25: 24 | F25: =IF(_Market="U.S.", VLOOKUP(Base_V1_Type_Ex,DB_Vehicles[], COLUMN(DB_Vehicles[[#Headers],[Fuel Economy Gas/Diesel Hwy (MPG)]]),FALSE)*(1+_Forecast_Load_Vehicle_Fuel_Economy_Change), VLOOKUP(Base_V1_Type_Ex,REMOVE___DB_Vehicles__Canada[],COLUMN(REMOVE___DB_Vehicles__Canada[[#Headers],[Fuel Consumption Gas/Diesel Hwy (L/100 km)]])-COLUMN(REMOVE___DB_Vehicles__Canada[[#Headers],[Selection Name]])+1,FALSE)) -> 0 | G25: =Base_V1_Fuel_Economy_Gas_Hwy*(_Forecast_Vehicle_Fuel_Economy_Change+1) -> 24.21840823 | H25: =IF(_Forecast_Start_Year<>"", SUMIFS(DB_Vehicle_Fuel_Economy_Future[Fuel Economy (mpg)],DB_Vehicle_Fuel_Economy_Future[Drivetrain Type], _Base_V1_Vehicle_Drivetrain,DB_Vehicle_Fuel_Economy_Future[Vehicle Class], _Base_V1_Vehicle_Vehicle_Class, DB_Vehicle_Fuel_Economy_Future[Year], _Forecast_Start_Year)/SUMIFS(DB_Vehicle_Fuel_Economy_Future[Fuel Economy (mpg)],DB_Vehicle_Fuel_Economy_Future[Drivetrain Type], _Base_V1_Vehicle_Drivetrain,DB_Vehicle_Fuel_Economy_Future[Vehicle Class], _Base_V1_Vehicle_Vehicle_Class, DB_Vehicle_Fuel_Economy_Future[Year], _Baseline_Year)-1, 0) -> 0.009100343078
B26: Fuel Economy Electric City (MPGe) | E26: 117 | F26: =IF(_Market="U.S.", VLOOKUP(Base_V1_Type_Ex,DB_Vehicles[], COLUMN(DB_Vehicles[[#Headers],[Fuel Economy Electric City (MPGe)]]),FALSE)*(1+_Forecast_Load_Vehicle_Fuel_Economy_Change), VLOOKUP(Base_V1_Type_Ex,REMOVE___DB_Vehicles__Canada[],COLUMN(REMOVE___DB_Vehicles__Canada[[#Headers],[Fuel Consumption Electric City (Le/100 km)]])-COLUMN(REMOVE___DB_Vehicles__Canada[[#Headers],[Selection Name]])+1,FALSE)) -> 117 | G26: =Base_V1_Fuel_Economy_Electric_City*(_Forecast_Vehicle_Fuel_Economy_Change+1) -> 118.0647401
B27: Fuel Economy Electric Hwy (MPGe) | E27: 100 | F27: =IF(_Market="U.S.", VLOOKUP(Base_V1_Type_Ex,DB_Vehicles[], COLUMN(DB_Vehicles[[#Headers],[Fuel Economy Electric Hwy (MPGe)]]),FALSE)*(1+_Forecast_Load_Vehicle_Fuel_Economy_Change), VLOOKUP(Base_V1_Type_Ex,REMOVE___DB_Vehicles__Canada[],COLUMN(REMOVE___DB_Vehicles__Canada[[#Headers],[Fuel Consumption Electric Hwy (Le/100 km)]])-COLUMN(REMOVE___DB_Vehicles__Canada[[#Headers],[Selection Name]])+1,FALSE)) -> 100 | G27: =Base_V1_Fuel_Economy_Electric_Hwy*(_Forecast_Vehicle_Fuel_Economy_Change+1) -> 100.9100343
B28: Expected Years of Use/Ownership (Years) | E28: 8 | F28: =DB_Expected_Years_Of_Use_Ownership -> 7 | G28: =Base_V1_Years_Usage -> 8
B29: Annual Vehicle Mileage (VMT/Year) | E29: 4709 | F29: =IF(_Market="U.S.", DB_Annual_Mileage_US, DB_Annual_Mileage_Canada) -> 12000 | G29: =Base_V1_VMT -> 4709
B30: % of Annual Miles on Gasoline/Diesel | E30: 0 | F30: =IF(_Base_V1_Vehicle_Drivetrain<>"BEV", MAX((Base_V1_VMT/365)-IF(_Market="U.S.", VLOOKUP(Base_V1_Type_Ex,DB_Vehicles[], COLUMN(DB_Vehicles[[#Headers],[Electric Range]]),FALSE), VLOOKUP(Base_V1_Type_Ex,REMOVE___DB_Vehicles__Canada[], COLUMN(REMOVE___DB_Vehicles__Canada[[#Headers],[Electric Range]])-COLUMN(REMOVE___DB_Vehicles__Canada[[#Headers],[Selection Name]])+1,FALSE)),0)/(Base_V1_VMT/365), 0) -> 0 | G30: =Base_V1_Miles_Gas -> 0
B31: % of Annual Miles City Driving | E31: 0.55 | F31: =DB_Percent_Annual_Miles_City_Driving -> 0.55 | G31: =Base_V1_Miles_City -> 0.55
B32: Scale Insurance Cost to Vehicle Value? | E32: Yes | G32: =Base_V1_Insurance_Cost_Scaled_to_Vehicle_Value -> Yes
B33: Fixed Cost to Insure ($/Year) | E33: 1194 | F33: =FV(Inflation_Rate_General, IF(_Forecast_Load_Year="", 0, _Forecast_Load_Year-_Baseline_Year), 0,-SUMIFS(DB_Vehicle_Insurance_Table[Cost], DB_Vehicle_Insurance_Table[Vehicle Class], _Base_V1_Vehicle_Vehicle_Class, DB_Vehicle_Insurance_Table[Market], _Market)) -> 600 | G33: =Base_V1_Insurance_Cost -> 1194
B34: Insurance Cost (% of Vehicle Value) | E34: 0 | G34: =Base_V1_Insurance_Cost_Scaled_Percent -> 0
B35: Use Drivetrain Default Maintenance and Repair Costs? | E35: No
B36: Maintenance and Repair Cost - Years 1 - 5 ($/Mile) | E36: 0.04 | F36: =FV(Inflation_Rate_General, IF(_Forecast_Load_Year="", 0, _Forecast_Load_Year-_Baseline_Year), 0,-SUMIFS(DB_Maint_Repair_Costs[[Year 1 ]], DB_Maint_Repair_Costs[Market], _Market, DB_Maint_Repair_Costs[Vehicle Type], _Base_V1_Vehicle_Drivetrain, DB_Maint_Repair_Costs[Vehicle Class], _Base_V1_Vehicle_Vehicle_Class)) -> 0.061 | G36: =FV(Inflation_Rate_General, IF(_Forecast_Start_Year="", 0, _Forecast_Start_Year-_Baseline_Year), 0,-Base_V1_Maint_Repair_Cost_Year_1) -> 0.0408
B37: Maintenance and Repair Cost - Years 5+ ($/Mile) | E37: 0.052 | F37: =FV(Inflation_Rate_General, IF(_Forecast_Load_Year="", 0, _Forecast_Load_Year-_Baseline_Year), 0,-SUMIFS(DB_Maint_Repair_Costs[Year 6], DB_Maint_Repair_Costs[Market], _Market, DB_Maint_Repair_Costs[Vehicle Type], _Base_V1_Vehicle_Drivetrain, DB_Maint_Repair_Costs[Vehicle Class], _Base_V1_Vehicle_Vehicle_Class)) -> 0.0793 | G37: =FV(Inflation_Rate_General, IF(_Forecast_Start_Year="", 0, _Forecast_Start_Year-_Baseline_Year), 0,-Base_V1_Maint_Repair_Cost_Year_5) -> 0.05304
B38: Recurring Taxes and Fees ($/Year) | E38: 0 | G38: =Base_V1_Taxes_Fees -> 0
C39: Vehicle details from fueleconomy.gov
B41: Vehicle Procurement Inputs
B44: Discount Rate for NPV Calculations (%) | E44: 0.02 | G44: =Base_Discount_Rate -> 0.02
B46: Number of Vehicles to Procure (#) | E46: 1 | G46: =Base_V1_Num_Vehicles -> 1
B47: Pricing Approach (select one) | E47: MSRP Less Discounts | H47: =IF(IFERROR(FIND("MSRP",_Base_V1_Pricing_Approach,1),0)>0,TRUE,FALSE) -> TRUE
B48: MSRP ($/Vehicle) | E48: 33600 | F48: =IF(_Market="U.S.", VLOOKUP(Base_V1_Type_Ex,DB_Vehicles[],COLUMN(DB_Vehicles[[#Headers],[Estimated Price]]),FALSE)*(1+_Forecast_Load_Vehicle_Price_Change), VLOOKUP(Base_V1_Type_Ex, REMOVE___DB_Vehicles__Canada[], COLUMN(REMOVE___DB_Vehicles__Canada[[#Headers],[MSRP]])-COLUMN(REMOVE___DB_Vehicles__Canada[[#Headers],[Selection Name]])+1,FALSE)) -> 30578.15846 | G48: =Base_V1_MSRP*(1+_Forecast_Start_Vehicle_Price_Change) -> 33600 | H48: =SUMIFS(DB_Vehicle_Prices_Future[% Change],DB_Vehicle_Prices_Future[Scenario],_Forecast_Scenario,DB_Vehicle_Prices_Future[Year],_Forecast_Start_Year, DB_Vehicle_Prices_Future[Drivetrain Type], _Base_V1_Vehicle_Drivetrain,DB_Vehicle_Prices_Future[Use Case], VLOOKUP(Base_V1_Type_Ex,DB_Vehicles[],COLUMN(DB_Vehicles[[#Headers],[Use Case]]),FALSE)) -> -0.08993576017
B49: Value of Negotiated Discounts off MSRP ($/Vehicle) | E49: 0 | G49: =Base_V1_Discounts -> 0 | H49: =SUMIFS(DB_Vehicle_Prices_Future[% Change],DB_Vehicle_Prices_Future[Scenario],_Forecast_Scenario,DB_Vehicle_Prices_Future[Year],_Forecast_Start_Year, DB_Vehicle_Prices_Future[Drivetrain Type], _Base_V1_Vehicle_Drivetrain,DB_Vehicle_Prices_Future[Use Case], VLOOKUP(Base_V1_Type_Ex,DB_Vehicles[],COLUMN(DB_Vehicles[[#Headers],[Vehicle Type]]),FALSE)) -> 0
B50: Dealer Triple Net Price ($/Vehicle) | E50: =Base_V1_MSRP -> 33600 | G50: =Base_V1_List_Price -> 33600
B51: Dealer Markup ($/Vehicle) | E51: 0 | G51: =Base_V1_List_Price_Markup -> 0
B52: Total Base Price | E52: =IF(IFERROR(FIND("MSRP",_Base_V1_Pricing_Approach,1),0)>0,Base_V1_MSRP_Modeled-Base_V1_Discounts_Modeled,Base_V1_List_Price_Modeled+Base_V1_List_Price_Markup_Modeled) -> 33600
B53: Value of Federal Tax Incentives ($/Vehicle) | E53: 0 | F53: =IFERROR(IF(_Market="U.S.", VLOOKUP(Base_V1_Type_Ex, DB_Vehicle_Incentives[], MATCH("Federal Tax Credit", DB_Vehicle_Incentives[#Headers],0),FALSE), 0), 0) -> 0 | G53: =Base_V1_Federal_Tax_Incentives -> 0
B54: Value of State Tax Incentives ($/Vehicle) | E54: 0 | F54: =IFERROR(IF(_Market="U.S.", IF(VLOOKUP("Incentive Type", DB_Vehicle_Incentives[], MATCH(State_Ex, DB_Vehicle_Incentives[#Headers], 0), FALSE)="Tax", VLOOKUP(Base_V1_Type_Ex, DB_Vehicle_Incentives[], MATCH(State_Ex, DB_Vehicle_Incentives[#Headers], 0),FALSE),0), IF(VLOOKUP("Incentive Type", REMOVE___DB_Vehicle_Incentives__Canada[], MATCH(Province_Ex, REMOVE___DB_Vehicle_Incentives__Canada[#Headers], 0), FALSE)="Tax", VLOOKUP(Base_V1_Type_Ex, REMOVE___DB_Vehicle_Incentives__Canada[], MATCH(Province_Ex, REMOVE___DB_Vehicle_Incentives__Canada[#Headers], 0),FALSE),0)), 0) -> 0 | G54: =Base_V1_State_Tax_Incentives -> 0
B55: State Tax Incentive Cap ($) | E55: 0 | G55: =Base_V1_State_Tax_Incentive_Cap -> 0
B56: Value of Non-tax Incentives ($/Vehicle) | E56: 0 | F56: =IFERROR(IF(_Market="U.S.", IF(VLOOKUP("Incentive Type", DB_Vehicle_Incentives[], MATCH(State_Ex, DB_Vehicle_Incentives[#Headers], 0), FALSE)<>"Tax", VLOOKUP(Base_V1_Type_Ex, DB_Vehicle_Incentives[], MATCH(State_Ex, DB_Vehicle_Incentives[#Headers], 0),FALSE),0), IF(VLOOKUP("Incentive Type", REMOVE___DB_Vehicle_Incentives__Canada[], MATCH(Province_Ex, REMOVE___DB_Vehicle_Incentives__Canada[#Headers], 0), FALSE)<>"Tax", VLOOKUP(Base_V1_Type_Ex, REMOVE___DB_Vehicle_Incentives__Canada[], MATCH(Province_Ex, REMOVE___DB_Vehicle_Incentives__Canada[#Headers], 0),FALSE),0)), 0) -> 0 | G56: =Base_V1_Other_Incentives -> 0
B57: Initial Tax, Title, and Registration Cost ($/Vehicle) | E57: 974.4 | G57: =FV(Inflation_Rate_General, IF(_Forecast_Start_Year="", 0, _Forecast_Start_Year-_Baseline_Year), 0,-Base_V1_Initial_Taxes_Fees) -> 993.888
B58: Initial Fee as Percent of Vehicle Base Price (%)
B59: Ownership Structure | E59: Purchase (Cash) | H59: =IF(IFERROR(FIND("Cash",_Base_V1_Ownership_Structure,1),0)>0,TRUE,FALSE) -> TRUE
B60: Tax Credits Can Be Monetized? (Y/N) | E60: Yes | H60: =IF(IFERROR(FIND("Loan",_Base_V1_Ownership_Structure,1),0)>0,TRUE,FALSE) -> FALSE
H61: =IF(IFERROR(FIND("Lease",_Base_V1_Ownership_Structure,1),0)>0,TRUE,FALSE) -> FALSE
B62: Down Payment ($/Vehicle) | E62: 0 | G62: =Base_V1_Down_Payment -> 0
B63: Lease
B64: Lease Term (Years) | E64: 8 | G64: =Base_V1_Lease_Term -> 8 | H64: Data validation handled in VBA
B65: Lease Interest Rate (APR - %) | E65: 1 | G65: =Base_V1_Lease_APR -> 1
B66: OR
B67: Money Factor (#) | E67: 1 | G67: =Base_V1_Lease_Money_Factor -> 1
B68: Acquisition Fee ($/Vehicle) | E68: 1 | G68: =Base_V1_Lease_Acquisition_Fee -> 1
B69: Disposition Charge ($/Vehicle) | E69: 1 | G69: =Base_V1_Lease_Disposition_Fee -> 1
B70: Negotiated Residual Value ($/Vehicle) | E70: 1 | G70: =Base_V1_Lease_Residual_Price -> 1 | H70: =IF(IFERROR(FIND("Tax-Exempt",_Base_V1_Ownership_Structure,1),0)>0,IF(Base_V1_Lease_Residual_Price=1,TRUE,FALSE),TRUE) -> TRUE
B71: Mileage Included (Closed-End Only) | E71: 1 | G71: =Base_V1_Lease_Mileage_Inc -> 1
B72: Excess Mileage Cost ($/Mile) | E72: 1 | G72: =Base_V1_Lease_Mileage_Cost -> 1
B73: Loan
B74: Loan Term (Years) | E74: 7 | G74: =Base_V1_Loan_Term -> 7 | H74: Data validation handled in VBA
B75: Loan Interest Rate (APR - %) | E75: 0.07 | G75: =Base_V1_Loan_APR -> 0.07
B78: EV Charging Infrastructure Use and Installation Inputs
B79: Procurement 1 (Baseline)
B80: % Depot/Home Charging | E80: 1 | G80: =Base_Percent_Home_Charging -> 1
B81: % Public Charging | E81: 0 | G81: =Base_Percent_Public_Charging -> 0
B82: % En Route Charging | E82: 0 | G82: =Base_Percent_En_Route_Charging_Ex -> 0
B83: Charging Level | E83: 80A L2
B84: Maximum Power for Public Charging Only (kW) | E84: 150 | F84: =IF(_Base_Charging_Level="Level 2", 7.2, 50) -> 50 | G84: =Base_Station_Max_Power -> 150
B86: Annual % Change in Charging Equipment Cost (Between 2020 and 2030) | E86: 0
B87: Annual % Change in Construction & Equipment Installation Cost (Between 2020 and 2030) | E87: 0
B88: Annual % Change in Electric Utility Upgrades & Grid Interconnection Cost Cost (Between 2020 and 2030) | E88: 0
B90: Procurement Includes EV Charging? | E90: No
B91: Number of EV Charging Stations Needed (#) | E91: 1 | G91: =Base_Num_Stations -> 1
B92: Charging Equipment Cost ($/Station) | E92: 23769 | F92: =FV(_Forecast_EVSE_Cost_Change, IF(OR(_Forecast_Load_Year="", _Forecast_Load_Year>=2030), 0, _Forecast_Load_Year-2020), 0,-SUMIFS(DB_Charging_Infrastructure[Cost],DB_Charging_Infrastructure[Charging Level], _Base_Charging_Level, DB_Charging_Infrastructure[Market], _Market, DB_Charging_Infrastructure[Description],B92)) -> 0 | G92: =FV(Inflation_Rate_General, IF(_Forecast_Start_Year="", 0, _Forecast_Start_Year-_Baseline_Year), 0,-Base_Station_Cost) -> 24244.38 | H92: =SUM(G92:G94) -> 26467.98
B93: Construction & Equipment Installation Cost ($/Station) | E93: 2180 | F93: =FV(_Forecast_Construction_Cost_Change, IF(OR(_Forecast_Load_Year="", _Forecast_Load_Year>=2030), 0, _Forecast_Start_Year-2020), 0,-SUMIFS(DB_Charging_Infrastructure[Cost],DB_Charging_Infrastructure[Charging Level], _Base_Charging_Level, DB_Charging_Infrastructure[Market], _Market, DB_Charging_Infrastructure[Description],B93)) -> 0 | G93: =FV(Inflation_Rate_General, IF(_Forecast_Start_Year="", 0, _Forecast_Start_Year-_Baseline_Year), 0,-Base_Station_Construction_Cost) -> 2223.6
B94: Electric Utility Upgrades and Grid Interconnection Cost ($/Site) | E94: 0 | F94: =FV(_Forecast_Utility_Cost_Change, IF(OR(_Forecast_Load_Year="", _Forecast_Load_Year>=2030), 0, _Forecast_Load_Year-2020), 0,-SUMIFS(DB_Charging_Infrastructure[Cost],DB_Charging_Infrastructure[Charging Level], _Base_Charging_Level, DB_Charging_Infrastructure[Market], _Market, DB_Charging_Infrastructure[Description],B94)) -> 0 | G94: =FV(Inflation_Rate_General, IF(_Forecast_Start_Year="", 0, _Forecast_Start_Year-_Baseline_Year), 0,-Base_Station_Utility_Cost) -> 0
B95: Maintenance Cost ($/Station/Year) | E95: 713 | F95: =FV(Inflation_Rate_General, IF(_Forecast_Load_Year="", 0, _Forecast_Load_Year-_Baseline_Year), 0,-SUMIFS(DB_Charging_Infrastructure[Cost],DB_Charging_Infrastructure[Charging Level], _Base_Charging_Level, DB_Charging_Infrastructure[Market], _Market, DB_Charging_Infrastructure[Description],B95)) -> 0 | G95: =Base_Station_Maint_Cost -> 713
B96: Ownership Structure | E96: Purchase (Cash) | H96: =IF(IFERROR(FIND("Cash",_Base_Inf_Ownership_Structure,1),0)>0,TRUE,FALSE) -> TRUE
B97: Loan
B98: Cash Upfront / Down Payment ($) | E98: 1000 | G98: =Base_Inf_Down_Payment -> 1000
B99: Loan Term (Years) | E99: 3 | G99: =Base_Inf_Loan_Term -> 3
B100: Interest Rate (APR - %) | E100: 0.1 | G100: =Base_Inf_Loan_APR -> 0.1

Sheet Invalid VINs (hidden)
A1: ID | B1: VIN | C1: Decoded Use Case | D1: Decoded Full Vehicle Name

Sheet VIN Counts (hidden)
A1: Invalid VIN Count | C1: Valid VIN Count
A2: 0 | C2: 115

Sheet Financial Model (hidden)
A1: Financial Models - Dashboard for Rapid Vehicle Electrification
D2: Year 0 | E2: Year 1 | F2: Year 2 | G2: Year 3 | H2: Year 4 | I2: Year 5 | J2: Year 6 | K2: Year 7 | L2: Year 8 | M2: Year 9 | N2: Year 10 | O2: Year 11 | P2: Year 12 | Q2: Year 13 | R2: Year 14 | S2: Year 15 | T2: Year 16 | U2: Year 17 | V2: Year 18 | W2: Year 19 | X2: Year 20 | Y2: Year 21 | Z2: Year 22 | AA2: Year 23 | AB2: Year 24 | AC2: Year 25
B3: Baseline Vehicle 1
D4: Year 0 | E4: Year 1 | F4: Year 2 | G4: Year 3 | H4: Year 4 | I4: Year 5 | J4: Year 6 | K4: Year 7 | L4: Year 8 | M4: Year 9 | N4: Year 10 | O4: Year 11 | P4: Year 12 | Q4: Year 13 | R4: Year 14 | S4: Year 15 | T4: Year 16 | U4: Year 17 | V4: Year 18 | W4: Year 19 | X4: Year 20 | Y4: Year 21 | Z4: Year 22 | AA4: Year 23 | AB4: Year 24 | AC4: Year 25
B5: Depreciation Calculations
B6: Fair Market Value - BEV | D6: =IF(_Base_V1_Vehicle_Drivetrain="BEV",Base_V1_Base_Price_Ex,0) -> 33600 | E6: =IF(_Base_V1_Vehicle_Vehicle_Class=Const_Passenger_Light_Duty, IF(_Base_V1_Vehicle_Drivetrain="BEV",MAX(IF(_Base_V1_Vehicle_Drivetrain="BEV",(Reg_BEV_Const_Ex+Reg_BEV_Age_Coef_Ex*(COLUMN(E5)-COLUMN($D5))+Reg_BEV_Agesq_Coef_Ex*((COLUMN(E5)-COLUMN($D5))^2)+Reg_BEV_Range_Coef_Ex*Constant_Baseline_Electric_Range+Reg_BEV_Mileage_Coef_Ex*Base_V1_VMT_Modeled*(COLUMN(E5)-COLUMN($D5)))*Base_V1_MSRP_Modeled,0),300),0), IF(COLUMN(E5)-COLUMN($D5)=1, 'Financial Model'!D6*0.77, 'Financial Model'!D6*0.85)) -> 27055.94811 | F6: =IF(_Base_V1_Vehicle_Vehicle_Class=Const_Passenger_Light_Duty, IF(_Base_V1_Vehicle_Drivetrain="BEV",MAX(IF(_Base_V1_Vehicle_Drivetrain="BEV",(Reg_BEV_Const_Ex+Reg_BEV_Age_Coef_Ex*(COLUMN(F5)-COLUMN($D5))+Reg_BEV_Agesq_Coef_Ex*((COLUMN(F5)-COLUMN($D5))^2)+Reg_BEV_Range_Coef_Ex*Constant_Baseline_Electric_Range+Reg_BEV_Mileage_Coef_Ex*Base_V1_VMT_Modeled*(COLUMN(F5)-COLUMN($D5)))*Base_V1_MSRP_Modeled,0),300),0), IF(COLUMN(F5)-COLUMN($D5)=1, 'Financial Model'!E6*0.77, 'Financial Model'!E6*0.85)) -> 24029.81623 | G6: =IF(_Base_V1_Vehicle_Vehicle_Class=Const_Passenger_Light_Duty, IF(_Base_V1_Vehicle_Drivetrain="BEV",MAX(IF(_Base_V1_Vehicle_Drivetrain="BEV",(Reg_BEV_Const_Ex+Reg_BEV_Age_Coef_Ex*(COLUMN(G5)-COLUMN($D5))+Reg_BEV_Agesq_Coef_Ex*((COLUMN(G5)-COLUMN($D5))^2)+Reg_BEV_Range_Coef_Ex*Constant_Baseline_Electric_Range+Reg_BEV_Mileage_Coef_Ex*Base_V1_VMT_Modeled*(COLUMN(G5)-COLUMN($D5)))*Base_V1_MSRP_Modeled,0),300),0), IF(COLUMN(G5)-COLUMN($D5)=1, 'Financial Model'!F6*0.77, 'Financial Model'!F6*0.85)) -> 21427.04434 | H6: =IF(_Base_V1_Vehicle_Vehicle_Class=Const_Passenger_Light_Duty, IF(_Base_V1_Vehicle_Drivetrain="BEV",MAX(IF(_Base_V1_Vehicle_Drivetrain="BEV",(Reg_BEV_Const_Ex+Reg_BEV_Age_Coef_Ex*(COLUMN(H5)-COLUMN($D5))+Reg_BEV_Agesq_Coef_Ex*((COLUMN(H5)-COLUMN($D5))^2)+Reg_BEV_Range_Coef_Ex*Constant_Baseline_Electric_Range+Reg_BEV_Mileage_Coef_Ex*Base_V1_VMT_Modeled*(COLUMN(H5)-COLUMN($D5)))*Base_V1_MSRP_Modeled,0),300),0), IF(COLUMN(H5)-COLUMN($D5)=1, 'Financial Model'!G6*0.77, 'Financial Model'!G6*0.85)) -> 19247.63245 | I6: =IF(_Base_V1_Vehicle_Vehicle_Class=Const_Passenger_Light_Duty, IF(_Base_V1_Vehicle_Drivetrain="BEV",MAX(IF(_Base_V1_Vehicle_Drivetrain="BEV",(Reg_BEV_Const_Ex+Reg_BEV_Age_Coef_Ex*(COLUMN(I5)-COLUMN($D5))+Reg_BEV_Agesq_Coef_Ex*((COLUMN(I5)-COLUMN($D5))^2)+Reg_BEV_Range_Coef_Ex*Constant_Baseline_Electric_Range+Reg_BEV_Mileage_Coef_Ex*Base_V1_VMT_Modeled*(COLUMN(I5)-COLUMN($D5)))*Base_V1_MSRP_Modeled,0),300),0), IF(COLUMN(I5)-COLUMN($D5)=1, 'Financial Model'!H6*0.77, 'Financial Model'!H6*0.85)) -> 17491.58057 | J6: =IF(_Base_V1_Vehicle_Vehicle_Class=Const_Passenger_Light_Duty,IF($H6-$I6=0,0,MAX(Constant_DEP*I6, 300)), IF($H6-$I6=0,0,MAX((1-($H6-$I6)/$H6)*I6,300))) -> 16046.77601 | K6: 14721.31231 | L6: 13505.33192 | M6: 12389.7915 | N6: 11366.39472 | O6: 10427.53052 | P6: 9566.216498 | Q6: 8776.047015 | R6: 8051.145532 | S6: 7386.120911 | T6: 6776.027324 | U6: 6216.327467 | V6: 5702.858818 | W6: 5231.80268 | X6: 4799.655778 | Y6: 4403.204211 | Z6: 4039.499543 | AA6: 3705.836881 | AB6: 3399.734754 | AC6: 3118.916664
B7: Fair Market Value - PHEV | D7: =IF(_Base_V1_Vehicle_Drivetrain="PHEV",Base_V1_Base_Price_Ex,0) -> 0 | E7: =IF(_Base_V1_Vehicle_Vehicle_Class=Const_Passenger_Light_Duty,IF(_Base_V1_Vehicle_Drivetrain="PHEV",MAX(IF(_Base_V1_Vehicle_Drivetrain="PHEV",Reg_PHEV_Const_Ex+Reg_PHEV_Age_Coef_Ex*(COLUMN(E4)-COLUMN($D4))+Reg_PHEV_Agesq_Coef_Ex*((COLUMN(E4)-COLUMN($D4))^2)+Reg_PHEV_MSRP_Coef_Ex*Base_V1_Base_Price_Ex+Reg_PHEV_Range_Coef_Ex*Constant_Baseline_Electric_Range+Reg_PHEV_Mileage_Coef_Ex*Base_V1_VMT_Modeled*(COLUMN(E4)-COLUMN($D4)),0),300),0),IF(COLUMN(E4)-COLUMN($D4)=1, 'Financial Model'!D7*0.77, 'Financial Model'!D7*0.85)) -> 0 | F7: =IF(_Base_V1_Vehicle_Vehicle_Class=Const_Passenger_Light_Duty,IF(_Base_V1_Vehicle_Drivetrain="PHEV",MAX(IF(_Base_V1_Vehicle_Drivetrain="PHEV",Reg_PHEV_Const_Ex+Reg_PHEV_Age_Coef_Ex*(COLUMN(F4)-COLUMN($D4))+Reg_PHEV_Agesq_Coef_Ex*((COLUMN(F4)-COLUMN($D4))^2)+Reg_PHEV_MSRP_Coef_Ex*Base_V1_Base_Price_Ex+Reg_PHEV_Range_Coef_Ex*Constant_Baseline_Electric_Range+Reg_PHEV_Mileage_Coef_Ex*Base_V1_VMT_Modeled*(COLUMN(F4)-COLUMN($D4)),0),300),0),IF(COLUMN(F4)-COLUMN($D4)=1, 'Financial Model'!E7*0.77, 'Financial Model'!E7*0.85)) -> 0 | G7: =IF(_Base_V1_Vehicle_Vehicle_Class=Const_Passenger_Light_Duty,IF(_Base_V1_Vehicle_Drivetrain="PHEV",MAX(IF(_Base_V1_Vehicle_Drivetrain="PHEV",Reg_PHEV_Const_Ex+Reg_PHEV_Age_Coef_Ex*(COLUMN(G4)-COLUMN($D4))+Reg_PHEV_Agesq_Coef_Ex*((COLUMN(G4)-COLUMN($D4))^2)+Reg_PHEV_MSRP_Coef_Ex*Base_V1_Base_Price_Ex+Reg_PHEV_Range_Coef_Ex*Constant_Baseline_Electric_Range+Reg_PHEV_Mileage_Coef_Ex*Base_V1_VMT_Modeled*(COLUMN(G4)-COLUMN($D4)),0),300),0),IF(COLUMN(G4)-COLUMN($D4)=1, 'Financial Model'!F7*0.77, 'Financial Model'!F7*0.85)) -> 0 | H7: =IF(_Base_V1_Vehicle_Vehicle_Class=Const_Passenger_Light_Duty,IF(_Base_V1_Vehicle_Drivetrain="PHEV",MAX(IF(_Base_V1_Vehicle_Drivetrain="PHEV",Reg_PHEV_Const_Ex+Reg_PHEV_Age_Coef_Ex*(COLUMN(H4)-COLUMN($D4))+Reg_PHEV_Agesq_Coef_Ex*((COLUMN(H4)-COLUMN($D4))^2)+Reg_PHEV_MSRP_Coef_Ex*Base_V1_Base_Price_Ex+Reg_PHEV_Range_Coef_Ex*Constant_Baseline_Electric_Range+Reg_PHEV_Mileage_Coef_Ex*Base_V1_VMT_Modeled*(COLUMN(H4)-COLUMN($D4)),0),300),0),IF(COLUMN(H4)-COLUMN($D4)=1, 'Financial Model'!G7*0.77, 'Financial Model'!G7*0.85)) -> 0 | I7: =IF(_Base_V1_Vehicle_Vehicle_Class=Const_Passenger_Light_Duty,IF(_Base_V1_Vehicle_Drivetrain="PHEV",MAX(IF(_Base_V1_Vehicle_Drivetrain="PHEV",Reg_PHEV_Const_Ex+Reg_PHEV_Age_Coef_Ex*(COLUMN(I4)-COLUMN($D4))+Reg_PHEV_Agesq_Coef_Ex*((COLUMN(I4)-COLUMN($D4))^2)+Reg_PHEV_MSRP_Coef_Ex*Base_V1_Base_Price_Ex+Reg_PHEV_Range_Coef_Ex*Constant_Baseline_Electric_Range+Reg_PHEV_Mileage_Coef_Ex*Base_V1_VMT_Modeled*(COLUMN(I4)-COLUMN($D4)),0),300),0),IF(COLUMN(I4)-COLUMN($D4)=1, 'Financial Model'!H7*0.77, 'Financial Model'!H7*0.85)) -> 0 | J7: =IF(_Base_V1_Vehicle_Vehicle_Class=Const_Passenger_Light_Duty,IF($H7-$I7=0,0,MAX(Constant_DEP*I7, 300)), IF($H7-$I7=0,0,MAX((1-($H7-$I7)/$H7)*I7,300))) -> 0 | K7: 0 | L7: 0 | M7: 0 | N7: 0 | O7: 0 | P7: 0 | Q7: 0 | R7: 0 | S7: 0 | T7: 0 | U7: 0 | V7: 0 | W7: 0 | X7: 0 | Y7: 0 | Z7: 0 | AA7: 0 | AB7: 0 | AC7: 0
B8: Fair Market Value - ICE | D8: =IF(_Base_V1_Vehicle_Drivetrain="ICE",Base_V1_Base_Price_Ex,0) -> 0 | E8: =IF(_Base_V1_Vehicle_Vehicle_Class=Const_Passenger_Light_Duty, IF(_Base_V1_Vehicle_Drivetrain="ICE",MAX(IF(_Base_V1_Vehicle_Drivetrain="ICE",Reg_ICE_Const_Ex+Reg_ICE_Age_Coef_Ex*(COLUMN(E4)-COLUMN($D4))+Reg_ICE_Agesq_Coef_Ex*(COLUMN(E4)-COLUMN($D4))^2+Reg_ICE_MSRP_Coef_Ex*Base_V1_Base_Price_Ex+Reg_ICE_MPG_Coef_Ex*Constant_Baseline_Fuel_Economy_Gas_City+Reg_ICE_Mileage_Coef_Ex*Base_V1_VMT_Modeled*(COLUMN(E4)-COLUMN($D4)),0),300),0), IF(COLUMN(E4)-COLUMN($D4)=1, 'Financial Model'!D8*0.77, 'Financial Model'!D8*0.85)) -> 0 | F8: =IF(_Base_V1_Vehicle_Vehicle_Class=Const_Passenger_Light_Duty, IF(_Base_V1_Vehicle_Drivetrain="ICE",MAX(IF(_Base_V1_Vehicle_Drivetrain="ICE",Reg_ICE_Const_Ex+Reg_ICE_Age_Coef_Ex*(COLUMN(F4)-COLUMN($D4))+Reg_ICE_Agesq_Coef_Ex*(COLUMN(F4)-COLUMN($D4))^2+Reg_ICE_MSRP_Coef_Ex*Base_V1_Base_Price_Ex+Reg_ICE_MPG_Coef_Ex*Constant_Baseline_Fuel_Economy_Gas_City+Reg_ICE_Mileage_Coef_Ex*Base_V1_VMT_Modeled*(COLUMN(F4)-COLUMN($D4)),0),300),0), IF(COLUMN(F4)-COLUMN($D4)=1, 'Financial Model'!E8*0.77, 'Financial Model'!E8*0.85)) -> 0 | G8: =IF(_Base_V1_Vehicle_Vehicle_Class=Const_Passenger_Light_Duty, IF(_Base_V1_Vehicle_Drivetrain="ICE",MAX(IF(_Base_V1_Vehicle_Drivetrain="ICE",Reg_ICE_Const_Ex+Reg_ICE_Age_Coef_Ex*(COLUMN(G4)-COLUMN($D4))+Reg_ICE_Agesq_Coef_Ex*(COLUMN(G4)-COLUMN($D4))^2+Reg_ICE_MSRP_Coef_Ex*Base_V1_Base_Price_Ex+Reg_ICE_MPG_Coef_Ex*Constant_Baseline_Fuel_Economy_Gas_City+Reg_ICE_Mileage_Coef_Ex*Base_V1_VMT_Modeled*(COLUMN(G4)-COLUMN($D4)),0),300),0), IF(COLUMN(G4)-COLUMN($D4)=1, 'Financial Model'!F8*0.77, 'Financial Model'!F8*0.85)) -> 0 | H8: =IF(_Base_V1_Vehicle_Vehicle_Class=Const_Passenger_Light_Duty, IF(_Base_V1_Vehicle_Drivetrain="ICE",MAX(IF(_Base_V1_Vehicle_Drivetrain="ICE",Reg_ICE_Const_Ex+Reg_ICE_Age_Coef_Ex*(COLUMN(H4)-COLUMN($D4))+Reg_ICE_Agesq_Coef_Ex*(COLUMN(H4)-COLUMN($D4))^2+Reg_ICE_MSRP_Coef_Ex*Base_V1_Base_Price_Ex+Reg_ICE_MPG_Coef_Ex*Constant_Baseline_Fuel_Economy_Gas_City+Reg_ICE_Mileage_Coef_Ex*Base_V1_VMT_Modeled*(COLUMN(H4)-COLUMN($D4)),0),300),0), IF(COLUMN(H4)-COLUMN($D4)=1, 'Financial Model'!G8*0.77, 'Financial Model'!G8*0.85)) -> 0 | I8: =IF(_Base_V1_Vehicle_Vehicle_Class=Const_Passenger_Light_Duty, IF(_Base_V1_Vehicle_Drivetrain="ICE",MAX(IF(_Base_V1_Vehicle_Drivetrain="ICE",Reg_ICE_Const_Ex+Reg_ICE_Age_Coef_Ex*(COLUMN(I4)-COLUMN($D4))+Reg_ICE_Agesq_Coef_Ex*(COLUMN(I4)-COLUMN($D4))^2+Reg_ICE_MSRP_Coef_Ex*Base_V1_Base_Price_Ex+Reg_ICE_MPG_Coef_Ex*Constant_Baseline_Fuel_Economy_Gas_City+Reg_ICE_Mileage_Coef_Ex*Base_V1_VMT_Modeled*(COLUMN(I4)-COLUMN($D4)),0),300),0), IF(COLUMN(I4)-COLUMN($D4)=1, 'Financial Model'!H8*0.77, 'Financial Model'!H8*0.85)) -> 0 | J8: =IF(_Base_V1_Vehicle_Vehicle_Class=Const_Passenger_Light_Duty,IF($H8-$I8=0,0,MAX(Constant_DEP*I8, 300)), IF($H8-$I8=0,0,MAX((1-($H8-$I8)/$H8)*I8,300))) -> 0 | K8: 0 | L8: 0 | M8: 0 | N8: 0 | O8: 0 | P8: 0 | Q8: 0 | R8: 0 | S8: 0 | T8: 0 | U8: 0 | V8: 0 | W8: 0 | X8: 0 | Y8: 0 | Z8: 0 | AA8: 0 | AB8: 0 | AC8: 0
B10: Capital and Financing Costs
B11: Cash
B12: Cash Payment | D12: =IF(AND(Base_V1_Has_Cash_Purchase_Ex=TRUE,Base_V1_Has_Loan_Ex=FALSE,Base_V1_Has_Lease_Ex=FALSE,COLUMN(D4)-COLUMN($D4)=0),-(Base_V1_Base_Price_Ex-IF(Base_V1_Tax_Incentives_Monetized="Yes",Base_V1_Federal_Tax_Incentives_Modeled+IF(Base_V1_State_Tax_Incentive_Cap_Modeled=0,Base_V1_State_Tax_Incentives_Modeled,MIN(Base_V1_State_Tax_Incentive_Cap_Modeled,Base_V1_State_Tax_Incentives_Modeled*Base_V1_Num_Vehicles_Modeled)/Base_V1_Num_Vehicles_Modeled),0)-Base_V1_Other_Incentives_Modeled),IF(AND(Base_V1_Has_Cash_Purchase_Ex=TRUE,OR(Base_V1_Has_Loan_Ex=TRUE,Base_V1_Has_Lease_Ex=TRUE),COLUMN(D4)-COLUMN($D4)=Base_V1_Lease_Term_Modeled),IF(ISERROR(FIND("Tax",_Base_V1_Ownership_Structure,1)),-SUM(D6:D8),-Base_V1_Lease_Residual_Price_Modeled),0)) -> -33600 | E12: 0 | F12: 0 | G12: 0 | H12: 0 | I12: 0 | J12: 0 | K12: 0 | L12: 0 | M12: 0 | N12: 0 | O12: 0 | P12: 0 | Q12: 0 | R12: 0 | S12: 0 | T12: 0 | U12: 0 | V12: 0 | W12: 0 | X12: 0 | Y12: 0 | Z12: 0 | AA12: 0 | AB12: 0 | AC12: 0
B13: Lease
B14: Down Payment | D14: =IF(Base_V1_Has_Lease_Ex=TRUE,-Base_V1_Down_Payment_Modeled,0) -> 0
B15: Acquisition Fee | D15: =IF(Base_V1_Has_Lease_Ex=TRUE,-Base_V1_Lease_Acquisition_Fee_Modeled,0) -> 0
B16: Disposition Charge | D16: =IF(AND(Base_V1_Has_Lease_Ex=TRUE,((COLUMN(D4)-COLUMN($D4))=Base_V1_Lease_Term_Modeled)),-Base_V1_Lease_Disposition_Fee_Modeled,0) -> 0 | E16: 0 | F16: 0 | G16: 0 | H16: 0 | I16: 0 | J16: 0 | K16: 0 | L16: 0 | M16: 0 | N16: 0 | O16: 0 | P16: 0 | Q16: 0 | R16: 0 | S16: 0 | T16: 0 | U16: 0 | V16: 0 | W16: 0 | X16: 0 | Y16: 0 | Z16: 0 | AA16: 0 | AB16: 0 | AC16: 0
B17: Lease Payments | E17: =IF(Base_V1_Has_Lease_Ex=TRUE,IF((COLUMN(E4)-COLUMN($E4))<Base_V1_Lease_Term_Modeled,-PMT(Base_V1_Lease_APR_Modeled/12,Base_V1_Lease_Term_Modeled*12,-(Base_V1_Base_Price_Ex-IF(Base_V1_Tax_Incentives_Monetized="Yes",Base_V1_Federal_Tax_Incentives_Modeled+IF(Base_V1_State_Tax_Incentive_Cap_Modeled=0,Base_V1_State_Tax_Incentives_Modeled,MIN(Base_V1_State_Tax_Incentive_Cap_Modeled,Base_V1_State_Tax_Incentives_Modeled*Base_V1_Num_Vehicles_Modeled)/Base_V1_Num_Vehicles_Modeled),0)-Base_V1_Other_Incentives_Modeled-Base_V1_Down_Payment_Modeled)+Base_V1_Lease_Residual_Price_Modeled,0)*12,0),0) -> 0 | F17: 0 | G17: 0 | H17: 0 | I17: 0 | J17: 0 | K17: 0 | L17: 0 | M17: 0 | N17: 0 | O17: 0 | P17: 0 | Q17: 0 | R17: 0 | S17: 0 | T17: 0 | U17: 0 | V17: 0 | W17: 0 | X17: 0 | Y17: 0 | Z17: 0 | AA17: 0 | AB17: 0 | AC17: 0
B18: Principal Payments | E18: =IF(Base_V1_Has_Lease_Ex=TRUE,IF((COLUMN(E4)-COLUMN($E4))<Base_V1_Lease_Term_Modeled,-PPMT(Base_V1_Lease_APR_Modeled/12,(COLUMN(E4)-COLUMN($D4))*12,Base_V1_Lease_Term_Modeled*12,-(Base_V1_Base_Price_Ex-IF(Base_V1_Tax_Incentives_Monetized="Yes",Base_V1_Federal_Tax_Incentives_Modeled+IF(Base_V1_State_Tax_Incentive_Cap_Modeled=0,Base_V1_State_Tax_Incentives_Modeled,MIN(Base_V1_State_Tax_Incentive_Cap_Modeled,Base_V1_State_Tax_Incentives_Modeled*Base_V1_Num_Vehicles_Modeled)/Base_V1_Num_Vehicles_Modeled),0)-Base_V1_Other_Incentives_Modeled-Base_V1_Down_Payment_Modeled)+Base_V1_Lease_Residual_Price_Modeled,0)*12,0),0) -> 0 | F18: 0 | G18: 0 | H18: 0 | I18: 0 | J18: 0 | K18: 0 | L18: 0 | M18: 0 | N18: 0 | O18: 0 | P18: 0 | Q18: 0 | R18: 0 | S18: 0 | T18: 0 | U18: 0 | V18: 0 | W18: 0 | X18: 0 | Y18: 0 | Z18: 0 | AA18: 0 | AB18: 0 | AC18: 0
B19: Interest Payments | E19: =IF(Base_V1_Has_Lease_Ex=TRUE,IF((COLUMN(E4)-COLUMN($E4))<Base_V1_Lease_Term_Modeled,-IPMT(Base_V1_Lease_APR_Modeled/12,(COLUMN(E4)-COLUMN($D4))*12,Base_V1_Lease_Term_Modeled*12,-(Base_V1_Base_Price_Ex-IF(Base_V1_Tax_Incentives_Monetized="Yes",Base_V1_Federal_Tax_Incentives_Modeled+IF(Base_V1_State_Tax_Incentive_Cap_Modeled=0,Base_V1_State_Tax_Incentives_Modeled,MIN(Base_V1_State_Tax_Incentive_Cap_Modeled,Base_V1_State_Tax_Incentives_Modeled*Base_V1_Num_Vehicles_Modeled)/Base_V1_Num_Vehicles_Modeled),0)-Base_V1_Other_Incentives_Modeled-Base_V1_Down_Payment_Modeled)+Base_V1_Lease_Residual_Price_Modeled,0)*12,0),0) -> 0 | F19: 0 | G19: 0 | H19: 0 | I19: 0 | J19: 0 | K19: 0 | L19: 0 | M19: 0 | N19: 0 | O19: 0 | P19: 0 | Q19: 0 | R19: 0 | S19: 0 | T19: 0 | U19: 0 | V19: 0 | W19: 0 | X19: 0 | Y19: 0 | Z19: 0 | AA19: 0 | AB19: 0 | AC19: 0
B20: TRAC Value Adjustment | E20: =IF(ISERROR(FIND("TRAC",_Base_V1_Ownership_Structure,1)),0,IF(Base_V1_Has_Loan_Ex=TRUE,0,IF((COLUMN(E4)-COLUMN($D4))=Base_V1_Lease_Term_Modeled,SUM(E6:E8)-Base_V1_Lease_Residual_Price_Modeled,0))) -> 0 | F20: 0 | G20: 0 | H20: 0 | I20: 0 | J20: 0 | K20: 0 | L20: 0 | M20: 0 | N20: 0 | O20: 0 | P20: 0 | Q20: 0 | R20: 0 | S20: 0 | T20: 0 | U20: 0 | V20: 0 | W20: 0 | X20: 0 | Y20: 0 | Z20: 0 | AA20: 0 | AB20: 0 | AC20: 0
B21: FMV Mileage Adjustment | E21: =MIN(0,MAX(-Base_V1_Lease_Residual_Price_Modeled+SUM(E6:E8),IF(IFERROR(IF(FIND("FMV",_Base_V1_Ownership_Structure,1)>0,TRUE,FALSE),FALSE),IF((COLUMN(E4)-COLUMN($D4))=Base_V1_Lease_Term_Modeled,(Base_V1_Lease_Mileage_Inc_Modeled-Base_V1_VMT_Modeled)*(COLUMN(E4)-COLUMN($D4))*Base_V1_Lease_Mileage_Cost_Modeled,0),0))) -> 0 | F21: 0 | G21: 0 | H21: 0 | I21: 0 | J21: 0 | K21: 0 | L21: 0 | M21: 0 | N21: 0 | O21: 0 | P21: 0 | Q21: 0 | R21: 0 | S21: 0 | T21: 0 | U21: 0 | V21: 0 | W21: 0 | X21: 0 | Y21: 0 | Z21: 0 | AA21: 0 | AB21: 0 | AC21: 0
B22: Subtotal Lease Cash Flows | D22: =SUM(D14:D17)+SUM(D20:D21) -> 0 | E22: =SUM(E14:E17)+SUM(E20:E21) -> 0 | F22: 0 | G22: 0 | H22: 0 | I22: 0 | J22: 0 | K22: 0 | L22: 0 | M22: 0 | N22: 0 | O22: 0 | P22: 0 | Q22: 0 | R22: 0 | S22: 0 | T22: 0 | U22: 0 | V22: 0 | W22: 0 | X22: 0 | Y22: 0 | Z22: 0 | AA22: 0 | AB22: 0 | AC22: 0
B23: Loan
B24: Down Payment | D24: =IF(AND(Base_V1_Has_Loan_Ex=TRUE,Base_V1_Has_Lease_Ex=FALSE),-Base_V1_Down_Payment_Modeled,0) -> 0
B25: Loan Payments | E25: =IF(Base_V1_Has_Loan_Ex=TRUE,IF(AND((COLUMN(E4)-COLUMN($E4))<Base_V1_Loan_Term_Modeled+Base_V1_Lease_Term_Modeled,(COLUMN(E4)-COLUMN($E4))>=Base_V1_Lease_Term_Modeled),PMT(Base_V1_Loan_APR_Modeled,Base_V1_Loan_Term_Modeled,IF(Base_V1_Has_Lease_Ex=TRUE,SUM(OFFSET($D4,0,Comp_V1_Lease_Term_Modeled,3,1)),Base_V1_Base_Price_Ex-IF(Base_V1_Tax_Incentives_Monetized="Yes",Base_V1_Federal_Tax_Incentives_Modeled+IF(Base_V1_State_Tax_Incentive_Cap_Modeled=0,Base_V1_State_Tax_Incentives_Modeled,MIN(Base_V1_State_Tax_Incentive_Cap_Modeled,Base_V1_State_Tax_Incentives_Modeled*Base_V1_Num_Vehicles_Modeled)/Base_V1_Num_Vehicles_Modeled),0)-Base_V1_Other_Incentives_Modeled-Base_V1_Down_Payment_Modeled),0),0),0) -> 0 | F25: 0 | G25: 0 | H25: 0 | I25: 0 | J25: 0 | K25: 0 | L25: 0 | M25: 0 | N25: 0 | O25: 0 | P25: 0 | Q25: 0 | R25: 0 | S25: 0 | T25: 0 | U25: 0 | V25: 0 | W25: 0 | X25: 0 | Y25: 0 | Z25: 0 | AA25: 0 | AB25: 0 | AC25: 0
B26: Principal Payments | E26: =IF(Base_V1_Has_Loan_Ex=TRUE,IF(AND((COLUMN(E4)-COLUMN($E4))<Base_V1_Loan_Term_Modeled+Base_V1_Lease_Term_Modeled,(COLUMN(E4)-COLUMN($E4))>=Base_V1_Lease_Term_Modeled),PPMT(Base_V1_Loan_APR_Modeled,IF(Base_V1_Has_Lease_Ex=TRUE,(COLUMN(E4)-COLUMN($D4)-Base_V1_Lease_Term_Modeled),(COLUMN(E4)-COLUMN($D4))),Base_V1_Loan_Term_Modeled,IF(Base_V1_Has_Lease_Ex=TRUE,SUM(OFFSET($D4,0,Comp_V1_Lease_Term_Modeled,3,1)),Base_V1_Base_Price_Ex-IF(Base_V1_Tax_Incentives_Monetized="Yes",Base_V1_Federal_Tax_Incentives_Modeled+IF(Base_V1_State_Tax_Incentive_Cap_Modeled=0,Base_V1_State_Tax_Incentives_Modeled,MIN(Base_V1_State_Tax_Incentive_Cap_Modeled,Base_V1_State_Tax_Incentives_Modeled*Base_V1_Num_Vehicles_Modeled)/Base_V1_Num_Vehicles_Modeled),0)-Base_V1_Other_Incentives_Modeled-Base_V1_Down_Payment_Modeled),0),0),0) -> 0 | F26: 0 | G26: 0 | H26: 0 | I26: 0 | J26: 0 | K26: 0 | L26: 0 | M26: 0 | N26: 0 | O26: 0 | P26: 0 | Q26: 0 | R26: 0 | S26: 0 | T26: 0 | U26: 0 | V26: 0 | W26: 0 | X26: 0 | Y26: 0 | Z26: 0 | AA26: 0 | AB26: 0 | AC26: 0
B27: Interest Payments | E27: =IF(Base_V1_Has_Loan_Ex=TRUE,IF(AND((COLUMN(E4)-COLUMN($E4))<Base_V1_Loan_Term_Modeled+Base_V1_Lease_Term_Modeled,(COLUMN(E4)-COLUMN($E4))>=Base_V1_Lease_Term_Modeled),IPMT(Base_V1_Loan_APR_Modeled,IF(Base_V1_Has_Lease_Ex=TRUE,(COLUMN(E4)-COLUMN($D4)-Base_V1_Lease_Term),(COLUMN(E4)-COLUMN($D4))),Base_V1_Loan_Term_Modeled,IF(Base_V1_Has_Lease_Ex=TRUE,SUM(OFFSET($D4,0,Comp_V1_Lease_Term_Modeled,3,1)),Base_V1_Base_Price_Ex-IF(Base_V1_Tax_Incentives_Monetized="Yes",Base_V1_Federal_Tax_Incentives_Modeled+IF(Base_V1_State_Tax_Incentive_Cap_Modeled=0,Base_V1_State_Tax_Incentives_Modeled,MIN(Base_V1_State_Tax_Incentive_Cap_Modeled,Base_V1_State_Tax_Incentives_Modeled*Base_V1_Num_Vehicles_Modeled)/Base_V1_Num_Vehicles_Modeled),0)-Base_V1_Other_Incentives_Modeled-Base_V1_Down_Payment_Modeled),0),0),0) -> 0 | F27: 0 | G27: 0 | H27: 0 | I27: 0 | J27: 0 | K27: 0 | L27: 0 | M27: 0 | N27: 0 | O27: 0 | P27: 0 | Q27: 0 | R27: 0 | S27: 0 | T27: 0 | U27: 0 | V27: 0 | W27: 0 | X27: 0 | Y27: 0 | Z27: 0 | AA27: 0 | AB27: 0 | AC27: 0
B28: Subtotal Loan Cash Flows | D28: =SUM(D24:D25) -> 0 | E28: =SUM(E24:E25) -> 0 | F28: 0 | G28: 0 | H28: 0 | I28: 0 | J28: 0 | K28: 0 | L28: 0 | M28: 0 | N28: 0 | O28: 0 | P28: 0 | Q28: 0 | R28: 0 | S28: 0 | T28: 0 | U28: 0 | V28: 0 | W28: 0 | X28: 0 | Y28: 0 | Z28: 0 | AA28: 0 | AB28: 0 | AC28: 0
B29: Terminal Value | E29: =IF(OR(Base_V1_Has_Loan_Ex=TRUE,Base_V1_Has_Cash_Purchase_Ex=TRUE),IF((COLUMN(E4)-COLUMN($D4))=Base_V1_Years_Usage_Modeled,SUM(E6:E8),0),0) -> 0 | F29: 0 | G29: 0 | H29: 0 | I29: 0 | J29: 0 | K29: 0 | L29: 13505.33192 | M29: 0 | N29: 0 | O29: 0 | P29: 0 | Q29: 0 | R29: 0 | S29: 0 | T29: 0 | U29: 0 | V29: 0 | W29: 0 | X29: 0 | Y29: 0 | Z29: 0 | AA29: 0 | AB29: 0 | AC29: 0
B31: Total Capital and Financing Costs | D31: =D12+D22+D28+D29 -> -33600 | E31: =E12+E22+E28+E29 -> 0 | F31: =F12+F22+F28+F29 -> 0 | G31: 0 | H31: 0 | I31: 0 | J31: 0 | K31: 0 | L31: 13505.33192 | M31: 0 | N31: 0 | O31: 0 | P31: 0 | Q31: 0 | R31: 0 | S31: 0 | T31: 0 | U31: 0 | V31: 0 | W31: 0 | X31: 0 | Y31: 0 | Z31: 0 | AA31: 0 | AB31: 0 | AC31: 0
B33: Fuel and Operating Costs
B34: Fuel Cost | E34: =IF(COLUMN(E4)-COLUMN($E4)<Base_V1_Years_Usage_Modeled,-((Base_V1_Gas_Diesel_Usage_Ex*IF(Base_V1_Fuel_Type_Ex="Diesel", Diesel_Price_Modeled, Gasoline_Price_Modeled)*IF(_Market="U.S.", 'Data - Energy Inflation'!D$4, 'Data - Energy Inflation'!D$7))+(Base_V1_Electricity_Usage_Ex*IF(_Market="U.S.", 'Data - Energy Inflation'!D$6, 'Data - Energy Inflation'!D$8))*(Base_Percent_Home_Charging_Modeled*Electricity_Price_Modeled+Base_Percent_Public_Charging_Modeled*Public_Charging_Price_Modeled+Base_Percent_En_Route_Charging_Modeled*En_Route_Charging_Price_Modeled)),0) -> -327.5980506 | F34: =IF(COLUMN(F4)-COLUMN($E4)<Base_V1_Years_Usage_Modeled,-((Base_V1_Gas_Diesel_Usage_Ex*IF(Base_V1_Fuel_Type_Ex="Diesel", Diesel_Price_Modeled, Gasoline_Price_Modeled)*IF(_Market="U.S.", 'Data - Energy Inflation'!E$4, 'Data - Energy Inflation'!E$7))+(Base_V1_Electricity_Usage_Ex*IF(_Market="U.S.", 'Data - Energy Inflation'!E$6, 'Data - Energy Inflation'!E$8))*(Base_Percent_Home_Charging_Modeled*Electricity_Price_Modeled+Base_Percent_Public_Charging_Modeled*Public_Charging_Price_Modeled+Base_Percent_En_Route_Charging_Modeled*En_Route_Charging_Price_Modeled)),0) -> -342.1573891 | G34: =IF(COLUMN(G4)-COLUMN($E4)<Base_V1_Years_Usage_Modeled,-((Base_V1_Gas_Diesel_Usage_Ex*IF(Base_V1_Fuel_Type_Ex="Diesel", Diesel_Price_Modeled, Gasoline_Price_Modeled)*IF(_Market="U.S.", 'Data - Energy Inflation'!F$4, 'Data - Energy Inflation'!F$7))+(Base_V1_Electricity_Usage_Ex*IF(_Market="U.S.", 'Data - Energy Inflation'!F$6, 'Data - Energy Inflation'!F$8))*(Base_Percent_Home_Charging_Modeled*Electricity_Price_Modeled+Base_Percent_Public_Charging_Modeled*Public_Charging_Price_Modeled+Base_Percent_En_Route_Charging_Modeled*En_Route_Charging_Price_Modeled)),0) -> -334.8961724 | H34: =IF(COLUMN(H4)-COLUMN($E4)<Base_V1_Years_Usage_Modeled,-((Base_V1_Gas_Diesel_Usage_Ex*IF(Base_V1_Fuel_Type_Ex="Diesel", Diesel_Price_Modeled, Gasoline_Price_Modeled)*IF(_Market="U.S.", 'Data - Energy Inflation'!G$4, 'Data - Energy Inflation'!G$7))+(Base_V1_Electricity_Usage_Ex*IF(_Market="U.S.", 'Data - Energy Inflation'!G$6, 'Data - Energy Inflation'!G$8))*(Base_Percent_Home_Charging_Modeled*Electricity_Price_Modeled+Base_Percent_Public_Charging_Modeled*Public_Charging_Price_Modeled+Base_Percent_En_Route_Charging_Modeled*En_Route_Charging_Price_Modeled)),0) -> -328.5642959 | I34: =IF(COLUMN(I4)-COLUMN($E4)<Base_V1_Years_Usage_Modeled,-((Base_V1_Gas_Diesel_Usage_Ex*IF(Base_V1_Fuel_Type_Ex="Diesel", Diesel_Price_Modeled, Gasoline_Price_Modeled)*IF(_Market="U.S.", 'Data - Energy Inflation'!H$4, 'Data - Energy Inflation'!H$7))+(Base_V1_Electricity_Usage_Ex*IF(_Market="U.S.", 'Data - Energy Inflation'!H$6, 'Data - Energy Inflation'!H$8))*(Base_Percent_Home_Charging_Modeled*Electricity_Price_Modeled+Base_Percent_Public_Charging_Modeled*Public_Charging_Price_Modeled+Base_Percent_En_Route_Charging_Modeled*En_Route_Charging_Price_Modeled)),0) -> -323.716671 | J34: =IF(COLUMN(J4)-COLUMN($E4)<Base_V1_Years_Usage_Modeled,-((Base_V1_Gas_Diesel_Usage_Ex*IF(Base_V1_Fuel_Type_Ex="Diesel", Diesel_Price_Modeled, Gasoline_Price_Modeled)*IF(_Market="U.S.", 'Data - Energy Inflation'!I$4, 'Data - Energy Inflation'!I$7))+(Base_V1_Electricity_Usage_Ex*IF(_Market="U.S.", 'Data - Energy Inflation'!I$6, 'Data - Energy Inflation'!I$8))*(Base_Percent_Home_Charging_Modeled*Electricity_Price_Modeled+Base_Percent_Public_Charging_Modeled*Public_Charging_Price_Modeled+Base_Percent_En_Route_Charging_Modeled*En_Route_Charging_Price_Modeled)),0) -> -323.5776823 | K34: =IF(COLUMN(K4)-COLUMN($E4)<Base_V1_Years_Usage_Modeled,-((Base_V1_Gas_Diesel_Usage_Ex*IF(Base_V1_Fuel_Type_Ex="Diesel", Diesel_Price_Modeled, Gasoline_Price_Modeled)*IF(_Market="U.S.", 'Data - Energy Inflation'!J$4, 'Data - Energy Inflation'!J$7))+(Base_V1_Electricity_Usage_Ex*IF(_Market="U.S.", 'Data - Energy Inflation'!J$6, 'Data - Energy Inflation'!J$8))*(Base_Percent_Home_Charging_Modeled*Electricity_Price_Modeled+Base_Percent_Public_Charging_Modeled*Public_Charging_Price_Modeled+Base_Percent_En_Route_Charging_Modeled*En_Route_Charging_Price_Modeled)),0) -> -325.6759215 | L34: =IF(COLUMN(L4)-COLUMN($E4)<Base_V1_Years_Usage_Modeled,-((Base_V1_Gas_Diesel_Usage_Ex*IF(Base_V1_Fuel_Type_Ex="Diesel", Diesel_Price_Modeled, Gasoline_Price_Modeled)*IF(_Market="U.S.", 'Data - Energy Inflation'!K$4, 'Data - Energy Inflation'!K$7))+(Base_V1_Electricity_Usage_Ex*IF(_Market="U.S.", 'Data - Energy Inflation'!K$6, 'Data - Energy Inflation'!K$8))*(Base_Percent_Home_Charging_Modeled*Electricity_Price_Modeled+Base_Percent_Public_Charging_Modeled*Public_Charging_Price_Modeled+Base_Percent_En_Route_Charging_Modeled*En_Route_Charging_Price_Modeled)),0) -> -326.5306524 | M34: =IF(COLUMN(M4)-COLUMN($E4)<Base_V1_Years_Usage_Modeled,-((Base_V1_Gas_Diesel_Usage_Ex*IF(Base_V1_Fuel_Type_Ex="Diesel", Diesel_Price_Modeled, Gasoline_Price_Modeled)*IF(_Market="U.S.", 'Data - Energy Inflation'!L$4, 'Data - Energy Inflation'!L$7))+(Base_V1_Electricity_Usage_Ex*IF(_Market="U.S.", 'Data - Energy Inflation'!L$6, 'Data - Energy Inflation'!L$8))*(Base_Percent_Home_Charging_Modeled*Electricity_Price_Modeled+Base_Percent_Public_Charging_Modeled*Public_Charging_Price_Modeled+Base_Percent_En_Route_Charging_Modeled*En_Route_Charging_Price_Modeled)),0) -> 0 | N34: =IF(COLUMN(N4)-COLUMN($E4)<Base_V1_Years_Usage_Modeled,-((Base_V1_Gas_Diesel_Usage_Ex*IF(Base_V1_Fuel_Type_Ex="Diesel", Diesel_Price_Modeled, Gasoline_Price_Modeled)*IF(_Market="U.S.", 'Data - Energy Inflation'!M$4, 'Data - Energy Inflation'!M$7))+(Base_V1_Electricity_Usage_Ex*IF(_Market="U.S.", 'Data - Energy Inflation'!M$6, 'Data - Energy Inflation'!M$8))*(Base_Percent_Home_Charging_Modeled*Electricity_Price_Modeled+Base_Percent_Public_Charging_Modeled*Public_Charging_Price_Modeled+Base_Percent_En_Route_Charging_Modeled*En_Route_Charging_Price_Modeled)),0) -> 0 | O34: =IF(COLUMN(O4)-COLUMN($E4)<Base_V1_Years_Usage_Modeled,-((Base_V1_Gas_Diesel_Usage_Ex*IF(Base_V1_Fuel_Type_Ex="Diesel", Diesel_Price_Modeled, Gasoline_Price_Modeled)*IF(_Market="U.S.", 'Data - Energy Inflation'!N$4, 'Data - Energy Inflation'!N$7))+(Base_V1_Electricity_Usage_Ex*IF(_Market="U.S.", 'Data - Energy Inflation'!N$6, 'Data - Energy Inflation'!N$8))*(Base_Percent_Home_Charging_Modeled*Electricity_Price_Modeled+Base_Percent_Public_Charging_Modeled*Public_Charging_Price_Modeled+Base_Percent_En_Route_Charging_Modeled*En_Route_Charging_Price_Modeled)),0) -> 0 | P34: =IF(COLUMN(P4)-COLUMN($E4)<Base_V1_Years_Usage_Modeled,-((Base_V1_Gas_Diesel_Usage_Ex*IF(Base_V1_Fuel_Type_Ex="Diesel", Diesel_Price_Modeled, Gasoline_Price_Modeled)*IF(_Market="U.S.", 'Data - Energy Inflation'!O$4, 'Data - Energy Inflation'!O$7))+(Base_V1_Electricity_Usage_Ex*IF(_Market="U.S.", 'Data - Energy Inflation'!O$6, 'Data - Energy Inflation'!O$8))*(Base_Percent_Home_Charging_Modeled*Electricity_Price_Modeled+Base_Percent_Public_Charging_Modeled*Public_Charging_Price_Modeled+Base_Percent_En_Route_Charging_Modeled*En_Route_Charging_Price_Modeled)),0) -> 0 | Q34: =IF(COLUMN(Q4)-COLUMN($E4)<Base_V1_Years_Usage_Modeled,-((Base_V1_Gas_Diesel_Usage_Ex*IF(Base_V1_Fuel_Type_Ex="Diesel", Diesel_Price_Modeled, Gasoline_Price_Modeled)*IF(_Market="U.S.", 'Data - Energy Inflation'!P$4, 'Data - Energy Inflation'!P$7))+(Base_V1_Electricity_Usage_Ex*IF(_Market="U.S.", 'Data - Energy Inflation'!P$6, 'Data - Energy Inflation'!P$8))*(Base_Percent_Home_Charging_Modeled*Electricity_Price_Modeled+Base_Percent_Public_Charging_Modeled*Public_Charging_Price_Modeled+Base_Percent_En_Route_Charging_Modeled*En_Route_Charging_Price_Modeled)),0) -> 0 | R34: =IF(COLUMN(R4)-COLUMN($E4)<Base_V1_Years_Usage_Modeled,-((Base_V1_Gas_Diesel_Usage_Ex*IF(Base_V1_Fuel_Type_Ex="Diesel", Diesel_Price_Modeled, Gasoline_Price_Modeled)*IF(_Market="U.S.", 'Data - Energy Inflation'!Q$4, 'Data - Energy Inflation'!Q$7))+(Base_V1_Electricity_Usage_Ex*IF(_Market="U.S.", 'Data - Energy Inflation'!Q$6, 'Data - Energy Inflation'!Q$8))*(Base_Percent_Home_Charging_Modeled*Electricity_Price_Modeled+Base_Percent_Public_Charging_Modeled*Public_Charging_Price_Modeled+Base_Percent_En_Route_Charging_Modeled*En_Route_Charging_Price_Modeled)),0) -> 0 | S34: =IF(COLUMN(S4)-COLUMN($E4)<Base_V1_Years_Usage_Modeled,-((Base_V1_Gas_Diesel_Usage_Ex*IF(Base_V1_Fuel_Type_Ex="Diesel", Diesel_Price_Modeled, Gasoline_Price_Modeled)*IF(_Market="U.S.", 'Data - Energy Inflation'!R$4, 'Data - Energy Inflation'!R$7))+(Base_V1_Electricity_Usage_Ex*IF(_Market="U.S.", 'Data - Energy Inflation'!R$6, 'Data - Energy Inflation'!R$8))*(Base_Percent_Home_Charging_Modeled*Electricity_Price_Modeled+Base_Percent_Public_Charging_Modeled*Public_Charging_Price_Modeled+Base_Percent_En_Route_Charging_Modeled*En_Route_Charging_Price_Modeled)),0) -> 0 | T34: =IF(COLUMN(T4)-COLUMN($E4)<Base_V1_Years_Usage_Modeled,-((Base_V1_Gas_Diesel_Usage_Ex*IF(Base_V1_Fuel_Type_Ex="Diesel", Diesel_Price_Modeled, Gasoline_Price_Modeled)*IF(_Market="U.S.", 'Data - Energy Inflation'!S$4, 'Data - Energy Inflation'!S$7))+(Base_V1_Electricity_Usage_Ex*IF(_Market="U.S.", 'Data - Energy Inflation'!S$6, 'Data - Energy Inflation'!S$8))*(Base_Percent_Home_Charging_Modeled*Electricity_Price_Modeled+Base_Percent_Public_Charging_Modeled*Public_Charging_Price_Modeled+Base_Percent_En_Route_Charging_Modeled*En_Route_Charging_Price_Modeled)),0) -> 0 | U34: =IF(COLUMN(U4)-COLUMN($E4)<Base_V1_Years_Usage_Modeled,-((Base_V1_Gas_Diesel_Usage_Ex*IF(Base_V1_Fuel_Type_Ex="Diesel", Diesel_Price_Modeled, Gasoline_Price_Modeled)*IF(_Market="U.S.", 'Data - Energy Inflation'!T$4, 'Data - Energy Inflation'!T$7))+(Base_V1_Electricity_Usage_Ex*IF(_Market="U.S.", 'Data - Energy Inflation'!T$6, 'Data - Energy Inflation'!T$8))*(Base_Percent_Home_Charging_Modeled*Electricity_Price_Modeled+Base_Percent_Public_Charging_Modeled*Public_Charging_Price_Modeled+Base_Percent_En_Route_Charging_Modeled*En_Route_Charging_Price_Modeled)),0) -> 0 | V34: =IF(COLUMN(V4)-COLUMN($E4)<Base_V1_Years_Usage_Modeled,-((Base_V1_Gas_Diesel_Usage_Ex*IF(Base_V1_Fuel_Type_Ex="Diesel", Diesel_Price_Modeled, Gasoline_Price_Modeled)*IF(_Market="U.S.", 'Data - Energy Inflation'!U$4, 'Data - Energy Inflation'!U$7))+(Base_V1_Electricity_Usage_Ex*IF(_Market="U.S.", 'Data - Energy Inflation'!U$6, 'Data - Energy Inflation'!U$8))*(Base_Percent_Home_Charging_Modeled*Electricity_Price_Modeled+Base_Percent_Public_Charging_Modeled*Public_Charging_Price_Modeled+Base_Percent_En_Route_Charging_Modeled*En_Route_Charging_Price_Modeled)),0) -> 0 | W34: =IF(COLUMN(W4)-COLUMN($E4)<Base_V1_Years_Usage_Modeled,-((Base_V1_Gas_Diesel_Usage_Ex*IF(Base_V1_Fuel_Type_Ex="Diesel", Diesel_Price_Modeled, Gasoline_Price_Modeled)*IF(_Market="U.S.", 'Data - Energy Inflation'!V$4, 'Data - Energy Inflation'!V$7))+(Base_V1_Electricity_Usage_Ex*IF(_Market="U.S.", 'Data - Energy Inflation'!V$6, 'Data - Energy Inflation'!V$8))*(Base_Percent_Home_Charging_Modeled*Electricity_Price_Modeled+Base_Percent_Public_Charging_Modeled*Public_Charging_Price_Modeled+Base_Percent_En_Route_Charging_Modeled*En_Route_Charging_Price_Modeled)),0) -> 0 | X34: =IF(COLUMN(X4)-COLUMN($E4)<Base_V1_Years_Usage_Modeled,-((Base_V1_Gas_Diesel_Usage_Ex*IF(Base_V1_Fuel_Type_Ex="Diesel", Diesel_Price_Modeled, Gasoline_Price_Modeled)*IF(_Market="U.S.", 'Data - Energy Inflation'!W$4, 'Data - Energy Inflation'!W$7))+(Base_V1_Electricity_Usage_Ex*IF(_Market="U.S.", 'Data - Energy Inflation'!W$6, 'Data - Energy Inflation'!W$8))*(Base_Percent_Home_Charging_Modeled*Electricity_Price_Modeled+Base_Percent_Public_Charging_Modeled*Public_Charging_Price_Modeled+Base_Percent_En_Route_Charging_Modeled*En_Route_Charging_Price_Modeled)),0) -> 0 | Y34: =IF(COLUMN(Y4)-COLUMN($E4)<Base_V1_Years_Usage_Modeled,-((Base_V1_Gas_Diesel_Usage_Ex*IF(Base_V1_Fuel_Type_Ex="Diesel", Diesel_Price_Modeled, Gasoline_Price_Modeled)*IF(_Market="U.S.", 'Data - Energy Inflation'!X$4, 'Data - Energy Inflation'!X$7))+(Base_V1_Electricity_Usage_Ex*IF(_Market="U.S.", 'Data - Energy Inflation'!X$6, 'Data - Energy Inflation'!X$8))*(Base_Percent_Home_Charging_Modeled*Electricity_Price_Modeled+Base_Percent_Public_Charging_Modeled*Public_Charging_Price_Modeled+Base_Percent_En_Route_Charging_Modeled*En_Route_Charging_Price_Modeled)),0) -> 0 | Z34: =IF(COLUMN(Z4)-COLUMN($E4)<Base_V1_Years_Usage_Modeled,-((Base_V1_Gas_Diesel_Usage_Ex*IF(Base_V1_Fuel_Type_Ex="Diesel", Diesel_Price_Modeled, Gasoline_Price_Modeled)*IF(_Market="U.S.", 'Data - Energy Inflation'!Y$4, 'Data - Energy Inflation'!Y$7))+(Base_V1_Electricity_Usage_Ex*IF(_Market="U.S.", 'Data - Energy Inflation'!Y$6, 'Data - Energy Inflation'!Y$8))*(Base_Percent_Home_Charging_Modeled*Electricity_Price_Modeled+Base_Percent_Public_Charging_Modeled*Public_Charging_Price_Modeled+Base_Percent_En_Route_Charging_Modeled*En_Route_Charging_Price_Modeled)),0) -> 0 | AA34: =IF(COLUMN(AA4)-COLUMN($E4)<Base_V1_Years_Usage_Modeled,-((Base_V1_Gas_Diesel_Usage_Ex*IF(Base_V1_Fuel_Type_Ex="Diesel", Diesel_Price_Modeled, Gasoline_Price_Modeled)*IF(_Market="U.S.", 'Data - Energy Inflation'!Z$4, 'Data - Energy Inflation'!Z$7))+(Base_V1_Electricity_Usage_Ex*IF(_Market="U.S.", 'Data - Energy Inflation'!Z$6, 'Data - Energy Inflation'!Z$8))*(Base_Percent_Home_Charging_Modeled*Electricity_Price_Modeled+Base_Percent_Public_Charging_Modeled*Public_Charging_Price_Modeled+Base_Percent_En_Route_Charging_Modeled*En_Route_Charging_Price_Modeled)),0) -> 0 | AB34: =IF(COLUMN(AB4)-COLUMN($E4)<Base_V1_Years_Usage_Modeled,-((Base_V1_Gas_Diesel_Usage_Ex*IF(Base_V1_Fuel_Type_Ex="Diesel", Diesel_Price_Modeled, Gasoline_Price_Modeled)*IF(_Market="U.S.", 'Data - Energy Inflation'!AA$4, 'Data - Energy Inflation'!AA$7))+(Base_V1_Electricity_Usage_Ex*IF(_Market="U.S.", 'Data - Energy Inflation'!AA$6, 'Data - Energy Inflation'!AA$8))*(Base_Percent_Home_Charging_Modeled*Electricity_Price_Modeled+Base_Percent_Public_Charging_Modeled*Public_Charging_Price_Modeled+Base_Percent_En_Route_Charging_Modeled*En_Route_Charging_Price_Modeled)),0) -> 0 | AC34: =IF(COLUMN(AC4)-COLUMN($E4)<Base_V1_Years_Usage_Modeled,-((Base_V1_Gas_Diesel_Usage_Ex*IF(Base_V1_Fuel_Type_Ex="Diesel", Diesel_Price_Modeled, Gasoline_Price_Modeled)*IF(_Market="U.S.", 'Data - Energy Inflation'!AB$4, 'Data - Energy Inflation'!AB$7))+(Base_V1_Electricity_Usage_Ex*IF(_Market="U.S.", 'Data - Energy Inflation'!AB$6, 'Data - Energy Inflation'!AB$8))*(Base_Percent_Home_Charging_Modeled*Electricity_Price_Modeled+Base_Percent_Public_Charging_Modeled*Public_Charging_Price_Modeled+Base_Percent_En_Route_Charging_Modeled*En_Route_Charging_Price_Modeled)),0) -> 0
B35: Maintenance and Repair Cost | E35: =-IF(_Base_V1_Maint_Repair_Cost_Use_Default="Yes",IF(COLUMN(E4)-COLUMN($E4)<Base_V1_Years_Usage_Modeled,VLOOKUP(_Base_V1_Vehicle_Vehicle_Class & _Base_V1_Vehicle_Drivetrain & _Market,DB_Maint_Repair_Costs[],COLUMN(E4)-COLUMN($E4)+COLUMN(DB_Maint_Repair_Costs[[#Headers],[Year 1 ]]),FALSE)*Base_V1_VMT_Modeled,0),IF(AND(COLUMN(E4)-COLUMN($E4)<Base_V1_Years_Usage_Modeled,COLUMN(E4)-COLUMN($E4)<5),Base_V1_Maint_Repair_Cost_Year_1_Modeled*Base_V1_VMT_Modeled,IF(AND(COLUMN(E4)-COLUMN($E4)<Base_V1_Years_Usage_Modeled,COLUMN(E4)-COLUMN($E4)>=5),Base_V1_Maint_Repair_Cost_Year_5_Modeled*Base_V1_VMT_Modeled,0)))*'Data General Inflation'!D$3 -> -192.1272 | F35: =-IF(_Base_V1_Maint_Repair_Cost_Use_Default="Yes",IF(COLUMN(F4)-COLUMN($E4)<Base_V1_Years_Usage_Modeled,VLOOKUP(_Base_V1_Vehicle_Vehicle_Class & _Base_V1_Vehicle_Drivetrain & _Market,DB_Maint_Repair_Costs[],COLUMN(F4)-COLUMN($E4)+COLUMN(DB_Maint_Repair_Costs[[#Headers],[Year 1 ]]),FALSE)*Base_V1_VMT_Modeled,0),IF(AND(COLUMN(F4)-COLUMN($E4)<Base_V1_Years_Usage_Modeled,COLUMN(F4)-COLUMN($E4)<5),Base_V1_Maint_Repair_Cost_Year_1_Modeled*Base_V1_VMT_Modeled,IF(AND(COLUMN(F4)-COLUMN($E4)<Base_V1_Years_Usage_Modeled,COLUMN(F4)-COLUMN($E4)>=5),Base_V1_Maint_Repair_Cost_Year_5_Modeled*Base_V1_VMT_Modeled,0)))*'Data General Inflation'!E$3 -> -195.969744 | G35: =-IF(_Base_V1_Maint_Repair_Cost_Use_Default="Yes",IF(COLUMN(G4)-COLUMN($E4)<Base_V1_Years_Usage_Modeled,VLOOKUP(_Base_V1_Vehicle_Vehicle_Class & _Base_V1_Vehicle_Drivetrain & _Market,DB_Maint_Repair_Costs[],COLUMN(G4)-COLUMN($E4)+COLUMN(DB_Maint_Repair_Costs[[#Headers],[Year 1 ]]),FALSE)*Base_V1_VMT_Modeled,0),IF(AND(COLUMN(G4)-COLUMN($E4)<Base_V1_Years_Usage_Modeled,COLUMN(G4)-COLUMN($E4)<5),Base_V1_Maint_Repair_Cost_Year_1_Modeled*Base_V1_VMT_Modeled,IF(AND(COLUMN(G4)-COLUMN($E4)<Base_V1_Years_Usage_Modeled,COLUMN(G4)-COLUMN($E4)>=5),Base_V1_Maint_Repair_Cost_Year_5_Modeled*Base_V1_VMT_Modeled,0)))*'Data General Inflation'!F$3 -> -199.8891389 | H35: =-IF(_Base_V1_Maint_Repair_Cost_Use_Default="Yes",IF(COLUMN(H4)-COLUMN($E4)<Base_V1_Years_Usage_Modeled,VLOOKUP(_Base_V1_Vehicle_Vehicle_Class & _Base_V1_Vehicle_Drivetrain & _Market,DB_Maint_Repair_Costs[],COLUMN(H4)-COLUMN($E4)+COLUMN(DB_Maint_Repair_Costs[[#Headers],[Year 1 ]]),FALSE)*Base_V1_VMT_Modeled,0),IF(AND(COLUMN(H4)-COLUMN($E4)<Base_V1_Years_Usage_Modeled,COLUMN(H4)-COLUMN($E4)<5),Base_V1_Maint_Repair_Cost_Year_1_Modeled*Base_V1_VMT_Modeled,IF(AND(COLUMN(H4)-COLUMN($E4)<Base_V1_Years_Usage_Modeled,COLUMN(H4)-COLUMN($E4)>=5),Base_V1_Maint_Repair_Cost_Year_5_Modeled*Base_V1_VMT_Modeled,0)))*'Data General Inflation'!G$3 -> -203.8869217 | I35: =-IF(_Base_V1_Maint_Repair_Cost_Use_Default="Yes",IF(COLUMN(I4)-COLUMN($E4)<Base_V1_Years_Usage_Modeled,VLOOKUP(_Base_V1_Vehicle_Vehicle_Class & _Base_V1_Vehicle_Drivetrain & _Market,DB_Maint_Repair_Costs[],COLUMN(I4)-COLUMN($E4)+COLUMN(DB_Maint_Repair_Costs[[#Headers],[Year 1 ]]),FALSE)*Base_V1_VMT_Modeled,0),IF(AND(COLUMN(I4)-COLUMN($E4)<Base_V1_Years_Usage_Modeled,COLUMN(I4)-COLUMN($E4)<5),Base_V1_Maint_Repair_Cost_Year_1_Modeled*Base_V1_VMT_Modeled,IF(AND(COLUMN(I4)-COLUMN($E4)<Base_V1_Years_Usage_Modeled,COLUMN(I4)-COLUMN($E4)>=5),Base_V1_Maint_Repair_Cost_Year_5_Modeled*Base_V1_VMT_Modeled,0)))*'Data General Inflation'!H$3 -> -207.9646601 | J35: =-IF(_Base_V1_Maint_Repair_Cost_Use_Default="Yes",IF(COLUMN(J4)-COLUMN($E4)<Base_V1_Years_Usage_Modeled,VLOOKUP(_Base_V1_Vehicle_Vehicle_Class & _Base_V1_Vehicle_Drivetrain & _Market,DB_Maint_Repair_Costs[],COLUMN(J4)-COLUMN($E4)+COLUMN(DB_Maint_Repair_Costs[[#Headers],[Year 1 ]]),FALSE)*Base_V1_VMT_Modeled,0),IF(AND(COLUMN(J4)-COLUMN($E4)<Base_V1_Years_Usage_Modeled,COLUMN(J4)-COLUMN($E4)<5),Base_V1_Maint_Repair_Cost_Year_1_Modeled*Base_V1_VMT_Modeled,IF(AND(COLUMN(J4)-COLUMN($E4)<Base_V1_Years_Usage_Modeled,COLUMN(J4)-COLUMN($E4)>=5),Base_V1_Maint_Repair_Cost_Year_5_Modeled*Base_V1_VMT_Modeled,0)))*'Data General Inflation'!I$3 -> -275.7611393 | K35: =-IF(_Base_V1_Maint_Repair_Cost_Use_Default="Yes",IF(COLUMN(K4)-COLUMN($E4)<Base_V1_Years_Usage_Modeled,VLOOKUP(_Base_V1_Vehicle_Vehicle_Class & _Base_V1_Vehicle_Drivetrain & _Market,DB_Maint_Repair_Costs[],COLUMN(K4)-COLUMN($E4)+COLUMN(DB_Maint_Repair_Costs[[#Headers],[Year 1 ]]),FALSE)*Base_V1_VMT_Modeled,0),IF(AND(COLUMN(K4)-COLUMN($E4)<Base_V1_Years_Usage_Modeled,COLUMN(K4)-COLUMN($E4)<5),Base_V1_Maint_Repair_Cost_Year_1_Modeled*Base_V1_VMT_Modeled,IF(AND(COLUMN(K4)-COLUMN($E4)<Base_V1_Years_Usage_Modeled,COLUMN(K4)-COLUMN($E4)>=5),Base_V1_Maint_Repair_Cost_Year_5_Modeled*Base_V1_VMT_Modeled,0)))*'Data General Inflation'!J$3 -> -281.2763621 | L35: =-IF(_Base_V1_Maint_Repair_Cost_Use_Default="Yes",IF(COLUMN(L4)-COLUMN($E4)<Base_V1_Years_Usage_Modeled,VLOOKUP(_Base_V1_Vehicle_Vehicle_Class & _Base_V1_Vehicle_Drivetrain & _Market,DB_Maint_Repair_Costs[],COLUMN(L4)-COLUMN($E4)+COLUMN(DB_Maint_Repair_Costs[[#Headers],[Year 1 ]]),FALSE)*Base_V1_VMT_Modeled,0),IF(AND(COLUMN(L4)-COLUMN($E4)<Base_V1_Years_Usage_Modeled,COLUMN(L4)-COLUMN($E4)<5),Base_V1_Maint_Repair_Cost_Year_1_Modeled*Base_V1_VMT_Modeled,IF(AND(COLUMN(L4)-COLUMN($E4)<Base_V1_Years_Usage_Modeled,COLUMN(L4)-COLUMN($E4)>=5),Base_V1_Maint_Repair_Cost_Year_5_Modeled*Base_V1_VMT_Modeled,0)))*'Data General Inflation'!K$3 -> -286.9018893 | M35: =-IF(_Base_V1_Maint_Repair_Cost_Use_Default="Yes",IF(COLUMN(M4)-COLUMN($E4)<Base_V1_Years_Usage_Modeled,VLOOKUP(_Base_V1_Vehicle_Vehicle_Class & _Base_V1_Vehicle_Drivetrain & _Market,DB_Maint_Repair_Costs[],COLUMN(M4)-COLUMN($E4)+COLUMN(DB_Maint_Repair_Costs[[#Headers],[Year 1 ]]),FALSE)*Base_V1_VMT_Modeled,0),IF(AND(COLUMN(M4)-COLUMN($E4)<Base_V1_Years_Usage_Modeled,COLUMN(M4)-COLUMN($E4)<5),Base_V1_Maint_Repair_Cost_Year_1_Modeled*Base_V1_VMT_Modeled,IF(AND(COLUMN(M4)-COLUMN($E4)<Base_V1_Years_Usage_Modeled,COLUMN(M4)-COLUMN($E4)>=5),Base_V1_Maint_Repair_Cost_Year_5_Modeled*Base_V1_VMT_Modeled,0)))*'Data General Inflation'!L$3 -> 0 | N35: =-IF(_Base_V1_Maint_Repair_Cost_Use_Default="Yes",IF(COLUMN(N4)-COLUMN($E4)<Base_V1_Years_Usage_Modeled,VLOOKUP(_Base_V1_Vehicle_Vehicle_Class & _Base_V1_Vehicle_Drivetrain & _Market,DB_Maint_Repair_Costs[],COLUMN(N4)-COLUMN($E4)+COLUMN(DB_Maint_Repair_Costs[[#Headers],[Year 1 ]]),FALSE)*Base_V1_VMT_Modeled,0),IF(AND(COLUMN(N4)-COLUMN($E4)<Base_V1_Years_Usage_Modeled,COLUMN(N4)-COLUMN($E4)<5),Base_V1_Maint_Repair_Cost_Year_1_Modeled*Base_V1_VMT_Modeled,IF(AND(COLUMN(N4)-COLUMN($E4)<Base_V1_Years_Usage_Modeled,COLUMN(N4)-COLUMN($E4)>=5),Base_V1_Maint_Repair_Cost_Year_5_Modeled*Base_V1_VMT_Modeled,0)))*'Data General Inflation'!M$3 -> 0 | O35: =-IF(_Base_V1_Maint_Repair_Cost_Use_Default="Yes",IF(COLUMN(O4)-COLUMN($E4)<Base_V1_Years_Usage_Modeled,VLOOKUP(_Base_V1_Vehicle_Vehicle_Class & _Base_V1_Vehicle_Drivetrain & _Market,DB_Maint_Repair_Costs[],COLUMN(O4)-COLUMN($E4)+COLUMN(DB_Maint_Repair_Costs[[#Headers],[Year 1 ]]),FALSE)*Base_V1_VMT_Modeled,0),IF(AND(COLUMN(O4)-COLUMN($E4)<Base_V1_Years_Usage_Modeled,COLUMN(O4)-COLUMN($E4)<5),Base_V1_Maint_Repair_Cost_Year_1_Modeled*Base_V1_VMT_Modeled,IF(AND(COLUMN(O4)-COLUMN($E4)<Base_V1_Years_Usage_Modeled,COLUMN(O4)-COLUMN($E4)>=5),Base_V1_Maint_Repair_Cost_Year_5_Modeled*Base_V1_VMT_Modeled,0)))*'Data General Inflation'!N$3 -> 0 | P35: =-IF(_Base_V1_Maint_Repair_Cost_Use_Default="Yes",IF(COLUMN(P4)-COLUMN($E4)<Base_V1_Years_Usage_Modeled,VLOOKUP(_Base_V1_Vehicle_Vehicle_Class & _Base_V1_Vehicle_Drivetrain & _Market,DB_Maint_Repair_Costs[],COLUMN(P4)-COLUMN($E4)+COLUMN(DB_Maint_Repair_Costs[[#Headers],[Year 1 ]]),FALSE)*Base_V1_VMT_Modeled,0),IF(AND(COLUMN(P4)-COLUMN($E4)<Base_V1_Years_Usage_Modeled,COLUMN(P4)-COLUMN($E4)<5),Base_V1_Maint_Repair_Cost_Year_1_Modeled*Base_V1_VMT_Modeled,IF(AND(COLUMN(P4)-COLUMN($E4)<Base_V1_Years_Usage_Modeled,COLUMN(P4)-COLUMN($E4)>=5),Base_V1_Maint_Repair_Cost_Year_5_Modeled*Base_V1_VMT_Modeled,0)))*'Data General Inflation'!O$3 -> 0 | Q35: =-IF(_Base_V1_Maint_Repair_Cost_Use_Default="Yes",IF(COLUMN(Q4)-COLUMN($E4)<Base_V1_Years_Usage_Modeled,VLOOKUP(_Base_V1_Vehicle_Vehicle_Class & _Base_V1_Vehicle_Drivetrain & _Market,DB_Maint_Repair_Costs[],COLUMN(Q4)-COLUMN($E4)+COLUMN(DB_Maint_Repair_Costs[[#Headers],[Year 1 ]]),FALSE)*Base_V1_VMT_Modeled,0),IF(AND(COLUMN(Q4)-COLUMN($E4)<Base_V1_Years_Usage_Modeled,COLUMN(Q4)-COLUMN($E4)<5),Base_V1_Maint_Repair_Cost_Year_1_Modeled*Base_V1_VMT_Modeled,IF(AND(COLUMN(Q4)-COLUMN($E4)<Base_V1_Years_Usage_Modeled,COLUMN(Q4)-COLUMN($E4)>=5),Base_V1_Maint_Repair_Cost_Year_5_Modeled*Base_V1_VMT_Modeled,0)))*'Data General Inflation'!P$3 -> 0 | R35: =-IF(_Base_V1_Maint_Repair_Cost_Use_Default="Yes",IF(COLUMN(R4)-COLUMN($E4)<Base_V1_Years_Usage_Modeled,VLOOKUP(_Base_V1_Vehicle_Vehicle_Class & _Base_V1_Vehicle_Drivetrain & _Market,DB_Maint_Repair_Costs[],COLUMN(R4)-COLUMN($E4)+COLUMN(DB_Maint_Repair_Costs[[#Headers],[Year 1 ]]),FALSE)*Base_V1_VMT_Modeled,0),IF(AND(COLUMN(R4)-COLUMN($E4)<Base_V1_Years_Usage_Modeled,COLUMN(R4)-COLUMN($E4)<5),Base_V1_Maint_Repair_Cost_Year_1_Modeled*Base_V1_VMT_Modeled,IF(AND(COLUMN(R4)-COLUMN($E4)<Base_V1_Years_Usage_Modeled,COLUMN(R4)-COLUMN($E4)>=5),Base_V1_Maint_Repair_Cost_Year_5_Modeled*Base_V1_VMT_Modeled,0)))*'Data General Inflation'!Q$3 -> 0 | S35: =-IF(_Base_V1_Maint_Repair_Cost_Use_Default="Yes",IF(COLUMN(S4)-COLUMN($E4)<Base_V1_Years_Usage_Modeled,VLOOKUP(_Base_V1_Vehicle_Vehicle_Class & _Base_V1_Vehicle_Drivetrain & _Market,DB_Maint_Repair_Costs[],COLUMN(S4)-COLUMN($E4)+COLUMN(DB_Maint_Repair_Costs[[#Headers],[Year 1 ]]),FALSE)*Base_V1_VMT_Modeled,0),IF(AND(COLUMN(S4)-COLUMN($E4)<Base_V1_Years_Usage_Modeled,COLUMN(S4)-COLUMN($E4)<5),Base_V1_Maint_Repair_Cost_Year_1_Modeled*Base_V1_VMT_Modeled,IF(AND(COLUMN(S4)-COLUMN($E4)<Base_V1_Years_Usage_Modeled,COLUMN(S4)-COLUMN($E4)>=5),Base_V1_Maint_Repair_Cost_Year_5_Modeled*Base_V1_VMT_Modeled,0)))*'Data General Inflation'!R$3 -> 0 | T35: =-IF(_Base_V1_Maint_Repair_Cost_Use_Default="Yes",IF(COLUMN(T4)-COLUMN($E4)<Base_V1_Years_Usage_Modeled,VLOOKUP(_Base_V1_Vehicle_Vehicle_Class & _Base_V1_Vehicle_Drivetrain & _Market,DB_Maint_Repair_Costs[],COLUMN(T4)-COLUMN($E4)+COLUMN(DB_Maint_Repair_Costs[[#Headers],[Year 1 ]]),FALSE)*Base_V1_VMT_Modeled,0),IF(AND(COLUMN(T4)-COLUMN($E4)<Base_V1_Years_Usage_Modeled,COLUMN(T4)-COLUMN($E4)<5),Base_V1_Maint_Repair_Cost_Year_1_Modeled*Base_V1_VMT_Modeled,IF(AND(COLUMN(T4)-COLUMN($E4)<Base_V1_Years_Usage_Modeled,COLUMN(T4)-COLUMN($E4)>=5),Base_V1_Maint_Repair_Cost_Year_5_Modeled*Base_V1_VMT_Modeled,0)))*'Data General Inflation'!S$3 -> 0 | U35: =-IF(_Base_V1_Maint_Repair_Cost_Use_Default="Yes",IF(COLUMN(U4)-COLUMN($E4)<Base_V1_Years_Usage_Modeled,VLOOKUP(_Base_V1_Vehicle_Vehicle_Class & _Base_V1_Vehicle_Drivetrain & _Market,DB_Maint_Repair_Costs[],COLUMN(U4)-COLUMN($E4)+COLUMN(DB_Maint_Repair_Costs[[#Headers],[Year 1 ]]),FALSE)*Base_V1_VMT_Modeled,0),IF(AND(COLUMN(U4)-COLUMN($E4)<Base_V1_Years_Usage_Modeled,COLUMN(U4)-COLUMN($E4)<5),Base_V1_Maint_Repair_Cost_Year_1_Modeled*Base_V1_VMT_Modeled,IF(AND(COLUMN(U4)-COLUMN($E4)<Base_V1_Years_Usage_Modeled,COLUMN(U4)-COLUMN($E4)>=5),Base_V1_Maint_Repair_Cost_Year_5_Modeled*Base_V1_VMT_Modeled,0)))*'Data General Inflation'!T$3 -> 0 | V35: =-IF(_Base_V1_Maint_Repair_Cost_Use_Default="Yes",IF(COLUMN(V4)-COLUMN($E4)<Base_V1_Years_Usage_Modeled,VLOOKUP(_Base_V1_Vehicle_Vehicle_Class & _Base_V1_Vehicle_Drivetrain & _Market,DB_Maint_Repair_Costs[],COLUMN(V4)-COLUMN($E4)+COLUMN(DB_Maint_Repair_Costs[[#Headers],[Year 1 ]]),FALSE)*Base_V1_VMT_Modeled,0),IF(AND(COLUMN(V4)-COLUMN($E4)<Base_V1_Years_Usage_Modeled,COLUMN(V4)-COLUMN($E4)<5),Base_V1_Maint_Repair_Cost_Year_1_Modeled*Base_V1_VMT_Modeled,IF(AND(COLUMN(V4)-COLUMN($E4)<Base_V1_Years_Usage_Modeled,COLUMN(V4)-COLUMN($E4)>=5),Base_V1_Maint_Repair_Cost_Year_5_Modeled*Base_V1_VMT_Modeled,0)))*'Data General Inflation'!U$3 -> 0 | W35: =-IF(_Base_V1_Maint_Repair_Cost_Use_Default="Yes",IF(COLUMN(W4)-COLUMN($E4)<Base_V1_Years_Usage_Modeled,VLOOKUP(_Base_V1_Vehicle_Vehicle_Class & _Base_V1_Vehicle_Drivetrain & _Market,DB_Maint_Repair_Costs[],COLUMN(W4)-COLUMN($E4)+COLUMN(DB_Maint_Repair_Costs[[#Headers],[Year 1 ]]),FALSE)*Base_V1_VMT_Modeled,0),IF(AND(COLUMN(W4)-COLUMN($E4)<Base_V1_Years_Usage_Modeled,COLUMN(W4)-COLUMN($E4)<5),Base_V1_Maint_Repair_Cost_Year_1_Modeled*Base_V1_VMT_Modeled,IF(AND(COLUMN(W4)-COLUMN($E4)<Base_V1_Years_Usage_Modeled,COLUMN(W4)-COLUMN($E4)>=5),Base_V1_Maint_Repair_Cost_Year_5_Modeled*Base_V1_VMT_Modeled,0)))*'Data General Inflation'!V$3 -> 0 | X35: =-IF(_Base_V1_Maint_Repair_Cost_Use_Default="Yes",IF(COLUMN(X4)-COLUMN($E4)<Base_V1_Years_Usage_Modeled,VLOOKUP(_Base_V1_Vehicle_Vehicle_Class & _Base_V1_Vehicle_Drivetrain & _Market,DB_Maint_Repair_Costs[],COLUMN(X4)-COLUMN($E4)+COLUMN(DB_Maint_Repair_Costs[[#Headers],[Year 1 ]]),FALSE)*Base_V1_VMT_Modeled,0),IF(AND(COLUMN(X4)-COLUMN($E4)<Base_V1_Years_Usage_Modeled,COLUMN(X4)-COLUMN($E4)<5),Base_V1_Maint_Repair_Cost_Year_1_Modeled*Base_V1_VMT_Modeled,IF(AND(COLUMN(X4)-COLUMN($E4)<Base_V1_Years_Usage_Modeled,COLUMN(X4)-COLUMN($E4)>=5),Base_V1_Maint_Repair_Cost_Year_5_Modeled*Base_V1_VMT_Modeled,0)))*'Data General Inflation'!W$3 -> 0 | Y35: =-IF(_Base_V1_Maint_Repair_Cost_Use_Default="Yes",IF(COLUMN(Y4)-COLUMN($E4)<Base_V1_Years_Usage_Modeled,VLOOKUP(_Base_V1_Vehicle_Vehicle_Class & _Base_V1_Vehicle_Drivetrain & _Market,DB_Maint_Repair_Costs[],COLUMN(Y4)-COLUMN($E4)+COLUMN(DB_Maint_Repair_Costs[[#Headers],[Year 1 ]]),FALSE)*Base_V1_VMT_Modeled,0),IF(AND(COLUMN(Y4)-COLUMN($E4)<Base_V1_Years_Usage_Modeled,COLUMN(Y4)-COLUMN($E4)<5),Base_V1_Maint_Repair_Cost_Year_1_Modeled*Base_V1_VMT_Modeled,IF(AND(COLUMN(Y4)-COLUMN($E4)<Base_V1_Years_Usage_Modeled,COLUMN(Y4)-COLUMN($E4)>=5),Base_V1_Maint_Repair_Cost_Year_5_Modeled*Base_V1_VMT_Modeled,0)))*'Data General Inflation'!X$3 -> 0 | Z35: =-IF(_Base_V1_Maint_Repair_Cost_Use_Default="Yes",IF(COLUMN(Z4)-COLUMN($E4)<Base_V1_Years_Usage_Modeled,VLOOKUP(_Base_V1_Vehicle_Vehicle_Class & _Base_V1_Vehicle_Drivetrain & _Market,DB_Maint_Repair_Costs[],COLUMN(Z4)-COLUMN($E4)+COLUMN(DB_Maint_Repair_Costs[[#Headers],[Year 1 ]]),FALSE)*Base_V1_VMT_Modeled,0),IF(AND(COLUMN(Z4)-COLUMN($E4)<Base_V1_Years_Usage_Modeled,COLUMN(Z4)-COLUMN($E4)<5),Base_V1_Maint_Repair_Cost_Year_1_Modeled*Base_V1_VMT_Modeled,IF(AND(COLUMN(Z4)-COLUMN($E4)<Base_V1_Years_Usage_Modeled,COLUMN(Z4)-COLUMN($E4)>=5),Base_V1_Maint_Repair_Cost_Year_5_Modeled*Base_V1_VMT_Modeled,0)))*'Data General Inflation'!Y$3 -> 0 | AA35: =-IF(_Base_V1_Maint_Repair_Cost_Use_Default="Yes",IF(COLUMN(AA4)-COLUMN($E4)<Base_V1_Years_Usage_Modeled,VLOOKUP(_Base_V1_Vehicle_Vehicle_Class & _Base_V1_Vehicle_Drivetrain & _Market,DB_Maint_Repair_Costs[],COLUMN(AA4)-COLUMN($E4)+COLUMN(DB_Maint_Repair_Costs[[#Headers],[Year 1 ]]),FALSE)*Base_V1_VMT_Modeled,0),IF(AND(COLUMN(AA4)-COLUMN($E4)<Base_V1_Years_Usage_Modeled,COLUMN(AA4)-COLUMN($E4)<5),Base_V1_Maint_Repair_Cost_Year_1_Modeled*Base_V1_VMT_Modeled,IF(AND(COLUMN(AA4)-COLUMN($E4)<Base_V1_Years_Usage_Modeled,COLUMN(AA4)-COLUMN($E4)>=5),Base_V1_Maint_Repair_Cost_Year_5_Modeled*Base_V1_VMT_Modeled,0)))*'Data General Inflation'!Z$3 -> 0 | AB35: =-IF(_Base_V1_Maint_Repair_Cost_Use_Default="Yes",IF(COLUMN(AB4)-COLUMN($E4)<Base_V1_Years_Usage_Modeled,VLOOKUP(_Base_V1_Vehicle_Vehicle_Class & _Base_V1_Vehicle_Drivetrain & _Market,DB_Maint_Repair_Costs[],COLUMN(AB4)-COLUMN($E4)+COLUMN(DB_Maint_Repair_Costs[[#Headers],[Year 1 ]]),FALSE)*Base_V1_VMT_Modeled,0),IF(AND(COLUMN(AB4)-COLUMN($E4)<Base_V1_Years_Usage_Modeled,COLUMN(AB4)-COLUMN($E4)<5),Base_V1_Maint_Repair_Cost_Year_1_Modeled*Base_V1_VMT_Modeled,IF(AND(COLUMN(AB4)-COLUMN($E4)<Base_V1_Years_Usage_Modeled,COLUMN(AB4)-COLUMN($E4)>=5),Base_V1_Maint_Repair_Cost_Year_5_Modeled*Base_V1_VMT_Modeled,0)))*'Data General Inflation'!AA$3 -> 0 | AC35: =-IF(_Base_V1_Maint_Repair_Cost_Use_Default="Yes",IF(COLUMN(AC4)-COLUMN($E4)<Base_V1_Years_Usage_Modeled,VLOOKUP(_Base_V1_Vehicle_Vehicle_Class & _Base_V1_Vehicle_Drivetrain & _Market,DB_Maint_Repair_Costs[],COLUMN(AC4)-COLUMN($E4)+COLUMN(DB_Maint_Repair_Costs[[#Headers],[Year 1 ]]),FALSE)*Base_V1_VMT_Modeled,0),IF(AND(COLUMN(AC4)-COLUMN($E4)<Base_V1_Years_Usage_Modeled,COLUMN(AC4)-COLUMN($E4)<5),Base_V1_Maint_Repair_Cost_Year_1_Modeled*Base_V1_VMT_Modeled,IF(AND(COLUMN(AC4)-COLUMN($E4)<Base_V1_Years_Usage_Modeled,COLUMN(AC4)-COLUMN($E4)>=5),Base_V1_Maint_Repair_Cost_Year_5_Modeled*Base_V1_VMT_Modeled,0)))*'Data General Inflation'!AB$3 -> 0
B36: Taxes and Fees | D36: =-Base_V1_Initial_Taxes_Fees_Modeled-(Base_V1_Initial_Percent_Base_Price_Modeled*Base_V1_Base_Price_Ex) -> -993.888 | E36: =-IF(COLUMN(E4)-COLUMN($E4)<Base_V1_Years_Usage_Modeled,Base_V1_Taxes_Fees_Modeled,0)*'Data General Inflation'!D$3 -> 0 | F36: =-IF(COLUMN(F4)-COLUMN($E4)<Base_V1_Years_Usage_Modeled,Base_V1_Taxes_Fees_Modeled,0)*'Data General Inflation'!E$3 -> 0 | G36: =-IF(COLUMN(G4)-COLUMN($E4)<Base_V1_Years_Usage_Modeled,Base_V1_Taxes_Fees_Modeled,0)*'Data General Inflation'!F$3 -> 0 | H36: =-IF(COLUMN(H4)-COLUMN($E4)<Base_V1_Years_Usage_Modeled,Base_V1_Taxes_Fees_Modeled,0)*'Data General Inflation'!G$3 -> 0 | I36: =-IF(COLUMN(I4)-COLUMN($E4)<Base_V1_Years_Usage_Modeled,Base_V1_Taxes_Fees_Modeled,0)*'Data General Inflation'!H$3 -> 0 | J36: =-IF(COLUMN(J4)-COLUMN($E4)<Base_V1_Years_Usage_Modeled,Base_V1_Taxes_Fees_Modeled,0)*'Data General Inflation'!I$3 -> 0 | K36: =-IF(COLUMN(K4)-COLUMN($E4)<Base_V1_Years_Usage_Modeled,Base_V1_Taxes_Fees_Modeled,0)*'Data General Inflation'!J$3 -> 0 | L36: =-IF(COLUMN(L4)-COLUMN($E4)<Base_V1_Years_Usage_Modeled,Base_V1_Taxes_Fees_Modeled,0)*'Data General Inflation'!K$3 -> 0 | M36: =-IF(COLUMN(M4)-COLUMN($E4)<Base_V1_Years_Usage_Modeled,Base_V1_Taxes_Fees_Modeled,0)*'Data General Inflation'!L$3 -> 0 | N36: =-IF(COLUMN(N4)-COLUMN($E4)<Base_V1_Years_Usage_Modeled,Base_V1_Taxes_Fees_Modeled,0)*'Data General Inflation'!M$3 -> 0 | O36: =-IF(COLUMN(O4)-COLUMN($E4)<Base_V1_Years_Usage_Modeled,Base_V1_Taxes_Fees_Modeled,0)*'Data General Inflation'!N$3 -> 0 | P36: =-IF(COLUMN(P4)-COLUMN($E4)<Base_V1_Years_Usage_Modeled,Base_V1_Taxes_Fees_Modeled,0)*'Data General Inflation'!O$3 -> 0 | Q36: =-IF(COLUMN(Q4)-COLUMN($E4)<Base_V1_Years_Usage_Modeled,Base_V1_Taxes_Fees_Modeled,0)*'Data General Inflation'!P$3 -> 0 | R36: =-IF(COLUMN(R4)-COLUMN($E4)<Base_V1_Years_Usage_Modeled,Base_V1_Taxes_Fees_Modeled,0)*'Data General Inflation'!Q$3 -> 0 | S36: =-IF(COLUMN(S4)-COLUMN($E4)<Base_V1_Years_Usage_Modeled,Base_V1_Taxes_Fees_Modeled,0)*'Data General Inflation'!R$3 -> 0 | T36: =-IF(COLUMN(T4)-COLUMN($E4)<Base_V1_Years_Usage_Modeled,Base_V1_Taxes_Fees_Modeled,0)*'Data General Inflation'!S$3 -> 0 | U36: =-IF(COLUMN(U4)-COLUMN($E4)<Base_V1_Years_Usage_Modeled,Base_V1_Taxes_Fees_Modeled,0)*'Data General Inflation'!T$3 -> 0 | V36: =-IF(COLUMN(V4)-COLUMN($E4)<Base_V1_Years_Usage_Modeled,Base_V1_Taxes_Fees_Modeled,0)*'Data General Inflation'!U$3 -> 0 | W36: =-IF(COLUMN(W4)-COLUMN($E4)<Base_V1_Years_Usage_Modeled,Base_V1_Taxes_Fees_Modeled,0)*'Data General Inflation'!V$3 -> 0 | X36: =-IF(COLUMN(X4)-COLUMN($E4)<Base_V1_Years_Usage_Modeled,Base_V1_Taxes_Fees_Modeled,0)*'Data General Inflation'!W$3 -> 0 | Y36: =-IF(COLUMN(Y4)-COLUMN($E4)<Base_V1_Years_Usage_Modeled,Base_V1_Taxes_Fees_Modeled,0)*'Data General Inflation'!X$3 -> 0 | Z36: =-IF(COLUMN(Z4)-COLUMN($E4)<Base_V1_Years_Usage_Modeled,Base_V1_Taxes_Fees_Modeled,0)*'Data General Inflation'!Y$3 -> 0 | AA36: =-IF(COLUMN(AA4)-COLUMN($E4)<Base_V1_Years_Usage_Modeled,Base_V1_Taxes_Fees_Modeled,0)*'Data General Inflation'!Z$3 -> 0 | AB36: =-IF(COLUMN(AB4)-COLUMN($E4)<Base_V1_Years_Usage_Modeled,Base_V1_Taxes_Fees_Modeled,0)*'Data General Inflation'!AA$3 -> 0 | AC36: =-IF(COLUMN(AC4)-COLUMN($E4)<Base_V1_Years_Usage_Modeled,Base_V1_Taxes_Fees_Modeled,0)*'Data General Inflation'!AB$3 -> 0
B37: Insurance Cost | E37: =-IF(COLUMN(E4)-COLUMN($E4)<Base_V1_Years_Usage_Modeled,Base_V1_Insurance_Cost_Modeled,0)*'Data General Inflation'!D$3 -> -1194 | F37: =-IF(COLUMN(F4)-COLUMN($E4)<Base_V1_Years_Usage_Modeled,Base_V1_Insurance_Cost_Modeled,0)*'Data General Inflation'!E$3 -> -1217.88 | G37: =-IF(COLUMN(G4)-COLUMN($E4)<Base_V1_Years_Usage_Modeled,Base_V1_Insurance_Cost_Modeled,0)*'Data General Inflation'!F$3 -> -1242.2376 | H37: =-IF(COLUMN(H4)-COLUMN($E4)<Base_V1_Years_Usage_Modeled,Base_V1_Insurance_Cost_Modeled,0)*'Data General Inflation'!G$3 -> -1267.082352 | I37: =-IF(COLUMN(I4)-COLUMN($E4)<Base_V1_Years_Usage_Modeled,Base_V1_Insurance_Cost_Modeled,0)*'Data General Inflation'!H$3 -> -1292.423999 | J37: =-IF(COLUMN(J4)-COLUMN($E4)<Base_V1_Years_Usage_Modeled,Base_V1_Insurance_Cost_Modeled,0)*'Data General Inflation'!I$3 -> -1318.272479 | K37: =-IF(COLUMN(K4)-COLUMN($E4)<Base_V1_Years_Usage_Modeled,Base_V1_Insurance_Cost_Modeled,0)*'Data General Inflation'!J$3 -> -1344.637929 | L37: =-IF(COLUMN(L4)-COLUMN($E4)<Base_V1_Years_Usage_Modeled,Base_V1_Insurance_Cost_Modeled,0)*'Data General Inflation'!K$3 -> -1371.530687 | M37: =-IF(COLUMN(M4)-COLUMN($E4)<Base_V1_Years_Usage_Modeled,Base_V1_Insurance_Cost_Modeled,0)*'Data General Inflation'!L$3 -> 0 | N37: =-IF(COLUMN(N4)-COLUMN($E4)<Base_V1_Years_Usage_Modeled,Base_V1_Insurance_Cost_Modeled,0)*'Data General Inflation'!M$3 -> 0 | O37: =-IF(COLUMN(O4)-COLUMN($E4)<Base_V1_Years_Usage_Modeled,Base_V1_Insurance_Cost_Modeled,0)*'Data General Inflation'!N$3 -> 0 | P37: =-IF(COLUMN(P4)-COLUMN($E4)<Base_V1_Years_Usage_Modeled,Base_V1_Insurance_Cost_Modeled,0)*'Data General Inflation'!O$3 -> 0 | Q37: =-IF(COLUMN(Q4)-COLUMN($E4)<Base_V1_Years_Usage_Modeled,Base_V1_Insurance_Cost_Modeled,0)*'Data General Inflation'!P$3 -> 0 | R37: =-IF(COLUMN(R4)-COLUMN($E4)<Base_V1_Years_Usage_Modeled,Base_V1_Insurance_Cost_Modeled,0)*'Data General Inflation'!Q$3 -> 0 | S37: =-IF(COLUMN(S4)-COLUMN($E4)<Base_V1_Years_Usage_Modeled,Base_V1_Insurance_Cost_Modeled,0)*'Data General Inflation'!R$3 -> 0 | T37: =-IF(COLUMN(T4)-COLUMN($E4)<Base_V1_Years_Usage_Modeled,Base_V1_Insurance_Cost_Modeled,0)*'Data General Inflation'!S$3 -> 0 | U37: =-IF(COLUMN(U4)-COLUMN($E4)<Base_V1_Years_Usage_Modeled,Base_V1_Insurance_Cost_Modeled,0)*'Data General Inflation'!T$3 -> 0 | V37: =-IF(COLUMN(V4)-COLUMN($E4)<Base_V1_Years_Usage_Modeled,Base_V1_Insurance_Cost_Modeled,0)*'Data General Inflation'!U$3 -> 0 | W37: =-IF(COLUMN(W4)-COLUMN($E4)<Base_V1_Years_Usage_Modeled,Base_V1_Insurance_Cost_Modeled,0)*'Data General Inflation'!V$3 -> 0 | X37: =-IF(COLUMN(X4)-COLUMN($E4)<Base_V1_Years_Usage_Modeled,Base_V1_Insurance_Cost_Modeled,0)*'Data General Inflation'!W$3 -> 0 | Y37: =-IF(COLUMN(Y4)-COLUMN($E4)<Base_V1_Years_Usage_Modeled,Base_V1_Insurance_Cost_Modeled,0)*'Data General Inflation'!X$3 -> 0 | Z37: =-IF(COLUMN(Z4)-COLUMN($E4)<Base_V1_Years_Usage_Modeled,Base_V1_Insurance_Cost_Modeled,0)*'Data General Inflation'!Y$3 -> 0 | AA37: =-IF(COLUMN(AA4)-COLUMN($E4)<Base_V1_Years_Usage_Modeled,Base_V1_Insurance_Cost_Modeled,0)*'Data General Inflation'!Z$3 -> 0 | AB37: =-IF(COLUMN(AB4)-COLUMN($E4)<Base_V1_Years_Usage_Modeled,Base_V1_Insurance_Cost_Modeled,0)*'Data General Inflation'!AA$3 -> 0 | AC37: =-IF(COLUMN(AC4)-COLUMN($E4)<Base_V1_Years_Usage_Modeled,Base_V1_Insurance_Cost_Modeled,0)*'Data General Inflation'!AB$3 -> 0
B38: Subtotal Fuel and Operating Costs | D38: =SUM(D34:D37) -> -993.888 | E38: -1713.725251 | F38: -1756.007133 | G38: -1777.022911 | H38: -1799.53357 | I38: -1824.10533 | J38: -1917.611301 | K38: -1951.590212 | L38: -1984.963229 | M38: 0 | N38: 0 | O38: 0 | P38: 0 | Q38: 0 | R38: 0 | S38: 0 | T38: 0 | U38: 0 | V38: 0 | W38: 0 | X38: 0 | Y38: 0 | Z38: 0 | AA38: 0 | AB38: 0 | AC38: 0
B40: Other Costs
B41: Cost of Carbon | E41: =-IF(COLUMN(E4)-COLUMN($E4)<Base_V1_Years_Usage_Modeled,Base_V1_CO2_Ex/2204.62*Carbon_Price_Modeled,0) -> 0 | F41: 0 | G41: 0 | H41: 0 | I41: 0 | J41: 0 | K41: 0 | L41: 0 | M41: 0 | N41: 0 | O41: 0 | P41: 0 | Q41: 0 | R41: 0 | S41: 0 | T41: 0 | U41: 0 | V41: 0 | W41: 0 | X41: 0 | Y41: 0 | Z41: 0 | AA41: 0 | AB41: 0 | AC41: 0
B42: Cost of Downtime from Public Charging | E42: =-IF(AND(COLUMN(E5)-COLUMN($E5)<Base_V1_Years_Usage_Modeled, Cost_of_Downtime_from_Charging_Modeled<>0, Base_Station_Max_Power_Modeled<>0),(Base_V1_Electricity_Usage_Ex*Base_Percent_Public_Charging_Modeled)/Base_Station_Max_Power_Modeled*Cost_of_Downtime_from_Charging_Modeled, 0) -> 0 | F42: 0 | G42: 0 | H42: 0 | I42: 0 | J42: 0 | K42: 0 | L42: 0 | M42: 0 | N42: 0 | O42: 0 | P42: 0 | Q42: 0 | R42: 0 | S42: 0 | T42: 0 | U42: 0 | V42: 0 | W42: 0 | X42: 0 | Y42: 0 | Z42: 0 | AA42: 0 | AB42: 0 | AC42: 0
B43: Subtotal Other Costs | D43: =SUM(D41:D42) -> 0 | E43: =SUM(E41:E42) -> 0 | F43: =SUM(F41:F42) -> 0 | G43: 0 | H43: 0 | I43: 0 | J43: 0 | K43: 0 | L43: 0 | M43: 0 | N43: 0 | O43: 0 | P43: 0 | Q43: 0 | R43: 0 | S43: 0 | T43: 0 | U43: 0 | V43: 0 | W43: 0 | X43: 0 | Y43: 0 | Z43: 0 | AA43: 0 | AB43: 0 | AC43: 0
B45: Total Discounted Costs
B46: Total Annual Costs | D46: =D31+D38+D43 -> -34593.888 | E46: -1713.725251 | F46: -1756.007133 | G46: -1777.022911 | H46: -1799.53357 | I46: -1824.10533 | J46: -1917.611301 | K46: -1951.590212 | L46: 11520.36869 | M46: 0 | N46: 0 | O46: 0 | P46: 0 | Q46: 0 | R46: 0 | S46: 0 | T46: 0 | U46: 0 | V46: 0 | W46: 0 | X46: 0 | Y46: 0 | Z46: 0 | AA46: 0 | AB46: 0 | AC46: 0
B47: Discount Factor | C47: =Base_Discount_Rate_Modeled -> 0.02 | D47: =(1/(1+$C47))^(COLUMN(D4)-COLUMN($D4)) -> 1 | E47: 0.9803921569 | F47: 0.9611687812 | G47: 0.9423223345 | H47: 0.923845426 | I47: 0.9057308098 | J47: 0.8879713822 | K47: 0.8705601786 | L47: 0.8534903712 | M47: 0.8367552659 | N47: 0.8203482999 | O47: 0.8042630391 | P47: 0.7884931756 | Q47: 0.7730325251 | R47: 0.7578750246 | S47: 0.74301473 | T47: 0.7284458137 | U47: 0.7141625625 | V47: 0.700159375 | W47: 0.6864307598 | X47: 0.6729713331 | Y47: 0.6597758168 | Z47: 0.6468390361 | AA47: 0.6341559177 | AB47: 0.6217214879 | AC47: 0.6095308705
B48: Discounted Total | D48: =D46*D47 -> -34593.888 | E48: =E46*E47 -> -1680.122795 | F48: =F46*F47 -> -1687.819236 | G48: -1674.528378 | H48: -1662.490857 | I48: -1652.148398 | J48: -1702.783957 | K48: -1698.976724 | L48: 9832.523748 | M48: 0 | N48: 0 | O48: 0 | P48: 0 | Q48: 0 | R48: 0 | S48: 0 | T48: 0 | U48: 0 | V48: 0 | W48: 0 | X48: 0 | Y48: 0 | Z48: 0 | AA48: 0 | AB48: 0 | AC48: 0
B49: Cumulative Discounted Total | D49: =IF((COLUMN(D4)-COLUMN($D4))<=Base_V1_Years_Usage_Modeled,C49+D48,0) -> -34593.888 | E49: -36274.01079 | F49: -37961.83003 | G49: -39636.35841 | H49: -41298.84927 | I49: -42950.99766 | J49: -44653.78162 | K49: -46352.75834 | L49: -36520.2346 | M49: 0 | N49: 0 | O49: 0 | P49: 0 | Q49: 0 | R49: 0 | S49: 0 | T49: 0 | U49: 0 | V49: 0 | W49: 0 | X49: 0 | Y49: 0 | Z49: 0 | AA49: 0 | AB49: 0 | AC49: 0
B50: Annualized NPV Total Cost of Ownership | D50: =OFFSET($D49,0,Base_V1_Years_Usage_Modeled)/Base_V1_Years_Usage_Modeled -> -4565.029325
B52: Baseline EV Infrastructure
D53: Year 0 | E53: Year 1 | F53: Year 2 | G53: Year 3 | H53: Year 4 | I53: Year 5 | J53: Year 6 | K53: Year 7 | L53: Year 8 | M53: Year 9 | N53: Year 10 | O53: Year 11 | P53: Year 12 | Q53: Year 13 | R53: Year 14 | S53: Year 15 | T53: Year 16 | U53: Year 17 | V53: Year 18 | W53: Year 19 | X53: Year 20 | Y53: Year 21 | Z53: Year 22 | AA53: Year 23 | AB53: Year 24 | AC53: Year 25
B54: Capital and Financing Costs
B55: Cash
B56: Cash Payment | D56: =IF(AND(Base_Inf_Has_Cash_Purchase_Ex=TRUE,_Base_Include_Charging="Yes"),-Base_Num_Stations_Modeled*Base_Station_Cost_Modeled,0) -> 0
B57: Loan
B58: Down Payment | D58: =IF(AND(Base_Inf_Has_Cash_Purchase_Ex=FALSE,_Base_Include_Charging="Yes"),-Base_Inf_Down_Payment_Modeled,0) -> 0
B59: Loan Payments | E59: =IF(AND(Base_Inf_Has_Cash_Purchase_Ex=FALSE,_Base_Include_Charging="Yes",(COLUMN(E53)-COLUMN($E53))<Base_Inf_Loan_Term_Modeled),PMT(Base_Inf_Loan_APR_Modeled,Base_Inf_Loan_Term_Modeled,(Base_Num_Stations_Modeled*Base_Station_Cost_Modeled)-Base_Inf_Down_Payment_Modeled,0),0) -> 0 | F59: 0 | G59: 0 | H59: 0 | I59: 0 | J59: 0 | K59: 0 | L59: 0 | M59: 0 | N59: 0 | O59: 0 | P59: 0 | Q59: 0 | R59: 0 | S59: 0 | T59: 0 | U59: 0 | V59: 0 | W59: 0 | X59: 0 | Y59: 0 | Z59: 0 | AA59: 0 | AB59: 0 | AC59: 0
B60: Subtotal Loan Cash Flows | D60: =SUM(D58:D59) -> 0 | E60: =SUM(E58:E59) -> 0 | F60: 0 | G60: 0 | H60: 0 | I60: 0 | J60: 0 | K60: 0 | L60: 0 | M60: 0 | N60: 0 | O60: 0 | P60: 0 | Q60: 0 | R60: 0 | S60: 0 | T60: 0 | U60: 0 | V60: 0 | W60: 0 | X60: 0 | Y60: 0 | Z60: 0 | AA60: 0 | AB60: 0 | AC60: 0
B62: Total Capital and Financing Costs | D62: =D56+D60 -> 0 | E62: =E56+E60 -> 0 | F62: 0 | G62: 0 | H62: 0 | I62: 0 | J62: 0 | K62: 0 | L62: 0 | M62: 0 | N62: 0 | O62: 0 | P62: 0 | Q62: 0 | R62: 0 | S62: 0 | T62: 0 | U62: 0 | V62: 0 | W62: 0 | X62: 0 | Y62: 0 | Z62: 0 | AA62: 0 | AB62: 0 | AC62: 0
B64: Operating Costs
B65: Maintenance Cost | E65: =-IF(AND(COLUMN(E53)-COLUMN($E53)<Base_V1_Years_Usage_Modeled,_Base_Include_Charging="Yes"),Base_Station_Maint_Cost_Modeled*Base_Num_Stations_Modeled,0)*'Data General Inflation'!D$3 -> 0 | F65: =-IF(AND(COLUMN(F53)-COLUMN($E53)<Base_V1_Years_Usage_Modeled,_Base_Include_Charging="Yes"),Base_Station_Maint_Cost_Modeled*Base_Num_Stations_Modeled,0)*'Data General Inflation'!E$3 -> 0 | G65: =-IF(AND(COLUMN(G53)-COLUMN($E53)<Base_V1_Years_Usage_Modeled,_Base_Include_Charging="Yes"),Base_Station_Maint_Cost_Modeled*Base_Num_Stations_Modeled,0)*'Data General Inflation'!F$3 -> 0 | H65: =-IF(AND(COLUMN(H53)-COLUMN($E53)<Base_V1_Years_Usage_Modeled,_Base_Include_Charging="Yes"),Base_Station_Maint_Cost_Modeled*Base_Num_Stations_Modeled,0)*'Data General Inflation'!G$3 -> 0 | I65: =-IF(AND(COLUMN(I53)-COLUMN($E53)<Base_V1_Years_Usage_Modeled,_Base_Include_Charging="Yes"),Base_Station_Maint_Cost_Modeled*Base_Num_Stations_Modeled,0)*'Data General Inflation'!H$3 -> 0 | J65: =-IF(AND(COLUMN(J53)-COLUMN($E53)<Base_V1_Years_Usage_Modeled,_Base_Include_Charging="Yes"),Base_Station_Maint_Cost_Modeled*Base_Num_Stations_Modeled,0)*'Data General Inflation'!I$3 -> 0 | K65: =-IF(AND(COLUMN(K53)-COLUMN($E53)<Base_V1_Years_Usage_Modeled,_Base_Include_Charging="Yes"),Base_Station_Maint_Cost_Modeled*Base_Num_Stations_Modeled,0)*'Data General Inflation'!J$3 -> 0 | L65: =-IF(AND(COLUMN(L53)-COLUMN($E53)<Base_V1_Years_Usage_Modeled,_Base_Include_Charging="Yes"),Base_Station_Maint_Cost_Modeled*Base_Num_Stations_Modeled,0)*'Data General Inflation'!K$3 -> 0 | M65: =-IF(AND(COLUMN(M53)-COLUMN($E53)<Base_V1_Years_Usage_Modeled,_Base_Include_Charging="Yes"),Base_Station_Maint_Cost_Modeled*Base_Num_Stations_Modeled,0)*'Data General Inflation'!L$3 -> 0 | N65: =-IF(AND(COLUMN(N53)-COLUMN($E53)<Base_V1_Years_Usage_Modeled,_Base_Include_Charging="Yes"),Base_Station_Maint_Cost_Modeled*Base_Num_Stations_Modeled,0)*'Data General Inflation'!M$3 -> 0 | O65: =-IF(AND(COLUMN(O53)-COLUMN($E53)<Base_V1_Years_Usage_Modeled,_Base_Include_Charging="Yes"),Base_Station_Maint_Cost_Modeled*Base_Num_Stations_Modeled,0)*'Data General Inflation'!N$3 -> 0 | P65: =-IF(AND(COLUMN(P53)-COLUMN($E53)<Base_V1_Years_Usage_Modeled,_Base_Include_Charging="Yes"),Base_Station_Maint_Cost_Modeled*Base_Num_Stations_Modeled,0)*'Data General Inflation'!O$3 -> 0 | Q65: =-IF(AND(COLUMN(Q53)-COLUMN($E53)<Base_V1_Years_Usage_Modeled,_Base_Include_Charging="Yes"),Base_Station_Maint_Cost_Modeled*Base_Num_Stations_Modeled,0)*'Data General Inflation'!P$3 -> 0 | R65: =-IF(AND(COLUMN(R53)-COLUMN($E53)<Base_V1_Years_Usage_Modeled,_Base_Include_Charging="Yes"),Base_Station_Maint_Cost_Modeled*Base_Num_Stations_Modeled,0)*'Data General Inflation'!Q$3 -> 0 | S65: =-IF(AND(COLUMN(S53)-COLUMN($E53)<Base_V1_Years_Usage_Modeled,_Base_Include_Charging="Yes"),Base_Station_Maint_Cost_Modeled*Base_Num_Stations_Modeled,0)*'Data General Inflation'!R$3 -> 0 | T65: =-IF(AND(COLUMN(T53)-COLUMN($E53)<Base_V1_Years_Usage_Modeled,_Base_Include_Charging="Yes"),Base_Station_Maint_Cost_Modeled*Base_Num_Stations_Modeled,0)*'Data General Inflation'!S$3 -> 0 | U65: =-IF(AND(COLUMN(U53)-COLUMN($E53)<Base_V1_Years_Usage_Modeled,_Base_Include_Charging="Yes"),Base_Station_Maint_Cost_Modeled*Base_Num_Stations_Modeled,0)*'Data General Inflation'!T$3 -> 0 | V65: =-IF(AND(COLUMN(V53)-COLUMN($E53)<Base_V1_Years_Usage_Modeled,_Base_Include_Charging="Yes"),Base_Station_Maint_Cost_Modeled*Base_Num_Stations_Modeled,0)*'Data General Inflation'!U$3 -> 0 | W65: =-IF(AND(COLUMN(W53)-COLUMN($E53)<Base_V1_Years_Usage_Modeled,_Base_Include_Charging="Yes"),Base_Station_Maint_Cost_Modeled*Base_Num_Stations_Modeled,0)*'Data General Inflation'!V$3 -> 0 | X65: =-IF(AND(COLUMN(X53)-COLUMN($E53)<Base_V1_Years_Usage_Modeled,_Base_Include_Charging="Yes"),Base_Station_Maint_Cost_Modeled*Base_Num_Stations_Modeled,0)*'Data General Inflation'!W$3 -> 0 | Y65: =-IF(AND(COLUMN(Y53)-COLUMN($E53)<Base_V1_Years_Usage_Modeled,_Base_Include_Charging="Yes"),Base_Station_Maint_Cost_Modeled*Base_Num_Stations_Modeled,0)*'Data General Inflation'!X$3 -> 0 | Z65: =-IF(AND(COLUMN(Z53)-COLUMN($E53)<Base_V1_Years_Usage_Modeled,_Base_Include_Charging="Yes"),Base_Station_Maint_Cost_Modeled*Base_Num_Stations_Modeled,0)*'Data General Inflation'!Y$3 -> 0 | AA65: =-IF(AND(COLUMN(AA53)-COLUMN($E53)<Base_V1_Years_Usage_Modeled,_Base_Include_Charging="Yes"),Base_Station_Maint_Cost_Modeled*Base_Num_Stations_Modeled,0)*'Data General Inflation'!Z$3 -> 0 | AB65: =-IF(AND(COLUMN(AB53)-COLUMN($E53)<Base_V1_Years_Usage_Modeled,_Base_Include_Charging="Yes"),Base_Station_Maint_Cost_Modeled*Base_Num_Stations_Modeled,0)*'Data General Inflation'!AA$3 -> 0 | AC65: =-IF(AND(COLUMN(AC53)-COLUMN($E53)<Base_V1_Years_Usage_Modeled,_Base_Include_Charging="Yes"),Base_Station_Maint_Cost_Modeled*Base_Num_Stations_Modeled,0)*'Data General Inflation'!AB$3 -> 0
B66: Subtotal Operating Costs | E66: =SUM(E65:E65) -> 0 | F66: 0 | G66: 0 | H66: 0 | I66: 0 | J66: 0 | K66: 0 | L66: 0 | M66: 0 | N66: 0 | O66: 0 | P66: 0 | Q66: 0 | R66: 0 | S66: 0 | T66: 0 | U66: 0 | V66: 0 | W66: 0 | X66: 0 | Y66: 0 | Z66: 0 | AA66: 0 | AB66: 0 | AC66: 0
B67: Total Discounted Costs
B68: Total Annual Costs | D68: =D62+D66 -> 0 | E68: =E62+E66 -> 0 | F68: 0 | G68: 0 | H68: 0 | I68: 0 | J68: 0 | K68: 0 | L68: 0 | M68: 0 | N68: 0 | O68: 0 | P68: 0 | Q68: 0 | R68: 0 | S68: 0 | T68: 0 | U68: 0 | V68: 0 | W68: 0 | X68: 0 | Y68: 0 | Z68: 0 | AA68: 0 | AB68: 0 | AC68: 0
B69: Discount Factor | C69: =Base_Discount_Rate_Modeled -> 0.02 | D69: =(1/(1+$C69))^(COLUMN(D53)-COLUMN($D53)) -> 1 | E69: 0.9803921569 | F69: 0.9611687812 | G69: 0.9423223345 | H69: 0.923845426 | I69: 0.9057308098 | J69: 0.8879713822 | K69: 0.8705601786 | L69: 0.8534903712 | M69: 0.8367552659 | N69: 0.8203482999 | O69: 0.8042630391 | P69: 0.7884931756 | Q69: 0.7730325251 | R69: 0.7578750246 | S69: 0.74301473 | T69: 0.7284458137 | U69: 0.7141625625 | V69: 0.700159375 | W69: 0.6864307598 | X69: 0.6729713331 | Y69: 0.6597758168 | Z69: 0.6468390361 | AA69: 0.6341559177 | AB69: 0.6217214879 | AC69: 0.6095308705
B70: Discounted Total | D70: =D68*D69 -> 0 | E70: =E68*E69 -> 0 | F70: =F68*F69 -> 0 | G70: 0 | H70: 0 | I70: 0 | J70: 0 | K70: 0 | L70: 0 | M70: 0 | N70: 0 | O70: 0 | P70: 0 | Q70: 0 | R70: 0 | S70: 0 | T70: 0 | U70: 0 | V70: 0 | W70: 0 | X70: 0 | Y70: 0 | Z70: 0 | AA70: 0 | AB70: 0 | AC70: 0
B71: Cumulative Discounted Total | D71: =IF((COLUMN(D53)-COLUMN($D53))<=Base_V1_Years_Usage_Modeled,C71+D70,0) -> 0 | E71: 0 | F71: 0 | G71: 0 | H71: 0 | I71: 0 | J71: 0 | K71: 0 | L71: 0 | M71: 0 | N71: 0 | O71: 0 | P71: 0 | Q71: 0 | R71: 0 | S71: 0 | T71: 0 | U71: 0 | V71: 0 | W71: 0 | X71: 0 | Y71: 0 | Z71: 0 | AA71: 0 | AB71: 0 | AC71: 0
B72: Annualized NPV Total Cost of Ownership | D72: =OFFSET($D71,0,Base_V1_Years_Usage_Modeled)/Base_V1_Years_Usage_Modeled -> 0
B74: Comparison Vehicle 1
D75: Year 0 | E75: Year 1 | F75: Year 2 | G75: Year 3 | H75: Year 4 | I75: Year 5 | J75: Year 6 | K75: Year 7 | L75: Year 8 | M75: Year 9 | N75: Year 10 | O75: Year 11 | P75: Year 12 | Q75: Year 13 | R75: Year 14 | S75: Year 15 | T75: Year 16 | U75: Year 17 | V75: Year 18 | W75: Year 19 | X75: Year 20 | Y75: Year 21 | Z75: Year 22 | AA75: Year 23 | AB75: Year 24 | AC75: Year 25
B76: Depreciation Calculations
B77: Fair Market Value - BEV | D77: =IF(_Comp_V1_Vehicle_Drivetrain="BEV",Comp_V1_Base_Price_Ex,0) -> 0 | E77: =IF(_Comp_V1_Vehicle_Vehicle_Class=Const_Passenger_Light_Duty, IF(_Comp_V1_Vehicle_Drivetrain="BEV",MAX(IF(_Comp_V1_Vehicle_Drivetrain="BEV",Reg_BEV_Const_Ex+Reg_BEV_Age_Coef_Ex*(COLUMN(E75)-COLUMN($D75))+Reg_BEV_Agesq_Coef_Ex*((COLUMN(E75)-COLUMN($D75))^2)+Reg_BEV_MSRP_Coef_Ex*Comp_V1_Base_Price_Ex+Reg_BEV_Range_Coef_Ex*Constant_Comparison_Electric_Range+Reg_BEV_Mileage_Coef_Ex*Comp_V1_VMT_Modeled*(COLUMN(E75)-COLUMN($D75)),0),300),0), IF(COLUMN(E75)-COLUMN($D75)=1, 'Financial Model'!D77*0.77, 'Financial Model'!D77*0.85)) -> 0 | F77: =IF(_Comp_V1_Vehicle_Vehicle_Class=Const_Passenger_Light_Duty, IF(_Comp_V1_Vehicle_Drivetrain="BEV",MAX(IF(_Comp_V1_Vehicle_Drivetrain="BEV",Reg_BEV_Const_Ex+Reg_BEV_Age_Coef_Ex*(COLUMN(F75)-COLUMN($D75))+Reg_BEV_Agesq_Coef_Ex*((COLUMN(F75)-COLUMN($D75))^2)+Reg_BEV_MSRP_Coef_Ex*Comp_V1_Base_Price_Ex+Reg_BEV_Range_Coef_Ex*Constant_Comparison_Electric_Range+Reg_BEV_Mileage_Coef_Ex*Comp_V1_VMT_Modeled*(COLUMN(F75)-COLUMN($D75)),0),300),0), IF(COLUMN(F75)-COLUMN($D75)=1, 'Financial Model'!E77*0.77, 'Financial Model'!E77*0.85)) -> 0 | G77: =IF(_Comp_V1_Vehicle_Vehicle_Class=Const_Passenger_Light_Duty, IF(_Comp_V1_Vehicle_Drivetrain="BEV",MAX(IF(_Comp_V1_Vehicle_Drivetrain="BEV",Reg_BEV_Const_Ex+Reg_BEV_Age_Coef_Ex*(COLUMN(G75)-COLUMN($D75))+Reg_BEV_Agesq_Coef_Ex*((COLUMN(G75)-COLUMN($D75))^2)+Reg_BEV_MSRP_Coef_Ex*Comp_V1_Base_Price_Ex+Reg_BEV_Range_Coef_Ex*Constant_Comparison_Electric_Range+Reg_BEV_Mileage_Coef_Ex*Comp_V1_VMT_Modeled*(COLUMN(G75)-COLUMN($D75)),0),300),0), IF(COLUMN(G75)-COLUMN($D75)=1, 'Financial Model'!F77*0.77, 'Financial Model'!F77*0.85)) -> 0 | H77: =IF(_Comp_V1_Vehicle_Vehicle_Class=Const_Passenger_Light_Duty, IF(_Comp_V1_Vehicle_Drivetrain="BEV",MAX(IF(_Comp_V1_Vehicle_Drivetrain="BEV",Reg_BEV_Const_Ex+Reg_BEV_Age_Coef_Ex*(COLUMN(H75)-COLUMN($D75))+Reg_BEV_Agesq_Coef_Ex*((COLUMN(H75)-COLUMN($D75))^2)+Reg_BEV_MSRP_Coef_Ex*Comp_V1_Base_Price_Ex+Reg_BEV_Range_Coef_Ex*Constant_Comparison_Electric_Range+Reg_BEV_Mileage_Coef_Ex*Comp_V1_VMT_Modeled*(COLUMN(H75)-COLUMN($D75)),0),300),0), IF(COLUMN(H75)-COLUMN($D75)=1, 'Financial Model'!G77*0.77, 'Financial Model'!G77*0.85)) -> 0 | I77: =IF(_Comp_V1_Vehicle_Vehicle_Class=Const_Passenger_Light_Duty, IF(_Comp_V1_Vehicle_Drivetrain="BEV",MAX(IF(_Comp_V1_Vehicle_Drivetrain="BEV",Reg_BEV_Const_Ex+Reg_BEV_Age_Coef_Ex*(COLUMN(I75)-COLUMN($D75))+Reg_BEV_Agesq_Coef_Ex*((COLUMN(I75)-COLUMN($D75))^2)+Reg_BEV_MSRP_Coef_Ex*Comp_V1_Base_Price_Ex+Reg_BEV_Range_Coef_Ex*Constant_Comparison_Electric_Range+Reg_BEV_Mileage_Coef_Ex*Comp_V1_VMT_Modeled*(COLUMN(I75)-COLUMN($D75)),0),300),0), IF(COLUMN(I75)-COLUMN($D75)=1, 'Financial Model'!H77*0.77, 'Financial Model'!H77*0.85)) -> 0 | J77: =IF(_Comp_V1_Vehicle_Vehicle_Class=Const_Passenger_Light_Duty, IF($H77-$I77=0,0,MAX(Constant_DEP*I77, 300)), IF($H77-$I77=0,0,MAX((1-($H77-$I77)/$H77)*I77,300))) -> 0 | K77: 0 | L77: 0 | M77: 0 | N77: 0 | O77: 0 | P77: 0 | Q77: 0 | R77: 0 | S77: 0 | T77: 0 | U77: 0 | V77: 0 | W77: 0 | X77: 0 | Y77: 0 | Z77: 0 | AA77: 0 | AB77: 0 | AC77: 0
B78: Fair Market Value - PHEV | D78: =IF(_Comp_V1_Vehicle_Drivetrain="PHEV",Comp_V1_Base_Price_Ex,0) -> 0 | E78: =IF(_Comp_V1_Vehicle_Vehicle_Class=Const_Passenger_Light_Duty, IF(_Comp_V1_Vehicle_Drivetrain="PHEV",MAX(IF(_Comp_V1_Vehicle_Drivetrain="PHEV",Reg_PHEV_Const_Ex+Reg_PHEV_Age_Coef_Ex*(COLUMN(E75)-COLUMN($D75))+Reg_PHEV_Agesq_Coef_Ex*((COLUMN(E75)-COLUMN($D75))^2)+Reg_PHEV_MSRP_Coef_Ex*Comp_V1_Base_Price_Ex+Reg_PHEV_Range_Coef_Ex*Constant_Comparison_Electric_Range+Reg_PHEV_Mileage_Coef_Ex*Comp_V1_VMT_Modeled*(COLUMN(E75)-COLUMN($D75)),0),300),0),IF(COLUMN(E75)-COLUMN($D75)=1, 'Financial Model'!D78*0.77, 'Financial Model'!D78*0.85)) -> 0 | F78: =IF(_Comp_V1_Vehicle_Vehicle_Class=Const_Passenger_Light_Duty, IF(_Comp_V1_Vehicle_Drivetrain="PHEV",MAX(IF(_Comp_V1_Vehicle_Drivetrain="PHEV",Reg_PHEV_Const_Ex+Reg_PHEV_Age_Coef_Ex*(COLUMN(F75)-COLUMN($D75))+Reg_PHEV_Agesq_Coef_Ex*((COLUMN(F75)-COLUMN($D75))^2)+Reg_PHEV_MSRP_Coef_Ex*Comp_V1_Base_Price_Ex+Reg_PHEV_Range_Coef_Ex*Constant_Comparison_Electric_Range+Reg_PHEV_Mileage_Coef_Ex*Comp_V1_VMT_Modeled*(COLUMN(F75)-COLUMN($D75)),0),300),0),IF(COLUMN(F75)-COLUMN($D75)=1, 'Financial Model'!E78*0.77, 'Financial Model'!E78*0.85)) -> 0 | G78: =IF(_Comp_V1_Vehicle_Vehicle_Class=Const_Passenger_Light_Duty, IF(_Comp_V1_Vehicle_Drivetrain="PHEV",MAX(IF(_Comp_V1_Vehicle_Drivetrain="PHEV",Reg_PHEV_Const_Ex+Reg_PHEV_Age_Coef_Ex*(COLUMN(G75)-COLUMN($D75))+Reg_PHEV_Agesq_Coef_Ex*((COLUMN(G75)-COLUMN($D75))^2)+Reg_PHEV_MSRP_Coef_Ex*Comp_V1_Base_Price_Ex+Reg_PHEV_Range_Coef_Ex*Constant_Comparison_Electric_Range+Reg_PHEV_Mileage_Coef_Ex*Comp_V1_VMT_Modeled*(COLUMN(G75)-COLUMN($D75)),0),300),0),IF(COLUMN(G75)-COLUMN($D75)=1, 'Financial Model'!F78*0.77, 'Financial Model'!F78*0.85)) -> 0 | H78: =IF(_Comp_V1_Vehicle_Vehicle_Class=Const_Passenger_Light_Duty, IF(_Comp_V1_Vehicle_Drivetrain="PHEV",MAX(IF(_Comp_V1_Vehicle_Drivetrain="PHEV",Reg_PHEV_Const_Ex+Reg_PHEV_Age_Coef_Ex*(COLUMN(H75)-COLUMN($D75))+Reg_PHEV_Agesq_Coef_Ex*((COLUMN(H75)-COLUMN($D75))^2)+Reg_PHEV_MSRP_Coef_Ex*Comp_V1_Base_Price_Ex+Reg_PHEV_Range_Coef_Ex*Constant_Comparison_Electric_Range+Reg_PHEV_Mileage_Coef_Ex*Comp_V1_VMT_Modeled*(COLUMN(H75)-COLUMN($D75)),0),300),0),IF(COLUMN(H75)-COLUMN($D75)=1, 'Financial Model'!G78*0.77, 'Financial Model'!G78*0.85)) -> 0 | I78: =IF(_Comp_V1_Vehicle_Vehicle_Class=Const_Passenger_Light_Duty, IF(_Comp_V1_Vehicle_Drivetrain="PHEV",MAX(IF(_Comp_V1_Vehicle_Drivetrain="PHEV",Reg_PHEV_Const_Ex+Reg_PHEV_Age_Coef_Ex*(COLUMN(I75)-COLUMN($D75))+Reg_PHEV_Agesq_Coef_Ex*((COLUMN(I75)-COLUMN($D75))^2)+Reg_PHEV_MSRP_Coef_Ex*Comp_V1_Base_Price_Ex+Reg_PHEV_Range_Coef_Ex*Constant_Comparison_Electric_Range+Reg_PHEV_Mileage_Coef_Ex*Comp_V1_VMT_Modeled*(COLUMN(I75)-COLUMN($D75)),0),300),0),IF(COLUMN(I75)-COLUMN($D75)=1, 'Financial Model'!H78*0.77, 'Financial Model'!H78*0.85)) -> 0 | J78: =IF(_Comp_V1_Vehicle_Vehicle_Class=Const_Passenger_Light_Duty, IF($H78-$I78=0,0,MAX(Constant_DEP*I78, 300)), IF($H78-$I78=0,0,MAX((1-($H78-$I78)/$H78)*I78,300))) -> 0 | K78: 0 | L78: 0 | M78: 0 | N78: 0 | O78: 0 | P78: 0 | Q78: 0 | R78: 0 | S78: 0 | T78: 0 | U78: 0 | V78: 0 | W78: 0 | X78: 0 | Y78: 0 | Z78: 0 | AA78: 0 | AB78: 0 | AC78: 0
B79: Fair Market Value - ICE | D79: =IF(_Comp_V1_Vehicle_Drivetrain="ICE",Comp_V1_Base_Price_Ex,0) -> 0 | E79: =IF(_Comp_V1_Vehicle_Vehicle_Class=Const_Passenger_Light_Duty, IF(_Comp_V1_Vehicle_Drivetrain="ICE",MAX(IF(_Comp_V1_Vehicle_Drivetrain="ICE",Reg_ICE_Const_Ex+Reg_ICE_Age_Coef_Ex*(COLUMN(E75)-COLUMN($D75))+Reg_ICE_Agesq_Coef_Ex*(COLUMN(E75)-COLUMN($D75))^2+Reg_ICE_MSRP_Coef_Ex*Comp_V1_Base_Price_Ex+Reg_ICE_MPG_Coef_Ex*Constant_Comparison_Fuel_Economy_Gas_City+Reg_ICE_Mileage_Coef_Ex*Comp_V1_VMT_Modeled*(COLUMN(E75)-COLUMN($D75)),0),300),0), IF(COLUMN(E75)-COLUMN($D75)=1, 'Financial Model'!D79*0.77, 'Financial Model'!D79*0.85)) -> 0 | F79: =IF(_Comp_V1_Vehicle_Vehicle_Class=Const_Passenger_Light_Duty, IF(_Comp_V1_Vehicle_Drivetrain="ICE",MAX(IF(_Comp_V1_Vehicle_Drivetrain="ICE",Reg_ICE_Const_Ex+Reg_ICE_Age_Coef_Ex*(COLUMN(F75)-COLUMN($D75))+Reg_ICE_Agesq_Coef_Ex*(COLUMN(F75)-COLUMN($D75))^2+Reg_ICE_MSRP_Coef_Ex*Comp_V1_Base_Price_Ex+Reg_ICE_MPG_Coef_Ex*Constant_Comparison_Fuel_Economy_Gas_City+Reg_ICE_Mileage_Coef_Ex*Comp_V1_VMT_Modeled*(COLUMN(F75)-COLUMN($D75)),0),300),0), IF(COLUMN(F75)-COLUMN($D75)=1, 'Financial Model'!E79*0.77, 'Financial Model'!E79*0.85)) -> 0 | G79: =IF(_Comp_V1_Vehicle_Vehicle_Class=Const_Passenger_Light_Duty, IF(_Comp_V1_Vehicle_Drivetrain="ICE",MAX(IF(_Comp_V1_Vehicle_Drivetrain="ICE",Reg_ICE_Const_Ex+Reg_ICE_Age_Coef_Ex*(COLUMN(G75)-COLUMN($D75))+Reg_ICE_Agesq_Coef_Ex*(COLUMN(G75)-COLUMN($D75))^2+Reg_ICE_MSRP_Coef_Ex*Comp_V1_Base_Price_Ex+Reg_ICE_MPG_Coef_Ex*Constant_Comparison_Fuel_Economy_Gas_City+Reg_ICE_Mileage_Coef_Ex*Comp_V1_VMT_Modeled*(COLUMN(G75)-COLUMN($D75)),0),300),0), IF(COLUMN(G75)-COLUMN($D75)=1, 'Financial Model'!F79*0.77, 'Financial Model'!F79*0.85)) -> 0 | H79: =IF(_Comp_V1_Vehicle_Vehicle_Class=Const_Passenger_Light_Duty, IF(_Comp_V1_Vehicle_Drivetrain="ICE",MAX(IF(_Comp_V1_Vehicle_Drivetrain="ICE",Reg_ICE_Const_Ex+Reg_ICE_Age_Coef_Ex*(COLUMN(H75)-COLUMN($D75))+Reg_ICE_Agesq_Coef_Ex*(COLUMN(H75)-COLUMN($D75))^2+Reg_ICE_MSRP_Coef_Ex*Comp_V1_Base_Price_Ex+Reg_ICE_MPG_Coef_Ex*Constant_Comparison_Fuel_Economy_Gas_City+Reg_ICE_Mileage_Coef_Ex*Comp_V1_VMT_Modeled*(COLUMN(H75)-COLUMN($D75)),0),300),0), IF(COLUMN(H75)-COLUMN($D75)=1, 'Financial Model'!G79*0.77, 'Financial Model'!G79*0.85)) -> 0 | I79: =IF(_Comp_V1_Vehicle_Vehicle_Class=Const_Passenger_Light_Duty, IF(_Comp_V1_Vehicle_Drivetrain="ICE",MAX(IF(_Comp_V1_Vehicle_Drivetrain="ICE",Reg_ICE_Const_Ex+Reg_ICE_Age_Coef_Ex*(COLUMN(I75)-COLUMN($D75))+Reg_ICE_Agesq_Coef_Ex*(COLUMN(I75)-COLUMN($D75))^2+Reg_ICE_MSRP_Coef_Ex*Comp_V1_Base_Price_Ex+Reg_ICE_MPG_Coef_Ex*Constant_Comparison_Fuel_Economy_Gas_City+Reg_ICE_Mileage_Coef_Ex*Comp_V1_VMT_Modeled*(COLUMN(I75)-COLUMN($D75)),0),300),0), IF(COLUMN(I75)-COLUMN($D75)=1, 'Financial Model'!H79*0.77, 'Financial Model'!H79*0.85)) -> 0 | J79: =IF(_Comp_V1_Vehicle_Vehicle_Class=Const_Passenger_Light_Duty, IF($H79-$I79=0,0,MAX(Constant_DEP*I79, 300)), IF($H79-$I79=0,0,MAX((1-($H79-$I79)/$H79)*I79,300))) -> 0 | K79: 0 | L79: 0 | M79: 0 | N79: 0 | O79: 0 | P79: 0 | Q79: 0 | R79: 0 | S79: 0 | T79: 0 | U79: 0 | V79: 0 | W79: 0 | X79: 0 | Y79: 0 | Z79: 0 | AA79: 0 | AB79: 0 | AC79: 0
B81: Capital and Financing Costs
B82: Cash
B83: Cash Payment | D83: =IF(AND(Comp_V1_Has_Cash_Purchase_Ex=TRUE,Comp_V1_Has_Loan_Ex=FALSE,Comp_V1_Has_Lease_Ex=FALSE,COLUMN(D75)-COLUMN($D75)=0),-(Comp_V1_Base_Price_Ex-IF(Comp_V1_Tax_Incentives_Monetized="Yes",Comp_V1_Federal_Tax_Incentives_Modeled+IF(Comp_V1_State_Tax_Incentive_Cap_Modeled=0,Comp_V1_State_Tax_Incentives_Modeled,MIN(Comp_V1_State_Tax_Incentive_Cap_Modeled,Comp_V1_State_Tax_Incentives_Modeled*Comp_V1_Num_Vehicles_Modeled)/Comp_V1_Num_Vehicles_Modeled),0)-Comp_V1_Other_Incentives_Modeled),IF(AND(Comp_V1_Has_Cash_Purchase_Ex=TRUE,OR(Comp_V1_Has_Loan_Ex=TRUE,Comp_V1_Has_Lease_Ex=TRUE),COLUMN(D75)-COLUMN($D75)=Comp_V1_Lease_Term_Modeled),IF(ISERROR(FIND("Tax",_Comp_V1_Ownership_Structure,1)),-SUM(D77:D79),-Comp_V1_Lease_Residual_Price_Modeled),0)) -> 0 | E83: 0 | F83: 0 | G83: 0 | H83: 0 | I83: 0 | J83: 0 | K83: 0 | L83: 0 | M83: 0 | N83: 0 | O83: 0 | P83: 0 | Q83: 0 | R83: 0 | S83: 0 | T83: 0 | U83: 0 | V83: 0 | W83: 0 | X83: 0 | Y83: 0 | Z83: 0 | AA83: 0 | AB83: 0 | AC83: 0
B84: Lease
B85: Down Payment | D85: =IF(Comp_V1_Has_Lease_Ex=TRUE,-Comp_V1_Down_Payment_Modeled,0) -> 0
B86: Acquisition Fee | D86: =IF(Comp_V1_Has_Lease_Ex=TRUE,-Comp_V1_Lease_Acquisition_Fee_Modeled,0) -> 0
B87: Disposition Charge | D87: =IF(AND(Comp_V1_Has_Lease_Ex=TRUE,((COLUMN(D75)-COLUMN($D75))=Comp_V1_Lease_Term_Modeled)),-Comp_V1_Lease_Disposition_Fee_Modeled,0) -> 0 | E87: 0 | F87: 0 | G87: 0 | H87: 0 | I87: 0 | J87: 0 | K87: 0 | L87: 0 | M87: 0 | N87: 0 | O87: 0 | P87: 0 | Q87: 0 | R87: 0 | S87: 0 | T87: 0 | U87: 0 | V87: 0 | W87: 0 | X87: 0 | Y87: 0 | Z87: 0 | AA87: 0 | AB87: 0 | AC87: 0
B88: Lease Payments | E88: =IF(Comp_V1_Has_Lease_Ex=TRUE,IF((COLUMN(E75)-COLUMN($E75))<Comp_V1_Lease_Term_Modeled,-PMT(Comp_V1_Lease_APR_Modeled/12,Comp_V1_Lease_Term_Modeled*12,-(Comp_V1_Base_Price_Ex-IF(Comp_V1_Tax_Incentives_Monetized="Yes",Comp_V1_Federal_Tax_Incentives_Modeled+IF(Comp_V1_State_Tax_Incentive_Cap_Modeled=0,Comp_V1_State_Tax_Incentives_Modeled,MIN(Comp_V1_State_Tax_Incentive_Cap_Modeled,Comp_V1_State_Tax_Incentives_Modeled*Comp_V1_Num_Vehicles_Modeled)/Comp_V1_Num_Vehicles_Modeled),0)-Comp_V1_Other_Incentives_Modeled-Comp_V1_Down_Payment_Modeled)+Comp_V1_Lease_Residual_Price_Modeled,0)*12,0),0) -> 0 | F88: 0 | G88: 0 | H88: 0 | I88: 0 | J88: 0 | K88: 0 | L88: 0 | M88: 0 | N88: 0 | O88: 0 | P88: 0 | Q88: 0 | R88: 0 | S88: 0 | T88: 0 | U88: 0 | V88: 0 | W88: 0 | X88: 0 | Y88: 0 | Z88: 0 | AA88: 0 | AB88: 0 | AC88: 0
B89: Principal Payments | E89: =IF(Comp_V1_Has_Lease_Ex=TRUE,IF((COLUMN(E75)-COLUMN($E75))<Comp_V1_Lease_Term_Modeled,-PPMT(Comp_V1_Lease_APR_Modeled/12,(COLUMN(E75)-COLUMN($D75))*12,Comp_V1_Lease_Term_Modeled*12,-(Comp_V1_Base_Price_Ex-IF(Comp_V1_Tax_Incentives_Monetized="Yes",Comp_V1_Federal_Tax_Incentives_Modeled+IF(Comp_V1_State_Tax_Incentive_Cap_Modeled=0,Comp_V1_State_Tax_Incentives_Modeled,MIN(Comp_V1_State_Tax_Incentive_Cap_Modeled,Comp_V1_State_Tax_Incentives_Modeled*Comp_V1_Num_Vehicles_Modeled)/Comp_V1_Num_Vehicles_Modeled),0)-Comp_V1_Other_Incentives_Modeled-Comp_V1_Down_Payment_Modeled)+Comp_V1_Lease_Residual_Price_Modeled,0)*12,0),0) -> 0 | F89: 0 | G89: 0 | H89: 0 | I89: 0 | J89: 0 | K89: 0 | L89: 0 | M89: 0 | N89: 0 | O89: 0 | P89: 0 | Q89: 0 | R89: 0 | S89: 0 | T89: 0 | U89: 0 | V89: 0 | W89: 0 | X89: 0 | Y89: 0 | Z89: 0 | AA89: 0 | AB89: 0 | AC89: 0
B90: Interest Payments | E90: =IF(Comp_V1_Has_Lease_Ex=TRUE,IF((COLUMN(E75)-COLUMN($E75))<Comp_V1_Lease_Term_Modeled,-IPMT(Comp_V1_Lease_APR_Modeled/12,(COLUMN(E75)-COLUMN($D75))*12,Comp_V1_Lease_Term_Modeled*12,-(Comp_V1_Base_Price_Ex-IF(Comp_V1_Tax_Incentives_Monetized="Yes",Comp_V1_Federal_Tax_Incentives_Modeled+IF(Comp_V1_State_Tax_Incentive_Cap_Modeled=0,Comp_V1_State_Tax_Incentives_Modeled,MIN(Comp_V1_State_Tax_Incentive_Cap_Modeled,Comp_V1_State_Tax_Incentives_Modeled*Comp_V1_Num_Vehicles_Modeled)/Comp_V1_Num_Vehicles_Modeled),0)-Comp_V1_Other_Incentives_Modeled-Comp_V1_Down_Payment_Modeled)+Comp_V1_Lease_Residual_Price_Modeled,0)*12,0),0) -> 0 | F90: 0 | G90: 0 | H90: 0 | I90: 0 | J90: 0 | K90: 0 | L90: 0 | M90: 0 | N90: 0 | O90: 0 | P90: 0 | Q90: 0 | R90: 0 | S90: 0 | T90: 0 | U90: 0 | V90: 0 | W90: 0 | X90: 0 | Y90: 0 | Z90: 0 | AA90: 0 | AB90: 0 | AC90: 0
B91: TRAC Value Adjustment | E91: =IF(ISERROR(FIND("TRAC",_Comp_V1_Ownership_Structure,1)),0,IF(Comp_V1_Has_Loan_Ex=TRUE,0,IF((COLUMN(E75)-COLUMN($D75))=Comp_V1_Lease_Term_Modeled,SUM(E77:E79)-Comp_V1_Lease_Residual_Price_Modeled,0))) -> 0 | F91: 0 | G91: 0 | H91: 0 | I91: 0 | J91: 0 | K91: 0 | L91: 0 | M91: 0 | N91: 0 | O91: 0 | P91: 0 | Q91: 0 | R91: 0 | S91: 0 | T91: 0 | U91: 0 | V91: 0 | W91: 0 | X91: 0 | Y91: 0 | Z91: 0 | AA91: 0 | AB91: 0 | AC91: 0
B92: FMV Mileage Adjustment | E92: =MIN(0,MAX(-Comp_V1_Lease_Residual_Price_Modeled+SUM(E77:E79),IF(IFERROR(IF(FIND("FMV",_Comp_V1_Ownership_Structure,1)>0,TRUE,FALSE),FALSE),IF((COLUMN(E75)-COLUMN($D75))=Comp_V1_Lease_Term_Modeled,(Comp_V1_Lease_Mileage_Inc_Modeled-Comp_V1_VMT_Modeled)*(COLUMN(E75)-COLUMN($D75))*Comp_V1_Lease_Mileage_Cost_Modeled,0),0))) -> 0 | F92: 0 | G92: 0 | H92: 0 | I92: 0 | J92: 0 | K92: 0 | L92: 0 | M92: 0 | N92: 0 | O92: 0 | P92: 0 | Q92: 0 | R92: 0 | S92: 0 | T92: 0 | U92: 0 | V92: 0 | W92: 0 | X92: 0 | Y92: 0 | Z92: 0 | AA92: 0 | AB92: 0 | AC92: 0
B93: Subtotal Lease Cash Flows | D93: =SUM(D85:D88)+SUM(D91:D92) -> 0 | E93: =SUM(E85:E88)+SUM(E91:E92) -> 0 | F93: 0 | G93: 0 | H93: 0 | I93: 0 | J93: 0 | K93: 0 | L93: 0 | M93: 0 | N93: 0 | O93: 0 | P93: 0 | Q93: 0 | R93: 0 | S93: 0 | T93: 0 | U93: 0 | V93: 0 | W93: 0 | X93: 0 | Y93: 0 | Z93: 0 | AA93: 0 | AB93: 0 | AC93: 0
B94: Loan
B95: Down Payment | D95: =IF(AND(Comp_V1_Has_Loan_Ex=TRUE,Comp_V1_Has_Lease_Ex=FALSE),-Comp_V1_Down_Payment_Modeled,0) -> 0
B96: Loan Payments | E96: =IF(Comp_V1_Has_Loan_Ex=TRUE,IF(AND((COLUMN(E75)-COLUMN($E75))<Comp_V1_Loan_Term_Modeled+Comp_V1_Lease_Term_Modeled,(COLUMN(E75)-COLUMN($E75))>=Comp_V1_Lease_Term_Modeled),PMT(Comp_V1_Loan_APR_Modeled,Comp_V1_Loan_Term_Modeled,IF(Comp_V1_Has_Lease_Ex=TRUE,SUM(OFFSET($D77,0,Comp_V1_Lease_Term_Modeled,3,1)),Comp_V1_Base_Price_Ex-IF(Comp_V1_Tax_Incentives_Monetized="Yes",Comp_V1_Federal_Tax_Incentives_Modeled+IF(Comp_V1_State_Tax_Incentive_Cap_Modeled=0,Comp_V1_State_Tax_Incentives_Modeled,MIN(Comp_V1_State_Tax_Incentive_Cap_Modeled,Comp_V1_State_Tax_Incentives_Modeled*Comp_V1_Num_Vehicles_Modeled)/Comp_V1_Num_Vehicles_Modeled),0)-Comp_V1_Other_Incentives_Modeled-Comp_V1_Down_Payment_Modeled),0),0),0) -> 0 | F96: 0 | G96: 0 | H96: 0 | I96: 0 | J96: 0 | K96: 0 | L96: 0 | M96: 0 | N96: 0 | O96: 0 | P96: 0 | Q96: 0 | R96: 0 | S96: 0 | T96: 0 | U96: 0 | V96: 0 | W96: 0 | X96: 0 | Y96: 0 | Z96: 0 | AA96: 0 | AB96: 0 | AC96: 0
B97: Principal Payments | E97: =IF(Comp_V1_Has_Loan_Ex=TRUE,IF(AND((COLUMN(E75)-COLUMN($E75))<Comp_V1_Loan_Term_Modeled+Comp_V1_Lease_Term_Modeled,(COLUMN(E75)-COLUMN($E75))>=Comp_V1_Lease_Term_Modeled),PPMT(Comp_V1_Loan_APR_Modeled,IF(Comp_V1_Has_Lease_Ex=TRUE,(COLUMN(E75)-COLUMN($D75)-Comp_V1_Lease_Term_Modeled),(COLUMN(E75)-COLUMN($D75))),Comp_V1_Loan_Term_Modeled,IF(Comp_V1_Has_Lease_Ex=TRUE,SUM(OFFSET($D77,0,Comp_V1_Lease_Term_Modeled,3,1)),Comp_V1_Base_Price_Ex-IF(Comp_V1_Tax_Incentives_Monetized="Yes",Comp_V1_Federal_Tax_Incentives_Modeled+IF(Comp_V1_State_Tax_Incentive_Cap_Modeled=0,Comp_V1_State_Tax_Incentives_Modeled,MIN(Comp_V1_State_Tax_Incentive_Cap_Modeled,Comp_V1_State_Tax_Incentives_Modeled*Comp_V1_Num_Vehicles_Modeled)/Comp_V1_Num_Vehicles_Modeled),0)-Comp_V1_Other_Incentives_Modeled-Comp_V1_Down_Payment_Modeled),0),0),0) -> 0 | F97: 0 | G97: 0 | H97: 0 | I97: 0 | J97: 0 | K97: 0 | L97: 0 | M97: 0 | N97: 0 | O97: 0 | P97: 0 | Q97: 0 | R97: 0 | S97: 0 | T97: 0 | U97: 0 | V97: 0 | W97: 0 | X97: 0 | Y97: 0 | Z97: 0 | AA97: 0 | AB97: 0 | AC97: 0
B98: Interest Payments | E98: =IF(Comp_V1_Has_Loan_Ex=TRUE,IF(AND((COLUMN(E75)-COLUMN($E75))<Comp_V1_Loan_Term_Modeled+Comp_V1_Lease_Term_Modeled,(COLUMN(E75)-COLUMN($E75))>=Comp_V1_Lease_Term_Modeled),IPMT(Comp_V1_Loan_APR_Modeled,IF(Comp_V1_Has_Lease_Ex=TRUE,(COLUMN(E75)-COLUMN($D75)-Comp_V1_Lease_Term),(COLUMN(E75)-COLUMN($D75))),Comp_V1_Loan_Term_Modeled,IF(Comp_V1_Has_Lease_Ex=TRUE,SUM(OFFSET($D77,0,Comp_V1_Lease_Term_Modeled,3,1)),Comp_V1_Base_Price_Ex-IF(Comp_V1_Tax_Incentives_Monetized="Yes",Comp_V1_Federal_Tax_Incentives_Modeled+IF(Comp_V1_State_Tax_Incentive_Cap_Modeled=0,Comp_V1_State_Tax_Incentives_Modeled,MIN(Comp_V1_State_Tax_Incentive_Cap_Modeled,Comp_V1_State_Tax_Incentives_Modeled*Comp_V1_Num_Vehicles_Modeled)/Comp_V1_Num_Vehicles_Modeled),0)-Comp_V1_Other_Incentives_Modeled-Comp_V1_Down_Payment_Modeled),0),0),0) -> 0 | F98: 0 | G98: 0 | H98: 0 | I98: 0 | J98: 0 | K98: 0 | L98: 0 | M98: 0 | N98: 0 | O98: 0 | P98: 0 | Q98: 0 | R98: 0 | S98: 0 | T98: 0 | U98: 0 | V98: 0 | W98: 0 | X98: 0 | Y98: 0 | Z98: 0 | AA98: 0 | AB98: 0 | AC98: 0
B99: Subtotal Loan Cash Flows | D99: =SUM(D95:D96) -> 0 | E99: =SUM(E95:E96) -> 0 | F99: 0 | G99: 0 | H99: 0 | I99: 0 | J99: 0 | K99: 0 | L99: 0 | M99: 0 | N99: 0 | O99: 0 | P99: 0 | Q99: 0 | R99: 0 | S99: 0 | T99: 0 | U99: 0 | V99: 0 | W99: 0 | X99: 0 | Y99: 0 | Z99: 0 | AA99: 0 | AB99: 0 | AC99: 0
B100: Terminal Value | E100: =IF(OR(Comp_V1_Has_Loan_Ex=TRUE,Comp_V1_Has_Cash_Purchase_Ex=TRUE),IF((COLUMN(E75)-COLUMN($D75))=Comp_V1_Years_Usage_Modeled,SUM(E77:E79),0),0) -> 0 | F100: 0 | G100: 0 | H100: 0 | I100: 0 | J100: 0 | K100: 0 | L100: 0 | M100: 0 | N100: 0 | O100: 0 | P100: 0 | Q100: 0 | R100: 0 | S100: 0 | T100: 0 | U100: 0 | V100: 0 | W100: 0 | X100: 0 | Y100: 0 | Z100: 0 | AA100: 0 | AB100: 0 | AC100: 0
B102: Total Capital and Financing Costs | D102: =D83+D93+D99+D100 -> 0 | E102: 0 | F102: 0 | G102: 0 | H102: 0 | I102: 0 | J102: 0 | K102: 0 | L102: 0 | M102: 0 | N102: 0 | O102: 0 | P102: 0 | Q102: 0 | R102: 0 | S102: 0 | T102: 0 | U102: 0 | V102: 0 | W102: 0 | X102: 0 | Y102: 0 | Z102: 0 | AA102: 0 | AB102: 0 | AC102: 0
B104: Fuel and Operating Costs
